Workbook

Sheet Feuil1 (hidden)

Sheet CLASSEMENT
A1: -4 | E1: 2022-2023 | K1: Date de la mise-à-jour | O1: 2023-04-13 | S1: Tireurs actifs: | V1: =COUNTIF(F11:F722,">0") -> 443 | X1: RÉSULTATS DES TOURNOIS | Z1: SAISON EXTÉRIEURE 2022 | AV1: Finale extérieure St-Germain | AX1: SAISON INTÉRIEURE 2023 | BU1: Finale intérieure Coaticook
A2: -3 | K2: Date de renouvellement des membres 2022 | L2: Extérieur 2022 | P2: FINALE EXTÉRIEURE | Q2: Date de renouvellement des membres 2023 | R2: Intérieur 2023 | V2: FINALE INTÉRIEURE | Y2: Club hôte | Z2: St-Roch-de-l'Achigan | AA2: Chelsea | AB2: St-Francois | AC2: Mt-Laurier | AD2: Lac St-Charles Qc | AE2: Centre du Qc | AF2: Ascot-Corner | AG2: Chez Julien | AH2: Victoriaville | AI2: Brome-Bolton | AJ2: LaTuque | AK2: Cantley | AL2: Centre du Qc (#2) | AM2: Amos ( ramené sur 330 ) | AN2: LaSarre | AO2: Rouyn-Noranda | AP2: Val-d'or | AQ2: Ile Perrot | AR2: Sorel | AX2: Coaticook | AY2: Le Gardeur | AZ2: Lasarre | BA2: St-Roch-de-l'Achigan | BB2: Mont-Tremblant | BC2: Buckhingham | BD2: Drummondville | BE2: Coaticook | BF2: St-Jean | BG2: Val-d'or | BH2: Nord'Arc | BI2: Nord'Arc 2 | BP2: Rockland | BQ2: Maniwaki | BR2: Rouyn-Noranda | BS2: St-Germain | BT2: Acton Vale
E3: Date de début des inscription 2022 : | H3: 2022-01-01
A4: -2 | E4: Date de début des inscription 2023 : | H4: 2023-01-01 | L4: meilleurs pointages ( sur 55 pts ) | R4: meilleurs pointages (sur 55 pts )
A5: -1 | E5: Date limite des inscription pour 2023 : | H5: 2023-03-14 | Y5: Participants | Z5: =COUNTIF(Z8:Z760,">=0") -> 35 | AA5: 32 | AB5: 21 | AC5: 31 | AD5: 52 | AE5: 34 | AF5: 53 | AG5: 37 | AH5: 52 | AI5: 46 | AJ5: 23 | AK5: 42 | AL5: 68 | AM5: 16 | AN5: 15 | AO5: 17 | AP5: 16 | AQ5: 40 | AR5: 38 | AS5: 0 | AT5: 0 | AU5: 0 | AV5: 97 | AX5: =COUNTIF(AX8:AX760,">=0") -> 41 | AY5: 63 | AZ5: 13 | BA5: 52 | BB5: 0 | BC5: 79 | BD5: 79 | BE5: 63 | BF5: 67 | BG5: 28 | BH5: 44 | BI5: 46 | BJ5: 0 | BK5: 0 | BL5: 0 | BM5: 0 | BN5: 0 | BO5: 0 | BP5: 0 | BQ5: =COUNTIF(BQ8:BQ761,">=0") -> 0 | BR5: =COUNTIF(BR8:BR761,">=0") -> 0 | BS5: =COUNTIF(BS8:BS761,">=0") -> 0 | BT5: =COUNTIF(BT8:BT761,">=0") -> 0 | BU5: =COUNTIF(BU8:BU761,">=0") -> 87
A6: 0 | B6: rang | C6: # membre | D6: nom | E6: prénom | F6: classe | G6: Club | H6: NB | I6: TOTAL ANNUEL | J6: TOTAL EXT | L6: 1 | M6: 2 | N6: 3 | O6: 4 | R6: 1 | S6: 2 | T6: 3 | U6: 4 | Y6: Date | Z6: 2022-05-07 | AA6: 2022-05-14 | AB6: 2022-05-22 | AC6: 2022-05-29 | AD6: 2022-06-05 | AE6: 2022-06-12 | AF6: 2022-06-19 | AG6: 2022-06-26 | AH6: 2022-07-03 | AI6: 2022-07-17 | AJ6: 2022-07-24 | AK6: 2022-07-31 | AL6: 2022-08-07 | AM6: 2022-08-13 | AN6: 2022-08-14 | AO6: 2022-08-20 | AP6: 2022-08-21 | AQ6: 2022-08-21 | AR6: 2022-09-11 | AV6: 2022-08-28 | AX6: 2023-01-14 | AY6: 2023-01-21 | AZ6: 2023-01-28 | BA6: 2023-02-05 | BB6: 2023-02-19 | BC6: 2023-02-26 | BD6: 2023-03-12 | BE6: 2023-03-19 | BF6: 2023-03-26 | BG6: 2023-04-02 | BH6: 2023-04-02 | BI6: 2023-04-16 | BP6: 2020-??-?? | BQ6: 2020-??-?? | BR6: 2020-??-?? | BS6: 2020-??-?? | BT6: 2020-??-?? | BU6: 2023-04-23
A7: =A8 -> 1 | I7: 1324 | J7: 1324 | K7: 1 | Q7: 1
A8: =A9 -> 1 | I8: 1324 | J8: 1324 | K8: 1 | Q8: 1
A9: 1 | B9: Classe 1 et | E9: HOMME FUTUR ARCHER - POULIES ( - 12 ans ) | I9: 1323 | J9: 1323 | K9: 1 | L9: 15 mètres | N9: BLANC | Q9: 1
A10: =A9 -> 1 | B10: Classe 3 | E10: HOMME FUTUR ARCHER - TRADITIONNEL ( -12 ans) | I10: 1322 | J10: 1322 | K10: 1 | L10: 15 mètres | N10: BLANC | Q10: 1
A11: 1 | I11: 1321 | J11: 1321 | K11: 1 | Q11: 1
A12: 1 | B12: =B11+1 -> 1 | C12: 6333 | D12: =IF($C12="","",IF($O$1>$H$4,IFERROR(VLOOKUP($C12,'Membres-2023'!$A:$G,2,FALSE),""),IFERROR(VLOOKUP($C12,'Membres-2022'!$A:$G,2,FALSE),""))) -> Bernier | E12: =IF($C12="","",IF($O$1>$H$4,IFERROR(VLOOKUP($C12,'Membres-2023'!$A:$G,3,FALSE),""),IFERROR(VLOOKUP($C12,'Membres-2022'!$A:$G,3,FALSE),""))) -> Alexis | F12: =IF($C12="","",IF($O$1>$H$4,IFERROR(VLOOKUP($C12,'Membres-2023'!$A:$G,7,FALSE),""),IFERROR(VLOOKUP($C12,'Membres-2022'!$A:$G,7,FALSE),""))) -> 1 | G12: =IF($C12="","",IF($O$1>$H$4,IFERROR(VLOOKUP($C12,'Membres-2023'!$A:$G,5,FALSE),""),IFERROR(VLOOKUP($C12,'Membres-2022'!$A:$G,5,FALSE),""))) -> Acti-Sports de Coaticok | H12: =COUNTIF($Z12:$BU12,">=0") -> 7 | I12: =SUM(L12:P12,R12:V12) -> 749 | J12: =SUM(L12:P12) -> 286.8333333 | K12: =IFERROR(IF(VLOOKUP(C12,'Membres-2022'!$A:$F,6,FALSE)>=$H$3,VLOOKUP(C12,'Membres-2022'!$A:$F,6,FALSE),"non inscrit"),IF($C12>0,"non inscrit","")) -> 2022-12-05 | L12: =IFERROR(IF(COUNTA(Z12:AU12)>0,LARGE(Z12:AU12,1)/6,""),"") -> 37.83333333 | M12: =IFERROR(IF(COUNTA(Z12:AU12)>1,LARGE(Z12:AU12,2)/6,""),"") ->  | N12: =IFERROR(IF(COUNTA(Z12:AU12)>2,LARGE(Z12:AU12,3)/6,""),"") ->  | O12: =IFERROR(IF(COUNTA(Z12:AU12)>3,LARGE(Z12:AU12,4)/6,""),"") ->  | P12: =IF(AV12<>"",AV12,"") -> 249 | Q12: =IFERROR(IF(VLOOKUP($C12,'Membres-2023'!$A:$F,6,FALSE)>=$H$3,VLOOKUP($C12,'Membres-2023'!$A:$F,6,FALSE),"non inscrit"),"") -> 2023-02-24 | R12: =IFERROR(IF(COUNTA(AX12:BT12)>0,LARGE(AX12:BT12,1)/6,""),"") -> 43.33333333 | S12: =IFERROR(IF(COUNTA(AX12:BT12)>1,LARGE(AX12:BT12,2)/6,""),"") -> 43 | T12: =IFERROR(IF(COUNTA(AX12:BT12)>2,LARGE(AX12:BT12,3)/6,""),"") -> 41.83333333 | U12: =IFERROR(IF(COUNTA(AX12:BT12)>3,LARGE(AX12:BT12,4)/6,""),"") -> 38 | V12: =IF(BU12<>"",BU12,"") -> 296 | Z12: =IF(IF(AND($K12<>"non inscrit",Z$6<$H$4),OR($K12<$H$5,$K12<Z$6),OR($Q12<$H$5,$Q12<Z$6)),IFERROR(IF(VLOOKUP($C12,Stroch_ext!$C$12:$K$400,5,FALSE)=$F12,VLOOKUP($C12,Stroch_ext!$C$12:$K$400,9,FALSE),""),""),"") ->  | AA12: =IF(IF(AND($K12<>"non inscrit",AA$6<$H$4),OR($K12<$H$5,$K12<AA$6),OR($Q12<$H$5,$Q12<AA$6)),IFERROR(IF(VLOOKUP($C12,Vallée_ext!$C$12:$K$400,5,FALSE)=$F12,VLOOKUP($C12,Vallée_ext!$C$12:$K$400,9,FALSE),""),""),"") ->  | AB12: =IF(IF(AND($K12<>"non inscrit",AB$6<$H$4),OR($K12<$H$5,$K12<AB$6),OR($Q12<$H$5,$Q12<AB$6)),IFERROR(IF(VLOOKUP($C12,ASF_ext!$C$12:$K$400,5,FALSE)=$F12,VLOOKUP($C12,ASF_ext!$C$12:$K$400,9,FALSE),""),""),"") ->  | AC12: =IF(IF(AND($K12<>"non inscrit",AC$6<$H$4),OR($K12<$H$5,$K12<AC$6),OR($Q12<$H$5,$Q12<AC$6)),IFERROR(IF(VLOOKUP($C12,MtLaur_ext!$C$12:$K$407,5,FALSE)=$F12,VLOOKUP($C12,MtLaur_ext!$C$12:$K$407,9,FALSE),""),""),"") ->  | AD12: =IF(IF(AND($K12<>"non inscrit",AD$6<$H$4),OR($K12<$H$5,$K12<AD$6),OR($Q12<$H$5,$Q12<AD$6)),IFERROR(IF(VLOOKUP($C12,Nord_ext!$C$12:$K$400,5,FALSE)=$F12,VLOOKUP($C12,Nord_ext!$C$12:$K$400,9,FALSE),""),""),"") ->  | AE12: =IF(IF(AND($K12<>"non inscrit",AE$6<$H$4),OR($K12<$H$5,$K12<AE$6),OR($Q12<$H$5,$Q12<AE$6)),IFERROR(IF(VLOOKUP($C12,CentreQc_ext!$C$12:$K$400,5,FALSE)=$F12,VLOOKUP($C12,CentreQc_ext!$C$12:$K$400,9,FALSE),""),""),"") ->  | AF12: =IF(IF(AND($K12<>"non inscrit",AF$6<$H$4),OR($K12<$H$5,$K12<AF$6),OR($Q12<$H$5,$Q12<AF$6)),IFERROR(IF(VLOOKUP($C12,Ascot_ext!$C$12:$K$400,5,FALSE)=$F12,VLOOKUP($C12,Ascot_ext!$C$12:$K$400,9,FALSE),""),""),"") ->  | AG12: =IF(IF(AND($K12<>"non inscrit",AG$6<$H$4),OR($K12<$H$5,$K12<AG$6),OR($Q12<$H$5,$Q12<AG$6)),IFERROR(IF(VLOOKUP($C12,NDB_ext!$C$12:$K$399,5,FALSE)=$F12,VLOOKUP($C12,NDB_ext!$C$12:$K$399,9,FALSE),""),""),"") ->  | AH12: =IF(IF(AND($K12<>"non inscrit",AH$6<$H$4),OR($K12<$H$5,$K12<AH$6),OR($Q12<$H$5,$Q12<AH$6)),IFERROR(IF(VLOOKUP($C12,Victo_ext!$C$12:$K$400,5,FALSE)=$F12,VLOOKUP($C12,Victo_ext!$C$12:$K$400,9,FALSE),""),""),"") ->  | AI12: =IF(IF(AND($K12<>"non inscrit",AI$6<$H$4),OR($K12<$H$5,$K12<AI$6),OR($Q12<$H$5,$Q12<AI$6)),IFERROR(IF(VLOOKUP($C12,Brome_ext!$C$12:$K$400,5,FALSE)=$F12,VLOOKUP($C12,Brome_ext!$C$12:$K$400,9,FALSE),""),""),"") ->  | AJ12: =IF(IF(AND($K12<>"non inscrit",AJ$6<$H$4),OR($K12<$H$5,$K12<AJ$6),OR($Q12<$H$5,$Q12<AJ$6)),IFERROR(IF(VLOOKUP($C12,Tuque_ext!$C$12:$K$400,5,FALSE)=$F12,VLOOKUP($C12,Tuque_ext!$C$12:$K$400,9,FALSE),""),""),"") ->  | AK12: =IF(IF(AND($K12<>"non inscrit",AK$6<$H$4),OR($K12<$H$5,$K12<AK$6),OR($Q12<$H$5,$Q12<AK$6)),IFERROR(IF(VLOOKUP($C12,Cantley_ext!$C$12:$K$400,5,FALSE)=$F12,VLOOKUP($C12,Cantley_ext!$C$12:$K$400,9,FALSE),""),""),"") ->  | AL12: =IF(IF(AND($K12<>"non inscrit",AL$6<$H$4),OR($K12<$H$5,$K12<AL$6),OR($Q12<$H$5,$Q12<AL$6)),IFERROR(IF(VLOOKUP($C12,CQ2_ext!$C$12:$K$400,5,FALSE)=$F12,VLOOKUP($C12,CQ2_ext!$C$12:$K$400,9,FALSE),""),""),"") -> 227 | AM12: =IF(IF(AND($K12<>"non inscrit",AM$6<$H$4),OR($K12<$H$5,$K12<AM$6),OR($Q12<$H$5,$Q12<AM$6)),IFERROR(IF(VLOOKUP($C12,Amos_ext!$C$12:$K$400,5,FALSE)=$F12,VLOOKUP($C12,Amos_ext!$C$12:$K$400,9,FALSE)*3/4,""),""),"") ->  | AN12: =IF(IF(AND($K12<>"non inscrit",AN$6<$H$4),OR($K12<$H$5,$K12<AN$6),OR($Q12<$H$5,$Q12<AN$6)),IFERROR(IF(VLOOKUP($C12,LaSarre_ext!$C$12:$K$400,5,FALSE)=$F12,VLOOKUP($C12,LaSarre_ext!$C$12:$K$400,9,FALSE),""),""),"") ->  | AO12: =IF(IF(AND($K12<>"non inscrit",AO$6<$H$4),OR($K12<$H$5,$K12<AO$6),OR($Q12<$H$5,$Q12<AO$6)),IFERROR(IF(VLOOKUP($C12,Rouyn_ext!$C$12:$K$400,5,FALSE)=$F12,VLOOKUP($C12,Rouyn_ext!$C$12:$K$400,9,FALSE),""),""),"") ->  | AP12: =IF(IF(AND($K12<>"non inscrit",AP$6<$H$4),OR($K12<$H$5,$K12<AP$6),OR($Q12<$H$5,$Q12<AP$6)),IFERROR(IF(VLOOKUP($C12,Valdor_ext!$C$12:$K$400,5,FALSE)=$F12,VLOOKUP($C12,Valdor_ext!$C$12:$K$400,9,FALSE),""),""),"") ->  | AQ12: =IF(IF(AND($K12<>"non inscrit",AQ$6<$H$4),OR($K12<$H$5,$K12<AQ$6),OR($Q12<$H$5,$Q12<AQ$6)),IFERROR(IF(VLOOKUP($C12,Perrot_ext!$C$12:$K$400,5,FALSE)=$F12,VLOOKUP($C12,Perrot_ext!$C$12:$K$400,9,FALSE),""),""),"") ->  | AR12: =IF(IF(AND($K12<>"non inscrit",AR$6<$H$4),OR($K12<$H$5,$K12<AR$6),OR($Q12<$H$5,$Q12<AR$6)),IFERROR(IF(VLOOKUP($C12,Sorel_ext!$C$12:$K$400,5,FALSE)=$F12,VLOOKUP($C12,Sorel_ext!$C$12:$K$400,9,FALSE),""),""),"") ->  | AV12: =IF(IF(AND($K12<>"non inscrit",AV$6<$H$4),OR($K12<$H$5,$K12<AV$6),OR($Q12<$H$5,$Q12<AV$6)),IFERROR(IF(VLOOKUP($C12,Finale_ext!$C$12:$K$400,5,FALSE)=$F12,VLOOKUP($C12,Finale_ext!$C$12:$K$400,9,FALSE),""),""),"") -> 249 | AX12: =IF(AND($Q12<>"",$Q12<>"non inscrit"),IF(IFERROR(VLOOKUP($C12,Coat_int!$C$12:$K$400,5,FALSE),"")=$F12,IF(AND(OR($Q12>=$H$4,$O$1<$H$5),OR($Q12<$H$5,$Q12<AX$6)),IFERROR(VLOOKUP($C12,Coat_int!$C$12:$K$400,9,FALSE),""),"_"),""),"") -> 228 | AY12: =IF(AND($Q12<>"",$Q12<>"non inscrit"),IF(IFERROR(VLOOKUP($C12,LG_int!$C$12:$K$403,5,FALSE),"")=$F12,IF(AND(OR($Q12>=$H$4,$O$1<$H$5),OR($Q12<$H$5,$Q12<AY$6)),IFERROR(VLOOKUP($C12,LG_int!$C$12:$K$403,9,FALSE),""),"_"),""),"") ->  | AZ12: =IF(AND($Q12<>"",$Q12<>"non inscrit"),IF(IFERROR(VLOOKUP($C12,LSNO_int!$C$12:$K$400,5,FALSE),"")=$F12,IF(AND(OR($Q12>=$H$4,$O$1<$H$5),OR($Q12<$H$5,$Q12<AZ$6)),IFERROR(VLOOKUP($C12,LSNO_int!$C$12:$K$400,9,FALSE),""),"_"),""),"") ->  | BA12: =IF(AND($Q12<>"",$Q12<>"non inscrit"),IF(IFERROR(VLOOKUP($C12,Ach_int!$C$12:$K$400,5,FALSE),"")=$F12,IF(AND(OR($Q12>=$H$4,$O$1<$H$5),OR($Q12<$H$5,$Q12<BA$6)),IFERROR(VLOOKUP($C12,Ach_int!$C$12:$K$400,9,FALSE),""),"_"),""),"") ->  | BB12: =IF(AND($Q12<>"",$Q12<>"non inscrit"),IF(IFERROR(VLOOKUP($C12,Tremb_int!$C$12:$K$400,5,FALSE),"")=$F12,IF(AND(OR($Q12>=$H$4,$O$1<$H$5),OR($Q12<$H$5,$Q12<BB$6)),IFERROR(VLOOKUP($C12,Tremb_int!$C$12:$K$400,9,FALSE),""),"_"),""),"") ->  | BC12: =IF(AND($Q12<>"",$Q12<>"non inscrit"),IF(IFERROR(VLOOKUP($C12,Buck_int!$C$12:$K$400,5,FALSE),"")=$F12,IF(AND(OR($Q12>=$H$4,$O$1<$H$5),OR($Q12<$H$5,$Q12<BC$6)),IFERROR(VLOOKUP($C12,Buck_int!$C$12:$K$400,9,FALSE),""),"_"),""),"") ->  | BD12: =IF(AND($Q12<>"",$Q12<>"non inscrit"),IF(IFERROR(VLOOKUP($C12,Drum_int!$C$12:$K$400,5,FALSE),"")=$F12,IF(AND(OR($Q12>=$H$4,$O$1<$H$5),OR($Q12<$H$5,$Q12<BD$6)),IFERROR(VLOOKUP($C12,Drum_int!$C$12:$K$400,9,FALSE),""),"_"),""),"") -> 258 | BE12: =IF(AND($Q12<>"",$Q12<>"non inscrit"),IF(IFERROR(VLOOKUP($C12,Coat_int2!$C$12:$K$400,5,FALSE),"")=$F12,IF(AND(OR($Q12>=$H$4,$O$1<$H$5),OR($Q12<$H$5,$Q12<BE$6)),IFERROR(VLOOKUP($C12,Coat_int2!$C$12:$K$400,9,FALSE),""),"_"),""),"") -> 260 | BF12: =IF(AND($Q12<>"",$Q12<>"non inscrit"),IF(IFERROR(VLOOKUP($C12,Jean_int!$C$12:$K$401,5,FALSE),"")=$F12,IF(AND(OR($Q12>=$H$4,$O$1<$H$5),OR($Q12<$H$5,$Q12<BF$6)),IFERROR(VLOOKUP($C12,Jean_int!$C$12:$K$401,9,FALSE),""),"_"),""),"") -> 251 | BG12: =IF(AND($Q12<>"",$Q12<>"non inscrit"),IF(IFERROR(VLOOKUP($C12,Val_int!$C$12:$K$401,5,FALSE),"")=$F12,IF(AND(OR($Q12>=$H$4,$O$1<$H$5),OR($Q12<$H$5,$Q12<BG$6)),IFERROR(VLOOKUP($C12,Val_int!$C$12:$K$401,9,FALSE),""),"_"),""),"") ->  | BH12: =IF(AND($Q12<>"",$Q12<>"non inscrit"),IF(IFERROR(VLOOKUP($C12,Qc_int!$C$12:$K$401,5,FALSE),"")=$F12,IF(AND(OR($Q12>=$H$4,$O$1<$H$5),OR($Q12<$H$5,$Q12<BH$6)),IFERROR(VLOOKUP($C12,Qc_int!$C$12:$K$401,9,FALSE),""),"_"),""),"") ->  | BI12: =IF(AND($Q12<>"",$Q12<>"non inscrit"),IF(IFERROR(VLOOKUP($C12,Qc2_int!$C$12:$K$401,5,FALSE),"")=$F12,IF(AND(OR($Q12>=$H$4,$O$1<$H$5),OR($Q12<$H$5,$Q12<BI$6)),IFERROR(VLOOKUP($C12,Qc2_int!$C$12:$K$401,9,FALSE),""),"_"),""),"") ->  | BJ12: =IF(AND($Q12<>"",$Q12<>"non inscrit"),IF(IFERROR(VLOOKUP($C12,#REF!,5,FALSE),"")=$F12,IF(AND(OR($Q12>=$H$4,$O$1<$H$5),OR($Q12<$H$5,$Q12<$AY$6)),IFERROR(VLOOKUP($C12,#REF!,9,FALSE),""),"_"),""),"") ->  | BK12: =IF(AND($Q12<>"",$Q12<>"non inscrit"),IF(IFERROR(VLOOKUP($C12,#REF!,5,FALSE),"")=$F12,IF(AND(OR($Q12>=$H$4,$O$1<$H$5),OR($Q12<$H$5,$Q12<$AY$6)),IFERROR(VLOOKUP($C12,#REF!,9,FALSE),""),"_"),""),"") ->  | BU12: =IF(AND($Q12<>"",$Q12<>"non inscrit"),IF(IFERROR(VLOOKUP($C12,FIN_int!$C$12:$K$401,5,FALSE),"")=$F12,IF(AND(OR($Q12>=$H$4,$O$1<$H$5),OR($Q12<$H$5,$Q12<BU$6)),IFERROR(VLOOKUP($C12,FIN_int!$C$12:$K$401,9,FALSE),""),"_"),""),"") -> 296
A13: 1 | B13: 2 | C13: 5756 | D13: =IF($C13="","",IF($O$1>$H$4,IFERROR(VLOOKUP($C13,'Membres-2023'!$A:$G,2,FALSE),""),IFERROR(VLOOKUP($C13,'Membres-2022'!$A:$G,2,FALSE),""))) -> Ménard | E13: =IF($C13="","",IF($O$1>$H$4,IFERROR(VLOOKUP($C13,'Membres-2023'!$A:$G,3,FALSE),""),IFERROR(VLOOKUP($C13,'Membres-2022'!$A:$G,3,FALSE),""))) -> Mathys | F13: =IF($C13="","",IF($O$1>$H$4,IFERROR(VLOOKUP($C13,'Membres-2023'!$A:$G,7,FALSE),""),IFERROR(VLOOKUP($C13,'Membres-2022'!$A:$G,7,FALSE),""))) -> 1 | G13: =IF($C13="","",IF($O$1>$H$4,IFERROR(VLOOKUP($C13,'Membres-2023'!$A:$G,5,FALSE),""),IFERROR(VLOOKUP($C13,'Membres-2022'!$A:$G,5,FALSE),""))) -> 3D Sherbrooke | H13: 3 | I13: 301.3333333 | J13: 301.3333333 | K13: =IFERROR(IF(VLOOKUP(C13,'Membres-2022'!$A:$F,6,FALSE)>=$H$3,VLOOKUP(C13,'Membres-2022'!$A:$F,6,FALSE),"non inscrit"),IF($C13>0,"non inscrit","")) -> 2022-04-04 | L13: 36.83333333 | M13: 36.5 | P13: 228 | Q13: =IFERROR(IF(VLOOKUP($C13,'Membres-2023'!$A:$F,6,FALSE)>=$H$3,VLOOKUP($C13,'Membres-2023'!$A:$F,6,FALSE),"non inscrit"),"") -> 2022-04-04 | Z13: =IF(IF(AND($K13<>"non inscrit",Z$6<$H$4),OR($K13<$H$5,$K13<Z$6),OR($Q13<$H$5,$Q13<Z$6)),IFERROR(IF(VLOOKUP($C13,Stroch_ext!$C$12:$K$400,5,FALSE)=$F13,VLOOKUP($C13,Stroch_ext!$C$12:$K$400,9,FALSE),""),""),"") ->  | AA13: =IF(IF(AND($K13<>"non inscrit",AA$6<$H$4),OR($K13<$H$5,$K13<AA$6),OR($Q13<$H$5,$Q13<AA$6)),IFERROR(IF(VLOOKUP($C13,Vallée_ext!$C$12:$K$400,5,FALSE)=$F13,VLOOKUP($C13,Vallée_ext!$C$12:$K$400,9,FALSE),""),""),"") ->  | AB13: =IF(IF(AND($K13<>"non inscrit",AB$6<$H$4),OR($K13<$H$5,$K13<AB$6),OR($Q13<$H$5,$Q13<AB$6)),IFERROR(IF(VLOOKUP($C13,ASF_ext!$C$12:$K$400,5,FALSE)=$F13,VLOOKUP($C13,ASF_ext!$C$12:$K$400,9,FALSE),""),""),"") ->  | AC13: =IF(IF(AND($K13<>"non inscrit",AC$6<$H$4),OR($K13<$H$5,$K13<AC$6),OR($Q13<$H$5,$Q13<AC$6)),IFERROR(IF(VLOOKUP($C13,MtLaur_ext!$C$12:$K$407,5,FALSE)=$F13,VLOOKUP($C13,MtLaur_ext!$C$12:$K$407,9,FALSE),""),""),"") ->  | AD13: =IF(IF(AND($K13<>"non inscrit",AD$6<$H$4),OR($K13<$H$5,$K13<AD$6),OR($Q13<$H$5,$Q13<AD$6)),IFERROR(IF(VLOOKUP($C13,Nord_ext!$C$12:$K$400,5,FALSE)=$F13,VLOOKUP($C13,Nord_ext!$C$12:$K$400,9,FALSE),""),""),"") ->  | AE13: =IF(IF(AND($K13<>"non inscrit",AE$6<$H$4),OR($K13<$H$5,$K13<AE$6),OR($Q13<$H$5,$Q13<AE$6)),IFERROR(IF(VLOOKUP($C13,CentreQc_ext!$C$12:$K$400,5,FALSE)=$F13,VLOOKUP($C13,CentreQc_ext!$C$12:$K$400,9,FALSE),""),""),"") ->  | AF13: =IF(IF(AND($K13<>"non inscrit",AF$6<$H$4),OR($K13<$H$5,$K13<AF$6),OR($Q13<$H$5,$Q13<AF$6)),IFERROR(IF(VLOOKUP($C13,Ascot_ext!$C$12:$K$400,5,FALSE)=$F13,VLOOKUP($C13,Ascot_ext!$C$12:$K$400,9,FALSE),""),""),"") ->  | AG13: =IF(IF(AND($K13<>"non inscrit",AG$6<$H$4),OR($K13<$H$5,$K13<AG$6),OR($Q13<$H$5,$Q13<AG$6)),IFERROR(IF(VLOOKUP($C13,NDB_ext!$C$12:$K$399,5,FALSE)=$F13,VLOOKUP($C13,NDB_ext!$C$12:$K$399,9,FALSE),""),""),"") ->  | AH13: =IF(IF(AND($K13<>"non inscrit",AH$6<$H$4),OR($K13<$H$5,$K13<AH$6),OR($Q13<$H$5,$Q13<AH$6)),IFERROR(IF(VLOOKUP($C13,Victo_ext!$C$12:$K$400,5,FALSE)=$F13,VLOOKUP($C13,Victo_ext!$C$12:$K$400,9,FALSE),""),""),"") ->  | AI13: =IF(IF(AND($K13<>"non inscrit",AI$6<$H$4),OR($K13<$H$5,$K13<AI$6),OR($Q13<$H$5,$Q13<AI$6)),IFERROR(IF(VLOOKUP($C13,Brome_ext!$C$12:$K$400,5,FALSE)=$F13,VLOOKUP($C13,Brome_ext!$C$12:$K$400,9,FALSE),""),""),"") ->  | AJ13: =IF(IF(AND($K13<>"non inscrit",AJ$6<$H$4),OR($K13<$H$5,$K13<AJ$6),OR($Q13<$H$5,$Q13<AJ$6)),IFERROR(IF(VLOOKUP($C13,Tuque_ext!$C$12:$K$400,5,FALSE)=$F13,VLOOKUP($C13,Tuque_ext!$C$12:$K$400,9,FALSE),""),""),"") ->  | AK13: =IF(IF(AND($K13<>"non inscrit",AK$6<$H$4),OR($K13<$H$5,$K13<AK$6),OR($Q13<$H$5,$Q13<AK$6)),IFERROR(IF(VLOOKUP($C13,Cantley_ext!$C$12:$K$400,5,FALSE)=$F13,VLOOKUP($C13,Cantley_ext!$C$12:$K$400,9,FALSE),""),""),"") ->  | AL13: =IF(IF(AND($K13<>"non inscrit",AL$6<$H$4),OR($K13<$H$5,$K13<AL$6),OR($Q13<$H$5,$Q13<AL$6)),IFERROR(IF(VLOOKUP($C13,CQ2_ext!$C$12:$K$400,5,FALSE)=$F13,VLOOKUP($C13,CQ2_ext!$C$12:$K$400,9,FALSE),""),""),"") -> 219 | AM13: =IF(IF(AND($K13<>"non inscrit",AM$6<$H$4),OR($K13<$H$5,$K13<AM$6),OR($Q13<$H$5,$Q13<AM$6)),IFERROR(IF(VLOOKUP($C13,Amos_ext!$C$12:$K$400,5,FALSE)=$F13,VLOOKUP($C13,Amos_ext!$C$12:$K$400,9,FALSE)*3/4,""),""),"") ->  | AN13: =IF(IF(AND($K13<>"non inscrit",AN$6<$H$4),OR($K13<$H$5,$K13<AN$6),OR($Q13<$H$5,$Q13<AN$6)),IFERROR(IF(VLOOKUP($C13,LaSarre_ext!$C$12:$K$400,5,FALSE)=$F13,VLOOKUP($C13,LaSarre_ext!$C$12:$K$400,9,FALSE),""),""),"") ->  | AO13: =IF(IF(AND($K13<>"non inscrit",AO$6<$H$4),OR($K13<$H$5,$K13<AO$6),OR($Q13<$H$5,$Q13<AO$6)),IFERROR(IF(VLOOKUP($C13,Rouyn_ext!$C$12:$K$400,5,FALSE)=$F13,VLOOKUP($C13,Rouyn_ext!$C$12:$K$400,9,FALSE),""),""),"") ->  | AP13: =IF(IF(AND($K13<>"non inscrit",AP$6<$H$4),OR($K13<$H$5,$K13<AP$6),OR($Q13<$H$5,$Q13<AP$6)),IFERROR(IF(VLOOKUP($C13,Valdor_ext!$C$12:$K$400,5,FALSE)=$F13,VLOOKUP($C13,Valdor_ext!$C$12:$K$400,9,FALSE),""),""),"") ->  | AQ13: =IF(IF(AND($K13<>"non inscrit",AQ$6<$H$4),OR($K13<$H$5,$K13<AQ$6),OR($Q13<$H$5,$Q13<AQ$6)),IFERROR(IF(VLOOKUP($C13,Perrot_ext!$C$12:$K$400,5,FALSE)=$F13,VLOOKUP($C13,Perrot_ext!$C$12:$K$400,9,FALSE),""),""),"") -> 221 | AR13: =IF(IF(AND($K13<>"non inscrit",AR$6<$H$4),OR($K13<$H$5,$K13<AR$6),OR($Q13<$H$5,$Q13<AR$6)),IFERROR(IF(VLOOKUP($C13,Sorel_ext!$C$12:$K$400,5,FALSE)=$F13,VLOOKUP($C13,Sorel_ext!$C$12:$K$400,9,FALSE),""),""),"") ->  | AV13: =IF(IF(AND($K13<>"non inscrit",AV$6<$H$4),OR($K13<$H$5,$K13<AV$6),OR($Q13<$H$5,$Q13<AV$6)),IFERROR(IF(VLOOKUP($C13,Finale_ext!$C$12:$K$400,5,FALSE)=$F13,VLOOKUP($C13,Finale_ext!$C$12:$K$400,9,FALSE),""),""),"") -> 228 | AX13: =IF(AND($Q13<>"",$Q13<>"non inscrit"),IF(IFERROR(VLOOKUP($C13,Coat_int!$C$12:$K$400,5,FALSE),"")=$F13,IF(AND(OR($Q13>=$H$4,$O$1<$H$5),OR($Q13<$H$5,$Q13<AX$6)),IFERROR(VLOOKUP($C13,Coat_int!$C$12:$K$400,9,FALSE),""),"_"),""),"") ->  | AY13: =IF(AND($Q13<>"",$Q13<>"non inscrit"),IF(IFERROR(VLOOKUP($C13,LG_int!$C$12:$K$403,5,FALSE),"")=$F13,IF(AND(OR($Q13>=$H$4,$O$1<$H$5),OR($Q13<$H$5,$Q13<AY$6)),IFERROR(VLOOKUP($C13,LG_int!$C$12:$K$403,9,FALSE),""),"_"),""),"") ->  | AZ13: =IF(AND($Q13<>"",$Q13<>"non inscrit"),IF(IFERROR(VLOOKUP($C13,LSNO_int!$C$12:$K$400,5,FALSE),"")=$F13,IF(AND(OR($Q13>=$H$4,$O$1<$H$5),OR($Q13<$H$5,$Q13<AZ$6)),IFERROR(VLOOKUP($C13,LSNO_int!$C$12:$K$400,9,FALSE),""),"_"),""),"") ->  | BA13: =IF(AND($Q13<>"",$Q13<>"non inscrit"),IF(IFERROR(VLOOKUP($C13,Ach_int!$C$12:$K$400,5,FALSE),"")=$F13,IF(AND(OR($Q13>=$H$4,$O$1<$H$5),OR($Q13<$H$5,$Q13<BA$6)),IFERROR(VLOOKUP($C13,Ach_int!$C$12:$K$400,9,FALSE),""),"_"),""),"") ->  | BB13: =IF(AND($Q13<>"",$Q13<>"non inscrit"),IF(IFERROR(VLOOKUP($C13,Tremb_int!$C$12:$K$400,5,FALSE),"")=$F13,IF(AND(OR($Q13>=$H$4,$O$1<$H$5),OR($Q13<$H$5,$Q13<BB$6)),IFERROR(VLOOKUP($C13,Tremb_int!$C$12:$K$400,9,FALSE),""),"_"),""),"") ->  | BC13: =IF(AND($Q13<>"",$Q13<>"non inscrit"),IF(IFERROR(VLOOKUP($C13,Buck_int!$C$12:$K$400,5,FALSE),"")=$F13,IF(AND(OR($Q13>=$H$4,$O$1<$H$5),OR($Q13<$H$5,$Q13<BC$6)),IFERROR(VLOOKUP($C13,Buck_int!$C$12:$K$400,9,FALSE),""),"_"),""),"") ->  | BD13: =IF(AND($Q13<>"",$Q13<>"non inscrit"),IF(IFERROR(VLOOKUP($C13,Drum_int!$C$12:$K$400,5,FALSE),"")=$F13,IF(AND(OR($Q13>=$H$4,$O$1<$H$5),OR($Q13<$H$5,$Q13<BD$6)),IFERROR(VLOOKUP($C13,Drum_int!$C$12:$K$400,9,FALSE),""),"_"),""),"") ->  | BE13: =IF(AND($Q13<>"",$Q13<>"non inscrit"),IF(IFERROR(VLOOKUP($C13,Coat_int2!$C$12:$K$400,5,FALSE),"")=$F13,IF(AND(OR($Q13>=$H$4,$O$1<$H$5),OR($Q13<$H$5,$Q13<BE$6)),IFERROR(VLOOKUP($C13,Coat_int2!$C$12:$K$400,9,FALSE),""),"_"),""),"") ->  | BF13: =IF(AND($Q13<>"",$Q13<>"non inscrit"),IF(IFERROR(VLOOKUP($C13,Jean_int!$C$12:$K$401,5,FALSE),"")=$F13,IF(AND(OR($Q13>=$H$4,$O$1<$H$5),OR($Q13<$H$5,$Q13<BF$6)),IFERROR(VLOOKUP($C13,Jean_int!$C$12:$K$401,9,FALSE),""),"_"),""),"") ->  | BG13: =IF(AND($Q13<>"",$Q13<>"non inscrit"),IF(IFERROR(VLOOKUP($C13,Val_int!$C$12:$K$401,5,FALSE),"")=$F13,IF(AND(OR($Q13>=$H$4,$O$1<$H$5),OR($Q13<$H$5,$Q13<BG$6)),IFERROR(VLOOKUP($C13,Val_int!$C$12:$K$401,9,FALSE),""),"_"),""),"") ->  | BH13: =IF(AND($Q13<>"",$Q13<>"non inscrit"),IF(IFERROR(VLOOKUP($C13,Qc_int!$C$12:$K$401,5,FALSE),"")=$F13,IF(AND(OR($Q13>=$H$4,$O$1<$H$5),OR($Q13<$H$5,$Q13<BH$6)),IFERROR(VLOOKUP($C13,Qc_int!$C$12:$K$401,9,FALSE),""),"_"),""),"") ->  | BI13: =IF(AND($Q13<>"",$Q13<>"non inscrit"),IF(IFERROR(VLOOKUP($C13,Qc2_int!$C$12:$K$401,5,FALSE),"")=$F13,IF(AND(OR($Q13>=$H$4,$O$1<$H$5),OR($Q13<$H$5,$Q13<BI$6)),IFERROR(VLOOKUP($C13,Qc2_int!$C$12:$K$401,9,FALSE),""),"_"),""),"") ->  | BU13: =IF(AND($Q13<>"",$Q13<>"non inscrit"),IF(IFERROR(VLOOKUP($C13,FIN_int!$C$12:$K$401,5,FALSE),"")=$F13,IF(AND(OR($Q13>=$H$4,$O$1<$H$5),OR($Q13<$H$5,$Q13<BU$6)),IFERROR(VLOOKUP($C13,FIN_int!$C$12:$K$401,9,FALSE),""),"_"),""),"") -> 
A14: 1 | B14: 3 | C14: 5364 | D14: =IF($C14="","",IF($O$1>$H$4,IFERROR(VLOOKUP($C14,'Membres-2023'!$A:$G,2,FALSE),""),IFERROR(VLOOKUP($C14,'Membres-2022'!$A:$G,2,FALSE),""))) -> Laurin Luna | E14: =IF($C14="","",IF($O$1>$H$4,IFERROR(VLOOKUP($C14,'Membres-2023'!$A:$G,3,FALSE),""),IFERROR(VLOOKUP($C14,'Membres-2022'!$A:$G,3,FALSE),""))) -> Nicolas | F14: =IF($C14="","",IF($O$1>$H$4,IFERROR(VLOOKUP($C14,'Membres-2023'!$A:$G,7,FALSE),""),IFERROR(VLOOKUP($C14,'Membres-2022'!$A:$G,7,FALSE),""))) -> 3 | G14: =IF($C14="","",IF($O$1>$H$4,IFERROR(VLOOKUP($C14,'Membres-2023'!$A:$G,5,FALSE),""),IFERROR(VLOOKUP($C14,'Membres-2022'!$A:$G,5,FALSE),""))) -> Perrotdamois | H14: 2 | I14: 261.5 | J14: 261.5 | K14: =IFERROR(IF(VLOOKUP(C14,'Membres-2022'!$A:$F,6,FALSE)>=$H$3,VLOOKUP(C14,'Membres-2022'!$A:$F,6,FALSE),"non inscrit"),IF($C14>0,"non inscrit","")) -> non inscrit | L14: 41.5 | P14: 220 | Q14: =IFERROR(IF(VLOOKUP($C14,'Membres-2023'!$A:$F,6,FALSE)>=$H$3,VLOOKUP($C14,'Membres-2023'!$A:$F,6,FALSE),"non inscrit"),"") -> 2023-02-27 | Z14: =IF(IF(AND($K14<>"non inscrit",Z$6<$H$4),OR($K14<$H$5,$K14<Z$6),OR($Q14<$H$5,$Q14<Z$6)),IFERROR(IF(VLOOKUP($C14,Stroch_ext!$C$12:$K$400,5,FALSE)=$F14,VLOOKUP($C14,Stroch_ext!$C$12:$K$400,9,FALSE),""),""),"") ->  | AA14: =IF(IF(AND($K14<>"non inscrit",AA$6<$H$4),OR($K14<$H$5,$K14<AA$6),OR($Q14<$H$5,$Q14<AA$6)),IFERROR(IF(VLOOKUP($C14,Vallée_ext!$C$12:$K$400,5,FALSE)=$F14,VLOOKUP($C14,Vallée_ext!$C$12:$K$400,9,FALSE),""),""),"") ->  | AB14: =IF(IF(AND($K14<>"non inscrit",AB$6<$H$4),OR($K14<$H$5,$K14<AB$6),OR($Q14<$H$5,$Q14<AB$6)),IFERROR(IF(VLOOKUP($C14,ASF_ext!$C$12:$K$400,5,FALSE)=$F14,VLOOKUP($C14,ASF_ext!$C$12:$K$400,9,FALSE),""),""),"") ->  | AC14: =IF(IF(AND($K14<>"non inscrit",AC$6<$H$4),OR($K14<$H$5,$K14<AC$6),OR($Q14<$H$5,$Q14<AC$6)),IFERROR(IF(VLOOKUP($C14,MtLaur_ext!$C$12:$K$407,5,FALSE)=$F14,VLOOKUP($C14,MtLaur_ext!$C$12:$K$407,9,FALSE),""),""),"") ->  | AD14: =IF(IF(AND($K14<>"non inscrit",AD$6<$H$4),OR($K14<$H$5,$K14<AD$6),OR($Q14<$H$5,$Q14<AD$6)),IFERROR(IF(VLOOKUP($C14,Nord_ext!$C$12:$K$400,5,FALSE)=$F14,VLOOKUP($C14,Nord_ext!$C$12:$K$400,9,FALSE),""),""),"") ->  | AE14: =IF(IF(AND($K14<>"non inscrit",AE$6<$H$4),OR($K14<$H$5,$K14<AE$6),OR($Q14<$H$5,$Q14<AE$6)),IFERROR(IF(VLOOKUP($C14,CentreQc_ext!$C$12:$K$400,5,FALSE)=$F14,VLOOKUP($C14,CentreQc_ext!$C$12:$K$400,9,FALSE),""),""),"") ->  | AF14: =IF(IF(AND($K14<>"non inscrit",AF$6<$H$4),OR($K14<$H$5,$K14<AF$6),OR($Q14<$H$5,$Q14<AF$6)),IFERROR(IF(VLOOKUP($C14,Ascot_ext!$C$12:$K$400,5,FALSE)=$F14,VLOOKUP($C14,Ascot_ext!$C$12:$K$400,9,FALSE),""),""),"") ->  | AG14: =IF(IF(AND($K14<>"non inscrit",AG$6<$H$4),OR($K14<$H$5,$K14<AG$6),OR($Q14<$H$5,$Q14<AG$6)),IFERROR(IF(VLOOKUP($C14,NDB_ext!$C$12:$K$399,5,FALSE)=$F14,VLOOKUP($C14,NDB_ext!$C$12:$K$399,9,FALSE),""),""),"") ->  | AH14: =IF(IF(AND($K14<>"non inscrit",AH$6<$H$4),OR($K14<$H$5,$K14<AH$6),OR($Q14<$H$5,$Q14<AH$6)),IFERROR(IF(VLOOKUP($C14,Victo_ext!$C$12:$K$400,5,FALSE)=$F14,VLOOKUP($C14,Victo_ext!$C$12:$K$400,9,FALSE),""),""),"") ->  | AI14: =IF(IF(AND($K14<>"non inscrit",AI$6<$H$4),OR($K14<$H$5,$K14<AI$6),OR($Q14<$H$5,$Q14<AI$6)),IFERROR(IF(VLOOKUP($C14,Brome_ext!$C$12:$K$400,5,FALSE)=$F14,VLOOKUP($C14,Brome_ext!$C$12:$K$400,9,FALSE),""),""),"") ->  | AJ14: =IF(IF(AND($K14<>"non inscrit",AJ$6<$H$4),OR($K14<$H$5,$K14<AJ$6),OR($Q14<$H$5,$Q14<AJ$6)),IFERROR(IF(VLOOKUP($C14,Tuque_ext!$C$12:$K$400,5,FALSE)=$F14,VLOOKUP($C14,Tuque_ext!$C$12:$K$400,9,FALSE),""),""),"") ->  | AK14: =IF(IF(AND($K14<>"non inscrit",AK$6<$H$4),OR($K14<$H$5,$K14<AK$6),OR($Q14<$H$5,$Q14<AK$6)),IFERROR(IF(VLOOKUP($C14,Cantley_ext!$C$12:$K$400,5,FALSE)=$F14,VLOOKUP($C14,Cantley_ext!$C$12:$K$400,9,FALSE),""),""),"") ->  | AL14: =IF(IF(AND($K14<>"non inscrit",AL$6<$H$4),OR($K14<$H$5,$K14<AL$6),OR($Q14<$H$5,$Q14<AL$6)),IFERROR(IF(VLOOKUP($C14,CQ2_ext!$C$12:$K$400,5,FALSE)=$F14,VLOOKUP($C14,CQ2_ext!$C$12:$K$400,9,FALSE),""),""),"") ->  | AM14: =IF(IF(AND($K14<>"non inscrit",AM$6<$H$4),OR($K14<$H$5,$K14<AM$6),OR($Q14<$H$5,$Q14<AM$6)),IFERROR(IF(VLOOKUP($C14,Amos_ext!$C$12:$K$400,5,FALSE)=$F14,VLOOKUP($C14,Amos_ext!$C$12:$K$400,9,FALSE)*3/4,""),""),"") ->  | AN14: =IF(IF(AND($K14<>"non inscrit",AN$6<$H$4),OR($K14<$H$5,$K14<AN$6),OR($Q14<$H$5,$Q14<AN$6)),IFERROR(IF(VLOOKUP($C14,LaSarre_ext!$C$12:$K$400,5,FALSE)=$F14,VLOOKUP($C14,LaSarre_ext!$C$12:$K$400,9,FALSE),""),""),"") ->  | AO14: =IF(IF(AND($K14<>"non inscrit",AO$6<$H$4),OR($K14<$H$5,$K14<AO$6),OR($Q14<$H$5,$Q14<AO$6)),IFERROR(IF(VLOOKUP($C14,Rouyn_ext!$C$12:$K$400,5,FALSE)=$F14,VLOOKUP($C14,Rouyn_ext!$C$12:$K$400,9,FALSE),""),""),"") ->  | AP14: =IF(IF(AND($K14<>"non inscrit",AP$6<$H$4),OR($K14<$H$5,$K14<AP$6),OR($Q14<$H$5,$Q14<AP$6)),IFERROR(IF(VLOOKUP($C14,Valdor_ext!$C$12:$K$400,5,FALSE)=$F14,VLOOKUP($C14,Valdor_ext!$C$12:$K$400,9,FALSE),""),""),"") ->  | AQ14: =IF(IF(AND($K14<>"non inscrit",AQ$6<$H$4),OR($K14<$H$5,$K14<AQ$6),OR($Q14<$H$5,$Q14<AQ$6)),IFERROR(IF(VLOOKUP($C14,Perrot_ext!$C$12:$K$400,5,FALSE)=$F14,VLOOKUP($C14,Perrot_ext!$C$12:$K$400,9,FALSE),""),""),"") -> 249 | AR14: =IF(IF(AND($K14<>"non inscrit",AR$6<$H$4),OR($K14<$H$5,$K14<AR$6),OR($Q14<$H$5,$Q14<AR$6)),IFERROR(IF(VLOOKUP($C14,Sorel_ext!$C$12:$K$400,5,FALSE)=$F14,VLOOKUP($C14,Sorel_ext!$C$12:$K$400,9,FALSE),""),""),"") ->  | AV14: =IF(IF(AND($K14<>"non inscrit",AV$6<$H$4),OR($K14<$H$5,$K14<AV$6),OR($Q14<$H$5,$Q14<AV$6)),IFERROR(IF(VLOOKUP($C14,Finale_ext!$C$12:$K$400,5,FALSE)=$F14,VLOOKUP($C14,Finale_ext!$C$12:$K$400,9,FALSE),""),""),"") -> 220 | AX14: =IF(AND($Q14<>"",$Q14<>"non inscrit"),IF(IFERROR(VLOOKUP($C14,Coat_int!$C$12:$K$400,5,FALSE),"")=$F14,IF(AND(OR($Q14>=$H$4,$O$1<$H$5),OR($Q14<$H$5,$Q14<AX$6)),IFERROR(VLOOKUP($C14,Coat_int!$C$12:$K$400,9,FALSE),""),"_"),""),"") ->  | AY14: =IF(AND($Q14<>"",$Q14<>"non inscrit"),IF(IFERROR(VLOOKUP($C14,LG_int!$C$12:$K$403,5,FALSE),"")=$F14,IF(AND(OR($Q14>=$H$4,$O$1<$H$5),OR($Q14<$H$5,$Q14<AY$6)),IFERROR(VLOOKUP($C14,LG_int!$C$12:$K$403,9,FALSE),""),"_"),""),"") ->  | AZ14: =IF(AND($Q14<>"",$Q14<>"non inscrit"),IF(IFERROR(VLOOKUP($C14,LSNO_int!$C$12:$K$400,5,FALSE),"")=$F14,IF(AND(OR($Q14>=$H$4,$O$1<$H$5),OR($Q14<$H$5,$Q14<AZ$6)),IFERROR(VLOOKUP($C14,LSNO_int!$C$12:$K$400,9,FALSE),""),"_"),""),"") ->  | BA14: =IF(AND($Q14<>"",$Q14<>"non inscrit"),IF(IFERROR(VLOOKUP($C14,Ach_int!$C$12:$K$400,5,FALSE),"")=$F14,IF(AND(OR($Q14>=$H$4,$O$1<$H$5),OR($Q14<$H$5,$Q14<BA$6)),IFERROR(VLOOKUP($C14,Ach_int!$C$12:$K$400,9,FALSE),""),"_"),""),"") ->  | BB14: =IF(AND($Q14<>"",$Q14<>"non inscrit"),IF(IFERROR(VLOOKUP($C14,Tremb_int!$C$12:$K$400,5,FALSE),"")=$F14,IF(AND(OR($Q14>=$H$4,$O$1<$H$5),OR($Q14<$H$5,$Q14<BB$6)),IFERROR(VLOOKUP($C14,Tremb_int!$C$12:$K$400,9,FALSE),""),"_"),""),"") ->  | BC14: =IF(AND($Q14<>"",$Q14<>"non inscrit"),IF(IFERROR(VLOOKUP($C14,Buck_int!$C$12:$K$400,5,FALSE),"")=$F14,IF(AND(OR($Q14>=$H$4,$O$1<$H$5),OR($Q14<$H$5,$Q14<BC$6)),IFERROR(VLOOKUP($C14,Buck_int!$C$12:$K$400,9,FALSE),""),"_"),""),"") ->  | BD14: =IF(AND($Q14<>"",$Q14<>"non inscrit"),IF(IFERROR(VLOOKUP($C14,Drum_int!$C$12:$K$400,5,FALSE),"")=$F14,IF(AND(OR($Q14>=$H$4,$O$1<$H$5),OR($Q14<$H$5,$Q14<BD$6)),IFERROR(VLOOKUP($C14,Drum_int!$C$12:$K$400,9,FALSE),""),"_"),""),"") ->  | BE14: =IF(AND($Q14<>"",$Q14<>"non inscrit"),IF(IFERROR(VLOOKUP($C14,Coat_int2!$C$12:$K$400,5,FALSE),"")=$F14,IF(AND(OR($Q14>=$H$4,$O$1<$H$5),OR($Q14<$H$5,$Q14<BE$6)),IFERROR(VLOOKUP($C14,Coat_int2!$C$12:$K$400,9,FALSE),""),"_"),""),"") ->  | BF14: =IF(AND($Q14<>"",$Q14<>"non inscrit"),IF(IFERROR(VLOOKUP($C14,Jean_int!$C$12:$K$401,5,FALSE),"")=$F14,IF(AND(OR($Q14>=$H$4,$O$1<$H$5),OR($Q14<$H$5,$Q14<BF$6)),IFERROR(VLOOKUP($C14,Jean_int!$C$12:$K$401,9,FALSE),""),"_"),""),"") ->  | BG14: =IF(AND($Q14<>"",$Q14<>"non inscrit"),IF(IFERROR(VLOOKUP($C14,Val_int!$C$12:$K$401,5,FALSE),"")=$F14,IF(AND(OR($Q14>=$H$4,$O$1<$H$5),OR($Q14<$H$5,$Q14<BG$6)),IFERROR(VLOOKUP($C14,Val_int!$C$12:$K$401,9,FALSE),""),"_"),""),"") ->  | BH14: =IF(AND($Q14<>"",$Q14<>"non inscrit"),IF(IFERROR(VLOOKUP($C14,Qc_int!$C$12:$K$401,5,FALSE),"")=$F14,IF(AND(OR($Q14>=$H$4,$O$1<$H$5),OR($Q14<$H$5,$Q14<BH$6)),IFERROR(VLOOKUP($C14,Qc_int!$C$12:$K$401,9,FALSE),""),"_"),""),"") ->  | BI14: =IF(AND($Q14<>"",$Q14<>"non inscrit"),IF(IFERROR(VLOOKUP($C14,Qc2_int!$C$12:$K$401,5,FALSE),"")=$F14,IF(AND(OR($Q14>=$H$4,$O$1<$H$5),OR($Q14<$H$5,$Q14<BI$6)),IFERROR(VLOOKUP($C14,Qc2_int!$C$12:$K$401,9,FALSE),""),"_"),""),"") ->  | BJ14: =IF(AND($Q14<>"",$Q14<>"non inscrit"),IF(IFERROR(VLOOKUP($C14,#REF!,5,FALSE),"")=$F14,IF(AND(OR($Q14>=$H$4,$O$1<$H$5),OR($Q14<$H$5,$Q14<$AY$6)),IFERROR(VLOOKUP($C14,#REF!,9,FALSE),""),"_"),""),"") ->  | BK14: =IF(AND($Q14<>"",$Q14<>"non inscrit"),IF(IFERROR(VLOOKUP($C14,#REF!,5,FALSE),"")=$F14,IF(AND(OR($Q14>=$H$4,$O$1<$H$5),OR($Q14<$H$5,$Q14<$AY$6)),IFERROR(VLOOKUP($C14,#REF!,9,FALSE),""),"_"),""),"") ->  | BU14: =IF(AND($Q14<>"",$Q14<>"non inscrit"),IF(IFERROR(VLOOKUP($C14,FIN_int!$C$12:$K$401,5,FALSE),"")=$F14,IF(AND(OR($Q14>=$H$4,$O$1<$H$5),OR($Q14<$H$5,$Q14<BU$6)),IFERROR(VLOOKUP($C14,FIN_int!$C$12:$K$401,9,FALSE),""),"_"),""),"") -> 
A15: 1 | B15: 4 | C15: 5729 | D15: =IF($C15="","",IF($O$1>$H$4,IFERROR(VLOOKUP($C15,'Membres-2023'!$A:$G,2,FALSE),""),IFERROR(VLOOKUP($C15,'Membres-2022'!$A:$G,2,FALSE),""))) -> Lacelle | E15: =IF($C15="","",IF($O$1>$H$4,IFERROR(VLOOKUP($C15,'Membres-2023'!$A:$G,3,FALSE),""),IFERROR(VLOOKUP($C15,'Membres-2022'!$A:$G,3,FALSE),""))) -> Éloik | F15: =IF($C15="","",IF($O$1>$H$4,IFERROR(VLOOKUP($C15,'Membres-2023'!$A:$G,7,FALSE),""),IFERROR(VLOOKUP($C15,'Membres-2022'!$A:$G,7,FALSE),""))) -> 1 | G15: =IF($C15="","",IF($O$1>$H$4,IFERROR(VLOOKUP($C15,'Membres-2023'!$A:$G,5,FALSE),""),IFERROR(VLOOKUP($C15,'Membres-2022'!$A:$G,5,FALSE),""))) -> Cantley (Archers de) | H15: 1 | I15: 255 | J15: 0 | K15: =IFERROR(IF(VLOOKUP(C15,'Membres-2022'!$A:$F,6,FALSE)>=$H$3,VLOOKUP(C15,'Membres-2022'!$A:$F,6,FALSE),"non inscrit"),IF($C15>0,"non inscrit","")) -> 2022-05-05 | Q15: =IFERROR(IF(VLOOKUP($C15,'Membres-2023'!$A:$F,6,FALSE)>=$H$3,VLOOKUP($C15,'Membres-2023'!$A:$F,6,FALSE),"non inscrit"),"") -> 2023-01-17 | V15: 255 | Z15: =IF(IF(AND($K15<>"non inscrit",Z$6<$H$4),OR($K15<$H$5,$K15<Z$6),OR($Q15<$H$5,$Q15<Z$6)),IFERROR(IF(VLOOKUP($C15,Stroch_ext!$C$12:$K$400,5,FALSE)=$F15,VLOOKUP($C15,Stroch_ext!$C$12:$K$400,9,FALSE),""),""),"") ->  | AA15: =IF(IF(AND($K15<>"non inscrit",AA$6<$H$4),OR($K15<$H$5,$K15<AA$6),OR($Q15<$H$5,$Q15<AA$6)),IFERROR(IF(VLOOKUP($C15,Vallée_ext!$C$12:$K$400,5,FALSE)=$F15,VLOOKUP($C15,Vallée_ext!$C$12:$K$400,9,FALSE),""),""),"") ->  | AB15: =IF(IF(AND($K15<>"non inscrit",AB$6<$H$4),OR($K15<$H$5,$K15<AB$6),OR($Q15<$H$5,$Q15<AB$6)),IFERROR(IF(VLOOKUP($C15,ASF_ext!$C$12:$K$400,5,FALSE)=$F15,VLOOKUP($C15,ASF_ext!$C$12:$K$400,9,FALSE),""),""),"") ->  | AC15: =IF(IF(AND($K15<>"non inscrit",AC$6<$H$4),OR($K15<$H$5,$K15<AC$6),OR($Q15<$H$5,$Q15<AC$6)),IFERROR(IF(VLOOKUP($C15,MtLaur_ext!$C$12:$K$407,5,FALSE)=$F15,VLOOKUP($C15,MtLaur_ext!$C$12:$K$407,9,FALSE),""),""),"") ->  | AD15: =IF(IF(AND($K15<>"non inscrit",AD$6<$H$4),OR($K15<$H$5,$K15<AD$6),OR($Q15<$H$5,$Q15<AD$6)),IFERROR(IF(VLOOKUP($C15,Nord_ext!$C$12:$K$400,5,FALSE)=$F15,VLOOKUP($C15,Nord_ext!$C$12:$K$400,9,FALSE),""),""),"") ->  | AE15: =IF(IF(AND($K15<>"non inscrit",AE$6<$H$4),OR($K15<$H$5,$K15<AE$6),OR($Q15<$H$5,$Q15<AE$6)),IFERROR(IF(VLOOKUP($C15,CentreQc_ext!$C$12:$K$400,5,FALSE)=$F15,VLOOKUP($C15,CentreQc_ext!$C$12:$K$400,9,FALSE),""),""),"") ->  | AF15: =IF(IF(AND($K15<>"non inscrit",AF$6<$H$4),OR($K15<$H$5,$K15<AF$6),OR($Q15<$H$5,$Q15<AF$6)),IFERROR(IF(VLOOKUP($C15,Ascot_ext!$C$12:$K$400,5,FALSE)=$F15,VLOOKUP($C15,Ascot_ext!$C$12:$K$400,9,FALSE),""),""),"") ->  | AG15: =IF(IF(AND($K15<>"non inscrit",AG$6<$H$4),OR($K15<$H$5,$K15<AG$6),OR($Q15<$H$5,$Q15<AG$6)),IFERROR(IF(VLOOKUP($C15,NDB_ext!$C$12:$K$399,5,FALSE)=$F15,VLOOKUP($C15,NDB_ext!$C$12:$K$399,9,FALSE),""),""),"") ->  | AH15: =IF(IF(AND($K15<>"non inscrit",AH$6<$H$4),OR($K15<$H$5,$K15<AH$6),OR($Q15<$H$5,$Q15<AH$6)),IFERROR(IF(VLOOKUP($C15,Victo_ext!$C$12:$K$400,5,FALSE)=$F15,VLOOKUP($C15,Victo_ext!$C$12:$K$400,9,FALSE),""),""),"") ->  | AI15: =IF(IF(AND($K15<>"non inscrit",AI$6<$H$4),OR($K15<$H$5,$K15<AI$6),OR($Q15<$H$5,$Q15<AI$6)),IFERROR(IF(VLOOKUP($C15,Brome_ext!$C$12:$K$400,5,FALSE)=$F15,VLOOKUP($C15,Brome_ext!$C$12:$K$400,9,FALSE),""),""),"") ->  | AJ15: =IF(IF(AND($K15<>"non inscrit",AJ$6<$H$4),OR($K15<$H$5,$K15<AJ$6),OR($Q15<$H$5,$Q15<AJ$6)),IFERROR(IF(VLOOKUP($C15,Tuque_ext!$C$12:$K$400,5,FALSE)=$F15,VLOOKUP($C15,Tuque_ext!$C$12:$K$400,9,FALSE),""),""),"") ->  | AK15: =IF(IF(AND($K15<>"non inscrit",AK$6<$H$4),OR($K15<$H$5,$K15<AK$6),OR($Q15<$H$5,$Q15<AK$6)),IFERROR(IF(VLOOKUP($C15,Cantley_ext!$C$12:$K$400,5,FALSE)=$F15,VLOOKUP($C15,Cantley_ext!$C$12:$K$400,9,FALSE),""),""),"") ->  | AL15: =IF(IF(AND($K15<>"non inscrit",AL$6<$H$4),OR($K15<$H$5,$K15<AL$6),OR($Q15<$H$5,$Q15<AL$6)),IFERROR(IF(VLOOKUP($C15,CQ2_ext!$C$12:$K$400,5,FALSE)=$F15,VLOOKUP($C15,CQ2_ext!$C$12:$K$400,9,FALSE),""),""),"") ->  | AM15: =IF(IF(AND($K15<>"non inscrit",AM$6<$H$4),OR($K15<$H$5,$K15<AM$6),OR($Q15<$H$5,$Q15<AM$6)),IFERROR(IF(VLOOKUP($C15,Amos_ext!$C$12:$K$400,5,FALSE)=$F15,VLOOKUP($C15,Amos_ext!$C$12:$K$400,9,FALSE)*3/4,""),""),"") ->  | AN15: =IF(IF(AND($K15<>"non inscrit",AN$6<$H$4),OR($K15<$H$5,$K15<AN$6),OR($Q15<$H$5,$Q15<AN$6)),IFERROR(IF(VLOOKUP($C15,LaSarre_ext!$C$12:$K$400,5,FALSE)=$F15,VLOOKUP($C15,LaSarre_ext!$C$12:$K$400,9,FALSE),""),""),"") ->  | AO15: =IF(IF(AND($K15<>"non inscrit",AO$6<$H$4),OR($K15<$H$5,$K15<AO$6),OR($Q15<$H$5,$Q15<AO$6)),IFERROR(IF(VLOOKUP($C15,Rouyn_ext!$C$12:$K$400,5,FALSE)=$F15,VLOOKUP($C15,Rouyn_ext!$C$12:$K$400,9,FALSE),""),""),"") ->  | AP15: =IF(IF(AND($K15<>"non inscrit",AP$6<$H$4),OR($K15<$H$5,$K15<AP$6),OR($Q15<$H$5,$Q15<AP$6)),IFERROR(IF(VLOOKUP($C15,Valdor_ext!$C$12:$K$400,5,FALSE)=$F15,VLOOKUP($C15,Valdor_ext!$C$12:$K$400,9,FALSE),""),""),"") ->  | AQ15: =IF(IF(AND($K15<>"non inscrit",AQ$6<$H$4),OR($K15<$H$5,$K15<AQ$6),OR($Q15<$H$5,$Q15<AQ$6)),IFERROR(IF(VLOOKUP($C15,Perrot_ext!$C$12:$K$400,5,FALSE)=$F15,VLOOKUP($C15,Perrot_ext!$C$12:$K$400,9,FALSE),""),""),"") ->  | AR15: =IF(IF(AND($K15<>"non inscrit",AR$6<$H$4),OR($K15<$H$5,$K15<AR$6),OR($Q15<$H$5,$Q15<AR$6)),IFERROR(IF(VLOOKUP($C15,Sorel_ext!$C$12:$K$400,5,FALSE)=$F15,VLOOKUP($C15,Sorel_ext!$C$12:$K$400,9,FALSE),""),""),"") ->  | AV15: =IF(IF(AND($K15<>"non inscrit",AV$6<$H$4),OR($K15<$H$5,$K15<AV$6),OR($Q15<$H$5,$Q15<AV$6)),IFERROR(IF(VLOOKUP($C15,Finale_ext!$C$12:$K$400,5,FALSE)=$F15,VLOOKUP($C15,Finale_ext!$C$12:$K$400,9,FALSE),""),""),"") ->  | AX15: =IF(AND($Q15<>"",$Q15<>"non inscrit"),IF(IFERROR(VLOOKUP($C15,Coat_int!$C$12:$K$400,5,FALSE),"")=$F15,IF(AND(OR($Q15>=$H$4,$O$1<$H$5),OR($Q15<$H$5,$Q15<AX$6)),IFERROR(VLOOKUP($C15,Coat_int!$C$12:$K$400,9,FALSE),""),"_"),""),"") ->  | AY15: =IF(AND($Q15<>"",$Q15<>"non inscrit"),IF(IFERROR(VLOOKUP($C15,LG_int!$C$12:$K$403,5,FALSE),"")=$F15,IF(AND(OR($Q15>=$H$4,$O$1<$H$5),OR($Q15<$H$5,$Q15<AY$6)),IFERROR(VLOOKUP($C15,LG_int!$C$12:$K$403,9,FALSE),""),"_"),""),"") ->  | AZ15: =IF(AND($Q15<>"",$Q15<>"non inscrit"),IF(IFERROR(VLOOKUP($C15,LSNO_int!$C$12:$K$400,5,FALSE),"")=$F15,IF(AND(OR($Q15>=$H$4,$O$1<$H$5),OR($Q15<$H$5,$Q15<AZ$6)),IFERROR(VLOOKUP($C15,LSNO_int!$C$12:$K$400,9,FALSE),""),"_"),""),"") ->  | BA15: =IF(AND($Q15<>"",$Q15<>"non inscrit"),IF(IFERROR(VLOOKUP($C15,Ach_int!$C$12:$K$400,5,FALSE),"")=$F15,IF(AND(OR($Q15>=$H$4,$O$1<$H$5),OR($Q15<$H$5,$Q15<BA$6)),IFERROR(VLOOKUP($C15,Ach_int!$C$12:$K$400,9,FALSE),""),"_"),""),"") ->  | BB15: =IF(AND($Q15<>"",$Q15<>"non inscrit"),IF(IFERROR(VLOOKUP($C15,Tremb_int!$C$12:$K$400,5,FALSE),"")=$F15,IF(AND(OR($Q15>=$H$4,$O$1<$H$5),OR($Q15<$H$5,$Q15<BB$6)),IFERROR(VLOOKUP($C15,Tremb_int!$C$12:$K$400,9,FALSE),""),"_"),""),"") ->  | BC15: =IF(AND($Q15<>"",$Q15<>"non inscrit"),IF(IFERROR(VLOOKUP($C15,Buck_int!$C$12:$K$400,5,FALSE),"")=$F15,IF(AND(OR($Q15>=$H$4,$O$1<$H$5),OR($Q15<$H$5,$Q15<BC$6)),IFERROR(VLOOKUP($C15,Buck_int!$C$12:$K$400,9,FALSE),""),"_"),""),"") ->  | BD15: =IF(AND($Q15<>"",$Q15<>"non inscrit"),IF(IFERROR(VLOOKUP($C15,Drum_int!$C$12:$K$400,5,FALSE),"")=$F15,IF(AND(OR($Q15>=$H$4,$O$1<$H$5),OR($Q15<$H$5,$Q15<BD$6)),IFERROR(VLOOKUP($C15,Drum_int!$C$12:$K$400,9,FALSE),""),"_"),""),"") ->  | BE15: =IF(AND($Q15<>"",$Q15<>"non inscrit"),IF(IFERROR(VLOOKUP($C15,Coat_int2!$C$12:$K$400,5,FALSE),"")=$F15,IF(AND(OR($Q15>=$H$4,$O$1<$H$5),OR($Q15<$H$5,$Q15<BE$6)),IFERROR(VLOOKUP($C15,Coat_int2!$C$12:$K$400,9,FALSE),""),"_"),""),"") ->  | BF15: =IF(AND($Q15<>"",$Q15<>"non inscrit"),IF(IFERROR(VLOOKUP($C15,Jean_int!$C$12:$K$401,5,FALSE),"")=$F15,IF(AND(OR($Q15>=$H$4,$O$1<$H$5),OR($Q15<$H$5,$Q15<BF$6)),IFERROR(VLOOKUP($C15,Jean_int!$C$12:$K$401,9,FALSE),""),"_"),""),"") ->  | BG15: =IF(AND($Q15<>"",$Q15<>"non inscrit"),IF(IFERROR(VLOOKUP($C15,Val_int!$C$12:$K$401,5,FALSE),"")=$F15,IF(AND(OR($Q15>=$H$4,$O$1<$H$5),OR($Q15<$H$5,$Q15<BG$6)),IFERROR(VLOOKUP($C15,Val_int!$C$12:$K$401,9,FALSE),""),"_"),""),"") ->  | BH15: =IF(AND($Q15<>"",$Q15<>"non inscrit"),IF(IFERROR(VLOOKUP($C15,Qc_int!$C$12:$K$401,5,FALSE),"")=$F15,IF(AND(OR($Q15>=$H$4,$O$1<$H$5),OR($Q15<$H$5,$Q15<BH$6)),IFERROR(VLOOKUP($C15,Qc_int!$C$12:$K$401,9,FALSE),""),"_"),""),"") ->  | BI15: =IF(AND($Q15<>"",$Q15<>"non inscrit"),IF(IFERROR(VLOOKUP($C15,Qc2_int!$C$12:$K$401,5,FALSE),"")=$F15,IF(AND(OR($Q15>=$H$4,$O$1<$H$5),OR($Q15<$H$5,$Q15<BI$6)),IFERROR(VLOOKUP($C15,Qc2_int!$C$12:$K$401,9,FALSE),""),"_"),""),"") ->  | BJ15: =IF(AND($Q15<>"",$Q15<>"non inscrit"),IF(IFERROR(VLOOKUP($C15,#REF!,5,FALSE),"")=$F15,IF(AND(OR($Q15>=$H$4,$O$1<$H$5),OR($Q15<$H$5,$Q15<$AY$6)),IFERROR(VLOOKUP($C15,#REF!,9,FALSE),""),"_"),""),"") ->  | BK15: =IF(AND($Q15<>"",$Q15<>"non inscrit"),IF(IFERROR(VLOOKUP($C15,#REF!,5,FALSE),"")=$F15,IF(AND(OR($Q15>=$H$4,$O$1<$H$5),OR($Q15<$H$5,$Q15<$AY$6)),IFERROR(VLOOKUP($C15,#REF!,9,FALSE),""),"_"),""),"") ->  | BU15: =IF(AND($Q15<>"",$Q15<>"non inscrit"),IF(IFERROR(VLOOKUP($C15,FIN_int!$C$12:$K$401,5,FALSE),"")=$F15,IF(AND(OR($Q15>=$H$4,$O$1<$H$5),OR($Q15<$H$5,$Q15<BU$6)),IFERROR(VLOOKUP($C15,FIN_int!$C$12:$K$401,9,FALSE),""),"_"),""),"") -> 255
A16: 1 | B16: 5 | C16: 7603 | D16: =IF($C16="","",IF($O$1>$H$4,IFERROR(VLOOKUP($C16,'Membres-2023'!$A:$G,2,FALSE),""),IFERROR(VLOOKUP($C16,'Membres-2022'!$A:$G,2,FALSE),""))) -> Leblanc | E16: =IF($C16="","",IF($O$1>$H$4,IFERROR(VLOOKUP($C16,'Membres-2023'!$A:$G,3,FALSE),""),IFERROR(VLOOKUP($C16,'Membres-2022'!$A:$G,3,FALSE),""))) -> David | F16: =IF($C16="","",IF($O$1>$H$4,IFERROR(VLOOKUP($C16,'Membres-2023'!$A:$G,7,FALSE),""),IFERROR(VLOOKUP($C16,'Membres-2022'!$A:$G,7,FALSE),""))) -> 1 | G16: =IF($C16="","",IF($O$1>$H$4,IFERROR(VLOOKUP($C16,'Membres-2023'!$A:$G,5,FALSE),""),IFERROR(VLOOKUP($C16,'Membres-2022'!$A:$G,5,FALSE),""))) -> Québec (Nord'arc) | H16: 3 | I16: 94.83333333 | J16: 25 | K16: =IFERROR(IF(VLOOKUP(C16,'Membres-2022'!$A:$F,6,FALSE)>=$H$3,VLOOKUP(C16,'Membres-2022'!$A:$F,6,FALSE),"non inscrit"),IF($C16>0,"non inscrit","")) -> 2022-05-21 | L16: 25 | Q16: =IFERROR(IF(VLOOKUP($C16,'Membres-2023'!$A:$F,6,FALSE)>=$H$3,VLOOKUP($C16,'Membres-2023'!$A:$F,6,FALSE),"non inscrit"),"") -> 2023-03-15 | R16: 37.33333333 | S16: 32.5 | Z16: =IF(IF(AND($K16<>"non inscrit",Z$6<$H$4),OR($K16<$H$5,$K16<Z$6),OR($Q16<$H$5,$Q16<Z$6)),IFERROR(IF(VLOOKUP($C16,Stroch_ext!$C$12:$K$400,5,FALSE)=$F16,VLOOKUP($C16,Stroch_ext!$C$12:$K$400,9,FALSE),""),""),"") ->  | AA16: =IF(IF(AND($K16<>"non inscrit",AA$6<$H$4),OR($K16<$H$5,$K16<AA$6),OR($Q16<$H$5,$Q16<AA$6)),IFERROR(IF(VLOOKUP($C16,Vallée_ext!$C$12:$K$400,5,FALSE)=$F16,VLOOKUP($C16,Vallée_ext!$C$12:$K$400,9,FALSE),""),""),"") ->  | AB16: =IF(IF(AND($K16<>"non inscrit",AB$6<$H$4),OR($K16<$H$5,$K16<AB$6),OR($Q16<$H$5,$Q16<AB$6)),IFERROR(IF(VLOOKUP($C16,ASF_ext!$C$12:$K$400,5,FALSE)=$F16,VLOOKUP($C16,ASF_ext!$C$12:$K$400,9,FALSE),""),""),"") ->  | AC16: =IF(IF(AND($K16<>"non inscrit",AC$6<$H$4),OR($K16<$H$5,$K16<AC$6),OR($Q16<$H$5,$Q16<AC$6)),IFERROR(IF(VLOOKUP($C16,MtLaur_ext!$C$12:$K$407,5,FALSE)=$F16,VLOOKUP($C16,MtLaur_ext!$C$12:$K$407,9,FALSE),""),""),"") ->  | AD16: =IF(IF(AND($K16<>"non inscrit",AD$6<$H$4),OR($K16<$H$5,$K16<AD$6),OR($Q16<$H$5,$Q16<AD$6)),IFERROR(IF(VLOOKUP($C16,Nord_ext!$C$12:$K$400,5,FALSE)=$F16,VLOOKUP($C16,Nord_ext!$C$12:$K$400,9,FALSE),""),""),"") -> 150 | AE16: =IF(IF(AND($K16<>"non inscrit",AE$6<$H$4),OR($K16<$H$5,$K16<AE$6),OR($Q16<$H$5,$Q16<AE$6)),IFERROR(IF(VLOOKUP($C16,CentreQc_ext!$C$12:$K$400,5,FALSE)=$F16,VLOOKUP($C16,CentreQc_ext!$C$12:$K$400,9,FALSE),""),""),"") ->  | AF16: =IF(IF(AND($K16<>"non inscrit",AF$6<$H$4),OR($K16<$H$5,$K16<AF$6),OR($Q16<$H$5,$Q16<AF$6)),IFERROR(IF(VLOOKUP($C16,Ascot_ext!$C$12:$K$400,5,FALSE)=$F16,VLOOKUP($C16,Ascot_ext!$C$12:$K$400,9,FALSE),""),""),"") ->  | AG16: =IF(IF(AND($K16<>"non inscrit",AG$6<$H$4),OR($K16<$H$5,$K16<AG$6),OR($Q16<$H$5,$Q16<AG$6)),IFERROR(IF(VLOOKUP($C16,NDB_ext!$C$12:$K$399,5,FALSE)=$F16,VLOOKUP($C16,NDB_ext!$C$12:$K$399,9,FALSE),""),""),"") ->  | AH16: =IF(IF(AND($K16<>"non inscrit",AH$6<$H$4),OR($K16<$H$5,$K16<AH$6),OR($Q16<$H$5,$Q16<AH$6)),IFERROR(IF(VLOOKUP($C16,Victo_ext!$C$12:$K$400,5,FALSE)=$F16,VLOOKUP($C16,Victo_ext!$C$12:$K$400,9,FALSE),""),""),"") ->  | AI16: =IF(IF(AND($K16<>"non inscrit",AI$6<$H$4),OR($K16<$H$5,$K16<AI$6),OR($Q16<$H$5,$Q16<AI$6)),IFERROR(IF(VLOOKUP($C16,Brome_ext!$C$12:$K$400,5,FALSE)=$F16,VLOOKUP($C16,Brome_ext!$C$12:$K$400,9,FALSE),""),""),"") ->  | AJ16: =IF(IF(AND($K16<>"non inscrit",AJ$6<$H$4),OR($K16<$H$5,$K16<AJ$6),OR($Q16<$H$5,$Q16<AJ$6)),IFERROR(IF(VLOOKUP($C16,Tuque_ext!$C$12:$K$400,5,FALSE)=$F16,VLOOKUP($C16,Tuque_ext!$C$12:$K$400,9,FALSE),""),""),"") ->  | AK16: =IF(IF(AND($K16<>"non inscrit",AK$6<$H$4),OR($K16<$H$5,$K16<AK$6),OR($Q16<$H$5,$Q16<AK$6)),IFERROR(IF(VLOOKUP($C16,Cantley_ext!$C$12:$K$400,5,FALSE)=$F16,VLOOKUP($C16,Cantley_ext!$C$12:$K$400,9,FALSE),""),""),"") ->  | AL16: =IF(IF(AND($K16<>"non inscrit",AL$6<$H$4),OR($K16<$H$5,$K16<AL$6),OR($Q16<$H$5,$Q16<AL$6)),IFERROR(IF(VLOOKUP($C16,CQ2_ext!$C$12:$K$400,5,FALSE)=$F16,VLOOKUP($C16,CQ2_ext!$C$12:$K$400,9,FALSE),""),""),"") ->  | AM16: =IF(IF(AND($K16<>"non inscrit",AM$6<$H$4),OR($K16<$H$5,$K16<AM$6),OR($Q16<$H$5,$Q16<AM$6)),IFERROR(IF(VLOOKUP($C16,Amos_ext!$C$12:$K$400,5,FALSE)=$F16,VLOOKUP($C16,Amos_ext!$C$12:$K$400,9,FALSE)*3/4,""),""),"") ->  | AN16: =IF(IF(AND($K16<>"non inscrit",AN$6<$H$4),OR($K16<$H$5,$K16<AN$6),OR($Q16<$H$5,$Q16<AN$6)),IFERROR(IF(VLOOKUP($C16,LaSarre_ext!$C$12:$K$400,5,FALSE)=$F16,VLOOKUP($C16,LaSarre_ext!$C$12:$K$400,9,FALSE),""),""),"") ->  | AO16: =IF(IF(AND($K16<>"non inscrit",AO$6<$H$4),OR($K16<$H$5,$K16<AO$6),OR($Q16<$H$5,$Q16<AO$6)),IFERROR(IF(VLOOKUP($C16,Rouyn_ext!$C$12:$K$400,5,FALSE)=$F16,VLOOKUP($C16,Rouyn_ext!$C$12:$K$400,9,FALSE),""),""),"") ->  | AP16: =IF(IF(AND($K16<>"non inscrit",AP$6<$H$4),OR($K16<$H$5,$K16<AP$6),OR($Q16<$H$5,$Q16<AP$6)),IFERROR(IF(VLOOKUP($C16,Valdor_ext!$C$12:$K$400,5,FALSE)=$F16,VLOOKUP($C16,Valdor_ext!$C$12:$K$400,9,FALSE),""),""),"") ->  | AQ16: =IF(IF(AND($K16<>"non inscrit",AQ$6<$H$4),OR($K16<$H$5,$K16<AQ$6),OR($Q16<$H$5,$Q16<AQ$6)),IFERROR(IF(VLOOKUP($C16,Perrot_ext!$C$12:$K$400,5,FALSE)=$F16,VLOOKUP($C16,Perrot_ext!$C$12:$K$400,9,FALSE),""),""),"") ->  | AR16: =IF(IF(AND($K16<>"non inscrit",AR$6<$H$4),OR($K16<$H$5,$K16<AR$6),OR($Q16<$H$5,$Q16<AR$6)),IFERROR(IF(VLOOKUP($C16,Sorel_ext!$C$12:$K$400,5,FALSE)=$F16,VLOOKUP($C16,Sorel_ext!$C$12:$K$400,9,FALSE),""),""),"") ->  | AV16: =IF(IF(AND($K16<>"non inscrit",AV$6<$H$4),OR($K16<$H$5,$K16<AV$6),OR($Q16<$H$5,$Q16<AV$6)),IFERROR(IF(VLOOKUP($C16,Finale_ext!$C$12:$K$400,5,FALSE)=$F16,VLOOKUP($C16,Finale_ext!$C$12:$K$400,9,FALSE),""),""),"") ->  | AX16: =IF(AND($Q16<>"",$Q16<>"non inscrit"),IF(IFERROR(VLOOKUP($C16,Coat_int!$C$12:$K$400,5,FALSE),"")=$F16,IF(AND(OR($Q16>=$H$4,$O$1<$H$5),OR($Q16<$H$5,$Q16<AX$6)),IFERROR(VLOOKUP($C16,Coat_int!$C$12:$K$400,9,FALSE),""),"_"),""),"") ->  | AY16: =IF(AND($Q16<>"",$Q16<>"non inscrit"),IF(IFERROR(VLOOKUP($C16,LG_int!$C$12:$K$403,5,FALSE),"")=$F16,IF(AND(OR($Q16>=$H$4,$O$1<$H$5),OR($Q16<$H$5,$Q16<AY$6)),IFERROR(VLOOKUP($C16,LG_int!$C$12:$K$403,9,FALSE),""),"_"),""),"") ->  | AZ16: =IF(AND($Q16<>"",$Q16<>"non inscrit"),IF(IFERROR(VLOOKUP($C16,LSNO_int!$C$12:$K$400,5,FALSE),"")=$F16,IF(AND(OR($Q16>=$H$4,$O$1<$H$5),OR($Q16<$H$5,$Q16<AZ$6)),IFERROR(VLOOKUP($C16,LSNO_int!$C$12:$K$400,9,FALSE),""),"_"),""),"") ->  | BA16: =IF(AND($Q16<>"",$Q16<>"non inscrit"),IF(IFERROR(VLOOKUP($C16,Ach_int!$C$12:$K$400,5,FALSE),"")=$F16,IF(AND(OR($Q16>=$H$4,$O$1<$H$5),OR($Q16<$H$5,$Q16<BA$6)),IFERROR(VLOOKUP($C16,Ach_int!$C$12:$K$400,9,FALSE),""),"_"),""),"") ->  | BB16: =IF(AND($Q16<>"",$Q16<>"non inscrit"),IF(IFERROR(VLOOKUP($C16,Tremb_int!$C$12:$K$400,5,FALSE),"")=$F16,IF(AND(OR($Q16>=$H$4,$O$1<$H$5),OR($Q16<$H$5,$Q16<BB$6)),IFERROR(VLOOKUP($C16,Tremb_int!$C$12:$K$400,9,FALSE),""),"_"),""),"") ->  | BC16: =IF(AND($Q16<>"",$Q16<>"non inscrit"),IF(IFERROR(VLOOKUP($C16,Buck_int!$C$12:$K$400,5,FALSE),"")=$F16,IF(AND(OR($Q16>=$H$4,$O$1<$H$5),OR($Q16<$H$5,$Q16<BC$6)),IFERROR(VLOOKUP($C16,Buck_int!$C$12:$K$400,9,FALSE),""),"_"),""),"") ->  | BD16: =IF(AND($Q16<>"",$Q16<>"non inscrit"),IF(IFERROR(VLOOKUP($C16,Drum_int!$C$12:$K$400,5,FALSE),"")=$F16,IF(AND(OR($Q16>=$H$4,$O$1<$H$5),OR($Q16<$H$5,$Q16<BD$6)),IFERROR(VLOOKUP($C16,Drum_int!$C$12:$K$400,9,FALSE),""),"_"),""),"") ->  | BE16: =IF(AND($Q16<>"",$Q16<>"non inscrit"),IF(IFERROR(VLOOKUP($C16,Coat_int2!$C$12:$K$400,5,FALSE),"")=$F16,IF(AND(OR($Q16>=$H$4,$O$1<$H$5),OR($Q16<$H$5,$Q16<BE$6)),IFERROR(VLOOKUP($C16,Coat_int2!$C$12:$K$400,9,FALSE),""),"_"),""),"") ->  | BF16: =IF(AND($Q16<>"",$Q16<>"non inscrit"),IF(IFERROR(VLOOKUP($C16,Jean_int!$C$12:$K$401,5,FALSE),"")=$F16,IF(AND(OR($Q16>=$H$4,$O$1<$H$5),OR($Q16<$H$5,$Q16<BF$6)),IFERROR(VLOOKUP($C16,Jean_int!$C$12:$K$401,9,FALSE),""),"_"),""),"") ->  | BG16: =IF(AND($Q16<>"",$Q16<>"non inscrit"),IF(IFERROR(VLOOKUP($C16,Val_int!$C$12:$K$401,5,FALSE),"")=$F16,IF(AND(OR($Q16>=$H$4,$O$1<$H$5),OR($Q16<$H$5,$Q16<BG$6)),IFERROR(VLOOKUP($C16,Val_int!$C$12:$K$401,9,FALSE),""),"_"),""),"") ->  | BH16: =IF(AND($Q16<>"",$Q16<>"non inscrit"),IF(IFERROR(VLOOKUP($C16,Qc_int!$C$12:$K$401,5,FALSE),"")=$F16,IF(AND(OR($Q16>=$H$4,$O$1<$H$5),OR($Q16<$H$5,$Q16<BH$6)),IFERROR(VLOOKUP($C16,Qc_int!$C$12:$K$401,9,FALSE),""),"_"),""),"") -> 195 | BI16: =IF(AND($Q16<>"",$Q16<>"non inscrit"),IF(IFERROR(VLOOKUP($C16,Qc2_int!$C$12:$K$401,5,FALSE),"")=$F16,IF(AND(OR($Q16>=$H$4,$O$1<$H$5),OR($Q16<$H$5,$Q16<BI$6)),IFERROR(VLOOKUP($C16,Qc2_int!$C$12:$K$401,9,FALSE),""),"_"),""),"") -> 224 | BJ16: =IF(AND($Q16<>"",$Q16<>"non inscrit"),IF(IFERROR(VLOOKUP($C16,#REF!,5,FALSE),"")=$F16,IF(AND(OR($Q16>=$H$4,$O$1<$H$5),OR($Q16<$H$5,$Q16<$AY$6)),IFERROR(VLOOKUP($C16,#REF!,9,FALSE),""),"_"),""),"") ->  | BK16: =IF(AND($Q16<>"",$Q16<>"non inscrit"),IF(IFERROR(VLOOKUP($C16,#REF!,5,FALSE),"")=$F16,IF(AND(OR($Q16>=$H$4,$O$1<$H$5),OR($Q16<$H$5,$Q16<$AY$6)),IFERROR(VLOOKUP($C16,#REF!,9,FALSE),""),"_"),""),"") ->  | BU16: =IF(AND($Q16<>"",$Q16<>"non inscrit"),IF(IFERROR(VLOOKUP($C16,FIN_int!$C$12:$K$401,5,FALSE),"")=$F16,IF(AND(OR($Q16>=$H$4,$O$1<$H$5),OR($Q16<$H$5,$Q16<BU$6)),IFERROR(VLOOKUP($C16,FIN_int!$C$12:$K$401,9,FALSE),""),"_"),""),"") -> 
A17: 1 | B17: 6 | C17: 5960 | D17: =IF($C17="","",IF($O$1>$H$4,IFERROR(VLOOKUP($C17,'Membres-2023'!$A:$G,2,FALSE),""),IFERROR(VLOOKUP($C17,'Membres-2022'!$A:$G,2,FALSE),""))) -> Leclerc | E17: =IF($C17="","",IF($O$1>$H$4,IFERROR(VLOOKUP($C17,'Membres-2023'!$A:$G,3,FALSE),""),IFERROR(VLOOKUP($C17,'Membres-2022'!$A:$G,3,FALSE),""))) -> Zack | F17: =IF($C17="","",IF($O$1>$H$4,IFERROR(VLOOKUP($C17,'Membres-2023'!$A:$G,7,FALSE),""),IFERROR(VLOOKUP($C17,'Membres-2022'!$A:$G,7,FALSE),""))) -> 1 | G17: =IF($C17="","",IF($O$1>$H$4,IFERROR(VLOOKUP($C17,'Membres-2023'!$A:$G,5,FALSE),""),IFERROR(VLOOKUP($C17,'Membres-2022'!$A:$G,5,FALSE),""))) -> La Sarre (Nord-Ouest Archer) | H17: 2 | I17: 73.5 | J17: 0 | K17: =IFERROR(IF(VLOOKUP(C17,'Membres-2022'!$A:$F,6,FALSE)>=$H$3,VLOOKUP(C17,'Membres-2022'!$A:$F,6,FALSE),"non inscrit"),IF($C17>0,"non inscrit","")) -> 2022-02-02 | Q17: =IFERROR(IF(VLOOKUP($C17,'Membres-2023'!$A:$F,6,FALSE)>=$H$3,VLOOKUP($C17,'Membres-2023'!$A:$F,6,FALSE),"non inscrit"),"") -> 2023-01-23 | R17: 41.66666667 | S17: 31.83333333 | Z17: =IF(IF(AND($K17<>"non inscrit",Z$6<$H$4),OR($K17<$H$5,$K17<Z$6),OR($Q17<$H$5,$Q17<Z$6)),IFERROR(IF(VLOOKUP($C17,Stroch_ext!$C$12:$K$400,5,FALSE)=$F17,VLOOKUP($C17,Stroch_ext!$C$12:$K$400,9,FALSE),""),""),"") ->  | AA17: =IF(IF(AND($K17<>"non inscrit",AA$6<$H$4),OR($K17<$H$5,$K17<AA$6),OR($Q17<$H$5,$Q17<AA$6)),IFERROR(IF(VLOOKUP($C17,Vallée_ext!$C$12:$K$400,5,FALSE)=$F17,VLOOKUP($C17,Vallée_ext!$C$12:$K$400,9,FALSE),""),""),"") ->  | AB17: =IF(IF(AND($K17<>"non inscrit",AB$6<$H$4),OR($K17<$H$5,$K17<AB$6),OR($Q17<$H$5,$Q17<AB$6)),IFERROR(IF(VLOOKUP($C17,ASF_ext!$C$12:$K$400,5,FALSE)=$F17,VLOOKUP($C17,ASF_ext!$C$12:$K$400,9,FALSE),""),""),"") ->  | AC17: =IF(IF(AND($K17<>"non inscrit",AC$6<$H$4),OR($K17<$H$5,$K17<AC$6),OR($Q17<$H$5,$Q17<AC$6)),IFERROR(IF(VLOOKUP($C17,MtLaur_ext!$C$12:$K$407,5,FALSE)=$F17,VLOOKUP($C17,MtLaur_ext!$C$12:$K$407,9,FALSE),""),""),"") ->  | AD17: =IF(IF(AND($K17<>"non inscrit",AD$6<$H$4),OR($K17<$H$5,$K17<AD$6),OR($Q17<$H$5,$Q17<AD$6)),IFERROR(IF(VLOOKUP($C17,Nord_ext!$C$12:$K$400,5,FALSE)=$F17,VLOOKUP($C17,Nord_ext!$C$12:$K$400,9,FALSE),""),""),"") ->  | AE17: =IF(IF(AND($K17<>"non inscrit",AE$6<$H$4),OR($K17<$H$5,$K17<AE$6),OR($Q17<$H$5,$Q17<AE$6)),IFERROR(IF(VLOOKUP($C17,CentreQc_ext!$C$12:$K$400,5,FALSE)=$F17,VLOOKUP($C17,CentreQc_ext!$C$12:$K$400,9,FALSE),""),""),"") ->  | AF17: =IF(IF(AND($K17<>"non inscrit",AF$6<$H$4),OR($K17<$H$5,$K17<AF$6),OR($Q17<$H$5,$Q17<AF$6)),IFERROR(IF(VLOOKUP($C17,Ascot_ext!$C$12:$K$400,5,FALSE)=$F17,VLOOKUP($C17,Ascot_ext!$C$12:$K$400,9,FALSE),""),""),"") ->  | AG17: =IF(IF(AND($K17<>"non inscrit",AG$6<$H$4),OR($K17<$H$5,$K17<AG$6),OR($Q17<$H$5,$Q17<AG$6)),IFERROR(IF(VLOOKUP($C17,NDB_ext!$C$12:$K$399,5,FALSE)=$F17,VLOOKUP($C17,NDB_ext!$C$12:$K$399,9,FALSE),""),""),"") ->  | AH17: =IF(IF(AND($K17<>"non inscrit",AH$6<$H$4),OR($K17<$H$5,$K17<AH$6),OR($Q17<$H$5,$Q17<AH$6)),IFERROR(IF(VLOOKUP($C17,Victo_ext!$C$12:$K$400,5,FALSE)=$F17,VLOOKUP($C17,Victo_ext!$C$12:$K$400,9,FALSE),""),""),"") ->  | AI17: =IF(IF(AND($K17<>"non inscrit",AI$6<$H$4),OR($K17<$H$5,$K17<AI$6),OR($Q17<$H$5,$Q17<AI$6)),IFERROR(IF(VLOOKUP($C17,Brome_ext!$C$12:$K$400,5,FALSE)=$F17,VLOOKUP($C17,Brome_ext!$C$12:$K$400,9,FALSE),""),""),"") ->  | AJ17: =IF(IF(AND($K17<>"non inscrit",AJ$6<$H$4),OR($K17<$H$5,$K17<AJ$6),OR($Q17<$H$5,$Q17<AJ$6)),IFERROR(IF(VLOOKUP($C17,Tuque_ext!$C$12:$K$400,5,FALSE)=$F17,VLOOKUP($C17,Tuque_ext!$C$12:$K$400,9,FALSE),""),""),"") ->  | AK17: =IF(IF(AND($K17<>"non inscrit",AK$6<$H$4),OR($K17<$H$5,$K17<AK$6),OR($Q17<$H$5,$Q17<AK$6)),IFERROR(IF(VLOOKUP($C17,Cantley_ext!$C$12:$K$400,5,FALSE)=$F17,VLOOKUP($C17,Cantley_ext!$C$12:$K$400,9,FALSE),""),""),"") ->  | AL17: =IF(IF(AND($K17<>"non inscrit",AL$6<$H$4),OR($K17<$H$5,$K17<AL$6),OR($Q17<$H$5,$Q17<AL$6)),IFERROR(IF(VLOOKUP($C17,CQ2_ext!$C$12:$K$400,5,FALSE)=$F17,VLOOKUP($C17,CQ2_ext!$C$12:$K$400,9,FALSE),""),""),"") ->  | AM17: =IF(IF(AND($K17<>"non inscrit",AM$6<$H$4),OR($K17<$H$5,$K17<AM$6),OR($Q17<$H$5,$Q17<AM$6)),IFERROR(IF(VLOOKUP($C17,Amos_ext!$C$12:$K$400,5,FALSE)=$F17,VLOOKUP($C17,Amos_ext!$C$12:$K$400,9,FALSE)*3/4,""),""),"") ->  | AN17: =IF(IF(AND($K17<>"non inscrit",AN$6<$H$4),OR($K17<$H$5,$K17<AN$6),OR($Q17<$H$5,$Q17<AN$6)),IFERROR(IF(VLOOKUP($C17,LaSarre_ext!$C$12:$K$400,5,FALSE)=$F17,VLOOKUP($C17,LaSarre_ext!$C$12:$K$400,9,FALSE),""),""),"") ->  | AO17: =IF(IF(AND($K17<>"non inscrit",AO$6<$H$4),OR($K17<$H$5,$K17<AO$6),OR($Q17<$H$5,$Q17<AO$6)),IFERROR(IF(VLOOKUP($C17,Rouyn_ext!$C$12:$K$400,5,FALSE)=$F17,VLOOKUP($C17,Rouyn_ext!$C$12:$K$400,9,FALSE),""),""),"") ->  | AP17: =IF(IF(AND($K17<>"non inscrit",AP$6<$H$4),OR($K17<$H$5,$K17<AP$6),OR($Q17<$H$5,$Q17<AP$6)),IFERROR(IF(VLOOKUP($C17,Valdor_ext!$C$12:$K$400,5,FALSE)=$F17,VLOOKUP($C17,Valdor_ext!$C$12:$K$400,9,FALSE),""),""),"") ->  | AQ17: =IF(IF(AND($K17<>"non inscrit",AQ$6<$H$4),OR($K17<$H$5,$K17<AQ$6),OR($Q17<$H$5,$Q17<AQ$6)),IFERROR(IF(VLOOKUP($C17,Perrot_ext!$C$12:$K$400,5,FALSE)=$F17,VLOOKUP($C17,Perrot_ext!$C$12:$K$400,9,FALSE),""),""),"") ->  | AR17: =IF(IF(AND($K17<>"non inscrit",AR$6<$H$4),OR($K17<$H$5,$K17<AR$6),OR($Q17<$H$5,$Q17<AR$6)),IFERROR(IF(VLOOKUP($C17,Sorel_ext!$C$12:$K$400,5,FALSE)=$F17,VLOOKUP($C17,Sorel_ext!$C$12:$K$400,9,FALSE),""),""),"") ->  | AV17: =IF(IF(AND($K17<>"non inscrit",AV$6<$H$4),OR($K17<$H$5,$K17<AV$6),OR($Q17<$H$5,$Q17<AV$6)),IFERROR(IF(VLOOKUP($C17,Finale_ext!$C$12:$K$400,5,FALSE)=$F17,VLOOKUP($C17,Finale_ext!$C$12:$K$400,9,FALSE),""),""),"") ->  | AX17: =IF(AND($Q17<>"",$Q17<>"non inscrit"),IF(IFERROR(VLOOKUP($C17,Coat_int!$C$12:$K$400,5,FALSE),"")=$F17,IF(AND(OR($Q17>=$H$4,$O$1<$H$5),OR($Q17<$H$5,$Q17<AX$6)),IFERROR(VLOOKUP($C17,Coat_int!$C$12:$K$400,9,FALSE),""),"_"),""),"") ->  | AY17: =IF(AND($Q17<>"",$Q17<>"non inscrit"),IF(IFERROR(VLOOKUP($C17,LG_int!$C$12:$K$403,5,FALSE),"")=$F17,IF(AND(OR($Q17>=$H$4,$O$1<$H$5),OR($Q17<$H$5,$Q17<AY$6)),IFERROR(VLOOKUP($C17,LG_int!$C$12:$K$403,9,FALSE),""),"_"),""),"") ->  | AZ17: =IF(AND($Q17<>"",$Q17<>"non inscrit"),IF(IFERROR(VLOOKUP($C17,LSNO_int!$C$12:$K$400,5,FALSE),"")=$F17,IF(AND(OR($Q17>=$H$4,$O$1<$H$5),OR($Q17<$H$5,$Q17<AZ$6)),IFERROR(VLOOKUP($C17,LSNO_int!$C$12:$K$400,9,FALSE),""),"_"),""),"") -> 191 | BA17: =IF(AND($Q17<>"",$Q17<>"non inscrit"),IF(IFERROR(VLOOKUP($C17,Ach_int!$C$12:$K$400,5,FALSE),"")=$F17,IF(AND(OR($Q17>=$H$4,$O$1<$H$5),OR($Q17<$H$5,$Q17<BA$6)),IFERROR(VLOOKUP($C17,Ach_int!$C$12:$K$400,9,FALSE),""),"_"),""),"") ->  | BB17: =IF(AND($Q17<>"",$Q17<>"non inscrit"),IF(IFERROR(VLOOKUP($C17,Tremb_int!$C$12:$K$400,5,FALSE),"")=$F17,IF(AND(OR($Q17>=$H$4,$O$1<$H$5),OR($Q17<$H$5,$Q17<BB$6)),IFERROR(VLOOKUP($C17,Tremb_int!$C$12:$K$400,9,FALSE),""),"_"),""),"") ->  | BC17: =IF(AND($Q17<>"",$Q17<>"non inscrit"),IF(IFERROR(VLOOKUP($C17,Buck_int!$C$12:$K$400,5,FALSE),"")=$F17,IF(AND(OR($Q17>=$H$4,$O$1<$H$5),OR($Q17<$H$5,$Q17<BC$6)),IFERROR(VLOOKUP($C17,Buck_int!$C$12:$K$400,9,FALSE),""),"_"),""),"") ->  | BD17: =IF(AND($Q17<>"",$Q17<>"non inscrit"),IF(IFERROR(VLOOKUP($C17,Drum_int!$C$12:$K$400,5,FALSE),"")=$F17,IF(AND(OR($Q17>=$H$4,$O$1<$H$5),OR($Q17<$H$5,$Q17<BD$6)),IFERROR(VLOOKUP($C17,Drum_int!$C$12:$K$400,9,FALSE),""),"_"),""),"") ->  | BE17: =IF(AND($Q17<>"",$Q17<>"non inscrit"),IF(IFERROR(VLOOKUP($C17,Coat_int2!$C$12:$K$400,5,FALSE),"")=$F17,IF(AND(OR($Q17>=$H$4,$O$1<$H$5),OR($Q17<$H$5,$Q17<BE$6)),IFERROR(VLOOKUP($C17,Coat_int2!$C$12:$K$400,9,FALSE),""),"_"),""),"") ->  | BF17: =IF(AND($Q17<>"",$Q17<>"non inscrit"),IF(IFERROR(VLOOKUP($C17,Jean_int!$C$12:$K$401,5,FALSE),"")=$F17,IF(AND(OR($Q17>=$H$4,$O$1<$H$5),OR($Q17<$H$5,$Q17<BF$6)),IFERROR(VLOOKUP($C17,Jean_int!$C$12:$K$401,9,FALSE),""),"_"),""),"") ->  | BG17: =IF(AND($Q17<>"",$Q17<>"non inscrit"),IF(IFERROR(VLOOKUP($C17,Val_int!$C$12:$K$401,5,FALSE),"")=$F17,IF(AND(OR($Q17>=$H$4,$O$1<$H$5),OR($Q17<$H$5,$Q17<BG$6)),IFERROR(VLOOKUP($C17,Val_int!$C$12:$K$401,9,FALSE),""),"_"),""),"") -> 250 | BH17: =IF(AND($Q17<>"",$Q17<>"non inscrit"),IF(IFERROR(VLOOKUP($C17,Qc_int!$C$12:$K$401,5,FALSE),"")=$F17,IF(AND(OR($Q17>=$H$4,$O$1<$H$5),OR($Q17<$H$5,$Q17<BH$6)),IFERROR(VLOOKUP($C17,Qc_int!$C$12:$K$401,9,FALSE),""),"_"),""),"") ->  | BI17: =IF(AND($Q17<>"",$Q17<>"non inscrit"),IF(IFERROR(VLOOKUP($C17,Qc2_int!$C$12:$K$401,5,FALSE),"")=$F17,IF(AND(OR($Q17>=$H$4,$O$1<$H$5),OR($Q17<$H$5,$Q17<BI$6)),IFERROR(VLOOKUP($C17,Qc2_int!$C$12:$K$401,9,FALSE),""),"_"),""),"") ->  | BJ17: =IF(AND($Q17<>"",$Q17<>"non inscrit"),IF(IFERROR(VLOOKUP($C17,#REF!,5,FALSE),"")=$F17,IF(AND(OR($Q17>=$H$4,$O$1<$H$5),OR($Q17<$H$5,$Q17<$AY$6)),IFERROR(VLOOKUP($C17,#REF!,9,FALSE),""),"_"),""),"") ->  | BK17: =IF(AND($Q17<>"",$Q17<>"non inscrit"),IF(IFERROR(VLOOKUP($C17,#REF!,5,FALSE),"")=$F17,IF(AND(OR($Q17>=$H$4,$O$1<$H$5),OR($Q17<$H$5,$Q17<$AY$6)),IFERROR(VLOOKUP($C17,#REF!,9,FALSE),""),"_"),""),"") ->  | BU17: =IF(AND($Q17<>"",$Q17<>"non inscrit"),IF(IFERROR(VLOOKUP($C17,FIN_int!$C$12:$K$401,5,FALSE),"")=$F17,IF(AND(OR($Q17>=$H$4,$O$1<$H$5),OR($Q17<$H$5,$Q17<BU$6)),IFERROR(VLOOKUP($C17,FIN_int!$C$12:$K$401,9,FALSE),""),"_"),""),"") -> 
A18: 1 | B18: 7 | C18: 3853 | D18: =IF($C18="","",IF($O$1>$H$4,IFERROR(VLOOKUP($C18,'Membres-2023'!$A:$G,2,FALSE),""),IFERROR(VLOOKUP($C18,'Membres-2022'!$A:$G,2,FALSE),""))) -> Berthiaume | E18: =IF($C18="","",IF($O$1>$H$4,IFERROR(VLOOKUP($C18,'Membres-2023'!$A:$G,3,FALSE),""),IFERROR(VLOOKUP($C18,'Membres-2022'!$A:$G,3,FALSE),""))) -> Manuel | F18: =IF($C18="","",IF($O$1>$H$4,IFERROR(VLOOKUP($C18,'Membres-2023'!$A:$G,7,FALSE),""),IFERROR(VLOOKUP($C18,'Membres-2022'!$A:$G,7,FALSE),""))) -> 1 | G18: =IF($C18="","",IF($O$1>$H$4,IFERROR(VLOOKUP($C18,'Membres-2023'!$A:$G,5,FALSE),""),IFERROR(VLOOKUP($C18,'Membres-2022'!$A:$G,5,FALSE),""))) -> Mont-Laurier (Lynx) | H18: 2 | I18: 60.66666667 | J18: 27.66666667 | K18: =IFERROR(IF(VLOOKUP(C18,'Membres-2022'!$A:$F,6,FALSE)>=$H$3,VLOOKUP(C18,'Membres-2022'!$A:$F,6,FALSE),"non inscrit"),IF($C18>0,"non inscrit","")) -> 2022-06-07 | L18: 27.66666667 | Q18: =IFERROR(IF(VLOOKUP($C18,'Membres-2023'!$A:$F,6,FALSE)>=$H$3,VLOOKUP($C18,'Membres-2023'!$A:$F,6,FALSE),"non inscrit"),"") -> 2023-01-23 | R18: 33 | Z18: =IF(IF(AND($K18<>"non inscrit",Z$6<$H$4),OR($K18<$H$5,$K18<Z$6),OR($Q18<$H$5,$Q18<Z$6)),IFERROR(IF(VLOOKUP($C18,Stroch_ext!$C$12:$K$400,5,FALSE)=$F18,VLOOKUP($C18,Stroch_ext!$C$12:$K$400,9,FALSE),""),""),"") ->  | AA18: =IF(IF(AND($K18<>"non inscrit",AA$6<$H$4),OR($K18<$H$5,$K18<AA$6),OR($Q18<$H$5,$Q18<AA$6)),IFERROR(IF(VLOOKUP($C18,Vallée_ext!$C$12:$K$400,5,FALSE)=$F18,VLOOKUP($C18,Vallée_ext!$C$12:$K$400,9,FALSE),""),""),"") ->  | AB18: =IF(IF(AND($K18<>"non inscrit",AB$6<$H$4),OR($K18<$H$5,$K18<AB$6),OR($Q18<$H$5,$Q18<AB$6)),IFERROR(IF(VLOOKUP($C18,ASF_ext!$C$12:$K$400,5,FALSE)=$F18,VLOOKUP($C18,ASF_ext!$C$12:$K$400,9,FALSE),""),""),"") ->  | AC18: =IF(IF(AND($K18<>"non inscrit",AC$6<$H$4),OR($K18<$H$5,$K18<AC$6),OR($Q18<$H$5,$Q18<AC$6)),IFERROR(IF(VLOOKUP($C18,MtLaur_ext!$C$12:$K$407,5,FALSE)=$F18,VLOOKUP($C18,MtLaur_ext!$C$12:$K$407,9,FALSE),""),""),"") -> 166 | AD18: =IF(IF(AND($K18<>"non inscrit",AD$6<$H$4),OR($K18<$H$5,$K18<AD$6),OR($Q18<$H$5,$Q18<AD$6)),IFERROR(IF(VLOOKUP($C18,Nord_ext!$C$12:$K$400,5,FALSE)=$F18,VLOOKUP($C18,Nord_ext!$C$12:$K$400,9,FALSE),""),""),"") ->  | AE18: =IF(IF(AND($K18<>"non inscrit",AE$6<$H$4),OR($K18<$H$5,$K18<AE$6),OR($Q18<$H$5,$Q18<AE$6)),IFERROR(IF(VLOOKUP($C18,CentreQc_ext!$C$12:$K$400,5,FALSE)=$F18,VLOOKUP($C18,CentreQc_ext!$C$12:$K$400,9,FALSE),""),""),"") ->  | AF18: =IF(IF(AND($K18<>"non inscrit",AF$6<$H$4),OR($K18<$H$5,$K18<AF$6),OR($Q18<$H$5,$Q18<AF$6)),IFERROR(IF(VLOOKUP($C18,Ascot_ext!$C$12:$K$400,5,FALSE)=$F18,VLOOKUP($C18,Ascot_ext!$C$12:$K$400,9,FALSE),""),""),"") ->  | AG18: =IF(IF(AND($K18<>"non inscrit",AG$6<$H$4),OR($K18<$H$5,$K18<AG$6),OR($Q18<$H$5,$Q18<AG$6)),IFERROR(IF(VLOOKUP($C18,NDB_ext!$C$12:$K$399,5,FALSE)=$F18,VLOOKUP($C18,NDB_ext!$C$12:$K$399,9,FALSE),""),""),"") ->  | AH18: =IF(IF(AND($K18<>"non inscrit",AH$6<$H$4),OR($K18<$H$5,$K18<AH$6),OR($Q18<$H$5,$Q18<AH$6)),IFERROR(IF(VLOOKUP($C18,Victo_ext!$C$12:$K$400,5,FALSE)=$F18,VLOOKUP($C18,Victo_ext!$C$12:$K$400,9,FALSE),""),""),"") ->  | AI18: =IF(IF(AND($K18<>"non inscrit",AI$6<$H$4),OR($K18<$H$5,$K18<AI$6),OR($Q18<$H$5,$Q18<AI$6)),IFERROR(IF(VLOOKUP($C18,Brome_ext!$C$12:$K$400,5,FALSE)=$F18,VLOOKUP($C18,Brome_ext!$C$12:$K$400,9,FALSE),""),""),"") ->  | AJ18: =IF(IF(AND($K18<>"non inscrit",AJ$6<$H$4),OR($K18<$H$5,$K18<AJ$6),OR($Q18<$H$5,$Q18<AJ$6)),IFERROR(IF(VLOOKUP($C18,Tuque_ext!$C$12:$K$400,5,FALSE)=$F18,VLOOKUP($C18,Tuque_ext!$C$12:$K$400,9,FALSE),""),""),"") ->  | AK18: =IF(IF(AND($K18<>"non inscrit",AK$6<$H$4),OR($K18<$H$5,$K18<AK$6),OR($Q18<$H$5,$Q18<AK$6)),IFERROR(IF(VLOOKUP($C18,Cantley_ext!$C$12:$K$400,5,FALSE)=$F18,VLOOKUP($C18,Cantley_ext!$C$12:$K$400,9,FALSE),""),""),"") ->  | AL18: =IF(IF(AND($K18<>"non inscrit",AL$6<$H$4),OR($K18<$H$5,$K18<AL$6),OR($Q18<$H$5,$Q18<AL$6)),IFERROR(IF(VLOOKUP($C18,CQ2_ext!$C$12:$K$400,5,FALSE)=$F18,VLOOKUP($C18,CQ2_ext!$C$12:$K$400,9,FALSE),""),""),"") ->  | AM18: =IF(IF(AND($K18<>"non inscrit",AM$6<$H$4),OR($K18<$H$5,$K18<AM$6),OR($Q18<$H$5,$Q18<AM$6)),IFERROR(IF(VLOOKUP($C18,Amos_ext!$C$12:$K$400,5,FALSE)=$F18,VLOOKUP($C18,Amos_ext!$C$12:$K$400,9,FALSE)*3/4,""),""),"") ->  | AN18: =IF(IF(AND($K18<>"non inscrit",AN$6<$H$4),OR($K18<$H$5,$K18<AN$6),OR($Q18<$H$5,$Q18<AN$6)),IFERROR(IF(VLOOKUP($C18,LaSarre_ext!$C$12:$K$400,5,FALSE)=$F18,VLOOKUP($C18,LaSarre_ext!$C$12:$K$400,9,FALSE),""),""),"") ->  | AO18: =IF(IF(AND($K18<>"non inscrit",AO$6<$H$4),OR($K18<$H$5,$K18<AO$6),OR($Q18<$H$5,$Q18<AO$6)),IFERROR(IF(VLOOKUP($C18,Rouyn_ext!$C$12:$K$400,5,FALSE)=$F18,VLOOKUP($C18,Rouyn_ext!$C$12:$K$400,9,FALSE),""),""),"") ->  | AP18: =IF(IF(AND($K18<>"non inscrit",AP$6<$H$4),OR($K18<$H$5,$K18<AP$6),OR($Q18<$H$5,$Q18<AP$6)),IFERROR(IF(VLOOKUP($C18,Valdor_ext!$C$12:$K$400,5,FALSE)=$F18,VLOOKUP($C18,Valdor_ext!$C$12:$K$400,9,FALSE),""),""),"") ->  | AQ18: =IF(IF(AND($K18<>"non inscrit",AQ$6<$H$4),OR($K18<$H$5,$K18<AQ$6),OR($Q18<$H$5,$Q18<AQ$6)),IFERROR(IF(VLOOKUP($C18,Perrot_ext!$C$12:$K$400,5,FALSE)=$F18,VLOOKUP($C18,Perrot_ext!$C$12:$K$400,9,FALSE),""),""),"") ->  | AR18: =IF(IF(AND($K18<>"non inscrit",AR$6<$H$4),OR($K18<$H$5,$K18<AR$6),OR($Q18<$H$5,$Q18<AR$6)),IFERROR(IF(VLOOKUP($C18,Sorel_ext!$C$12:$K$400,5,FALSE)=$F18,VLOOKUP($C18,Sorel_ext!$C$12:$K$400,9,FALSE),""),""),"") ->  | AV18: =IF(IF(AND($K18<>"non inscrit",AV$6<$H$4),OR($K18<$H$5,$K18<AV$6),OR($Q18<$H$5,$Q18<AV$6)),IFERROR(IF(VLOOKUP($C18,Finale_ext!$C$12:$K$400,5,FALSE)=$F18,VLOOKUP($C18,Finale_ext!$C$12:$K$400,9,FALSE),""),""),"") ->  | AX18: =IF(AND($Q18<>"",$Q18<>"non inscrit"),IF(IFERROR(VLOOKUP($C18,Coat_int!$C$12:$K$400,5,FALSE),"")=$F18,IF(AND(OR($Q18>=$H$4,$O$1<$H$5),OR($Q18<$H$5,$Q18<AX$6)),IFERROR(VLOOKUP($C18,Coat_int!$C$12:$K$400,9,FALSE),""),"_"),""),"") ->  | AY18: =IF(AND($Q18<>"",$Q18<>"non inscrit"),IF(IFERROR(VLOOKUP($C18,LG_int!$C$12:$K$403,5,FALSE),"")=$F18,IF(AND(OR($Q18>=$H$4,$O$1<$H$5),OR($Q18<$H$5,$Q18<AY$6)),IFERROR(VLOOKUP($C18,LG_int!$C$12:$K$403,9,FALSE),""),"_"),""),"") ->  | AZ18: =IF(AND($Q18<>"",$Q18<>"non inscrit"),IF(IFERROR(VLOOKUP($C18,LSNO_int!$C$12:$K$400,5,FALSE),"")=$F18,IF(AND(OR($Q18>=$H$4,$O$1<$H$5),OR($Q18<$H$5,$Q18<AZ$6)),IFERROR(VLOOKUP($C18,LSNO_int!$C$12:$K$400,9,FALSE),""),"_"),""),"") ->  | BA18: =IF(AND($Q18<>"",$Q18<>"non inscrit"),IF(IFERROR(VLOOKUP($C18,Ach_int!$C$12:$K$400,5,FALSE),"")=$F18,IF(AND(OR($Q18>=$H$4,$O$1<$H$5),OR($Q18<$H$5,$Q18<BA$6)),IFERROR(VLOOKUP($C18,Ach_int!$C$12:$K$400,9,FALSE),""),"_"),""),"") ->  | BB18: =IF(AND($Q18<>"",$Q18<>"non inscrit"),IF(IFERROR(VLOOKUP($C18,Tremb_int!$C$12:$K$400,5,FALSE),"")=$F18,IF(AND(OR($Q18>=$H$4,$O$1<$H$5),OR($Q18<$H$5,$Q18<BB$6)),IFERROR(VLOOKUP($C18,Tremb_int!$C$12:$K$400,9,FALSE),""),"_"),""),"") ->  | BC18: =IF(AND($Q18<>"",$Q18<>"non inscrit"),IF(IFERROR(VLOOKUP($C18,Buck_int!$C$12:$K$400,5,FALSE),"")=$F18,IF(AND(OR($Q18>=$H$4,$O$1<$H$5),OR($Q18<$H$5,$Q18<BC$6)),IFERROR(VLOOKUP($C18,Buck_int!$C$12:$K$400,9,FALSE),""),"_"),""),"") -> 198 | BD18: =IF(AND($Q18<>"",$Q18<>"non inscrit"),IF(IFERROR(VLOOKUP($C18,Drum_int!$C$12:$K$400,5,FALSE),"")=$F18,IF(AND(OR($Q18>=$H$4,$O$1<$H$5),OR($Q18<$H$5,$Q18<BD$6)),IFERROR(VLOOKUP($C18,Drum_int!$C$12:$K$400,9,FALSE),""),"_"),""),"") ->  | BE18: =IF(AND($Q18<>"",$Q18<>"non inscrit"),IF(IFERROR(VLOOKUP($C18,Coat_int2!$C$12:$K$400,5,FALSE),"")=$F18,IF(AND(OR($Q18>=$H$4,$O$1<$H$5),OR($Q18<$H$5,$Q18<BE$6)),IFERROR(VLOOKUP($C18,Coat_int2!$C$12:$K$400,9,FALSE),""),"_"),""),"") ->  | BF18: =IF(AND($Q18<>"",$Q18<>"non inscrit"),IF(IFERROR(VLOOKUP($C18,Jean_int!$C$12:$K$401,5,FALSE),"")=$F18,IF(AND(OR($Q18>=$H$4,$O$1<$H$5),OR($Q18<$H$5,$Q18<BF$6)),IFERROR(VLOOKUP($C18,Jean_int!$C$12:$K$401,9,FALSE),""),"_"),""),"") ->  | BG18: =IF(AND($Q18<>"",$Q18<>"non inscrit"),IF(IFERROR(VLOOKUP($C18,Val_int!$C$12:$K$401,5,FALSE),"")=$F18,IF(AND(OR($Q18>=$H$4,$O$1<$H$5),OR($Q18<$H$5,$Q18<BG$6)),IFERROR(VLOOKUP($C18,Val_int!$C$12:$K$401,9,FALSE),""),"_"),""),"") ->  | BH18: =IF(AND($Q18<>"",$Q18<>"non inscrit"),IF(IFERROR(VLOOKUP($C18,Qc_int!$C$12:$K$401,5,FALSE),"")=$F18,IF(AND(OR($Q18>=$H$4,$O$1<$H$5),OR($Q18<$H$5,$Q18<BH$6)),IFERROR(VLOOKUP($C18,Qc_int!$C$12:$K$401,9,FALSE),""),"_"),""),"") ->  | BI18: =IF(AND($Q18<>"",$Q18<>"non inscrit"),IF(IFERROR(VLOOKUP($C18,Qc2_int!$C$12:$K$401,5,FALSE),"")=$F18,IF(AND(OR($Q18>=$H$4,$O$1<$H$5),OR($Q18<$H$5,$Q18<BI$6)),IFERROR(VLOOKUP($C18,Qc2_int!$C$12:$K$401,9,FALSE),""),"_"),""),"") ->  | BJ18: =IF(AND($Q18<>"",$Q18<>"non inscrit"),IF(IFERROR(VLOOKUP($C18,#REF!,5,FALSE),"")=$F18,IF(AND(OR($Q18>=$H$4,$O$1<$H$5),OR($Q18<$H$5,$Q18<$AY$6)),IFERROR(VLOOKUP($C18,#REF!,9,FALSE),""),"_"),""),"") ->  | BK18: =IF(AND($Q18<>"",$Q18<>"non inscrit"),IF(IFERROR(VLOOKUP($C18,#REF!,5,FALSE),"")=$F18,IF(AND(OR($Q18>=$H$4,$O$1<$H$5),OR($Q18<$H$5,$Q18<$AY$6)),IFERROR(VLOOKUP($C18,#REF!,9,FALSE),""),"_"),""),"") ->  | BU18: =IF(AND($Q18<>"",$Q18<>"non inscrit"),IF(IFERROR(VLOOKUP($C18,FIN_int!$C$12:$K$401,5,FALSE),"")=$F18,IF(AND(OR($Q18>=$H$4,$O$1<$H$5),OR($Q18<$H$5,$Q18<BU$6)),IFERROR(VLOOKUP($C18,FIN_int!$C$12:$K$401,9,FALSE),""),"_"),""),"") -> 
A19: 1 | B19: 8 | C19: 4770 | D19: =IF($C19="","",IF($O$1>$H$4,IFERROR(VLOOKUP($C19,'Membres-2023'!$A:$G,2,FALSE),""),IFERROR(VLOOKUP($C19,'Membres-2022'!$A:$G,2,FALSE),""))) -> Plonquet | E19: =IF($C19="","",IF($O$1>$H$4,IFERROR(VLOOKUP($C19,'Membres-2023'!$A:$G,3,FALSE),""),IFERROR(VLOOKUP($C19,'Membres-2022'!$A:$G,3,FALSE),""))) -> Arnaud | F19: =IF($C19="","",IF($O$1>$H$4,IFERROR(VLOOKUP($C19,'Membres-2023'!$A:$G,7,FALSE),""),IFERROR(VLOOKUP($C19,'Membres-2022'!$A:$G,7,FALSE),""))) -> 1 | G19: =IF($C19="","",IF($O$1>$H$4,IFERROR(VLOOKUP($C19,'Membres-2023'!$A:$G,5,FALSE),""),IFERROR(VLOOKUP($C19,'Membres-2022'!$A:$G,5,FALSE),""))) -> St-François (Archers de) | H19: 1 | I19: 45.16666667 | J19: 45.16666667 | K19: =IFERROR(IF(VLOOKUP(C19,'Membres-2022'!$A:$F,6,FALSE)>=$H$3,VLOOKUP(C19,'Membres-2022'!$A:$F,6,FALSE),"non inscrit"),IF($C19>0,"non inscrit","")) -> 2022-04-27 | L19: 45.16666667 | Q19: =IFERROR(IF(VLOOKUP($C19,'Membres-2023'!$A:$F,6,FALSE)>=$H$3,VLOOKUP($C19,'Membres-2023'!$A:$F,6,FALSE),"non inscrit"),"") -> 2022-04-27 | Z19: =IF(IF(AND($K19<>"non inscrit",Z$6<$H$4),OR($K19<$H$5,$K19<Z$6),OR($Q19<$H$5,$Q19<Z$6)),IFERROR(IF(VLOOKUP($C19,Stroch_ext!$C$12:$K$400,5,FALSE)=$F19,VLOOKUP($C19,Stroch_ext!$C$12:$K$400,9,FALSE),""),""),"") ->  | AA19: =IF(IF(AND($K19<>"non inscrit",AA$6<$H$4),OR($K19<$H$5,$K19<AA$6),OR($Q19<$H$5,$Q19<AA$6)),IFERROR(IF(VLOOKUP($C19,Vallée_ext!$C$12:$K$400,5,FALSE)=$F19,VLOOKUP($C19,Vallée_ext!$C$12:$K$400,9,FALSE),""),""),"") ->  | AB19: =IF(IF(AND($K19<>"non inscrit",AB$6<$H$4),OR($K19<$H$5,$K19<AB$6),OR($Q19<$H$5,$Q19<AB$6)),IFERROR(IF(VLOOKUP($C19,ASF_ext!$C$12:$K$400,5,FALSE)=$F19,VLOOKUP($C19,ASF_ext!$C$12:$K$400,9,FALSE),""),""),"") ->  | AC19: =IF(IF(AND($K19<>"non inscrit",AC$6<$H$4),OR($K19<$H$5,$K19<AC$6),OR($Q19<$H$5,$Q19<AC$6)),IFERROR(IF(VLOOKUP($C19,MtLaur_ext!$C$12:$K$407,5,FALSE)=$F19,VLOOKUP($C19,MtLaur_ext!$C$12:$K$407,9,FALSE),""),""),"") ->  | AD19: =IF(IF(AND($K19<>"non inscrit",AD$6<$H$4),OR($K19<$H$5,$K19<AD$6),OR($Q19<$H$5,$Q19<AD$6)),IFERROR(IF(VLOOKUP($C19,Nord_ext!$C$12:$K$400,5,FALSE)=$F19,VLOOKUP($C19,Nord_ext!$C$12:$K$400,9,FALSE),""),""),"") ->  | AE19: =IF(IF(AND($K19<>"non inscrit",AE$6<$H$4),OR($K19<$H$5,$K19<AE$6),OR($Q19<$H$5,$Q19<AE$6)),IFERROR(IF(VLOOKUP($C19,CentreQc_ext!$C$12:$K$400,5,FALSE)=$F19,VLOOKUP($C19,CentreQc_ext!$C$12:$K$400,9,FALSE),""),""),"") ->  | AF19: =IF(IF(AND($K19<>"non inscrit",AF$6<$H$4),OR($K19<$H$5,$K19<AF$6),OR($Q19<$H$5,$Q19<AF$6)),IFERROR(IF(VLOOKUP($C19,Ascot_ext!$C$12:$K$400,5,FALSE)=$F19,VLOOKUP($C19,Ascot_ext!$C$12:$K$400,9,FALSE),""),""),"") ->  | AG19: =IF(IF(AND($K19<>"non inscrit",AG$6<$H$4),OR($K19<$H$5,$K19<AG$6),OR($Q19<$H$5,$Q19<AG$6)),IFERROR(IF(VLOOKUP($C19,NDB_ext!$C$12:$K$399,5,FALSE)=$F19,VLOOKUP($C19,NDB_ext!$C$12:$K$399,9,FALSE),""),""),"") ->  | AH19: =IF(IF(AND($K19<>"non inscrit",AH$6<$H$4),OR($K19<$H$5,$K19<AH$6),OR($Q19<$H$5,$Q19<AH$6)),IFERROR(IF(VLOOKUP($C19,Victo_ext!$C$12:$K$400,5,FALSE)=$F19,VLOOKUP($C19,Victo_ext!$C$12:$K$400,9,FALSE),""),""),"") -> 271 | AI19: =IF(IF(AND($K19<>"non inscrit",AI$6<$H$4),OR($K19<$H$5,$K19<AI$6),OR($Q19<$H$5,$Q19<AI$6)),IFERROR(IF(VLOOKUP($C19,Brome_ext!$C$12:$K$400,5,FALSE)=$F19,VLOOKUP($C19,Brome_ext!$C$12:$K$400,9,FALSE),""),""),"") ->  | AJ19: =IF(IF(AND($K19<>"non inscrit",AJ$6<$H$4),OR($K19<$H$5,$K19<AJ$6),OR($Q19<$H$5,$Q19<AJ$6)),IFERROR(IF(VLOOKUP($C19,Tuque_ext!$C$12:$K$400,5,FALSE)=$F19,VLOOKUP($C19,Tuque_ext!$C$12:$K$400,9,FALSE),""),""),"") ->  | AK19: =IF(IF(AND($K19<>"non inscrit",AK$6<$H$4),OR($K19<$H$5,$K19<AK$6),OR($Q19<$H$5,$Q19<AK$6)),IFERROR(IF(VLOOKUP($C19,Cantley_ext!$C$12:$K$400,5,FALSE)=$F19,VLOOKUP($C19,Cantley_ext!$C$12:$K$400,9,FALSE),""),""),"") ->  | AL19: =IF(IF(AND($K19<>"non inscrit",AL$6<$H$4),OR($K19<$H$5,$K19<AL$6),OR($Q19<$H$5,$Q19<AL$6)),IFERROR(IF(VLOOKUP($C19,CQ2_ext!$C$12:$K$400,5,FALSE)=$F19,VLOOKUP($C19,CQ2_ext!$C$12:$K$400,9,FALSE),""),""),"") ->  | AM19: =IF(IF(AND($K19<>"non inscrit",AM$6<$H$4),OR($K19<$H$5,$K19<AM$6),OR($Q19<$H$5,$Q19<AM$6)),IFERROR(IF(VLOOKUP($C19,Amos_ext!$C$12:$K$400,5,FALSE)=$F19,VLOOKUP($C19,Amos_ext!$C$12:$K$400,9,FALSE)*3/4,""),""),"") ->  | AN19: =IF(IF(AND($K19<>"non inscrit",AN$6<$H$4),OR($K19<$H$5,$K19<AN$6),OR($Q19<$H$5,$Q19<AN$6)),IFERROR(IF(VLOOKUP($C19,LaSarre_ext!$C$12:$K$400,5,FALSE)=$F19,VLOOKUP($C19,LaSarre_ext!$C$12:$K$400,9,FALSE),""),""),"") ->  | AO19: =IF(IF(AND($K19<>"non inscrit",AO$6<$H$4),OR($K19<$H$5,$K19<AO$6),OR($Q19<$H$5,$Q19<AO$6)),IFERROR(IF(VLOOKUP($C19,Rouyn_ext!$C$12:$K$400,5,FALSE)=$F19,VLOOKUP($C19,Rouyn_ext!$C$12:$K$400,9,FALSE),""),""),"") ->  | AP19: =IF(IF(AND($K19<>"non inscrit",AP$6<$H$4),OR($K19<$H$5,$K19<AP$6),OR($Q19<$H$5,$Q19<AP$6)),IFERROR(IF(VLOOKUP($C19,Valdor_ext!$C$12:$K$400,5,FALSE)=$F19,VLOOKUP($C19,Valdor_ext!$C$12:$K$400,9,FALSE),""),""),"") ->  | AQ19: =IF(IF(AND($K19<>"non inscrit",AQ$6<$H$4),OR($K19<$H$5,$K19<AQ$6),OR($Q19<$H$5,$Q19<AQ$6)),IFERROR(IF(VLOOKUP($C19,Perrot_ext!$C$12:$K$400,5,FALSE)=$F19,VLOOKUP($C19,Perrot_ext!$C$12:$K$400,9,FALSE),""),""),"") ->  | AR19: =IF(IF(AND($K19<>"non inscrit",AR$6<$H$4),OR($K19<$H$5,$K19<AR$6),OR($Q19<$H$5,$Q19<AR$6)),IFERROR(IF(VLOOKUP($C19,Sorel_ext!$C$12:$K$400,5,FALSE)=$F19,VLOOKUP($C19,Sorel_ext!$C$12:$K$400,9,FALSE),""),""),"") ->  | AV19: =IF(IF(AND($K19<>"non inscrit",AV$6<$H$4),OR($K19<$H$5,$K19<AV$6),OR($Q19<$H$5,$Q19<AV$6)),IFERROR(IF(VLOOKUP($C19,Finale_ext!$C$12:$K$400,5,FALSE)=$F19,VLOOKUP($C19,Finale_ext!$C$12:$K$400,9,FALSE),""),""),"") ->  | AX19: =IF(AND($Q19<>"",$Q19<>"non inscrit"),IF(IFERROR(VLOOKUP($C19,Coat_int!$C$12:$K$400,5,FALSE),"")=$F19,IF(AND(OR($Q19>=$H$4,$O$1<$H$5),OR($Q19<$H$5,$Q19<AX$6)),IFERROR(VLOOKUP($C19,Coat_int!$C$12:$K$400,9,FALSE),""),"_"),""),"") ->  | AY19: =IF(AND($Q19<>"",$Q19<>"non inscrit"),IF(IFERROR(VLOOKUP($C19,LG_int!$C$12:$K$403,5,FALSE),"")=$F19,IF(AND(OR($Q19>=$H$4,$O$1<$H$5),OR($Q19<$H$5,$Q19<AY$6)),IFERROR(VLOOKUP($C19,LG_int!$C$12:$K$403,9,FALSE),""),"_"),""),"") ->  | AZ19: =IF(AND($Q19<>"",$Q19<>"non inscrit"),IF(IFERROR(VLOOKUP($C19,LSNO_int!$C$12:$K$400,5,FALSE),"")=$F19,IF(AND(OR($Q19>=$H$4,$O$1<$H$5),OR($Q19<$H$5,$Q19<AZ$6)),IFERROR(VLOOKUP($C19,LSNO_int!$C$12:$K$400,9,FALSE),""),"_"),""),"") ->  | BA19: =IF(AND($Q19<>"",$Q19<>"non inscrit"),IF(IFERROR(VLOOKUP($C19,Ach_int!$C$12:$K$400,5,FALSE),"")=$F19,IF(AND(OR($Q19>=$H$4,$O$1<$H$5),OR($Q19<$H$5,$Q19<BA$6)),IFERROR(VLOOKUP($C19,Ach_int!$C$12:$K$400,9,FALSE),""),"_"),""),"") ->  | BB19: =IF(AND($Q19<>"",$Q19<>"non inscrit"),IF(IFERROR(VLOOKUP($C19,Tremb_int!$C$12:$K$400,5,FALSE),"")=$F19,IF(AND(OR($Q19>=$H$4,$O$1<$H$5),OR($Q19<$H$5,$Q19<BB$6)),IFERROR(VLOOKUP($C19,Tremb_int!$C$12:$K$400,9,FALSE),""),"_"),""),"") ->  | BC19: =IF(AND($Q19<>"",$Q19<>"non inscrit"),IF(IFERROR(VLOOKUP($C19,Buck_int!$C$12:$K$400,5,FALSE),"")=$F19,IF(AND(OR($Q19>=$H$4,$O$1<$H$5),OR($Q19<$H$5,$Q19<BC$6)),IFERROR(VLOOKUP($C19,Buck_int!$C$12:$K$400,9,FALSE),""),"_"),""),"") ->  | BD19: =IF(AND($Q19<>"",$Q19<>"non inscrit"),IF(IFERROR(VLOOKUP($C19,Drum_int!$C$12:$K$400,5,FALSE),"")=$F19,IF(AND(OR($Q19>=$H$4,$O$1<$H$5),OR($Q19<$H$5,$Q19<BD$6)),IFERROR(VLOOKUP($C19,Drum_int!$C$12:$K$400,9,FALSE),""),"_"),""),"") ->  | BE19: =IF(AND($Q19<>"",$Q19<>"non inscrit"),IF(IFERROR(VLOOKUP($C19,Coat_int2!$C$12:$K$400,5,FALSE),"")=$F19,IF(AND(OR($Q19>=$H$4,$O$1<$H$5),OR($Q19<$H$5,$Q19<BE$6)),IFERROR(VLOOKUP($C19,Coat_int2!$C$12:$K$400,9,FALSE),""),"_"),""),"") ->  | BF19: =IF(AND($Q19<>"",$Q19<>"non inscrit"),IF(IFERROR(VLOOKUP($C19,Jean_int!$C$12:$K$401,5,FALSE),"")=$F19,IF(AND(OR($Q19>=$H$4,$O$1<$H$5),OR($Q19<$H$5,$Q19<BF$6)),IFERROR(VLOOKUP($C19,Jean_int!$C$12:$K$401,9,FALSE),""),"_"),""),"") ->  | BG19: =IF(AND($Q19<>"",$Q19<>"non inscrit"),IF(IFERROR(VLOOKUP($C19,Val_int!$C$12:$K$401,5,FALSE),"")=$F19,IF(AND(OR($Q19>=$H$4,$O$1<$H$5),OR($Q19<$H$5,$Q19<BG$6)),IFERROR(VLOOKUP($C19,Val_int!$C$12:$K$401,9,FALSE),""),"_"),""),"") ->  | BH19: =IF(AND($Q19<>"",$Q19<>"non inscrit"),IF(IFERROR(VLOOKUP($C19,Qc_int!$C$12:$K$401,5,FALSE),"")=$F19,IF(AND(OR($Q19>=$H$4,$O$1<$H$5),OR($Q19<$H$5,$Q19<BH$6)),IFERROR(VLOOKUP($C19,Qc_int!$C$12:$K$401,9,FALSE),""),"_"),""),"") ->  | BI19: =IF(AND($Q19<>"",$Q19<>"non inscrit"),IF(IFERROR(VLOOKUP($C19,Qc2_int!$C$12:$K$401,5,FALSE),"")=$F19,IF(AND(OR($Q19>=$H$4,$O$1<$H$5),OR($Q19<$H$5,$Q19<BI$6)),IFERROR(VLOOKUP($C19,Qc2_int!$C$12:$K$401,9,FALSE),""),"_"),""),"") ->  | BJ19: =IF(AND($Q19<>"",$Q19<>"non inscrit"),IF(IFERROR(VLOOKUP($C19,#REF!,5,FALSE),"")=$F19,IF(AND(OR($Q19>=$H$4,$O$1<$H$5),OR($Q19<$H$5,$Q19<$AY$6)),IFERROR(VLOOKUP($C19,#REF!,9,FALSE),""),"_"),""),"") ->  | BK19: =IF(AND($Q19<>"",$Q19<>"non inscrit"),IF(IFERROR(VLOOKUP($C19,#REF!,5,FALSE),"")=$F19,IF(AND(OR($Q19>=$H$4,$O$1<$H$5),OR($Q19<$H$5,$Q19<$AY$6)),IFERROR(VLOOKUP($C19,#REF!,9,FALSE),""),"_"),""),"") ->  | BU19: =IF(AND($Q19<>"",$Q19<>"non inscrit"),IF(IFERROR(VLOOKUP($C19,FIN_int!$C$12:$K$401,5,FALSE),"")=$F19,IF(AND(OR($Q19>=$H$4,$O$1<$H$5),OR($Q19<$H$5,$Q19<BU$6)),IFERROR(VLOOKUP($C19,FIN_int!$C$12:$K$401,9,FALSE),""),"_"),""),"") -> 
A20: 1 | B20: 9 | C20: 5139 | D20: =IF($C20="","",IF($O$1>$H$4,IFERROR(VLOOKUP($C20,'Membres-2023'!$A:$G,2,FALSE),""),IFERROR(VLOOKUP($C20,'Membres-2022'!$A:$G,2,FALSE),""))) -> Turcotte-Lambert | E20: =IF($C20="","",IF($O$1>$H$4,IFERROR(VLOOKUP($C20,'Membres-2023'!$A:$G,3,FALSE),""),IFERROR(VLOOKUP($C20,'Membres-2022'!$A:$G,3,FALSE),""))) -> James | F20: =IF($C20="","",IF($O$1>$H$4,IFERROR(VLOOKUP($C20,'Membres-2023'!$A:$G,7,FALSE),""),IFERROR(VLOOKUP($C20,'Membres-2022'!$A:$G,7,FALSE),""))) -> 3 | G20: =IF($C20="","",IF($O$1>$H$4,IFERROR(VLOOKUP($C20,'Membres-2023'!$A:$G,5,FALSE),""),IFERROR(VLOOKUP($C20,'Membres-2022'!$A:$G,5,FALSE),""))) -> Victoriaville (Robin des Bois-Francs) | H20: 1 | I20: 43.16666667 | J20: 43.16666667 | K20: =IFERROR(IF(VLOOKUP(C20,'Membres-2022'!$A:$F,6,FALSE)>=$H$3,VLOOKUP(C20,'Membres-2022'!$A:$F,6,FALSE),"non inscrit"),IF($C20>0,"non inscrit","")) -> 2022-06-30 | L20: 43.16666667 | Q20: =IFERROR(IF(VLOOKUP($C20,'Membres-2023'!$A:$F,6,FALSE)>=$H$3,VLOOKUP($C20,'Membres-2023'!$A:$F,6,FALSE),"non inscrit"),"") -> 2022-06-30 | Z20: =IF(IF(AND($K20<>"non inscrit",Z$6<$H$4),OR($K20<$H$5,$K20<Z$6),OR($Q20<$H$5,$Q20<Z$6)),IFERROR(IF(VLOOKUP($C20,Stroch_ext!$C$12:$K$400,5,FALSE)=$F20,VLOOKUP($C20,Stroch_ext!$C$12:$K$400,9,FALSE),""),""),"") ->  | AA20: =IF(IF(AND($K20<>"non inscrit",AA$6<$H$4),OR($K20<$H$5,$K20<AA$6),OR($Q20<$H$5,$Q20<AA$6)),IFERROR(IF(VLOOKUP($C20,Vallée_ext!$C$12:$K$400,5,FALSE)=$F20,VLOOKUP($C20,Vallée_ext!$C$12:$K$400,9,FALSE),""),""),"") ->  | AB20: =IF(IF(AND($K20<>"non inscrit",AB$6<$H$4),OR($K20<$H$5,$K20<AB$6),OR($Q20<$H$5,$Q20<AB$6)),IFERROR(IF(VLOOKUP($C20,ASF_ext!$C$12:$K$400,5,FALSE)=$F20,VLOOKUP($C20,ASF_ext!$C$12:$K$400,9,FALSE),""),""),"") ->  | AC20: =IF(IF(AND($K20<>"non inscrit",AC$6<$H$4),OR($K20<$H$5,$K20<AC$6),OR($Q20<$H$5,$Q20<AC$6)),IFERROR(IF(VLOOKUP($C20,MtLaur_ext!$C$12:$K$407,5,FALSE)=$F20,VLOOKUP($C20,MtLaur_ext!$C$12:$K$407,9,FALSE),""),""),"") ->  | AD20: =IF(IF(AND($K20<>"non inscrit",AD$6<$H$4),OR($K20<$H$5,$K20<AD$6),OR($Q20<$H$5,$Q20<AD$6)),IFERROR(IF(VLOOKUP($C20,Nord_ext!$C$12:$K$400,5,FALSE)=$F20,VLOOKUP($C20,Nord_ext!$C$12:$K$400,9,FALSE),""),""),"") ->  | AE20: =IF(IF(AND($K20<>"non inscrit",AE$6<$H$4),OR($K20<$H$5,$K20<AE$6),OR($Q20<$H$5,$Q20<AE$6)),IFERROR(IF(VLOOKUP($C20,CentreQc_ext!$C$12:$K$400,5,FALSE)=$F20,VLOOKUP($C20,CentreQc_ext!$C$12:$K$400,9,FALSE),""),""),"") ->  | AF20: =IF(IF(AND($K20<>"non inscrit",AF$6<$H$4),OR($K20<$H$5,$K20<AF$6),OR($Q20<$H$5,$Q20<AF$6)),IFERROR(IF(VLOOKUP($C20,Ascot_ext!$C$12:$K$400,5,FALSE)=$F20,VLOOKUP($C20,Ascot_ext!$C$12:$K$400,9,FALSE),""),""),"") ->  | AG20: =IF(IF(AND($K20<>"non inscrit",AG$6<$H$4),OR($K20<$H$5,$K20<AG$6),OR($Q20<$H$5,$Q20<AG$6)),IFERROR(IF(VLOOKUP($C20,NDB_ext!$C$12:$K$399,5,FALSE)=$F20,VLOOKUP($C20,NDB_ext!$C$12:$K$399,9,FALSE),""),""),"") ->  | AH20: =IF(IF(AND($K20<>"non inscrit",AH$6<$H$4),OR($K20<$H$5,$K20<AH$6),OR($Q20<$H$5,$Q20<AH$6)),IFERROR(IF(VLOOKUP($C20,Victo_ext!$C$12:$K$400,5,FALSE)=$F20,VLOOKUP($C20,Victo_ext!$C$12:$K$400,9,FALSE),""),""),"") -> 259 | AI20: =IF(IF(AND($K20<>"non inscrit",AI$6<$H$4),OR($K20<$H$5,$K20<AI$6),OR($Q20<$H$5,$Q20<AI$6)),IFERROR(IF(VLOOKUP($C20,Brome_ext!$C$12:$K$400,5,FALSE)=$F20,VLOOKUP($C20,Brome_ext!$C$12:$K$400,9,FALSE),""),""),"") ->  | AJ20: =IF(IF(AND($K20<>"non inscrit",AJ$6<$H$4),OR($K20<$H$5,$K20<AJ$6),OR($Q20<$H$5,$Q20<AJ$6)),IFERROR(IF(VLOOKUP($C20,Tuque_ext!$C$12:$K$400,5,FALSE)=$F20,VLOOKUP($C20,Tuque_ext!$C$12:$K$400,9,FALSE),""),""),"") ->  | AK20: =IF(IF(AND($K20<>"non inscrit",AK$6<$H$4),OR($K20<$H$5,$K20<AK$6),OR($Q20<$H$5,$Q20<AK$6)),IFERROR(IF(VLOOKUP($C20,Cantley_ext!$C$12:$K$400,5,FALSE)=$F20,VLOOKUP($C20,Cantley_ext!$C$12:$K$400,9,FALSE),""),""),"") ->  | AL20: =IF(IF(AND($K20<>"non inscrit",AL$6<$H$4),OR($K20<$H$5,$K20<AL$6),OR($Q20<$H$5,$Q20<AL$6)),IFERROR(IF(VLOOKUP($C20,CQ2_ext!$C$12:$K$400,5,FALSE)=$F20,VLOOKUP($C20,CQ2_ext!$C$12:$K$400,9,FALSE),""),""),"") ->  | AM20: =IF(IF(AND($K20<>"non inscrit",AM$6<$H$4),OR($K20<$H$5,$K20<AM$6),OR($Q20<$H$5,$Q20<AM$6)),IFERROR(IF(VLOOKUP($C20,Amos_ext!$C$12:$K$400,5,FALSE)=$F20,VLOOKUP($C20,Amos_ext!$C$12:$K$400,9,FALSE)*3/4,""),""),"") ->  | AN20: =IF(IF(AND($K20<>"non inscrit",AN$6<$H$4),OR($K20<$H$5,$K20<AN$6),OR($Q20<$H$5,$Q20<AN$6)),IFERROR(IF(VLOOKUP($C20,LaSarre_ext!$C$12:$K$400,5,FALSE)=$F20,VLOOKUP($C20,LaSarre_ext!$C$12:$K$400,9,FALSE),""),""),"") ->  | AO20: =IF(IF(AND($K20<>"non inscrit",AO$6<$H$4),OR($K20<$H$5,$K20<AO$6),OR($Q20<$H$5,$Q20<AO$6)),IFERROR(IF(VLOOKUP($C20,Rouyn_ext!$C$12:$K$400,5,FALSE)=$F20,VLOOKUP($C20,Rouyn_ext!$C$12:$K$400,9,FALSE),""),""),"") ->  | AP20: =IF(IF(AND($K20<>"non inscrit",AP$6<$H$4),OR($K20<$H$5,$K20<AP$6),OR($Q20<$H$5,$Q20<AP$6)),IFERROR(IF(VLOOKUP($C20,Valdor_ext!$C$12:$K$400,5,FALSE)=$F20,VLOOKUP($C20,Valdor_ext!$C$12:$K$400,9,FALSE),""),""),"") ->  | AQ20: =IF(IF(AND($K20<>"non inscrit",AQ$6<$H$4),OR($K20<$H$5,$K20<AQ$6),OR($Q20<$H$5,$Q20<AQ$6)),IFERROR(IF(VLOOKUP($C20,Perrot_ext!$C$12:$K$400,5,FALSE)=$F20,VLOOKUP($C20,Perrot_ext!$C$12:$K$400,9,FALSE),""),""),"") ->  | AR20: =IF(IF(AND($K20<>"non inscrit",AR$6<$H$4),OR($K20<$H$5,$K20<AR$6),OR($Q20<$H$5,$Q20<AR$6)),IFERROR(IF(VLOOKUP($C20,Sorel_ext!$C$12:$K$400,5,FALSE)=$F20,VLOOKUP($C20,Sorel_ext!$C$12:$K$400,9,FALSE),""),""),"") ->  | AV20: =IF(IF(AND($K20<>"non inscrit",AV$6<$H$4),OR($K20<$H$5,$K20<AV$6),OR($Q20<$H$5,$Q20<AV$6)),IFERROR(IF(VLOOKUP($C20,Finale_ext!$C$12:$K$400,5,FALSE)=$F20,VLOOKUP($C20,Finale_ext!$C$12:$K$400,9,FALSE),""),""),"") ->  | AX20: =IF(AND($Q20<>"",$Q20<>"non inscrit"),IF(IFERROR(VLOOKUP($C20,Coat_int!$C$12:$K$400,5,FALSE),"")=$F20,IF(AND(OR($Q20>=$H$4,$O$1<$H$5),OR($Q20<$H$5,$Q20<AX$6)),IFERROR(VLOOKUP($C20,Coat_int!$C$12:$K$400,9,FALSE),""),"_"),""),"") ->  | AY20: =IF(AND($Q20<>"",$Q20<>"non inscrit"),IF(IFERROR(VLOOKUP($C20,LG_int!$C$12:$K$403,5,FALSE),"")=$F20,IF(AND(OR($Q20>=$H$4,$O$1<$H$5),OR($Q20<$H$5,$Q20<AY$6)),IFERROR(VLOOKUP($C20,LG_int!$C$12:$K$403,9,FALSE),""),"_"),""),"") ->  | AZ20: =IF(AND($Q20<>"",$Q20<>"non inscrit"),IF(IFERROR(VLOOKUP($C20,LSNO_int!$C$12:$K$400,5,FALSE),"")=$F20,IF(AND(OR($Q20>=$H$4,$O$1<$H$5),OR($Q20<$H$5,$Q20<AZ$6)),IFERROR(VLOOKUP($C20,LSNO_int!$C$12:$K$400,9,FALSE),""),"_"),""),"") ->  | BA20: =IF(AND($Q20<>"",$Q20<>"non inscrit"),IF(IFERROR(VLOOKUP($C20,Ach_int!$C$12:$K$400,5,FALSE),"")=$F20,IF(AND(OR($Q20>=$H$4,$O$1<$H$5),OR($Q20<$H$5,$Q20<BA$6)),IFERROR(VLOOKUP($C20,Ach_int!$C$12:$K$400,9,FALSE),""),"_"),""),"") ->  | BB20: =IF(AND($Q20<>"",$Q20<>"non inscrit"),IF(IFERROR(VLOOKUP($C20,Tremb_int!$C$12:$K$400,5,FALSE),"")=$F20,IF(AND(OR($Q20>=$H$4,$O$1<$H$5),OR($Q20<$H$5,$Q20<BB$6)),IFERROR(VLOOKUP($C20,Tremb_int!$C$12:$K$400,9,FALSE),""),"_"),""),"") ->  | BC20: =IF(AND($Q20<>"",$Q20<>"non inscrit"),IF(IFERROR(VLOOKUP($C20,Buck_int!$C$12:$K$400,5,FALSE),"")=$F20,IF(AND(OR($Q20>=$H$4,$O$1<$H$5),OR($Q20<$H$5,$Q20<BC$6)),IFERROR(VLOOKUP($C20,Buck_int!$C$12:$K$400,9,FALSE),""),"_"),""),"") ->  | BD20: =IF(AND($Q20<>"",$Q20<>"non inscrit"),IF(IFERROR(VLOOKUP($C20,Drum_int!$C$12:$K$400,5,FALSE),"")=$F20,IF(AND(OR($Q20>=$H$4,$O$1<$H$5),OR($Q20<$H$5,$Q20<BD$6)),IFERROR(VLOOKUP($C20,Drum_int!$C$12:$K$400,9,FALSE),""),"_"),""),"") ->  | BE20: =IF(AND($Q20<>"",$Q20<>"non inscrit"),IF(IFERROR(VLOOKUP($C20,Coat_int2!$C$12:$K$400,5,FALSE),"")=$F20,IF(AND(OR($Q20>=$H$4,$O$1<$H$5),OR($Q20<$H$5,$Q20<BE$6)),IFERROR(VLOOKUP($C20,Coat_int2!$C$12:$K$400,9,FALSE),""),"_"),""),"") ->  | BF20: =IF(AND($Q20<>"",$Q20<>"non inscrit"),IF(IFERROR(VLOOKUP($C20,Jean_int!$C$12:$K$401,5,FALSE),"")=$F20,IF(AND(OR($Q20>=$H$4,$O$1<$H$5),OR($Q20<$H$5,$Q20<BF$6)),IFERROR(VLOOKUP($C20,Jean_int!$C$12:$K$401,9,FALSE),""),"_"),""),"") ->  | BG20: =IF(AND($Q20<>"",$Q20<>"non inscrit"),IF(IFERROR(VLOOKUP($C20,Val_int!$C$12:$K$401,5,FALSE),"")=$F20,IF(AND(OR($Q20>=$H$4,$O$1<$H$5),OR($Q20<$H$5,$Q20<BG$6)),IFERROR(VLOOKUP($C20,Val_int!$C$12:$K$401,9,FALSE),""),"_"),""),"") ->  | BH20: =IF(AND($Q20<>"",$Q20<>"non inscrit"),IF(IFERROR(VLOOKUP($C20,Qc_int!$C$12:$K$401,5,FALSE),"")=$F20,IF(AND(OR($Q20>=$H$4,$O$1<$H$5),OR($Q20<$H$5,$Q20<BH$6)),IFERROR(VLOOKUP($C20,Qc_int!$C$12:$K$401,9,FALSE),""),"_"),""),"") ->  | BI20: =IF(AND($Q20<>"",$Q20<>"non inscrit"),IF(IFERROR(VLOOKUP($C20,Qc2_int!$C$12:$K$401,5,FALSE),"")=$F20,IF(AND(OR($Q20>=$H$4,$O$1<$H$5),OR($Q20<$H$5,$Q20<BI$6)),IFERROR(VLOOKUP($C20,Qc2_int!$C$12:$K$401,9,FALSE),""),"_"),""),"") ->  | BJ20: =IF(AND($Q20<>"",$Q20<>"non inscrit"),IF(IFERROR(VLOOKUP($C20,#REF!,5,FALSE),"")=$F20,IF(AND(OR($Q20>=$H$4,$O$1<$H$5),OR($Q20<$H$5,$Q20<$AY$6)),IFERROR(VLOOKUP($C20,#REF!,9,FALSE),""),"_"),""),"") ->  | BK20: =IF(AND($Q20<>"",$Q20<>"non inscrit"),IF(IFERROR(VLOOKUP($C20,#REF!,5,FALSE),"")=$F20,IF(AND(OR($Q20>=$H$4,$O$1<$H$5),OR($Q20<$H$5,$Q20<$AY$6)),IFERROR(VLOOKUP($C20,#REF!,9,FALSE),""),"_"),""),"") ->  | BU20: =IF(AND($Q20<>"",$Q20<>"non inscrit"),IF(IFERROR(VLOOKUP($C20,FIN_int!$C$12:$K$401,5,FALSE),"")=$F20,IF(AND(OR($Q20>=$H$4,$O$1<$H$5),OR($Q20<$H$5,$Q20<BU$6)),IFERROR(VLOOKUP($C20,FIN_int!$C$12:$K$401,9,FALSE),""),"_"),""),"") -> 
A21: 1 | B21: 10 | C21: 4317 | D21: =IF($C21="","",IF($O$1>$H$4,IFERROR(VLOOKUP($C21,'Membres-2023'!$A:$G,2,FALSE),""),IFERROR(VLOOKUP($C21,'Membres-2022'!$A:$G,2,FALSE),""))) -> Coté Desrosiers | E21: =IF($C21="","",IF($O$1>$H$4,IFERROR(VLOOKUP($C21,'Membres-2023'!$A:$G,3,FALSE),""),IFERROR(VLOOKUP($C21,'Membres-2022'!$A:$G,3,FALSE),""))) -> Hugo | F21: =IF($C21="","",IF($O$1>$H$4,IFERROR(VLOOKUP($C21,'Membres-2023'!$A:$G,7,FALSE),""),IFERROR(VLOOKUP($C21,'Membres-2022'!$A:$G,7,FALSE),""))) -> 1 | G21: =IF($C21="","",IF($O$1>$H$4,IFERROR(VLOOKUP($C21,'Membres-2023'!$A:$G,5,FALSE),""),IFERROR(VLOOKUP($C21,'Membres-2022'!$A:$G,5,FALSE),""))) -> La Tuque (Archers de) | H21: 1 | I21: 39.83333333 | J21: 39.83333333 | K21: =IFERROR(IF(VLOOKUP(C21,'Membres-2022'!$A:$F,6,FALSE)>=$H$3,VLOOKUP(C21,'Membres-2022'!$A:$F,6,FALSE),"non inscrit"),IF($C21>0,"non inscrit","")) -> 2022-01-02 | L21: 39.83333333 | Q21: =IFERROR(IF(VLOOKUP($C21,'Membres-2023'!$A:$F,6,FALSE)>=$H$3,VLOOKUP($C21,'Membres-2023'!$A:$F,6,FALSE),"non inscrit"),"") -> 2022-01-02 | Z21: =IF(IF(AND($K21<>"non inscrit",Z$6<$H$4),OR($K21<$H$5,$K21<Z$6),OR($Q21<$H$5,$Q21<Z$6)),IFERROR(IF(VLOOKUP($C21,Stroch_ext!$C$12:$K$400,5,FALSE)=$F21,VLOOKUP($C21,Stroch_ext!$C$12:$K$400,9,FALSE),""),""),"") ->  | AA21: =IF(IF(AND($K21<>"non inscrit",AA$6<$H$4),OR($K21<$H$5,$K21<AA$6),OR($Q21<$H$5,$Q21<AA$6)),IFERROR(IF(VLOOKUP($C21,Vallée_ext!$C$12:$K$400,5,FALSE)=$F21,VLOOKUP($C21,Vallée_ext!$C$12:$K$400,9,FALSE),""),""),"") ->  | AB21: =IF(IF(AND($K21<>"non inscrit",AB$6<$H$4),OR($K21<$H$5,$K21<AB$6),OR($Q21<$H$5,$Q21<AB$6)),IFERROR(IF(VLOOKUP($C21,ASF_ext!$C$12:$K$400,5,FALSE)=$F21,VLOOKUP($C21,ASF_ext!$C$12:$K$400,9,FALSE),""),""),"") ->  | AC21: =IF(IF(AND($K21<>"non inscrit",AC$6<$H$4),OR($K21<$H$5,$K21<AC$6),OR($Q21<$H$5,$Q21<AC$6)),IFERROR(IF(VLOOKUP($C21,MtLaur_ext!$C$12:$K$407,5,FALSE)=$F21,VLOOKUP($C21,MtLaur_ext!$C$12:$K$407,9,FALSE),""),""),"") ->  | AD21: =IF(IF(AND($K21<>"non inscrit",AD$6<$H$4),OR($K21<$H$5,$K21<AD$6),OR($Q21<$H$5,$Q21<AD$6)),IFERROR(IF(VLOOKUP($C21,Nord_ext!$C$12:$K$400,5,FALSE)=$F21,VLOOKUP($C21,Nord_ext!$C$12:$K$400,9,FALSE),""),""),"") ->  | AE21: =IF(IF(AND($K21<>"non inscrit",AE$6<$H$4),OR($K21<$H$5,$K21<AE$6),OR($Q21<$H$5,$Q21<AE$6)),IFERROR(IF(VLOOKUP($C21,CentreQc_ext!$C$12:$K$400,5,FALSE)=$F21,VLOOKUP($C21,CentreQc_ext!$C$12:$K$400,9,FALSE),""),""),"") ->  | AF21: =IF(IF(AND($K21<>"non inscrit",AF$6<$H$4),OR($K21<$H$5,$K21<AF$6),OR($Q21<$H$5,$Q21<AF$6)),IFERROR(IF(VLOOKUP($C21,Ascot_ext!$C$12:$K$400,5,FALSE)=$F21,VLOOKUP($C21,Ascot_ext!$C$12:$K$400,9,FALSE),""),""),"") ->  | AG21: =IF(IF(AND($K21<>"non inscrit",AG$6<$H$4),OR($K21<$H$5,$K21<AG$6),OR($Q21<$H$5,$Q21<AG$6)),IFERROR(IF(VLOOKUP($C21,NDB_ext!$C$12:$K$399,5,FALSE)=$F21,VLOOKUP($C21,NDB_ext!$C$12:$K$399,9,FALSE),""),""),"") ->  | AH21: =IF(IF(AND($K21<>"non inscrit",AH$6<$H$4),OR($K21<$H$5,$K21<AH$6),OR($Q21<$H$5,$Q21<AH$6)),IFERROR(IF(VLOOKUP($C21,Victo_ext!$C$12:$K$400,5,FALSE)=$F21,VLOOKUP($C21,Victo_ext!$C$12:$K$400,9,FALSE),""),""),"") ->  | AI21: =IF(IF(AND($K21<>"non inscrit",AI$6<$H$4),OR($K21<$H$5,$K21<AI$6),OR($Q21<$H$5,$Q21<AI$6)),IFERROR(IF(VLOOKUP($C21,Brome_ext!$C$12:$K$400,5,FALSE)=$F21,VLOOKUP($C21,Brome_ext!$C$12:$K$400,9,FALSE),""),""),"") ->  | AJ21: =IF(IF(AND($K21<>"non inscrit",AJ$6<$H$4),OR($K21<$H$5,$K21<AJ$6),OR($Q21<$H$5,$Q21<AJ$6)),IFERROR(IF(VLOOKUP($C21,Tuque_ext!$C$12:$K$400,5,FALSE)=$F21,VLOOKUP($C21,Tuque_ext!$C$12:$K$400,9,FALSE),""),""),"") -> 239 | AK21: =IF(IF(AND($K21<>"non inscrit",AK$6<$H$4),OR($K21<$H$5,$K21<AK$6),OR($Q21<$H$5,$Q21<AK$6)),IFERROR(IF(VLOOKUP($C21,Cantley_ext!$C$12:$K$400,5,FALSE)=$F21,VLOOKUP($C21,Cantley_ext!$C$12:$K$400,9,FALSE),""),""),"") ->  | AL21: =IF(IF(AND($K21<>"non inscrit",AL$6<$H$4),OR($K21<$H$5,$K21<AL$6),OR($Q21<$H$5,$Q21<AL$6)),IFERROR(IF(VLOOKUP($C21,CQ2_ext!$C$12:$K$400,5,FALSE)=$F21,VLOOKUP($C21,CQ2_ext!$C$12:$K$400,9,FALSE),""),""),"") ->  | AM21: =IF(IF(AND($K21<>"non inscrit",AM$6<$H$4),OR($K21<$H$5,$K21<AM$6),OR($Q21<$H$5,$Q21<AM$6)),IFERROR(IF(VLOOKUP($C21,Amos_ext!$C$12:$K$400,5,FALSE)=$F21,VLOOKUP($C21,Amos_ext!$C$12:$K$400,9,FALSE)*3/4,""),""),"") ->  | AN21: =IF(IF(AND($K21<>"non inscrit",AN$6<$H$4),OR($K21<$H$5,$K21<AN$6),OR($Q21<$H$5,$Q21<AN$6)),IFERROR(IF(VLOOKUP($C21,LaSarre_ext!$C$12:$K$400,5,FALSE)=$F21,VLOOKUP($C21,LaSarre_ext!$C$12:$K$400,9,FALSE),""),""),"") ->  | AO21: =IF(IF(AND($K21<>"non inscrit",AO$6<$H$4),OR($K21<$H$5,$K21<AO$6),OR($Q21<$H$5,$Q21<AO$6)),IFERROR(IF(VLOOKUP($C21,Rouyn_ext!$C$12:$K$400,5,FALSE)=$F21,VLOOKUP($C21,Rouyn_ext!$C$12:$K$400,9,FALSE),""),""),"") ->  | AP21: =IF(IF(AND($K21<>"non inscrit",AP$6<$H$4),OR($K21<$H$5,$K21<AP$6),OR($Q21<$H$5,$Q21<AP$6)),IFERROR(IF(VLOOKUP($C21,Valdor_ext!$C$12:$K$400,5,FALSE)=$F21,VLOOKUP($C21,Valdor_ext!$C$12:$K$400,9,FALSE),""),""),"") ->  | AQ21: =IF(IF(AND($K21<>"non inscrit",AQ$6<$H$4),OR($K21<$H$5,$K21<AQ$6),OR($Q21<$H$5,$Q21<AQ$6)),IFERROR(IF(VLOOKUP($C21,Perrot_ext!$C$12:$K$400,5,FALSE)=$F21,VLOOKUP($C21,Perrot_ext!$C$12:$K$400,9,FALSE),""),""),"") ->  | AR21: =IF(IF(AND($K21<>"non inscrit",AR$6<$H$4),OR($K21<$H$5,$K21<AR$6),OR($Q21<$H$5,$Q21<AR$6)),IFERROR(IF(VLOOKUP($C21,Sorel_ext!$C$12:$K$400,5,FALSE)=$F21,VLOOKUP($C21,Sorel_ext!$C$12:$K$400,9,FALSE),""),""),"") ->  | AV21: =IF(IF(AND($K21<>"non inscrit",AV$6<$H$4),OR($K21<$H$5,$K21<AV$6),OR($Q21<$H$5,$Q21<AV$6)),IFERROR(IF(VLOOKUP($C21,Finale_ext!$C$12:$K$400,5,FALSE)=$F21,VLOOKUP($C21,Finale_ext!$C$12:$K$400,9,FALSE),""),""),"") ->  | AX21: =IF(AND($Q21<>"",$Q21<>"non inscrit"),IF(IFERROR(VLOOKUP($C21,Coat_int!$C$12:$K$400,5,FALSE),"")=$F21,IF(AND(OR($Q21>=$H$4,$O$1<$H$5),OR($Q21<$H$5,$Q21<AX$6)),IFERROR(VLOOKUP($C21,Coat_int!$C$12:$K$400,9,FALSE),""),"_"),""),"") ->  | AY21: =IF(AND($Q21<>"",$Q21<>"non inscrit"),IF(IFERROR(VLOOKUP($C21,LG_int!$C$12:$K$403,5,FALSE),"")=$F21,IF(AND(OR($Q21>=$H$4,$O$1<$H$5),OR($Q21<$H$5,$Q21<AY$6)),IFERROR(VLOOKUP($C21,LG_int!$C$12:$K$403,9,FALSE),""),"_"),""),"") ->  | AZ21: =IF(AND($Q21<>"",$Q21<>"non inscrit"),IF(IFERROR(VLOOKUP($C21,LSNO_int!$C$12:$K$400,5,FALSE),"")=$F21,IF(AND(OR($Q21>=$H$4,$O$1<$H$5),OR($Q21<$H$5,$Q21<AZ$6)),IFERROR(VLOOKUP($C21,LSNO_int!$C$12:$K$400,9,FALSE),""),"_"),""),"") ->  | BA21: =IF(AND($Q21<>"",$Q21<>"non inscrit"),IF(IFERROR(VLOOKUP($C21,Ach_int!$C$12:$K$400,5,FALSE),"")=$F21,IF(AND(OR($Q21>=$H$4,$O$1<$H$5),OR($Q21<$H$5,$Q21<BA$6)),IFERROR(VLOOKUP($C21,Ach_int!$C$12:$K$400,9,FALSE),""),"_"),""),"") ->  | BB21: =IF(AND($Q21<>"",$Q21<>"non inscrit"),IF(IFERROR(VLOOKUP($C21,Tremb_int!$C$12:$K$400,5,FALSE),"")=$F21,IF(AND(OR($Q21>=$H$4,$O$1<$H$5),OR($Q21<$H$5,$Q21<BB$6)),IFERROR(VLOOKUP($C21,Tremb_int!$C$12:$K$400,9,FALSE),""),"_"),""),"") ->  | BC21: =IF(AND($Q21<>"",$Q21<>"non inscrit"),IF(IFERROR(VLOOKUP($C21,Buck_int!$C$12:$K$400,5,FALSE),"")=$F21,IF(AND(OR($Q21>=$H$4,$O$1<$H$5),OR($Q21<$H$5,$Q21<BC$6)),IFERROR(VLOOKUP($C21,Buck_int!$C$12:$K$400,9,FALSE),""),"_"),""),"") ->  | BD21: =IF(AND($Q21<>"",$Q21<>"non inscrit"),IF(IFERROR(VLOOKUP($C21,Drum_int!$C$12:$K$400,5,FALSE),"")=$F21,IF(AND(OR($Q21>=$H$4,$O$1<$H$5),OR($Q21<$H$5,$Q21<BD$6)),IFERROR(VLOOKUP($C21,Drum_int!$C$12:$K$400,9,FALSE),""),"_"),""),"") ->  | BE21: =IF(AND($Q21<>"",$Q21<>"non inscrit"),IF(IFERROR(VLOOKUP($C21,Coat_int2!$C$12:$K$400,5,FALSE),"")=$F21,IF(AND(OR($Q21>=$H$4,$O$1<$H$5),OR($Q21<$H$5,$Q21<BE$6)),IFERROR(VLOOKUP($C21,Coat_int2!$C$12:$K$400,9,FALSE),""),"_"),""),"") ->  | BF21: =IF(AND($Q21<>"",$Q21<>"non inscrit"),IF(IFERROR(VLOOKUP($C21,Jean_int!$C$12:$K$401,5,FALSE),"")=$F21,IF(AND(OR($Q21>=$H$4,$O$1<$H$5),OR($Q21<$H$5,$Q21<BF$6)),IFERROR(VLOOKUP($C21,Jean_int!$C$12:$K$401,9,FALSE),""),"_"),""),"") ->  | BG21: =IF(AND($Q21<>"",$Q21<>"non inscrit"),IF(IFERROR(VLOOKUP($C21,Val_int!$C$12:$K$401,5,FALSE),"")=$F21,IF(AND(OR($Q21>=$H$4,$O$1<$H$5),OR($Q21<$H$5,$Q21<BG$6)),IFERROR(VLOOKUP($C21,Val_int!$C$12:$K$401,9,FALSE),""),"_"),""),"") ->  | BH21: =IF(AND($Q21<>"",$Q21<>"non inscrit"),IF(IFERROR(VLOOKUP($C21,Qc_int!$C$12:$K$401,5,FALSE),"")=$F21,IF(AND(OR($Q21>=$H$4,$O$1<$H$5),OR($Q21<$H$5,$Q21<BH$6)),IFERROR(VLOOKUP($C21,Qc_int!$C$12:$K$401,9,FALSE),""),"_"),""),"") ->  | BI21: =IF(AND($Q21<>"",$Q21<>"non inscrit"),IF(IFERROR(VLOOKUP($C21,Qc2_int!$C$12:$K$401,5,FALSE),"")=$F21,IF(AND(OR($Q21>=$H$4,$O$1<$H$5),OR($Q21<$H$5,$Q21<BI$6)),IFERROR(VLOOKUP($C21,Qc2_int!$C$12:$K$401,9,FALSE),""),"_"),""),"") ->  | BJ21: =IF(AND($Q21<>"",$Q21<>"non inscrit"),IF(IFERROR(VLOOKUP($C21,#REF!,5,FALSE),"")=$F21,IF(AND(OR($Q21>=$H$4,$O$1<$H$5),OR($Q21<$H$5,$Q21<$AY$6)),IFERROR(VLOOKUP($C21,#REF!,9,FALSE),""),"_"),""),"") ->  | BK21: =IF(AND($Q21<>"",$Q21<>"non inscrit"),IF(IFERROR(VLOOKUP($C21,#REF!,5,FALSE),"")=$F21,IF(AND(OR($Q21>=$H$4,$O$1<$H$5),OR($Q21<$H$5,$Q21<$AY$6)),IFERROR(VLOOKUP($C21,#REF!,9,FALSE),""),"_"),""),"") ->  | BU21: =IF(AND($Q21<>"",$Q21<>"non inscrit"),IF(IFERROR(VLOOKUP($C21,FIN_int!$C$12:$K$401,5,FALSE),"")=$F21,IF(AND(OR($Q21>=$H$4,$O$1<$H$5),OR($Q21<$H$5,$Q21<BU$6)),IFERROR(VLOOKUP($C21,FIN_int!$C$12:$K$401,9,FALSE),""),"_"),""),"") -> 
A22: 1 | B22: 11 | C22: 4769 | D22: =IF($C22="","",IF($O$1>$H$4,IFERROR(VLOOKUP($C22,'Membres-2023'!$A:$G,2,FALSE),""),IFERROR(VLOOKUP($C22,'Membres-2022'!$A:$G,2,FALSE),""))) -> Nadeau | E22: =IF($C22="","",IF($O$1>$H$4,IFERROR(VLOOKUP($C22,'Membres-2023'!$A:$G,3,FALSE),""),IFERROR(VLOOKUP($C22,'Membres-2022'!$A:$G,3,FALSE),""))) -> Félix-Antoine | F22: =IF($C22="","",IF($O$1>$H$4,IFERROR(VLOOKUP($C22,'Membres-2023'!$A:$G,7,FALSE),""),IFERROR(VLOOKUP($C22,'Membres-2022'!$A:$G,7,FALSE),""))) -> 3 | G22: =IF($C22="","",IF($O$1>$H$4,IFERROR(VLOOKUP($C22,'Membres-2023'!$A:$G,5,FALSE),""),IFERROR(VLOOKUP($C22,'Membres-2022'!$A:$G,5,FALSE),""))) -> Victoriaville (Robin des Bois-Francs) | H22: 1 | I22: 37.83333333 | J22: 37.83333333 | K22: =IFERROR(IF(VLOOKUP(C22,'Membres-2022'!$A:$F,6,FALSE)>=$H$3,VLOOKUP(C22,'Membres-2022'!$A:$F,6,FALSE),"non inscrit"),IF($C22>0,"non inscrit","")) -> 2022-06-30 | L22: 37.83333333 | Q22: =IFERROR(IF(VLOOKUP($C22,'Membres-2023'!$A:$F,6,FALSE)>=$H$3,VLOOKUP($C22,'Membres-2023'!$A:$F,6,FALSE),"non inscrit"),"") -> 2022-06-30 | Z22: =IF(IF(AND($K22<>"non inscrit",Z$6<$H$4),OR($K22<$H$5,$K22<Z$6),OR($Q22<$H$5,$Q22<Z$6)),IFERROR(IF(VLOOKUP($C22,Stroch_ext!$C$12:$K$400,5,FALSE)=$F22,VLOOKUP($C22,Stroch_ext!$C$12:$K$400,9,FALSE),""),""),"") ->  | AA22: =IF(IF(AND($K22<>"non inscrit",AA$6<$H$4),OR($K22<$H$5,$K22<AA$6),OR($Q22<$H$5,$Q22<AA$6)),IFERROR(IF(VLOOKUP($C22,Vallée_ext!$C$12:$K$400,5,FALSE)=$F22,VLOOKUP($C22,Vallée_ext!$C$12:$K$400,9,FALSE),""),""),"") ->  | AB22: =IF(IF(AND($K22<>"non inscrit",AB$6<$H$4),OR($K22<$H$5,$K22<AB$6),OR($Q22<$H$5,$Q22<AB$6)),IFERROR(IF(VLOOKUP($C22,ASF_ext!$C$12:$K$400,5,FALSE)=$F22,VLOOKUP($C22,ASF_ext!$C$12:$K$400,9,FALSE),""),""),"") ->  | AC22: =IF(IF(AND($K22<>"non inscrit",AC$6<$H$4),OR($K22<$H$5,$K22<AC$6),OR($Q22<$H$5,$Q22<AC$6)),IFERROR(IF(VLOOKUP($C22,MtLaur_ext!$C$12:$K$407,5,FALSE)=$F22,VLOOKUP($C22,MtLaur_ext!$C$12:$K$407,9,FALSE),""),""),"") ->  | AD22: =IF(IF(AND($K22<>"non inscrit",AD$6<$H$4),OR($K22<$H$5,$K22<AD$6),OR($Q22<$H$5,$Q22<AD$6)),IFERROR(IF(VLOOKUP($C22,Nord_ext!$C$12:$K$400,5,FALSE)=$F22,VLOOKUP($C22,Nord_ext!$C$12:$K$400,9,FALSE),""),""),"") ->  | AE22: =IF(IF(AND($K22<>"non inscrit",AE$6<$H$4),OR($K22<$H$5,$K22<AE$6),OR($Q22<$H$5,$Q22<AE$6)),IFERROR(IF(VLOOKUP($C22,CentreQc_ext!$C$12:$K$400,5,FALSE)=$F22,VLOOKUP($C22,CentreQc_ext!$C$12:$K$400,9,FALSE),""),""),"") ->  | AF22: =IF(IF(AND($K22<>"non inscrit",AF$6<$H$4),OR($K22<$H$5,$K22<AF$6),OR($Q22<$H$5,$Q22<AF$6)),IFERROR(IF(VLOOKUP($C22,Ascot_ext!$C$12:$K$400,5,FALSE)=$F22,VLOOKUP($C22,Ascot_ext!$C$12:$K$400,9,FALSE),""),""),"") ->  | AG22: =IF(IF(AND($K22<>"non inscrit",AG$6<$H$4),OR($K22<$H$5,$K22<AG$6),OR($Q22<$H$5,$Q22<AG$6)),IFERROR(IF(VLOOKUP($C22,NDB_ext!$C$12:$K$399,5,FALSE)=$F22,VLOOKUP($C22,NDB_ext!$C$12:$K$399,9,FALSE),""),""),"") ->  | AH22: =IF(IF(AND($K22<>"non inscrit",AH$6<$H$4),OR($K22<$H$5,$K22<AH$6),OR($Q22<$H$5,$Q22<AH$6)),IFERROR(IF(VLOOKUP($C22,Victo_ext!$C$12:$K$400,5,FALSE)=$F22,VLOOKUP($C22,Victo_ext!$C$12:$K$400,9,FALSE),""),""),"") -> 227 | AI22: =IF(IF(AND($K22<>"non inscrit",AI$6<$H$4),OR($K22<$H$5,$K22<AI$6),OR($Q22<$H$5,$Q22<AI$6)),IFERROR(IF(VLOOKUP($C22,Brome_ext!$C$12:$K$400,5,FALSE)=$F22,VLOOKUP($C22,Brome_ext!$C$12:$K$400,9,FALSE),""),""),"") ->  | AJ22: =IF(IF(AND($K22<>"non inscrit",AJ$6<$H$4),OR($K22<$H$5,$K22<AJ$6),OR($Q22<$H$5,$Q22<AJ$6)),IFERROR(IF(VLOOKUP($C22,Tuque_ext!$C$12:$K$400,5,FALSE)=$F22,VLOOKUP($C22,Tuque_ext!$C$12:$K$400,9,FALSE),""),""),"") ->  | AK22: =IF(IF(AND($K22<>"non inscrit",AK$6<$H$4),OR($K22<$H$5,$K22<AK$6),OR($Q22<$H$5,$Q22<AK$6)),IFERROR(IF(VLOOKUP($C22,Cantley_ext!$C$12:$K$400,5,FALSE)=$F22,VLOOKUP($C22,Cantley_ext!$C$12:$K$400,9,FALSE),""),""),"") ->  | AL22: =IF(IF(AND($K22<>"non inscrit",AL$6<$H$4),OR($K22<$H$5,$K22<AL$6),OR($Q22<$H$5,$Q22<AL$6)),IFERROR(IF(VLOOKUP($C22,CQ2_ext!$C$12:$K$400,5,FALSE)=$F22,VLOOKUP($C22,CQ2_ext!$C$12:$K$400,9,FALSE),""),""),"") ->  | AM22: =IF(IF(AND($K22<>"non inscrit",AM$6<$H$4),OR($K22<$H$5,$K22<AM$6),OR($Q22<$H$5,$Q22<AM$6)),IFERROR(IF(VLOOKUP($C22,Amos_ext!$C$12:$K$400,5,FALSE)=$F22,VLOOKUP($C22,Amos_ext!$C$12:$K$400,9,FALSE)*3/4,""),""),"") ->  | AN22: =IF(IF(AND($K22<>"non inscrit",AN$6<$H$4),OR($K22<$H$5,$K22<AN$6),OR($Q22<$H$5,$Q22<AN$6)),IFERROR(IF(VLOOKUP($C22,LaSarre_ext!$C$12:$K$400,5,FALSE)=$F22,VLOOKUP($C22,LaSarre_ext!$C$12:$K$400,9,FALSE),""),""),"") ->  | AO22: =IF(IF(AND($K22<>"non inscrit",AO$6<$H$4),OR($K22<$H$5,$K22<AO$6),OR($Q22<$H$5,$Q22<AO$6)),IFERROR(IF(VLOOKUP($C22,Rouyn_ext!$C$12:$K$400,5,FALSE)=$F22,VLOOKUP($C22,Rouyn_ext!$C$12:$K$400,9,FALSE),""),""),"") ->  | AP22: =IF(IF(AND($K22<>"non inscrit",AP$6<$H$4),OR($K22<$H$5,$K22<AP$6),OR($Q22<$H$5,$Q22<AP$6)),IFERROR(IF(VLOOKUP($C22,Valdor_ext!$C$12:$K$400,5,FALSE)=$F22,VLOOKUP($C22,Valdor_ext!$C$12:$K$400,9,FALSE),""),""),"") ->  | AQ22: =IF(IF(AND($K22<>"non inscrit",AQ$6<$H$4),OR($K22<$H$5,$K22<AQ$6),OR($Q22<$H$5,$Q22<AQ$6)),IFERROR(IF(VLOOKUP($C22,Perrot_ext!$C$12:$K$400,5,FALSE)=$F22,VLOOKUP($C22,Perrot_ext!$C$12:$K$400,9,FALSE),""),""),"") ->  | AR22: =IF(IF(AND($K22<>"non inscrit",AR$6<$H$4),OR($K22<$H$5,$K22<AR$6),OR($Q22<$H$5,$Q22<AR$6)),IFERROR(IF(VLOOKUP($C22,Sorel_ext!$C$12:$K$400,5,FALSE)=$F22,VLOOKUP($C22,Sorel_ext!$C$12:$K$400,9,FALSE),""),""),"") ->  | AV22: =IF(IF(AND($K22<>"non inscrit",AV$6<$H$4),OR($K22<$H$5,$K22<AV$6),OR($Q22<$H$5,$Q22<AV$6)),IFERROR(IF(VLOOKUP($C22,Finale_ext!$C$12:$K$400,5,FALSE)=$F22,VLOOKUP($C22,Finale_ext!$C$12:$K$400,9,FALSE),""),""),"") ->  | AX22: =IF(AND($Q22<>"",$Q22<>"non inscrit"),IF(IFERROR(VLOOKUP($C22,Coat_int!$C$12:$K$400,5,FALSE),"")=$F22,IF(AND(OR($Q22>=$H$4,$O$1<$H$5),OR($Q22<$H$5,$Q22<AX$6)),IFERROR(VLOOKUP($C22,Coat_int!$C$12:$K$400,9,FALSE),""),"_"),""),"") ->  | AY22: =IF(AND($Q22<>"",$Q22<>"non inscrit"),IF(IFERROR(VLOOKUP($C22,LG_int!$C$12:$K$403,5,FALSE),"")=$F22,IF(AND(OR($Q22>=$H$4,$O$1<$H$5),OR($Q22<$H$5,$Q22<AY$6)),IFERROR(VLOOKUP($C22,LG_int!$C$12:$K$403,9,FALSE),""),"_"),""),"") ->  | AZ22: =IF(AND($Q22<>"",$Q22<>"non inscrit"),IF(IFERROR(VLOOKUP($C22,LSNO_int!$C$12:$K$400,5,FALSE),"")=$F22,IF(AND(OR($Q22>=$H$4,$O$1<$H$5),OR($Q22<$H$5,$Q22<AZ$6)),IFERROR(VLOOKUP($C22,LSNO_int!$C$12:$K$400,9,FALSE),""),"_"),""),"") ->  | BA22: =IF(AND($Q22<>"",$Q22<>"non inscrit"),IF(IFERROR(VLOOKUP($C22,Ach_int!$C$12:$K$400,5,FALSE),"")=$F22,IF(AND(OR($Q22>=$H$4,$O$1<$H$5),OR($Q22<$H$5,$Q22<BA$6)),IFERROR(VLOOKUP($C22,Ach_int!$C$12:$K$400,9,FALSE),""),"_"),""),"") ->  | BB22: =IF(AND($Q22<>"",$Q22<>"non inscrit"),IF(IFERROR(VLOOKUP($C22,Tremb_int!$C$12:$K$400,5,FALSE),"")=$F22,IF(AND(OR($Q22>=$H$4,$O$1<$H$5),OR($Q22<$H$5,$Q22<BB$6)),IFERROR(VLOOKUP($C22,Tremb_int!$C$12:$K$400,9,FALSE),""),"_"),""),"") ->  | BC22: =IF(AND($Q22<>"",$Q22<>"non inscrit"),IF(IFERROR(VLOOKUP($C22,Buck_int!$C$12:$K$400,5,FALSE),"")=$F22,IF(AND(OR($Q22>=$H$4,$O$1<$H$5),OR($Q22<$H$5,$Q22<BC$6)),IFERROR(VLOOKUP($C22,Buck_int!$C$12:$K$400,9,FALSE),""),"_"),""),"") ->  | BD22: =IF(AND($Q22<>"",$Q22<>"non inscrit"),IF(IFERROR(VLOOKUP($C22,Drum_int!$C$12:$K$400,5,FALSE),"")=$F22,IF(AND(OR($Q22>=$H$4,$O$1<$H$5),OR($Q22<$H$5,$Q22<BD$6)),IFERROR(VLOOKUP($C22,Drum_int!$C$12:$K$400,9,FALSE),""),"_"),""),"") ->  | BE22: =IF(AND($Q22<>"",$Q22<>"non inscrit"),IF(IFERROR(VLOOKUP($C22,Coat_int2!$C$12:$K$400,5,FALSE),"")=$F22,IF(AND(OR($Q22>=$H$4,$O$1<$H$5),OR($Q22<$H$5,$Q22<BE$6)),IFERROR(VLOOKUP($C22,Coat_int2!$C$12:$K$400,9,FALSE),""),"_"),""),"") ->  | BF22: =IF(AND($Q22<>"",$Q22<>"non inscrit"),IF(IFERROR(VLOOKUP($C22,Jean_int!$C$12:$K$401,5,FALSE),"")=$F22,IF(AND(OR($Q22>=$H$4,$O$1<$H$5),OR($Q22<$H$5,$Q22<BF$6)),IFERROR(VLOOKUP($C22,Jean_int!$C$12:$K$401,9,FALSE),""),"_"),""),"") ->  | BG22: =IF(AND($Q22<>"",$Q22<>"non inscrit"),IF(IFERROR(VLOOKUP($C22,Val_int!$C$12:$K$401,5,FALSE),"")=$F22,IF(AND(OR($Q22>=$H$4,$O$1<$H$5),OR($Q22<$H$5,$Q22<BG$6)),IFERROR(VLOOKUP($C22,Val_int!$C$12:$K$401,9,FALSE),""),"_"),""),"") ->  | BH22: =IF(AND($Q22<>"",$Q22<>"non inscrit"),IF(IFERROR(VLOOKUP($C22,Qc_int!$C$12:$K$401,5,FALSE),"")=$F22,IF(AND(OR($Q22>=$H$4,$O$1<$H$5),OR($Q22<$H$5,$Q22<BH$6)),IFERROR(VLOOKUP($C22,Qc_int!$C$12:$K$401,9,FALSE),""),"_"),""),"") ->  | BI22: =IF(AND($Q22<>"",$Q22<>"non inscrit"),IF(IFERROR(VLOOKUP($C22,Qc2_int!$C$12:$K$401,5,FALSE),"")=$F22,IF(AND(OR($Q22>=$H$4,$O$1<$H$5),OR($Q22<$H$5,$Q22<BI$6)),IFERROR(VLOOKUP($C22,Qc2_int!$C$12:$K$401,9,FALSE),""),"_"),""),"") ->  | BJ22: =IF(AND($Q22<>"",$Q22<>"non inscrit"),IF(IFERROR(VLOOKUP($C22,#REF!,5,FALSE),"")=$F22,IF(AND(OR($Q22>=$H$4,$O$1<$H$5),OR($Q22<$H$5,$Q22<$AY$6)),IFERROR(VLOOKUP($C22,#REF!,9,FALSE),""),"_"),""),"") ->  | BK22: =IF(AND($Q22<>"",$Q22<>"non inscrit"),IF(IFERROR(VLOOKUP($C22,#REF!,5,FALSE),"")=$F22,IF(AND(OR($Q22>=$H$4,$O$1<$H$5),OR($Q22<$H$5,$Q22<$AY$6)),IFERROR(VLOOKUP($C22,#REF!,9,FALSE),""),"_"),""),"") ->  | BU22: =IF(AND($Q22<>"",$Q22<>"non inscrit"),IF(IFERROR(VLOOKUP($C22,FIN_int!$C$12:$K$401,5,FALSE),"")=$F22,IF(AND(OR($Q22>=$H$4,$O$1<$H$5),OR($Q22<$H$5,$Q22<BU$6)),IFERROR(VLOOKUP($C22,FIN_int!$C$12:$K$401,9,FALSE),""),"_"),""),"") -> 
A23: 1 | B23: 12 | C23: 7313 | D23: =IF($C23="","",IF($O$1>$H$4,IFERROR(VLOOKUP($C23,'Membres-2023'!$A:$G,2,FALSE),""),IFERROR(VLOOKUP($C23,'Membres-2022'!$A:$G,2,FALSE),""))) -> Gagnon | E23: =IF($C23="","",IF($O$1>$H$4,IFERROR(VLOOKUP($C23,'Membres-2023'!$A:$G,3,FALSE),""),IFERROR(VLOOKUP($C23,'Membres-2022'!$A:$G,3,FALSE),""))) -> Mathieu | F23: =IF($C23="","",IF($O$1>$H$4,IFERROR(VLOOKUP($C23,'Membres-2023'!$A:$G,7,FALSE),""),IFERROR(VLOOKUP($C23,'Membres-2022'!$A:$G,7,FALSE),""))) -> 3 | G23: =IF($C23="","",IF($O$1>$H$4,IFERROR(VLOOKUP($C23,'Membres-2023'!$A:$G,5,FALSE),""),IFERROR(VLOOKUP($C23,'Membres-2022'!$A:$G,5,FALSE),""))) -> Club de tir Legardeur | H23: 1 | I23: 37.16666667 | J23: 37.16666667 | K23: =IFERROR(IF(VLOOKUP(C23,'Membres-2022'!$A:$F,6,FALSE)>=$H$3,VLOOKUP(C23,'Membres-2022'!$A:$F,6,FALSE),"non inscrit"),IF($C23>0,"non inscrit","")) -> 2022-01-11 | L23: 37.16666667 | Q23: =IFERROR(IF(VLOOKUP($C23,'Membres-2023'!$A:$F,6,FALSE)>=$H$3,VLOOKUP($C23,'Membres-2023'!$A:$F,6,FALSE),"non inscrit"),"") -> 2022-01-11 | Z23: =IF(IF(AND($K23<>"non inscrit",Z$6<$H$4),OR($K23<$H$5,$K23<Z$6),OR($Q23<$H$5,$Q23<Z$6)),IFERROR(IF(VLOOKUP($C23,Stroch_ext!$C$12:$K$400,5,FALSE)=$F23,VLOOKUP($C23,Stroch_ext!$C$12:$K$400,9,FALSE),""),""),"") ->  | AA23: =IF(IF(AND($K23<>"non inscrit",AA$6<$H$4),OR($K23<$H$5,$K23<AA$6),OR($Q23<$H$5,$Q23<AA$6)),IFERROR(IF(VLOOKUP($C23,Vallée_ext!$C$12:$K$400,5,FALSE)=$F23,VLOOKUP($C23,Vallée_ext!$C$12:$K$400,9,FALSE),""),""),"") ->  | AB23: =IF(IF(AND($K23<>"non inscrit",AB$6<$H$4),OR($K23<$H$5,$K23<AB$6),OR($Q23<$H$5,$Q23<AB$6)),IFERROR(IF(VLOOKUP($C23,ASF_ext!$C$12:$K$400,5,FALSE)=$F23,VLOOKUP($C23,ASF_ext!$C$12:$K$400,9,FALSE),""),""),"") ->  | AC23: =IF(IF(AND($K23<>"non inscrit",AC$6<$H$4),OR($K23<$H$5,$K23<AC$6),OR($Q23<$H$5,$Q23<AC$6)),IFERROR(IF(VLOOKUP($C23,MtLaur_ext!$C$12:$K$407,5,FALSE)=$F23,VLOOKUP($C23,MtLaur_ext!$C$12:$K$407,9,FALSE),""),""),"") ->  | AD23: =IF(IF(AND($K23<>"non inscrit",AD$6<$H$4),OR($K23<$H$5,$K23<AD$6),OR($Q23<$H$5,$Q23<AD$6)),IFERROR(IF(VLOOKUP($C23,Nord_ext!$C$12:$K$400,5,FALSE)=$F23,VLOOKUP($C23,Nord_ext!$C$12:$K$400,9,FALSE),""),""),"") ->  | AE23: =IF(IF(AND($K23<>"non inscrit",AE$6<$H$4),OR($K23<$H$5,$K23<AE$6),OR($Q23<$H$5,$Q23<AE$6)),IFERROR(IF(VLOOKUP($C23,CentreQc_ext!$C$12:$K$400,5,FALSE)=$F23,VLOOKUP($C23,CentreQc_ext!$C$12:$K$400,9,FALSE),""),""),"") ->  | AF23: =IF(IF(AND($K23<>"non inscrit",AF$6<$H$4),OR($K23<$H$5,$K23<AF$6),OR($Q23<$H$5,$Q23<AF$6)),IFERROR(IF(VLOOKUP($C23,Ascot_ext!$C$12:$K$400,5,FALSE)=$F23,VLOOKUP($C23,Ascot_ext!$C$12:$K$400,9,FALSE),""),""),"") ->  | AG23: =IF(IF(AND($K23<>"non inscrit",AG$6<$H$4),OR($K23<$H$5,$K23<AG$6),OR($Q23<$H$5,$Q23<AG$6)),IFERROR(IF(VLOOKUP($C23,NDB_ext!$C$12:$K$399,5,FALSE)=$F23,VLOOKUP($C23,NDB_ext!$C$12:$K$399,9,FALSE),""),""),"") ->  | AH23: =IF(IF(AND($K23<>"non inscrit",AH$6<$H$4),OR($K23<$H$5,$K23<AH$6),OR($Q23<$H$5,$Q23<AH$6)),IFERROR(IF(VLOOKUP($C23,Victo_ext!$C$12:$K$400,5,FALSE)=$F23,VLOOKUP($C23,Victo_ext!$C$12:$K$400,9,FALSE),""),""),"") ->  | AI23: =IF(IF(AND($K23<>"non inscrit",AI$6<$H$4),OR($K23<$H$5,$K23<AI$6),OR($Q23<$H$5,$Q23<AI$6)),IFERROR(IF(VLOOKUP($C23,Brome_ext!$C$12:$K$400,5,FALSE)=$F23,VLOOKUP($C23,Brome_ext!$C$12:$K$400,9,FALSE),""),""),"") ->  | AJ23: =IF(IF(AND($K23<>"non inscrit",AJ$6<$H$4),OR($K23<$H$5,$K23<AJ$6),OR($Q23<$H$5,$Q23<AJ$6)),IFERROR(IF(VLOOKUP($C23,Tuque_ext!$C$12:$K$400,5,FALSE)=$F23,VLOOKUP($C23,Tuque_ext!$C$12:$K$400,9,FALSE),""),""),"") ->  | AK23: =IF(IF(AND($K23<>"non inscrit",AK$6<$H$4),OR($K23<$H$5,$K23<AK$6),OR($Q23<$H$5,$Q23<AK$6)),IFERROR(IF(VLOOKUP($C23,Cantley_ext!$C$12:$K$400,5,FALSE)=$F23,VLOOKUP($C23,Cantley_ext!$C$12:$K$400,9,FALSE),""),""),"") ->  | AL23: =IF(IF(AND($K23<>"non inscrit",AL$6<$H$4),OR($K23<$H$5,$K23<AL$6),OR($Q23<$H$5,$Q23<AL$6)),IFERROR(IF(VLOOKUP($C23,CQ2_ext!$C$12:$K$400,5,FALSE)=$F23,VLOOKUP($C23,CQ2_ext!$C$12:$K$400,9,FALSE),""),""),"") ->  | AM23: =IF(IF(AND($K23<>"non inscrit",AM$6<$H$4),OR($K23<$H$5,$K23<AM$6),OR($Q23<$H$5,$Q23<AM$6)),IFERROR(IF(VLOOKUP($C23,Amos_ext!$C$12:$K$400,5,FALSE)=$F23,VLOOKUP($C23,Amos_ext!$C$12:$K$400,9,FALSE)*3/4,""),""),"") ->  | AN23: =IF(IF(AND($K23<>"non inscrit",AN$6<$H$4),OR($K23<$H$5,$K23<AN$6),OR($Q23<$H$5,$Q23<AN$6)),IFERROR(IF(VLOOKUP($C23,LaSarre_ext!$C$12:$K$400,5,FALSE)=$F23,VLOOKUP($C23,LaSarre_ext!$C$12:$K$400,9,FALSE),""),""),"") ->  | AO23: =IF(IF(AND($K23<>"non inscrit",AO$6<$H$4),OR($K23<$H$5,$K23<AO$6),OR($Q23<$H$5,$Q23<AO$6)),IFERROR(IF(VLOOKUP($C23,Rouyn_ext!$C$12:$K$400,5,FALSE)=$F23,VLOOKUP($C23,Rouyn_ext!$C$12:$K$400,9,FALSE),""),""),"") ->  | AP23: =IF(IF(AND($K23<>"non inscrit",AP$6<$H$4),OR($K23<$H$5,$K23<AP$6),OR($Q23<$H$5,$Q23<AP$6)),IFERROR(IF(VLOOKUP($C23,Valdor_ext!$C$12:$K$400,5,FALSE)=$F23,VLOOKUP($C23,Valdor_ext!$C$12:$K$400,9,FALSE),""),""),"") ->  | AQ23: =IF(IF(AND($K23<>"non inscrit",AQ$6<$H$4),OR($K23<$H$5,$K23<AQ$6),OR($Q23<$H$5,$Q23<AQ$6)),IFERROR(IF(VLOOKUP($C23,Perrot_ext!$C$12:$K$400,5,FALSE)=$F23,VLOOKUP($C23,Perrot_ext!$C$12:$K$400,9,FALSE),""),""),"") -> 223 | AR23: =IF(IF(AND($K23<>"non inscrit",AR$6<$H$4),OR($K23<$H$5,$K23<AR$6),OR($Q23<$H$5,$Q23<AR$6)),IFERROR(IF(VLOOKUP($C23,Sorel_ext!$C$12:$K$400,5,FALSE)=$F23,VLOOKUP($C23,Sorel_ext!$C$12:$K$400,9,FALSE),""),""),"") ->  | AV23: =IF(IF(AND($K23<>"non inscrit",AV$6<$H$4),OR($K23<$H$5,$K23<AV$6),OR($Q23<$H$5,$Q23<AV$6)),IFERROR(IF(VLOOKUP($C23,Finale_ext!$C$12:$K$400,5,FALSE)=$F23,VLOOKUP($C23,Finale_ext!$C$12:$K$400,9,FALSE),""),""),"") ->  | AX23: =IF(AND($Q23<>"",$Q23<>"non inscrit"),IF(IFERROR(VLOOKUP($C23,Coat_int!$C$12:$K$400,5,FALSE),"")=$F23,IF(AND(OR($Q23>=$H$4,$O$1<$H$5),OR($Q23<$H$5,$Q23<AX$6)),IFERROR(VLOOKUP($C23,Coat_int!$C$12:$K$400,9,FALSE),""),"_"),""),"") ->  | AY23: =IF(AND($Q23<>"",$Q23<>"non inscrit"),IF(IFERROR(VLOOKUP($C23,LG_int!$C$12:$K$403,5,FALSE),"")=$F23,IF(AND(OR($Q23>=$H$4,$O$1<$H$5),OR($Q23<$H$5,$Q23<AY$6)),IFERROR(VLOOKUP($C23,LG_int!$C$12:$K$403,9,FALSE),""),"_"),""),"") ->  | AZ23: =IF(AND($Q23<>"",$Q23<>"non inscrit"),IF(IFERROR(VLOOKUP($C23,LSNO_int!$C$12:$K$400,5,FALSE),"")=$F23,IF(AND(OR($Q23>=$H$4,$O$1<$H$5),OR($Q23<$H$5,$Q23<AZ$6)),IFERROR(VLOOKUP($C23,LSNO_int!$C$12:$K$400,9,FALSE),""),"_"),""),"") ->  | BA23: =IF(AND($Q23<>"",$Q23<>"non inscrit"),IF(IFERROR(VLOOKUP($C23,Ach_int!$C$12:$K$400,5,FALSE),"")=$F23,IF(AND(OR($Q23>=$H$4,$O$1<$H$5),OR($Q23<$H$5,$Q23<BA$6)),IFERROR(VLOOKUP($C23,Ach_int!$C$12:$K$400,9,FALSE),""),"_"),""),"") ->  | BB23: =IF(AND($Q23<>"",$Q23<>"non inscrit"),IF(IFERROR(VLOOKUP($C23,Tremb_int!$C$12:$K$400,5,FALSE),"")=$F23,IF(AND(OR($Q23>=$H$4,$O$1<$H$5),OR($Q23<$H$5,$Q23<BB$6)),IFERROR(VLOOKUP($C23,Tremb_int!$C$12:$K$400,9,FALSE),""),"_"),""),"") ->  | BC23: =IF(AND($Q23<>"",$Q23<>"non inscrit"),IF(IFERROR(VLOOKUP($C23,Buck_int!$C$12:$K$400,5,FALSE),"")=$F23,IF(AND(OR($Q23>=$H$4,$O$1<$H$5),OR($Q23<$H$5,$Q23<BC$6)),IFERROR(VLOOKUP($C23,Buck_int!$C$12:$K$400,9,FALSE),""),"_"),""),"") ->  | BD23: =IF(AND($Q23<>"",$Q23<>"non inscrit"),IF(IFERROR(VLOOKUP($C23,Drum_int!$C$12:$K$400,5,FALSE),"")=$F23,IF(AND(OR($Q23>=$H$4,$O$1<$H$5),OR($Q23<$H$5,$Q23<BD$6)),IFERROR(VLOOKUP($C23,Drum_int!$C$12:$K$400,9,FALSE),""),"_"),""),"") ->  | BE23: =IF(AND($Q23<>"",$Q23<>"non inscrit"),IF(IFERROR(VLOOKUP($C23,Coat_int2!$C$12:$K$400,5,FALSE),"")=$F23,IF(AND(OR($Q23>=$H$4,$O$1<$H$5),OR($Q23<$H$5,$Q23<BE$6)),IFERROR(VLOOKUP($C23,Coat_int2!$C$12:$K$400,9,FALSE),""),"_"),""),"") ->  | BF23: =IF(AND($Q23<>"",$Q23<>"non inscrit"),IF(IFERROR(VLOOKUP($C23,Jean_int!$C$12:$K$401,5,FALSE),"")=$F23,IF(AND(OR($Q23>=$H$4,$O$1<$H$5),OR($Q23<$H$5,$Q23<BF$6)),IFERROR(VLOOKUP($C23,Jean_int!$C$12:$K$401,9,FALSE),""),"_"),""),"") ->  | BG23: =IF(AND($Q23<>"",$Q23<>"non inscrit"),IF(IFERROR(VLOOKUP($C23,Val_int!$C$12:$K$401,5,FALSE),"")=$F23,IF(AND(OR($Q23>=$H$4,$O$1<$H$5),OR($Q23<$H$5,$Q23<BG$6)),IFERROR(VLOOKUP($C23,Val_int!$C$12:$K$401,9,FALSE),""),"_"),""),"") ->  | BH23: =IF(AND($Q23<>"",$Q23<>"non inscrit"),IF(IFERROR(VLOOKUP($C23,Qc_int!$C$12:$K$401,5,FALSE),"")=$F23,IF(AND(OR($Q23>=$H$4,$O$1<$H$5),OR($Q23<$H$5,$Q23<BH$6)),IFERROR(VLOOKUP($C23,Qc_int!$C$12:$K$401,9,FALSE),""),"_"),""),"") ->  | BI23: =IF(AND($Q23<>"",$Q23<>"non inscrit"),IF(IFERROR(VLOOKUP($C23,Qc2_int!$C$12:$K$401,5,FALSE),"")=$F23,IF(AND(OR($Q23>=$H$4,$O$1<$H$5),OR($Q23<$H$5,$Q23<BI$6)),IFERROR(VLOOKUP($C23,Qc2_int!$C$12:$K$401,9,FALSE),""),"_"),""),"") ->  | BJ23: =IF(AND($Q23<>"",$Q23<>"non inscrit"),IF(IFERROR(VLOOKUP($C23,#REF!,5,FALSE),"")=$F23,IF(AND(OR($Q23>=$H$4,$O$1<$H$5),OR($Q23<$H$5,$Q23<$AY$6)),IFERROR(VLOOKUP($C23,#REF!,9,FALSE),""),"_"),""),"") ->  | BK23: =IF(AND($Q23<>"",$Q23<>"non inscrit"),IF(IFERROR(VLOOKUP($C23,#REF!,5,FALSE),"")=$F23,IF(AND(OR($Q23>=$H$4,$O$1<$H$5),OR($Q23<$H$5,$Q23<$AY$6)),IFERROR(VLOOKUP($C23,#REF!,9,FALSE),""),"_"),""),"") ->  | BU23: =IF(AND($Q23<>"",$Q23<>"non inscrit"),IF(IFERROR(VLOOKUP($C23,FIN_int!$C$12:$K$401,5,FALSE),"")=$F23,IF(AND(OR($Q23>=$H$4,$O$1<$H$5),OR($Q23<$H$5,$Q23<BU$6)),IFERROR(VLOOKUP($C23,FIN_int!$C$12:$K$401,9,FALSE),""),"_"),""),"") -> 
A24: 1 | B24: 13 | C24: 4774 | D24: =IF($C24="","",IF($O$1>$H$4,IFERROR(VLOOKUP($C24,'Membres-2023'!$A:$G,2,FALSE),""),IFERROR(VLOOKUP($C24,'Membres-2022'!$A:$G,2,FALSE),""))) -> Plouffe | E24: =IF($C24="","",IF($O$1>$H$4,IFERROR(VLOOKUP($C24,'Membres-2023'!$A:$G,3,FALSE),""),IFERROR(VLOOKUP($C24,'Membres-2022'!$A:$G,3,FALSE),""))) -> Julien | F24: 1 | G24: =IF($C24="","",IF($O$1>$H$4,IFERROR(VLOOKUP($C24,'Membres-2023'!$A:$G,5,FALSE),""),IFERROR(VLOOKUP($C24,'Membres-2022'!$A:$G,5,FALSE),""))) -> Ascot Corner (Archers d') | H24: 1 | I24: 35.66666667 | J24: 35.66666667 | K24: =IFERROR(IF(VLOOKUP(C24,'Membres-2022'!$A:$F,6,FALSE)>=$H$3,VLOOKUP(C24,'Membres-2022'!$A:$F,6,FALSE),"non inscrit"),IF($C24>0,"non inscrit","")) -> 2022-07-13 | L24: 35.66666667 | Q24: =IFERROR(IF(VLOOKUP($C24,'Membres-2023'!$A:$F,6,FALSE)>=$H$3,VLOOKUP($C24,'Membres-2023'!$A:$F,6,FALSE),"non inscrit"),"") -> 2023-01-23 | Z24: =IF(IF(AND($K24<>"non inscrit",Z$6<$H$4),OR($K24<$H$5,$K24<Z$6),OR($Q24<$H$5,$Q24<Z$6)),IFERROR(IF(VLOOKUP($C24,Stroch_ext!$C$12:$K$400,5,FALSE)=$F24,VLOOKUP($C24,Stroch_ext!$C$12:$K$400,9,FALSE),""),""),"") ->  | AA24: =IF(IF(AND($K24<>"non inscrit",AA$6<$H$4),OR($K24<$H$5,$K24<AA$6),OR($Q24<$H$5,$Q24<AA$6)),IFERROR(IF(VLOOKUP($C24,Vallée_ext!$C$12:$K$400,5,FALSE)=$F24,VLOOKUP($C24,Vallée_ext!$C$12:$K$400,9,FALSE),""),""),"") ->  | AB24: =IF(IF(AND($K24<>"non inscrit",AB$6<$H$4),OR($K24<$H$5,$K24<AB$6),OR($Q24<$H$5,$Q24<AB$6)),IFERROR(IF(VLOOKUP($C24,ASF_ext!$C$12:$K$400,5,FALSE)=$F24,VLOOKUP($C24,ASF_ext!$C$12:$K$400,9,FALSE),""),""),"") ->  | AC24: =IF(IF(AND($K24<>"non inscrit",AC$6<$H$4),OR($K24<$H$5,$K24<AC$6),OR($Q24<$H$5,$Q24<AC$6)),IFERROR(IF(VLOOKUP($C24,MtLaur_ext!$C$12:$K$407,5,FALSE)=$F24,VLOOKUP($C24,MtLaur_ext!$C$12:$K$407,9,FALSE),""),""),"") ->  | AD24: =IF(IF(AND($K24<>"non inscrit",AD$6<$H$4),OR($K24<$H$5,$K24<AD$6),OR($Q24<$H$5,$Q24<AD$6)),IFERROR(IF(VLOOKUP($C24,Nord_ext!$C$12:$K$400,5,FALSE)=$F24,VLOOKUP($C24,Nord_ext!$C$12:$K$400,9,FALSE),""),""),"") ->  | AE24: =IF(IF(AND($K24<>"non inscrit",AE$6<$H$4),OR($K24<$H$5,$K24<AE$6),OR($Q24<$H$5,$Q24<AE$6)),IFERROR(IF(VLOOKUP($C24,CentreQc_ext!$C$12:$K$400,5,FALSE)=$F24,VLOOKUP($C24,CentreQc_ext!$C$12:$K$400,9,FALSE),""),""),"") ->  | AF24: =IF(IF(AND($K24<>"non inscrit",AF$6<$H$4),OR($K24<$H$5,$K24<AF$6),OR($Q24<$H$5,$Q24<AF$6)),IFERROR(IF(VLOOKUP($C24,Ascot_ext!$C$12:$K$400,5,FALSE)=$F24,VLOOKUP($C24,Ascot_ext!$C$12:$K$400,9,FALSE),""),""),"") ->  | AG24: =IF(IF(AND($K24<>"non inscrit",AG$6<$H$4),OR($K24<$H$5,$K24<AG$6),OR($Q24<$H$5,$Q24<AG$6)),IFERROR(IF(VLOOKUP($C24,NDB_ext!$C$12:$K$399,5,FALSE)=$F24,VLOOKUP($C24,NDB_ext!$C$12:$K$399,9,FALSE),""),""),"") ->  | AH24: =IF(IF(AND($K24<>"non inscrit",AH$6<$H$4),OR($K24<$H$5,$K24<AH$6),OR($Q24<$H$5,$Q24<AH$6)),IFERROR(IF(VLOOKUP($C24,Victo_ext!$C$12:$K$400,5,FALSE)=$F24,VLOOKUP($C24,Victo_ext!$C$12:$K$400,9,FALSE),""),""),"") ->  | AI24: =IF(IF(AND($K24<>"non inscrit",AI$6<$H$4),OR($K24<$H$5,$K24<AI$6),OR($Q24<$H$5,$Q24<AI$6)),IFERROR(IF(VLOOKUP($C24,Brome_ext!$C$12:$K$400,5,FALSE)=$F24,VLOOKUP($C24,Brome_ext!$C$12:$K$400,9,FALSE),""),""),"") ->  | AJ24: =IF(IF(AND($K24<>"non inscrit",AJ$6<$H$4),OR($K24<$H$5,$K24<AJ$6),OR($Q24<$H$5,$Q24<AJ$6)),IFERROR(IF(VLOOKUP($C24,Tuque_ext!$C$12:$K$400,5,FALSE)=$F24,VLOOKUP($C24,Tuque_ext!$C$12:$K$400,9,FALSE),""),""),"") ->  | AK24: =IF(IF(AND($K24<>"non inscrit",AK$6<$H$4),OR($K24<$H$5,$K24<AK$6),OR($Q24<$H$5,$Q24<AK$6)),IFERROR(IF(VLOOKUP($C24,Cantley_ext!$C$12:$K$400,5,FALSE)=$F24,VLOOKUP($C24,Cantley_ext!$C$12:$K$400,9,FALSE),""),""),"") -> 214 | AL24: =IF(IF(AND($K24<>"non inscrit",AL$6<$H$4),OR($K24<$H$5,$K24<AL$6),OR($Q24<$H$5,$Q24<AL$6)),IFERROR(IF(VLOOKUP($C24,CQ2_ext!$C$12:$K$400,5,FALSE)=$F24,VLOOKUP($C24,CQ2_ext!$C$12:$K$400,9,FALSE),""),""),"") ->  | AM24: =IF(IF(AND($K24<>"non inscrit",AM$6<$H$4),OR($K24<$H$5,$K24<AM$6),OR($Q24<$H$5,$Q24<AM$6)),IFERROR(IF(VLOOKUP($C24,Amos_ext!$C$12:$K$400,5,FALSE)=$F24,VLOOKUP($C24,Amos_ext!$C$12:$K$400,9,FALSE)*3/4,""),""),"") ->  | AN24: =IF(IF(AND($K24<>"non inscrit",AN$6<$H$4),OR($K24<$H$5,$K24<AN$6),OR($Q24<$H$5,$Q24<AN$6)),IFERROR(IF(VLOOKUP($C24,LaSarre_ext!$C$12:$K$400,5,FALSE)=$F24,VLOOKUP($C24,LaSarre_ext!$C$12:$K$400,9,FALSE),""),""),"") ->  | AO24: =IF(IF(AND($K24<>"non inscrit",AO$6<$H$4),OR($K24<$H$5,$K24<AO$6),OR($Q24<$H$5,$Q24<AO$6)),IFERROR(IF(VLOOKUP($C24,Rouyn_ext!$C$12:$K$400,5,FALSE)=$F24,VLOOKUP($C24,Rouyn_ext!$C$12:$K$400,9,FALSE),""),""),"") ->  | AP24: =IF(IF(AND($K24<>"non inscrit",AP$6<$H$4),OR($K24<$H$5,$K24<AP$6),OR($Q24<$H$5,$Q24<AP$6)),IFERROR(IF(VLOOKUP($C24,Valdor_ext!$C$12:$K$400,5,FALSE)=$F24,VLOOKUP($C24,Valdor_ext!$C$12:$K$400,9,FALSE),""),""),"") ->  | AQ24: =IF(IF(AND($K24<>"non inscrit",AQ$6<$H$4),OR($K24<$H$5,$K24<AQ$6),OR($Q24<$H$5,$Q24<AQ$6)),IFERROR(IF(VLOOKUP($C24,Perrot_ext!$C$12:$K$400,5,FALSE)=$F24,VLOOKUP($C24,Perrot_ext!$C$12:$K$400,9,FALSE),""),""),"") ->  | AR24: =IF(IF(AND($K24<>"non inscrit",AR$6<$H$4),OR($K24<$H$5,$K24<AR$6),OR($Q24<$H$5,$Q24<AR$6)),IFERROR(IF(VLOOKUP($C24,Sorel_ext!$C$12:$K$400,5,FALSE)=$F24,VLOOKUP($C24,Sorel_ext!$C$12:$K$400,9,FALSE),""),""),"") ->  | AV24: =IF(IF(AND($K24<>"non inscrit",AV$6<$H$4),OR($K24<$H$5,$K24<AV$6),OR($Q24<$H$5,$Q24<AV$6)),IFERROR(IF(VLOOKUP($C24,Finale_ext!$C$12:$K$400,5,FALSE)=$F24,VLOOKUP($C24,Finale_ext!$C$12:$K$400,9,FALSE),""),""),"") ->  | AX24: =IF(AND($Q24<>"",$Q24<>"non inscrit"),IF(IFERROR(VLOOKUP($C24,Coat_int!$C$12:$K$400,5,FALSE),"")=$F24,IF(AND(OR($Q24>=$H$4,$O$1<$H$5),OR($Q24<$H$5,$Q24<AX$6)),IFERROR(VLOOKUP($C24,Coat_int!$C$12:$K$400,9,FALSE),""),"_"),""),"") ->  | AY24: =IF(AND($Q24<>"",$Q24<>"non inscrit"),IF(IFERROR(VLOOKUP($C24,LG_int!$C$12:$K$403,5,FALSE),"")=$F24,IF(AND(OR($Q24>=$H$4,$O$1<$H$5),OR($Q24<$H$5,$Q24<AY$6)),IFERROR(VLOOKUP($C24,LG_int!$C$12:$K$403,9,FALSE),""),"_"),""),"") ->  | AZ24: =IF(AND($Q24<>"",$Q24<>"non inscrit"),IF(IFERROR(VLOOKUP($C24,LSNO_int!$C$12:$K$400,5,FALSE),"")=$F24,IF(AND(OR($Q24>=$H$4,$O$1<$H$5),OR($Q24<$H$5,$Q24<AZ$6)),IFERROR(VLOOKUP($C24,LSNO_int!$C$12:$K$400,9,FALSE),""),"_"),""),"") ->  | BA24: =IF(AND($Q24<>"",$Q24<>"non inscrit"),IF(IFERROR(VLOOKUP($C24,Ach_int!$C$12:$K$400,5,FALSE),"")=$F24,IF(AND(OR($Q24>=$H$4,$O$1<$H$5),OR($Q24<$H$5,$Q24<BA$6)),IFERROR(VLOOKUP($C24,Ach_int!$C$12:$K$400,9,FALSE),""),"_"),""),"") ->  | BB24: =IF(AND($Q24<>"",$Q24<>"non inscrit"),IF(IFERROR(VLOOKUP($C24,Tremb_int!$C$12:$K$400,5,FALSE),"")=$F24,IF(AND(OR($Q24>=$H$4,$O$1<$H$5),OR($Q24<$H$5,$Q24<BB$6)),IFERROR(VLOOKUP($C24,Tremb_int!$C$12:$K$400,9,FALSE),""),"_"),""),"") ->  | BC24: =IF(AND($Q24<>"",$Q24<>"non inscrit"),IF(IFERROR(VLOOKUP($C24,Buck_int!$C$12:$K$400,5,FALSE),"")=$F24,IF(AND(OR($Q24>=$H$4,$O$1<$H$5),OR($Q24<$H$5,$Q24<BC$6)),IFERROR(VLOOKUP($C24,Buck_int!$C$12:$K$400,9,FALSE),""),"_"),""),"") ->  | BD24: =IF(AND($Q24<>"",$Q24<>"non inscrit"),IF(IFERROR(VLOOKUP($C24,Drum_int!$C$12:$K$400,5,FALSE),"")=$F24,IF(AND(OR($Q24>=$H$4,$O$1<$H$5),OR($Q24<$H$5,$Q24<BD$6)),IFERROR(VLOOKUP($C24,Drum_int!$C$12:$K$400,9,FALSE),""),"_"),""),"") ->  | BE24: =IF(AND($Q24<>"",$Q24<>"non inscrit"),IF(IFERROR(VLOOKUP($C24,Coat_int2!$C$12:$K$400,5,FALSE),"")=$F24,IF(AND(OR($Q24>=$H$4,$O$1<$H$5),OR($Q24<$H$5,$Q24<BE$6)),IFERROR(VLOOKUP($C24,Coat_int2!$C$12:$K$400,9,FALSE),""),"_"),""),"") ->  | BF24: =IF(AND($Q24<>"",$Q24<>"non inscrit"),IF(IFERROR(VLOOKUP($C24,Jean_int!$C$12:$K$401,5,FALSE),"")=$F24,IF(AND(OR($Q24>=$H$4,$O$1<$H$5),OR($Q24<$H$5,$Q24<BF$6)),IFERROR(VLOOKUP($C24,Jean_int!$C$12:$K$401,9,FALSE),""),"_"),""),"") ->  | BG24: =IF(AND($Q24<>"",$Q24<>"non inscrit"),IF(IFERROR(VLOOKUP($C24,Val_int!$C$12:$K$401,5,FALSE),"")=$F24,IF(AND(OR($Q24>=$H$4,$O$1<$H$5),OR($Q24<$H$5,$Q24<BG$6)),IFERROR(VLOOKUP($C24,Val_int!$C$12:$K$401,9,FALSE),""),"_"),""),"") ->  | BH24: =IF(AND($Q24<>"",$Q24<>"non inscrit"),IF(IFERROR(VLOOKUP($C24,Qc_int!$C$12:$K$401,5,FALSE),"")=$F24,IF(AND(OR($Q24>=$H$4,$O$1<$H$5),OR($Q24<$H$5,$Q24<BH$6)),IFERROR(VLOOKUP($C24,Qc_int!$C$12:$K$401,9,FALSE),""),"_"),""),"") ->  | BI24: =IF(AND($Q24<>"",$Q24<>"non inscrit"),IF(IFERROR(VLOOKUP($C24,Qc2_int!$C$12:$K$401,5,FALSE),"")=$F24,IF(AND(OR($Q24>=$H$4,$O$1<$H$5),OR($Q24<$H$5,$Q24<BI$6)),IFERROR(VLOOKUP($C24,Qc2_int!$C$12:$K$401,9,FALSE),""),"_"),""),"") ->  | BJ24: =IF(AND($Q24<>"",$Q24<>"non inscrit"),IF(IFERROR(VLOOKUP($C24,#REF!,5,FALSE),"")=$F24,IF(AND(OR($Q24>=$H$4,$O$1<$H$5),OR($Q24<$H$5,$Q24<$AY$6)),IFERROR(VLOOKUP($C24,#REF!,9,FALSE),""),"_"),""),"") ->  | BK24: =IF(AND($Q24<>"",$Q24<>"non inscrit"),IF(IFERROR(VLOOKUP($C24,#REF!,5,FALSE),"")=$F24,IF(AND(OR($Q24>=$H$4,$O$1<$H$5),OR($Q24<$H$5,$Q24<$AY$6)),IFERROR(VLOOKUP($C24,#REF!,9,FALSE),""),"_"),""),"") ->  | BU24: =IF(AND($Q24<>"",$Q24<>"non inscrit"),IF(IFERROR(VLOOKUP($C24,FIN_int!$C$12:$K$401,5,FALSE),"")=$F24,IF(AND(OR($Q24>=$H$4,$O$1<$H$5),OR($Q24<$H$5,$Q24<BU$6)),IFERROR(VLOOKUP($C24,FIN_int!$C$12:$K$401,9,FALSE),""),"_"),""),"") -> 
A25: 1 | B25: 14 | C25: 7459 | D25: =IF($C25="","",IF($O$1>$H$4,IFERROR(VLOOKUP($C25,'Membres-2023'!$A:$G,2,FALSE),""),IFERROR(VLOOKUP($C25,'Membres-2022'!$A:$G,2,FALSE),""))) -> Pigeon | E25: =IF($C25="","",IF($O$1>$H$4,IFERROR(VLOOKUP($C25,'Membres-2023'!$A:$G,3,FALSE),""),IFERROR(VLOOKUP($C25,'Membres-2022'!$A:$G,3,FALSE),""))) -> Harisson | F25: =IF($C25="","",IF($O$1>$H$4,IFERROR(VLOOKUP($C25,'Membres-2023'!$A:$G,7,FALSE),""),IFERROR(VLOOKUP($C25,'Membres-2022'!$A:$G,7,FALSE),""))) -> 3 | G25: =IF($C25="","",IF($O$1>$H$4,IFERROR(VLOOKUP($C25,'Membres-2023'!$A:$G,5,FALSE),""),IFERROR(VLOOKUP($C25,'Membres-2022'!$A:$G,5,FALSE),""))) -> Val d'Or (Les archers de) | H25: 1 | I25: 33 | J25: 0 | K25: =IFERROR(IF(VLOOKUP(C25,'Membres-2022'!$A:$F,6,FALSE)>=$H$3,VLOOKUP(C25,'Membres-2022'!$A:$F,6,FALSE),"non inscrit"),IF($C25>0,"non inscrit","")) -> non inscrit | Q25: =IFERROR(IF(VLOOKUP($C25,'Membres-2023'!$A:$F,6,FALSE)>=$H$3,VLOOKUP($C25,'Membres-2023'!$A:$F,6,FALSE),"non inscrit"),"") -> 2023-02-23 | R25: 33 | Z25: =IF(IF(AND($K25<>"non inscrit",Z$6<$H$4),OR($K25<$H$5,$K25<Z$6),OR($Q25<$H$5,$Q25<Z$6)),IFERROR(IF(VLOOKUP($C25,Stroch_ext!$C$12:$K$400,5,FALSE)=$F25,VLOOKUP($C25,Stroch_ext!$C$12:$K$400,9,FALSE),""),""),"") ->  | AA25: =IF(IF(AND($K25<>"non inscrit",AA$6<$H$4),OR($K25<$H$5,$K25<AA$6),OR($Q25<$H$5,$Q25<AA$6)),IFERROR(IF(VLOOKUP($C25,Vallée_ext!$C$12:$K$400,5,FALSE)=$F25,VLOOKUP($C25,Vallée_ext!$C$12:$K$400,9,FALSE),""),""),"") ->  | AB25: =IF(IF(AND($K25<>"non inscrit",AB$6<$H$4),OR($K25<$H$5,$K25<AB$6),OR($Q25<$H$5,$Q25<AB$6)),IFERROR(IF(VLOOKUP($C25,ASF_ext!$C$12:$K$400,5,FALSE)=$F25,VLOOKUP($C25,ASF_ext!$C$12:$K$400,9,FALSE),""),""),"") ->  | AC25: =IF(IF(AND($K25<>"non inscrit",AC$6<$H$4),OR($K25<$H$5,$K25<AC$6),OR($Q25<$H$5,$Q25<AC$6)),IFERROR(IF(VLOOKUP($C25,MtLaur_ext!$C$12:$K$407,5,FALSE)=$F25,VLOOKUP($C25,MtLaur_ext!$C$12:$K$407,9,FALSE),""),""),"") ->  | AD25: =IF(IF(AND($K25<>"non inscrit",AD$6<$H$4),OR($K25<$H$5,$K25<AD$6),OR($Q25<$H$5,$Q25<AD$6)),IFERROR(IF(VLOOKUP($C25,Nord_ext!$C$12:$K$400,5,FALSE)=$F25,VLOOKUP($C25,Nord_ext!$C$12:$K$400,9,FALSE),""),""),"") ->  | AE25: =IF(IF(AND($K25<>"non inscrit",AE$6<$H$4),OR($K25<$H$5,$K25<AE$6),OR($Q25<$H$5,$Q25<AE$6)),IFERROR(IF(VLOOKUP($C25,CentreQc_ext!$C$12:$K$400,5,FALSE)=$F25,VLOOKUP($C25,CentreQc_ext!$C$12:$K$400,9,FALSE),""),""),"") ->  | AF25: =IF(IF(AND($K25<>"non inscrit",AF$6<$H$4),OR($K25<$H$5,$K25<AF$6),OR($Q25<$H$5,$Q25<AF$6)),IFERROR(IF(VLOOKUP($C25,Ascot_ext!$C$12:$K$400,5,FALSE)=$F25,VLOOKUP($C25,Ascot_ext!$C$12:$K$400,9,FALSE),""),""),"") ->  | AG25: =IF(IF(AND($K25<>"non inscrit",AG$6<$H$4),OR($K25<$H$5,$K25<AG$6),OR($Q25<$H$5,$Q25<AG$6)),IFERROR(IF(VLOOKUP($C25,NDB_ext!$C$12:$K$399,5,FALSE)=$F25,VLOOKUP($C25,NDB_ext!$C$12:$K$399,9,FALSE),""),""),"") ->  | AH25: =IF(IF(AND($K25<>"non inscrit",AH$6<$H$4),OR($K25<$H$5,$K25<AH$6),OR($Q25<$H$5,$Q25<AH$6)),IFERROR(IF(VLOOKUP($C25,Victo_ext!$C$12:$K$400,5,FALSE)=$F25,VLOOKUP($C25,Victo_ext!$C$12:$K$400,9,FALSE),""),""),"") ->  | AI25: =IF(IF(AND($K25<>"non inscrit",AI$6<$H$4),OR($K25<$H$5,$K25<AI$6),OR($Q25<$H$5,$Q25<AI$6)),IFERROR(IF(VLOOKUP($C25,Brome_ext!$C$12:$K$400,5,FALSE)=$F25,VLOOKUP($C25,Brome_ext!$C$12:$K$400,9,FALSE),""),""),"") ->  | AJ25: =IF(IF(AND($K25<>"non inscrit",AJ$6<$H$4),OR($K25<$H$5,$K25<AJ$6),OR($Q25<$H$5,$Q25<AJ$6)),IFERROR(IF(VLOOKUP($C25,Tuque_ext!$C$12:$K$400,5,FALSE)=$F25,VLOOKUP($C25,Tuque_ext!$C$12:$K$400,9,FALSE),""),""),"") ->  | AK25: =IF(IF(AND($K25<>"non inscrit",AK$6<$H$4),OR($K25<$H$5,$K25<AK$6),OR($Q25<$H$5,$Q25<AK$6)),IFERROR(IF(VLOOKUP($C25,Cantley_ext!$C$12:$K$400,5,FALSE)=$F25,VLOOKUP($C25,Cantley_ext!$C$12:$K$400,9,FALSE),""),""),"") ->  | AL25: =IF(IF(AND($K25<>"non inscrit",AL$6<$H$4),OR($K25<$H$5,$K25<AL$6),OR($Q25<$H$5,$Q25<AL$6)),IFERROR(IF(VLOOKUP($C25,CQ2_ext!$C$12:$K$400,5,FALSE)=$F25,VLOOKUP($C25,CQ2_ext!$C$12:$K$400,9,FALSE),""),""),"") ->  | AM25: =IF(IF(AND($K25<>"non inscrit",AM$6<$H$4),OR($K25<$H$5,$K25<AM$6),OR($Q25<$H$5,$Q25<AM$6)),IFERROR(IF(VLOOKUP($C25,Amos_ext!$C$12:$K$400,5,FALSE)=$F25,VLOOKUP($C25,Amos_ext!$C$12:$K$400,9,FALSE)*3/4,""),""),"") ->  | AN25: =IF(IF(AND($K25<>"non inscrit",AN$6<$H$4),OR($K25<$H$5,$K25<AN$6),OR($Q25<$H$5,$Q25<AN$6)),IFERROR(IF(VLOOKUP($C25,LaSarre_ext!$C$12:$K$400,5,FALSE)=$F25,VLOOKUP($C25,LaSarre_ext!$C$12:$K$400,9,FALSE),""),""),"") ->  | AO25: =IF(IF(AND($K25<>"non inscrit",AO$6<$H$4),OR($K25<$H$5,$K25<AO$6),OR($Q25<$H$5,$Q25<AO$6)),IFERROR(IF(VLOOKUP($C25,Rouyn_ext!$C$12:$K$400,5,FALSE)=$F25,VLOOKUP($C25,Rouyn_ext!$C$12:$K$400,9,FALSE),""),""),"") ->  | AP25: =IF(IF(AND($K25<>"non inscrit",AP$6<$H$4),OR($K25<$H$5,$K25<AP$6),OR($Q25<$H$5,$Q25<AP$6)),IFERROR(IF(VLOOKUP($C25,Valdor_ext!$C$12:$K$400,5,FALSE)=$F25,VLOOKUP($C25,Valdor_ext!$C$12:$K$400,9,FALSE),""),""),"") ->  | AQ25: =IF(IF(AND($K25<>"non inscrit",AQ$6<$H$4),OR($K25<$H$5,$K25<AQ$6),OR($Q25<$H$5,$Q25<AQ$6)),IFERROR(IF(VLOOKUP($C25,Perrot_ext!$C$12:$K$400,5,FALSE)=$F25,VLOOKUP($C25,Perrot_ext!$C$12:$K$400,9,FALSE),""),""),"") ->  | AR25: =IF(IF(AND($K25<>"non inscrit",AR$6<$H$4),OR($K25<$H$5,$K25<AR$6),OR($Q25<$H$5,$Q25<AR$6)),IFERROR(IF(VLOOKUP($C25,Sorel_ext!$C$12:$K$400,5,FALSE)=$F25,VLOOKUP($C25,Sorel_ext!$C$12:$K$400,9,FALSE),""),""),"") ->  | AV25: =IF(IF(AND($K25<>"non inscrit",AV$6<$H$4),OR($K25<$H$5,$K25<AV$6),OR($Q25<$H$5,$Q25<AV$6)),IFERROR(IF(VLOOKUP($C25,Finale_ext!$C$12:$K$400,5,FALSE)=$F25,VLOOKUP($C25,Finale_ext!$C$12:$K$400,9,FALSE),""),""),"") ->  | AX25: =IF(AND($Q25<>"",$Q25<>"non inscrit"),IF(IFERROR(VLOOKUP($C25,Coat_int!$C$12:$K$400,5,FALSE),"")=$F25,IF(AND(OR($Q25>=$H$4,$O$1<$H$5),OR($Q25<$H$5,$Q25<AX$6)),IFERROR(VLOOKUP($C25,Coat_int!$C$12:$K$400,9,FALSE),""),"_"),""),"") ->  | AY25: =IF(AND($Q25<>"",$Q25<>"non inscrit"),IF(IFERROR(VLOOKUP($C25,LG_int!$C$12:$K$403,5,FALSE),"")=$F25,IF(AND(OR($Q25>=$H$4,$O$1<$H$5),OR($Q25<$H$5,$Q25<AY$6)),IFERROR(VLOOKUP($C25,LG_int!$C$12:$K$403,9,FALSE),""),"_"),""),"") ->  | AZ25: =IF(AND($Q25<>"",$Q25<>"non inscrit"),IF(IFERROR(VLOOKUP($C25,LSNO_int!$C$12:$K$400,5,FALSE),"")=$F25,IF(AND(OR($Q25>=$H$4,$O$1<$H$5),OR($Q25<$H$5,$Q25<AZ$6)),IFERROR(VLOOKUP($C25,LSNO_int!$C$12:$K$400,9,FALSE),""),"_"),""),"") ->  | BA25: =IF(AND($Q25<>"",$Q25<>"non inscrit"),IF(IFERROR(VLOOKUP($C25,Ach_int!$C$12:$K$400,5,FALSE),"")=$F25,IF(AND(OR($Q25>=$H$4,$O$1<$H$5),OR($Q25<$H$5,$Q25<BA$6)),IFERROR(VLOOKUP($C25,Ach_int!$C$12:$K$400,9,FALSE),""),"_"),""),"") ->  | BB25: =IF(AND($Q25<>"",$Q25<>"non inscrit"),IF(IFERROR(VLOOKUP($C25,Tremb_int!$C$12:$K$400,5,FALSE),"")=$F25,IF(AND(OR($Q25>=$H$4,$O$1<$H$5),OR($Q25<$H$5,$Q25<BB$6)),IFERROR(VLOOKUP($C25,Tremb_int!$C$12:$K$400,9,FALSE),""),"_"),""),"") ->  | BC25: =IF(AND($Q25<>"",$Q25<>"non inscrit"),IF(IFERROR(VLOOKUP($C25,Buck_int!$C$12:$K$400,5,FALSE),"")=$F25,IF(AND(OR($Q25>=$H$4,$O$1<$H$5),OR($Q25<$H$5,$Q25<BC$6)),IFERROR(VLOOKUP($C25,Buck_int!$C$12:$K$400,9,FALSE),""),"_"),""),"") ->  | BD25: =IF(AND($Q25<>"",$Q25<>"non inscrit"),IF(IFERROR(VLOOKUP($C25,Drum_int!$C$12:$K$400,5,FALSE),"")=$F25,IF(AND(OR($Q25>=$H$4,$O$1<$H$5),OR($Q25<$H$5,$Q25<BD$6)),IFERROR(VLOOKUP($C25,Drum_int!$C$12:$K$400,9,FALSE),""),"_"),""),"") ->  | BE25: =IF(AND($Q25<>"",$Q25<>"non inscrit"),IF(IFERROR(VLOOKUP($C25,Coat_int2!$C$12:$K$400,5,FALSE),"")=$F25,IF(AND(OR($Q25>=$H$4,$O$1<$H$5),OR($Q25<$H$5,$Q25<BE$6)),IFERROR(VLOOKUP($C25,Coat_int2!$C$12:$K$400,9,FALSE),""),"_"),""),"") ->  | BF25: =IF(AND($Q25<>"",$Q25<>"non inscrit"),IF(IFERROR(VLOOKUP($C25,Jean_int!$C$12:$K$401,5,FALSE),"")=$F25,IF(AND(OR($Q25>=$H$4,$O$1<$H$5),OR($Q25<$H$5,$Q25<BF$6)),IFERROR(VLOOKUP($C25,Jean_int!$C$12:$K$401,9,FALSE),""),"_"),""),"") ->  | BG25: =IF(AND($Q25<>"",$Q25<>"non inscrit"),IF(IFERROR(VLOOKUP($C25,Val_int!$C$12:$K$401,5,FALSE),"")=$F25,IF(AND(OR($Q25>=$H$4,$O$1<$H$5),OR($Q25<$H$5,$Q25<BG$6)),IFERROR(VLOOKUP($C25,Val_int!$C$12:$K$401,9,FALSE),""),"_"),""),"") -> 198 | BH25: =IF(AND($Q25<>"",$Q25<>"non inscrit"),IF(IFERROR(VLOOKUP($C25,Qc_int!$C$12:$K$401,5,FALSE),"")=$F25,IF(AND(OR($Q25>=$H$4,$O$1<$H$5),OR($Q25<$H$5,$Q25<BH$6)),IFERROR(VLOOKUP($C25,Qc_int!$C$12:$K$401,9,FALSE),""),"_"),""),"") ->  | BI25: =IF(AND($Q25<>"",$Q25<>"non inscrit"),IF(IFERROR(VLOOKUP($C25,Qc2_int!$C$12:$K$401,5,FALSE),"")=$F25,IF(AND(OR($Q25>=$H$4,$O$1<$H$5),OR($Q25<$H$5,$Q25<BI$6)),IFERROR(VLOOKUP($C25,Qc2_int!$C$12:$K$401,9,FALSE),""),"_"),""),"") ->  | BJ25: =IF(AND($Q25<>"",$Q25<>"non inscrit"),IF(IFERROR(VLOOKUP($C25,#REF!,5,FALSE),"")=$F25,IF(AND(OR($Q25>=$H$4,$O$1<$H$5),OR($Q25<$H$5,$Q25<$AY$6)),IFERROR(VLOOKUP($C25,#REF!,9,FALSE),""),"_"),""),"") ->  | BK25: =IF(AND($Q25<>"",$Q25<>"non inscrit"),IF(IFERROR(VLOOKUP($C25,#REF!,5,FALSE),"")=$F25,IF(AND(OR($Q25>=$H$4,$O$1<$H$5),OR($Q25<$H$5,$Q25<$AY$6)),IFERROR(VLOOKUP($C25,#REF!,9,FALSE),""),"_"),""),"") ->  | BU25: =IF(AND($Q25<>"",$Q25<>"non inscrit"),IF(IFERROR(VLOOKUP($C25,FIN_int!$C$12:$K$401,5,FALSE),"")=$F25,IF(AND(OR($Q25>=$H$4,$O$1<$H$5),OR($Q25<$H$5,$Q25<BU$6)),IFERROR(VLOOKUP($C25,FIN_int!$C$12:$K$401,9,FALSE),""),"_"),""),"") -> 
A26: 1 | B26: 15 | C26: 7254 | D26: =IF($C26="","",IF($O$1>$H$4,IFERROR(VLOOKUP($C26,'Membres-2023'!$A:$G,2,FALSE),""),IFERROR(VLOOKUP($C26,'Membres-2022'!$A:$G,2,FALSE),""))) -> Voyer | E26: =IF($C26="","",IF($O$1>$H$4,IFERROR(VLOOKUP($C26,'Membres-2023'!$A:$G,3,FALSE),""),IFERROR(VLOOKUP($C26,'Membres-2022'!$A:$G,3,FALSE),""))) -> Klaus-Victor | F26: =IF($C26="","",IF($O$1>$H$4,IFERROR(VLOOKUP($C26,'Membres-2023'!$A:$G,7,FALSE),""),IFERROR(VLOOKUP($C26,'Membres-2022'!$A:$G,7,FALSE),""))) -> 3 | G26: =IF($C26="","",IF($O$1>$H$4,IFERROR(VLOOKUP($C26,'Membres-2023'!$A:$G,5,FALSE),""),IFERROR(VLOOKUP($C26,'Membres-2022'!$A:$G,5,FALSE),""))) -> Perrotdamois | H26: 1 | I26: 32 | J26: 32 | K26: =IFERROR(IF(VLOOKUP(C26,'Membres-2022'!$A:$F,6,FALSE)>=$H$3,VLOOKUP(C26,'Membres-2022'!$A:$F,6,FALSE),"non inscrit"),IF($C26>0,"non inscrit","")) -> 2022-02-02 | L26: 32 | Q26: =IFERROR(IF(VLOOKUP($C26,'Membres-2023'!$A:$F,6,FALSE)>=$H$3,VLOOKUP($C26,'Membres-2023'!$A:$F,6,FALSE),"non inscrit"),"") -> 2023-02-27 | Z26: =IF(IF(AND($K26<>"non inscrit",Z$6<$H$4),OR($K26<$H$5,$K26<Z$6),OR($Q26<$H$5,$Q26<Z$6)),IFERROR(IF(VLOOKUP($C26,Stroch_ext!$C$12:$K$400,5,FALSE)=$F26,VLOOKUP($C26,Stroch_ext!$C$12:$K$400,9,FALSE),""),""),"") ->  | AA26: =IF(IF(AND($K26<>"non inscrit",AA$6<$H$4),OR($K26<$H$5,$K26<AA$6),OR($Q26<$H$5,$Q26<AA$6)),IFERROR(IF(VLOOKUP($C26,Vallée_ext!$C$12:$K$400,5,FALSE)=$F26,VLOOKUP($C26,Vallée_ext!$C$12:$K$400,9,FALSE),""),""),"") ->  | AB26: =IF(IF(AND($K26<>"non inscrit",AB$6<$H$4),OR($K26<$H$5,$K26<AB$6),OR($Q26<$H$5,$Q26<AB$6)),IFERROR(IF(VLOOKUP($C26,ASF_ext!$C$12:$K$400,5,FALSE)=$F26,VLOOKUP($C26,ASF_ext!$C$12:$K$400,9,FALSE),""),""),"") ->  | AC26: =IF(IF(AND($K26<>"non inscrit",AC$6<$H$4),OR($K26<$H$5,$K26<AC$6),OR($Q26<$H$5,$Q26<AC$6)),IFERROR(IF(VLOOKUP($C26,MtLaur_ext!$C$12:$K$407,5,FALSE)=$F26,VLOOKUP($C26,MtLaur_ext!$C$12:$K$407,9,FALSE),""),""),"") ->  | AD26: =IF(IF(AND($K26<>"non inscrit",AD$6<$H$4),OR($K26<$H$5,$K26<AD$6),OR($Q26<$H$5,$Q26<AD$6)),IFERROR(IF(VLOOKUP($C26,Nord_ext!$C$12:$K$400,5,FALSE)=$F26,VLOOKUP($C26,Nord_ext!$C$12:$K$400,9,FALSE),""),""),"") ->  | AE26: =IF(IF(AND($K26<>"non inscrit",AE$6<$H$4),OR($K26<$H$5,$K26<AE$6),OR($Q26<$H$5,$Q26<AE$6)),IFERROR(IF(VLOOKUP($C26,CentreQc_ext!$C$12:$K$400,5,FALSE)=$F26,VLOOKUP($C26,CentreQc_ext!$C$12:$K$400,9,FALSE),""),""),"") ->  | AF26: =IF(IF(AND($K26<>"non inscrit",AF$6<$H$4),OR($K26<$H$5,$K26<AF$6),OR($Q26<$H$5,$Q26<AF$6)),IFERROR(IF(VLOOKUP($C26,Ascot_ext!$C$12:$K$400,5,FALSE)=$F26,VLOOKUP($C26,Ascot_ext!$C$12:$K$400,9,FALSE),""),""),"") ->  | AG26: =IF(IF(AND($K26<>"non inscrit",AG$6<$H$4),OR($K26<$H$5,$K26<AG$6),OR($Q26<$H$5,$Q26<AG$6)),IFERROR(IF(VLOOKUP($C26,NDB_ext!$C$12:$K$399,5,FALSE)=$F26,VLOOKUP($C26,NDB_ext!$C$12:$K$399,9,FALSE),""),""),"") ->  | AH26: =IF(IF(AND($K26<>"non inscrit",AH$6<$H$4),OR($K26<$H$5,$K26<AH$6),OR($Q26<$H$5,$Q26<AH$6)),IFERROR(IF(VLOOKUP($C26,Victo_ext!$C$12:$K$400,5,FALSE)=$F26,VLOOKUP($C26,Victo_ext!$C$12:$K$400,9,FALSE),""),""),"") ->  | AI26: =IF(IF(AND($K26<>"non inscrit",AI$6<$H$4),OR($K26<$H$5,$K26<AI$6),OR($Q26<$H$5,$Q26<AI$6)),IFERROR(IF(VLOOKUP($C26,Brome_ext!$C$12:$K$400,5,FALSE)=$F26,VLOOKUP($C26,Brome_ext!$C$12:$K$400,9,FALSE),""),""),"") ->  | AJ26: =IF(IF(AND($K26<>"non inscrit",AJ$6<$H$4),OR($K26<$H$5,$K26<AJ$6),OR($Q26<$H$5,$Q26<AJ$6)),IFERROR(IF(VLOOKUP($C26,Tuque_ext!$C$12:$K$400,5,FALSE)=$F26,VLOOKUP($C26,Tuque_ext!$C$12:$K$400,9,FALSE),""),""),"") ->  | AK26: =IF(IF(AND($K26<>"non inscrit",AK$6<$H$4),OR($K26<$H$5,$K26<AK$6),OR($Q26<$H$5,$Q26<AK$6)),IFERROR(IF(VLOOKUP($C26,Cantley_ext!$C$12:$K$400,5,FALSE)=$F26,VLOOKUP($C26,Cantley_ext!$C$12:$K$400,9,FALSE),""),""),"") ->  | AL26: =IF(IF(AND($K26<>"non inscrit",AL$6<$H$4),OR($K26<$H$5,$K26<AL$6),OR($Q26<$H$5,$Q26<AL$6)),IFERROR(IF(VLOOKUP($C26,CQ2_ext!$C$12:$K$400,5,FALSE)=$F26,VLOOKUP($C26,CQ2_ext!$C$12:$K$400,9,FALSE),""),""),"") ->  | AM26: =IF(IF(AND($K26<>"non inscrit",AM$6<$H$4),OR($K26<$H$5,$K26<AM$6),OR($Q26<$H$5,$Q26<AM$6)),IFERROR(IF(VLOOKUP($C26,Amos_ext!$C$12:$K$400,5,FALSE)=$F26,VLOOKUP($C26,Amos_ext!$C$12:$K$400,9,FALSE)*3/4,""),""),"") ->  | AN26: =IF(IF(AND($K26<>"non inscrit",AN$6<$H$4),OR($K26<$H$5,$K26<AN$6),OR($Q26<$H$5,$Q26<AN$6)),IFERROR(IF(VLOOKUP($C26,LaSarre_ext!$C$12:$K$400,5,FALSE)=$F26,VLOOKUP($C26,LaSarre_ext!$C$12:$K$400,9,FALSE),""),""),"") ->  | AO26: =IF(IF(AND($K26<>"non inscrit",AO$6<$H$4),OR($K26<$H$5,$K26<AO$6),OR($Q26<$H$5,$Q26<AO$6)),IFERROR(IF(VLOOKUP($C26,Rouyn_ext!$C$12:$K$400,5,FALSE)=$F26,VLOOKUP($C26,Rouyn_ext!$C$12:$K$400,9,FALSE),""),""),"") ->  | AP26: =IF(IF(AND($K26<>"non inscrit",AP$6<$H$4),OR($K26<$H$5,$K26<AP$6),OR($Q26<$H$5,$Q26<AP$6)),IFERROR(IF(VLOOKUP($C26,Valdor_ext!$C$12:$K$400,5,FALSE)=$F26,VLOOKUP($C26,Valdor_ext!$C$12:$K$400,9,FALSE),""),""),"") ->  | AQ26: =IF(IF(AND($K26<>"non inscrit",AQ$6<$H$4),OR($K26<$H$5,$K26<AQ$6),OR($Q26<$H$5,$Q26<AQ$6)),IFERROR(IF(VLOOKUP($C26,Perrot_ext!$C$12:$K$400,5,FALSE)=$F26,VLOOKUP($C26,Perrot_ext!$C$12:$K$400,9,FALSE),""),""),"") -> 192 | AR26: =IF(IF(AND($K26<>"non inscrit",AR$6<$H$4),OR($K26<$H$5,$K26<AR$6),OR($Q26<$H$5,$Q26<AR$6)),IFERROR(IF(VLOOKUP($C26,Sorel_ext!$C$12:$K$400,5,FALSE)=$F26,VLOOKUP($C26,Sorel_ext!$C$12:$K$400,9,FALSE),""),""),"") ->  | AV26: =IF(IF(AND($K26<>"non inscrit",AV$6<$H$4),OR($K26<$H$5,$K26<AV$6),OR($Q26<$H$5,$Q26<AV$6)),IFERROR(IF(VLOOKUP($C26,Finale_ext!$C$12:$K$400,5,FALSE)=$F26,VLOOKUP($C26,Finale_ext!$C$12:$K$400,9,FALSE),""),""),"") ->  | AX26: =IF(AND($Q26<>"",$Q26<>"non inscrit"),IF(IFERROR(VLOOKUP($C26,Coat_int!$C$12:$K$400,5,FALSE),"")=$F26,IF(AND(OR($Q26>=$H$4,$O$1<$H$5),OR($Q26<$H$5,$Q26<AX$6)),IFERROR(VLOOKUP($C26,Coat_int!$C$12:$K$400,9,FALSE),""),"_"),""),"") ->  | AY26: =IF(AND($Q26<>"",$Q26<>"non inscrit"),IF(IFERROR(VLOOKUP($C26,LG_int!$C$12:$K$403,5,FALSE),"")=$F26,IF(AND(OR($Q26>=$H$4,$O$1<$H$5),OR($Q26<$H$5,$Q26<AY$6)),IFERROR(VLOOKUP($C26,LG_int!$C$12:$K$403,9,FALSE),""),"_"),""),"") ->  | AZ26: =IF(AND($Q26<>"",$Q26<>"non inscrit"),IF(IFERROR(VLOOKUP($C26,LSNO_int!$C$12:$K$400,5,FALSE),"")=$F26,IF(AND(OR($Q26>=$H$4,$O$1<$H$5),OR($Q26<$H$5,$Q26<AZ$6)),IFERROR(VLOOKUP($C26,LSNO_int!$C$12:$K$400,9,FALSE),""),"_"),""),"") ->  | BA26: =IF(AND($Q26<>"",$Q26<>"non inscrit"),IF(IFERROR(VLOOKUP($C26,Ach_int!$C$12:$K$400,5,FALSE),"")=$F26,IF(AND(OR($Q26>=$H$4,$O$1<$H$5),OR($Q26<$H$5,$Q26<BA$6)),IFERROR(VLOOKUP($C26,Ach_int!$C$12:$K$400,9,FALSE),""),"_"),""),"") ->  | BB26: =IF(AND($Q26<>"",$Q26<>"non inscrit"),IF(IFERROR(VLOOKUP($C26,Tremb_int!$C$12:$K$400,5,FALSE),"")=$F26,IF(AND(OR($Q26>=$H$4,$O$1<$H$5),OR($Q26<$H$5,$Q26<BB$6)),IFERROR(VLOOKUP($C26,Tremb_int!$C$12:$K$400,9,FALSE),""),"_"),""),"") ->  | BC26: =IF(AND($Q26<>"",$Q26<>"non inscrit"),IF(IFERROR(VLOOKUP($C26,Buck_int!$C$12:$K$400,5,FALSE),"")=$F26,IF(AND(OR($Q26>=$H$4,$O$1<$H$5),OR($Q26<$H$5,$Q26<BC$6)),IFERROR(VLOOKUP($C26,Buck_int!$C$12:$K$400,9,FALSE),""),"_"),""),"") ->  | BD26: =IF(AND($Q26<>"",$Q26<>"non inscrit"),IF(IFERROR(VLOOKUP($C26,Drum_int!$C$12:$K$400,5,FALSE),"")=$F26,IF(AND(OR($Q26>=$H$4,$O$1<$H$5),OR($Q26<$H$5,$Q26<BD$6)),IFERROR(VLOOKUP($C26,Drum_int!$C$12:$K$400,9,FALSE),""),"_"),""),"") ->  | BE26: =IF(AND($Q26<>"",$Q26<>"non inscrit"),IF(IFERROR(VLOOKUP($C26,Coat_int2!$C$12:$K$400,5,FALSE),"")=$F26,IF(AND(OR($Q26>=$H$4,$O$1<$H$5),OR($Q26<$H$5,$Q26<BE$6)),IFERROR(VLOOKUP($C26,Coat_int2!$C$12:$K$400,9,FALSE),""),"_"),""),"") ->  | BF26: =IF(AND($Q26<>"",$Q26<>"non inscrit"),IF(IFERROR(VLOOKUP($C26,Jean_int!$C$12:$K$401,5,FALSE),"")=$F26,IF(AND(OR($Q26>=$H$4,$O$1<$H$5),OR($Q26<$H$5,$Q26<BF$6)),IFERROR(VLOOKUP($C26,Jean_int!$C$12:$K$401,9,FALSE),""),"_"),""),"") ->  | BG26: =IF(AND($Q26<>"",$Q26<>"non inscrit"),IF(IFERROR(VLOOKUP($C26,Val_int!$C$12:$K$401,5,FALSE),"")=$F26,IF(AND(OR($Q26>=$H$4,$O$1<$H$5),OR($Q26<$H$5,$Q26<BG$6)),IFERROR(VLOOKUP($C26,Val_int!$C$12:$K$401,9,FALSE),""),"_"),""),"") ->  | BH26: =IF(AND($Q26<>"",$Q26<>"non inscrit"),IF(IFERROR(VLOOKUP($C26,Qc_int!$C$12:$K$401,5,FALSE),"")=$F26,IF(AND(OR($Q26>=$H$4,$O$1<$H$5),OR($Q26<$H$5,$Q26<BH$6)),IFERROR(VLOOKUP($C26,Qc_int!$C$12:$K$401,9,FALSE),""),"_"),""),"") ->  | BI26: =IF(AND($Q26<>"",$Q26<>"non inscrit"),IF(IFERROR(VLOOKUP($C26,Qc2_int!$C$12:$K$401,5,FALSE),"")=$F26,IF(AND(OR($Q26>=$H$4,$O$1<$H$5),OR($Q26<$H$5,$Q26<BI$6)),IFERROR(VLOOKUP($C26,Qc2_int!$C$12:$K$401,9,FALSE),""),"_"),""),"") ->  | BJ26: =IF(AND($Q26<>"",$Q26<>"non inscrit"),IF(IFERROR(VLOOKUP($C26,#REF!,5,FALSE),"")=$F26,IF(AND(OR($Q26>=$H$4,$O$1<$H$5),OR($Q26<$H$5,$Q26<$AY$6)),IFERROR(VLOOKUP($C26,#REF!,9,FALSE),""),"_"),""),"") ->  | BK26: =IF(AND($Q26<>"",$Q26<>"non inscrit"),IF(IFERROR(VLOOKUP($C26,#REF!,5,FALSE),"")=$F26,IF(AND(OR($Q26>=$H$4,$O$1<$H$5),OR($Q26<$H$5,$Q26<$AY$6)),IFERROR(VLOOKUP($C26,#REF!,9,FALSE),""),"_"),""),"") ->  | BU26: =IF(AND($Q26<>"",$Q26<>"non inscrit"),IF(IFERROR(VLOOKUP($C26,FIN_int!$C$12:$K$401,5,FALSE),"")=$F26,IF(AND(OR($Q26>=$H$4,$O$1<$H$5),OR($Q26<$H$5,$Q26<BU$6)),IFERROR(VLOOKUP($C26,FIN_int!$C$12:$K$401,9,FALSE),""),"_"),""),"") -> 
A27: 1 | B27: 16 | C27: 5743 | D27: =IF($C27="","",IF($O$1>$H$4,IFERROR(VLOOKUP($C27,'Membres-2023'!$A:$G,2,FALSE),""),IFERROR(VLOOKUP($C27,'Membres-2022'!$A:$G,2,FALSE),""))) -> BISSONETTE | E27: =IF($C27="","",IF($O$1>$H$4,IFERROR(VLOOKUP($C27,'Membres-2023'!$A:$G,3,FALSE),""),IFERROR(VLOOKUP($C27,'Membres-2022'!$A:$G,3,FALSE),""))) -> SAMUEL | F27: =IF($C27="","",IF($O$1>$H$4,IFERROR(VLOOKUP($C27,'Membres-2023'!$A:$G,7,FALSE),""),IFERROR(VLOOKUP($C27,'Membres-2022'!$A:$G,7,FALSE),""))) -> 1 | G27: =IF($C27="","",IF($O$1>$H$4,IFERROR(VLOOKUP($C27,'Membres-2023'!$A:$G,5,FALSE),""),IFERROR(VLOOKUP($C27,'Membres-2022'!$A:$G,5,FALSE),""))) -> Buckingham (Archers de) | H27: 1 | I27: 31.66666667 | J27: 0 | K27: =IFERROR(IF(VLOOKUP(C27,'Membres-2022'!$A:$F,6,FALSE)>=$H$3,VLOOKUP(C27,'Membres-2022'!$A:$F,6,FALSE),"non inscrit"),IF($C27>0,"non inscrit","")) -> non inscrit | Q27: =IFERROR(IF(VLOOKUP($C27,'Membres-2023'!$A:$F,6,FALSE)>=$H$3,VLOOKUP($C27,'Membres-2023'!$A:$F,6,FALSE),"non inscrit"),"") -> 2023-02-18 | R27: 31.66666667 | Z27: =IF(IF(AND($K27<>"non inscrit",Z$6<$H$4),OR($K27<$H$5,$K27<Z$6),OR($Q27<$H$5,$Q27<Z$6)),IFERROR(IF(VLOOKUP($C27,Stroch_ext!$C$12:$K$400,5,FALSE)=$F27,VLOOKUP($C27,Stroch_ext!$C$12:$K$400,9,FALSE),""),""),"") ->  | AA27: =IF(IF(AND($K27<>"non inscrit",AA$6<$H$4),OR($K27<$H$5,$K27<AA$6),OR($Q27<$H$5,$Q27<AA$6)),IFERROR(IF(VLOOKUP($C27,Vallée_ext!$C$12:$K$400,5,FALSE)=$F27,VLOOKUP($C27,Vallée_ext!$C$12:$K$400,9,FALSE),""),""),"") ->  | AB27: =IF(IF(AND($K27<>"non inscrit",AB$6<$H$4),OR($K27<$H$5,$K27<AB$6),OR($Q27<$H$5,$Q27<AB$6)),IFERROR(IF(VLOOKUP($C27,ASF_ext!$C$12:$K$400,5,FALSE)=$F27,VLOOKUP($C27,ASF_ext!$C$12:$K$400,9,FALSE),""),""),"") ->  | AC27: =IF(IF(AND($K27<>"non inscrit",AC$6<$H$4),OR($K27<$H$5,$K27<AC$6),OR($Q27<$H$5,$Q27<AC$6)),IFERROR(IF(VLOOKUP($C27,MtLaur_ext!$C$12:$K$407,5,FALSE)=$F27,VLOOKUP($C27,MtLaur_ext!$C$12:$K$407,9,FALSE),""),""),"") ->  | AD27: =IF(IF(AND($K27<>"non inscrit",AD$6<$H$4),OR($K27<$H$5,$K27<AD$6),OR($Q27<$H$5,$Q27<AD$6)),IFERROR(IF(VLOOKUP($C27,Nord_ext!$C$12:$K$400,5,FALSE)=$F27,VLOOKUP($C27,Nord_ext!$C$12:$K$400,9,FALSE),""),""),"") ->  | AE27: =IF(IF(AND($K27<>"non inscrit",AE$6<$H$4),OR($K27<$H$5,$K27<AE$6),OR($Q27<$H$5,$Q27<AE$6)),IFERROR(IF(VLOOKUP($C27,CentreQc_ext!$C$12:$K$400,5,FALSE)=$F27,VLOOKUP($C27,CentreQc_ext!$C$12:$K$400,9,FALSE),""),""),"") ->  | AF27: =IF(IF(AND($K27<>"non inscrit",AF$6<$H$4),OR($K27<$H$5,$K27<AF$6),OR($Q27<$H$5,$Q27<AF$6)),IFERROR(IF(VLOOKUP($C27,Ascot_ext!$C$12:$K$400,5,FALSE)=$F27,VLOOKUP($C27,Ascot_ext!$C$12:$K$400,9,FALSE),""),""),"") ->  | AG27: =IF(IF(AND($K27<>"non inscrit",AG$6<$H$4),OR($K27<$H$5,$K27<AG$6),OR($Q27<$H$5,$Q27<AG$6)),IFERROR(IF(VLOOKUP($C27,NDB_ext!$C$12:$K$399,5,FALSE)=$F27,VLOOKUP($C27,NDB_ext!$C$12:$K$399,9,FALSE),""),""),"") ->  | AH27: =IF(IF(AND($K27<>"non inscrit",AH$6<$H$4),OR($K27<$H$5,$K27<AH$6),OR($Q27<$H$5,$Q27<AH$6)),IFERROR(IF(VLOOKUP($C27,Victo_ext!$C$12:$K$400,5,FALSE)=$F27,VLOOKUP($C27,Victo_ext!$C$12:$K$400,9,FALSE),""),""),"") ->  | AI27: =IF(IF(AND($K27<>"non inscrit",AI$6<$H$4),OR($K27<$H$5,$K27<AI$6),OR($Q27<$H$5,$Q27<AI$6)),IFERROR(IF(VLOOKUP($C27,Brome_ext!$C$12:$K$400,5,FALSE)=$F27,VLOOKUP($C27,Brome_ext!$C$12:$K$400,9,FALSE),""),""),"") ->  | AJ27: =IF(IF(AND($K27<>"non inscrit",AJ$6<$H$4),OR($K27<$H$5,$K27<AJ$6),OR($Q27<$H$5,$Q27<AJ$6)),IFERROR(IF(VLOOKUP($C27,Tuque_ext!$C$12:$K$400,5,FALSE)=$F27,VLOOKUP($C27,Tuque_ext!$C$12:$K$400,9,FALSE),""),""),"") ->  | AK27: =IF(IF(AND($K27<>"non inscrit",AK$6<$H$4),OR($K27<$H$5,$K27<AK$6),OR($Q27<$H$5,$Q27<AK$6)),IFERROR(IF(VLOOKUP($C27,Cantley_ext!$C$12:$K$400,5,FALSE)=$F27,VLOOKUP($C27,Cantley_ext!$C$12:$K$400,9,FALSE),""),""),"") ->  | AL27: =IF(IF(AND($K27<>"non inscrit",AL$6<$H$4),OR($K27<$H$5,$K27<AL$6),OR($Q27<$H$5,$Q27<AL$6)),IFERROR(IF(VLOOKUP($C27,CQ2_ext!$C$12:$K$400,5,FALSE)=$F27,VLOOKUP($C27,CQ2_ext!$C$12:$K$400,9,FALSE),""),""),"") ->  | AM27: =IF(IF(AND($K27<>"non inscrit",AM$6<$H$4),OR($K27<$H$5,$K27<AM$6),OR($Q27<$H$5,$Q27<AM$6)),IFERROR(IF(VLOOKUP($C27,Amos_ext!$C$12:$K$400,5,FALSE)=$F27,VLOOKUP($C27,Amos_ext!$C$12:$K$400,9,FALSE)*3/4,""),""),"") ->  | AN27: =IF(IF(AND($K27<>"non inscrit",AN$6<$H$4),OR($K27<$H$5,$K27<AN$6),OR($Q27<$H$5,$Q27<AN$6)),IFERROR(IF(VLOOKUP($C27,LaSarre_ext!$C$12:$K$400,5,FALSE)=$F27,VLOOKUP($C27,LaSarre_ext!$C$12:$K$400,9,FALSE),""),""),"") ->  | AO27: =IF(IF(AND($K27<>"non inscrit",AO$6<$H$4),OR($K27<$H$5,$K27<AO$6),OR($Q27<$H$5,$Q27<AO$6)),IFERROR(IF(VLOOKUP($C27,Rouyn_ext!$C$12:$K$400,5,FALSE)=$F27,VLOOKUP($C27,Rouyn_ext!$C$12:$K$400,9,FALSE),""),""),"") ->  | AP27: =IF(IF(AND($K27<>"non inscrit",AP$6<$H$4),OR($K27<$H$5,$K27<AP$6),OR($Q27<$H$5,$Q27<AP$6)),IFERROR(IF(VLOOKUP($C27,Valdor_ext!$C$12:$K$400,5,FALSE)=$F27,VLOOKUP($C27,Valdor_ext!$C$12:$K$400,9,FALSE),""),""),"") ->  | AQ27: =IF(IF(AND($K27<>"non inscrit",AQ$6<$H$4),OR($K27<$H$5,$K27<AQ$6),OR($Q27<$H$5,$Q27<AQ$6)),IFERROR(IF(VLOOKUP($C27,Perrot_ext!$C$12:$K$400,5,FALSE)=$F27,VLOOKUP($C27,Perrot_ext!$C$12:$K$400,9,FALSE),""),""),"") ->  | AR27: =IF(IF(AND($K27<>"non inscrit",AR$6<$H$4),OR($K27<$H$5,$K27<AR$6),OR($Q27<$H$5,$Q27<AR$6)),IFERROR(IF(VLOOKUP($C27,Sorel_ext!$C$12:$K$400,5,FALSE)=$F27,VLOOKUP($C27,Sorel_ext!$C$12:$K$400,9,FALSE),""),""),"") ->  | AV27: =IF(IF(AND($K27<>"non inscrit",AV$6<$H$4),OR($K27<$H$5,$K27<AV$6),OR($Q27<$H$5,$Q27<AV$6)),IFERROR(IF(VLOOKUP($C27,Finale_ext!$C$12:$K$400,5,FALSE)=$F27,VLOOKUP($C27,Finale_ext!$C$12:$K$400,9,FALSE),""),""),"") ->  | AX27: =IF(AND($Q27<>"",$Q27<>"non inscrit"),IF(IFERROR(VLOOKUP($C27,Coat_int!$C$12:$K$400,5,FALSE),"")=$F27,IF(AND(OR($Q27>=$H$4,$O$1<$H$5),OR($Q27<$H$5,$Q27<AX$6)),IFERROR(VLOOKUP($C27,Coat_int!$C$12:$K$400,9,FALSE),""),"_"),""),"") ->  | AY27: =IF(AND($Q27<>"",$Q27<>"non inscrit"),IF(IFERROR(VLOOKUP($C27,LG_int!$C$12:$K$403,5,FALSE),"")=$F27,IF(AND(OR($Q27>=$H$4,$O$1<$H$5),OR($Q27<$H$5,$Q27<AY$6)),IFERROR(VLOOKUP($C27,LG_int!$C$12:$K$403,9,FALSE),""),"_"),""),"") ->  | AZ27: =IF(AND($Q27<>"",$Q27<>"non inscrit"),IF(IFERROR(VLOOKUP($C27,LSNO_int!$C$12:$K$400,5,FALSE),"")=$F27,IF(AND(OR($Q27>=$H$4,$O$1<$H$5),OR($Q27<$H$5,$Q27<AZ$6)),IFERROR(VLOOKUP($C27,LSNO_int!$C$12:$K$400,9,FALSE),""),"_"),""),"") ->  | BA27: =IF(AND($Q27<>"",$Q27<>"non inscrit"),IF(IFERROR(VLOOKUP($C27,Ach_int!$C$12:$K$400,5,FALSE),"")=$F27,IF(AND(OR($Q27>=$H$4,$O$1<$H$5),OR($Q27<$H$5,$Q27<BA$6)),IFERROR(VLOOKUP($C27,Ach_int!$C$12:$K$400,9,FALSE),""),"_"),""),"") ->  | BB27: =IF(AND($Q27<>"",$Q27<>"non inscrit"),IF(IFERROR(VLOOKUP($C27,Tremb_int!$C$12:$K$400,5,FALSE),"")=$F27,IF(AND(OR($Q27>=$H$4,$O$1<$H$5),OR($Q27<$H$5,$Q27<BB$6)),IFERROR(VLOOKUP($C27,Tremb_int!$C$12:$K$400,9,FALSE),""),"_"),""),"") ->  | BC27: =IF(AND($Q27<>"",$Q27<>"non inscrit"),IF(IFERROR(VLOOKUP($C27,Buck_int!$C$12:$K$400,5,FALSE),"")=$F27,IF(AND(OR($Q27>=$H$4,$O$1<$H$5),OR($Q27<$H$5,$Q27<BC$6)),IFERROR(VLOOKUP($C27,Buck_int!$C$12:$K$400,9,FALSE),""),"_"),""),"") -> 190 | BD27: =IF(AND($Q27<>"",$Q27<>"non inscrit"),IF(IFERROR(VLOOKUP($C27,Drum_int!$C$12:$K$400,5,FALSE),"")=$F27,IF(AND(OR($Q27>=$H$4,$O$1<$H$5),OR($Q27<$H$5,$Q27<BD$6)),IFERROR(VLOOKUP($C27,Drum_int!$C$12:$K$400,9,FALSE),""),"_"),""),"") ->  | BE27: =IF(AND($Q27<>"",$Q27<>"non inscrit"),IF(IFERROR(VLOOKUP($C27,Coat_int2!$C$12:$K$400,5,FALSE),"")=$F27,IF(AND(OR($Q27>=$H$4,$O$1<$H$5),OR($Q27<$H$5,$Q27<BE$6)),IFERROR(VLOOKUP($C27,Coat_int2!$C$12:$K$400,9,FALSE),""),"_"),""),"") ->  | BF27: =IF(AND($Q27<>"",$Q27<>"non inscrit"),IF(IFERROR(VLOOKUP($C27,Jean_int!$C$12:$K$401,5,FALSE),"")=$F27,IF(AND(OR($Q27>=$H$4,$O$1<$H$5),OR($Q27<$H$5,$Q27<BF$6)),IFERROR(VLOOKUP($C27,Jean_int!$C$12:$K$401,9,FALSE),""),"_"),""),"") ->  | BG27: =IF(AND($Q27<>"",$Q27<>"non inscrit"),IF(IFERROR(VLOOKUP($C27,Val_int!$C$12:$K$401,5,FALSE),"")=$F27,IF(AND(OR($Q27>=$H$4,$O$1<$H$5),OR($Q27<$H$5,$Q27<BG$6)),IFERROR(VLOOKUP($C27,Val_int!$C$12:$K$401,9,FALSE),""),"_"),""),"") ->  | BH27: =IF(AND($Q27<>"",$Q27<>"non inscrit"),IF(IFERROR(VLOOKUP($C27,Qc_int!$C$12:$K$401,5,FALSE),"")=$F27,IF(AND(OR($Q27>=$H$4,$O$1<$H$5),OR($Q27<$H$5,$Q27<BH$6)),IFERROR(VLOOKUP($C27,Qc_int!$C$12:$K$401,9,FALSE),""),"_"),""),"") ->  | BI27: =IF(AND($Q27<>"",$Q27<>"non inscrit"),IF(IFERROR(VLOOKUP($C27,Qc2_int!$C$12:$K$401,5,FALSE),"")=$F27,IF(AND(OR($Q27>=$H$4,$O$1<$H$5),OR($Q27<$H$5,$Q27<BI$6)),IFERROR(VLOOKUP($C27,Qc2_int!$C$12:$K$401,9,FALSE),""),"_"),""),"") ->  | BJ27: =IF(AND($Q27<>"",$Q27<>"non inscrit"),IF(IFERROR(VLOOKUP($C27,#REF!,5,FALSE),"")=$F27,IF(AND(OR($Q27>=$H$4,$O$1<$H$5),OR($Q27<$H$5,$Q27<$AY$6)),IFERROR(VLOOKUP($C27,#REF!,9,FALSE),""),"_"),""),"") ->  | BK27: =IF(AND($Q27<>"",$Q27<>"non inscrit"),IF(IFERROR(VLOOKUP($C27,#REF!,5,FALSE),"")=$F27,IF(AND(OR($Q27>=$H$4,$O$1<$H$5),OR($Q27<$H$5,$Q27<$AY$6)),IFERROR(VLOOKUP($C27,#REF!,9,FALSE),""),"_"),""),"") ->  | BU27: =IF(AND($Q27<>"",$Q27<>"non inscrit"),IF(IFERROR(VLOOKUP($C27,FIN_int!$C$12:$K$401,5,FALSE),"")=$F27,IF(AND(OR($Q27>=$H$4,$O$1<$H$5),OR($Q27<$H$5,$Q27<BU$6)),IFERROR(VLOOKUP($C27,FIN_int!$C$12:$K$401,9,FALSE),""),"_"),""),"") -> 
A28: 1 | B28: 17 | C28: 5564 | D28: =IF($C28="","",IF($O$1>$H$4,IFERROR(VLOOKUP($C28,'Membres-2023'!$A:$G,2,FALSE),""),IFERROR(VLOOKUP($C28,'Membres-2022'!$A:$G,2,FALSE),""))) -> Lemay | E28: =IF($C28="","",IF($O$1>$H$4,IFERROR(VLOOKUP($C28,'Membres-2023'!$A:$G,3,FALSE),""),IFERROR(VLOOKUP($C28,'Membres-2022'!$A:$G,3,FALSE),""))) -> Alexis | F28: =IF($C28="","",IF($O$1>$H$4,IFERROR(VLOOKUP($C28,'Membres-2023'!$A:$G,7,FALSE),""),IFERROR(VLOOKUP($C28,'Membres-2022'!$A:$G,7,FALSE),""))) -> 1 | G28: =IF($C28="","",IF($O$1>$H$4,IFERROR(VLOOKUP($C28,'Membres-2023'!$A:$G,5,FALSE),""),IFERROR(VLOOKUP($C28,'Membres-2022'!$A:$G,5,FALSE),""))) -> Archers de la Vallée | H28: 1 | I28: 30.83333333 | J28: 30.83333333 | K28: =IFERROR(IF(VLOOKUP(C28,'Membres-2022'!$A:$F,6,FALSE)>=$H$3,VLOOKUP(C28,'Membres-2022'!$A:$F,6,FALSE),"non inscrit"),IF($C28>0,"non inscrit","")) -> 2022-01-29 | L28: 30.83333333 | Q28: =IFERROR(IF(VLOOKUP($C28,'Membres-2023'!$A:$F,6,FALSE)>=$H$3,VLOOKUP($C28,'Membres-2023'!$A:$F,6,FALSE),"non inscrit"),"") -> 2022-01-29 | Z28: =IF(IF(AND($K28<>"non inscrit",Z$6<$H$4),OR($K28<$H$5,$K28<Z$6),OR($Q28<$H$5,$Q28<Z$6)),IFERROR(IF(VLOOKUP($C28,Stroch_ext!$C$12:$K$400,5,FALSE)=$F28,VLOOKUP($C28,Stroch_ext!$C$12:$K$400,9,FALSE),""),""),"") ->  | AA28: =IF(IF(AND($K28<>"non inscrit",AA$6<$H$4),OR($K28<$H$5,$K28<AA$6),OR($Q28<$H$5,$Q28<AA$6)),IFERROR(IF(VLOOKUP($C28,Vallée_ext!$C$12:$K$400,5,FALSE)=$F28,VLOOKUP($C28,Vallée_ext!$C$12:$K$400,9,FALSE),""),""),"") -> 185 | AB28: =IF(IF(AND($K28<>"non inscrit",AB$6<$H$4),OR($K28<$H$5,$K28<AB$6),OR($Q28<$H$5,$Q28<AB$6)),IFERROR(IF(VLOOKUP($C28,ASF_ext!$C$12:$K$400,5,FALSE)=$F28,VLOOKUP($C28,ASF_ext!$C$12:$K$400,9,FALSE),""),""),"") ->  | AC28: =IF(IF(AND($K28<>"non inscrit",AC$6<$H$4),OR($K28<$H$5,$K28<AC$6),OR($Q28<$H$5,$Q28<AC$6)),IFERROR(IF(VLOOKUP($C28,MtLaur_ext!$C$12:$K$407,5,FALSE)=$F28,VLOOKUP($C28,MtLaur_ext!$C$12:$K$407,9,FALSE),""),""),"") ->  | AD28: =IF(IF(AND($K28<>"non inscrit",AD$6<$H$4),OR($K28<$H$5,$K28<AD$6),OR($Q28<$H$5,$Q28<AD$6)),IFERROR(IF(VLOOKUP($C28,Nord_ext!$C$12:$K$400,5,FALSE)=$F28,VLOOKUP($C28,Nord_ext!$C$12:$K$400,9,FALSE),""),""),"") ->  | AE28: =IF(IF(AND($K28<>"non inscrit",AE$6<$H$4),OR($K28<$H$5,$K28<AE$6),OR($Q28<$H$5,$Q28<AE$6)),IFERROR(IF(VLOOKUP($C28,CentreQc_ext!$C$12:$K$400,5,FALSE)=$F28,VLOOKUP($C28,CentreQc_ext!$C$12:$K$400,9,FALSE),""),""),"") ->  | AF28: =IF(IF(AND($K28<>"non inscrit",AF$6<$H$4),OR($K28<$H$5,$K28<AF$6),OR($Q28<$H$5,$Q28<AF$6)),IFERROR(IF(VLOOKUP($C28,Ascot_ext!$C$12:$K$400,5,FALSE)=$F28,VLOOKUP($C28,Ascot_ext!$C$12:$K$400,9,FALSE),""),""),"") ->  | AG28: =IF(IF(AND($K28<>"non inscrit",AG$6<$H$4),OR($K28<$H$5,$K28<AG$6),OR($Q28<$H$5,$Q28<AG$6)),IFERROR(IF(VLOOKUP($C28,NDB_ext!$C$12:$K$399,5,FALSE)=$F28,VLOOKUP($C28,NDB_ext!$C$12:$K$399,9,FALSE),""),""),"") ->  | AH28: =IF(IF(AND($K28<>"non inscrit",AH$6<$H$4),OR($K28<$H$5,$K28<AH$6),OR($Q28<$H$5,$Q28<AH$6)),IFERROR(IF(VLOOKUP($C28,Victo_ext!$C$12:$K$400,5,FALSE)=$F28,VLOOKUP($C28,Victo_ext!$C$12:$K$400,9,FALSE),""),""),"") ->  | AI28: =IF(IF(AND($K28<>"non inscrit",AI$6<$H$4),OR($K28<$H$5,$K28<AI$6),OR($Q28<$H$5,$Q28<AI$6)),IFERROR(IF(VLOOKUP($C28,Brome_ext!$C$12:$K$400,5,FALSE)=$F28,VLOOKUP($C28,Brome_ext!$C$12:$K$400,9,FALSE),""),""),"") ->  | AJ28: =IF(IF(AND($K28<>"non inscrit",AJ$6<$H$4),OR($K28<$H$5,$K28<AJ$6),OR($Q28<$H$5,$Q28<AJ$6)),IFERROR(IF(VLOOKUP($C28,Tuque_ext!$C$12:$K$400,5,FALSE)=$F28,VLOOKUP($C28,Tuque_ext!$C$12:$K$400,9,FALSE),""),""),"") ->  | AK28: =IF(IF(AND($K28<>"non inscrit",AK$6<$H$4),OR($K28<$H$5,$K28<AK$6),OR($Q28<$H$5,$Q28<AK$6)),IFERROR(IF(VLOOKUP($C28,Cantley_ext!$C$12:$K$400,5,FALSE)=$F28,VLOOKUP($C28,Cantley_ext!$C$12:$K$400,9,FALSE),""),""),"") ->  | AL28: =IF(IF(AND($K28<>"non inscrit",AL$6<$H$4),OR($K28<$H$5,$K28<AL$6),OR($Q28<$H$5,$Q28<AL$6)),IFERROR(IF(VLOOKUP($C28,CQ2_ext!$C$12:$K$400,5,FALSE)=$F28,VLOOKUP($C28,CQ2_ext!$C$12:$K$400,9,FALSE),""),""),"") ->  | AM28: =IF(IF(AND($K28<>"non inscrit",AM$6<$H$4),OR($K28<$H$5,$K28<AM$6),OR($Q28<$H$5,$Q28<AM$6)),IFERROR(IF(VLOOKUP($C28,Amos_ext!$C$12:$K$400,5,FALSE)=$F28,VLOOKUP($C28,Amos_ext!$C$12:$K$400,9,FALSE)*3/4,""),""),"") ->  | AN28: =IF(IF(AND($K28<>"non inscrit",AN$6<$H$4),OR($K28<$H$5,$K28<AN$6),OR($Q28<$H$5,$Q28<AN$6)),IFERROR(IF(VLOOKUP($C28,LaSarre_ext!$C$12:$K$400,5,FALSE)=$F28,VLOOKUP($C28,LaSarre_ext!$C$12:$K$400,9,FALSE),""),""),"") ->  | AO28: =IF(IF(AND($K28<>"non inscrit",AO$6<$H$4),OR($K28<$H$5,$K28<AO$6),OR($Q28<$H$5,$Q28<AO$6)),IFERROR(IF(VLOOKUP($C28,Rouyn_ext!$C$12:$K$400,5,FALSE)=$F28,VLOOKUP($C28,Rouyn_ext!$C$12:$K$400,9,FALSE),""),""),"") ->  | AP28: =IF(IF(AND($K28<>"non inscrit",AP$6<$H$4),OR($K28<$H$5,$K28<AP$6),OR($Q28<$H$5,$Q28<AP$6)),IFERROR(IF(VLOOKUP($C28,Valdor_ext!$C$12:$K$400,5,FALSE)=$F28,VLOOKUP($C28,Valdor_ext!$C$12:$K$400,9,FALSE),""),""),"") ->  | AQ28: =IF(IF(AND($K28<>"non inscrit",AQ$6<$H$4),OR($K28<$H$5,$K28<AQ$6),OR($Q28<$H$5,$Q28<AQ$6)),IFERROR(IF(VLOOKUP($C28,Perrot_ext!$C$12:$K$400,5,FALSE)=$F28,VLOOKUP($C28,Perrot_ext!$C$12:$K$400,9,FALSE),""),""),"") ->  | AR28: =IF(IF(AND($K28<>"non inscrit",AR$6<$H$4),OR($K28<$H$5,$K28<AR$6),OR($Q28<$H$5,$Q28<AR$6)),IFERROR(IF(VLOOKUP($C28,Sorel_ext!$C$12:$K$400,5,FALSE)=$F28,VLOOKUP($C28,Sorel_ext!$C$12:$K$400,9,FALSE),""),""),"") ->  | AV28: =IF(IF(AND($K28<>"non inscrit",AV$6<$H$4),OR($K28<$H$5,$K28<AV$6),OR($Q28<$H$5,$Q28<AV$6)),IFERROR(IF(VLOOKUP($C28,Finale_ext!$C$12:$K$400,5,FALSE)=$F28,VLOOKUP($C28,Finale_ext!$C$12:$K$400,9,FALSE),""),""),"") ->  | AX28: =IF(AND($Q28<>"",$Q28<>"non inscrit"),IF(IFERROR(VLOOKUP($C28,Coat_int!$C$12:$K$400,5,FALSE),"")=$F28,IF(AND(OR($Q28>=$H$4,$O$1<$H$5),OR($Q28<$H$5,$Q28<AX$6)),IFERROR(VLOOKUP($C28,Coat_int!$C$12:$K$400,9,FALSE),""),"_"),""),"") ->  | AY28: =IF(AND($Q28<>"",$Q28<>"non inscrit"),IF(IFERROR(VLOOKUP($C28,LG_int!$C$12:$K$403,5,FALSE),"")=$F28,IF(AND(OR($Q28>=$H$4,$O$1<$H$5),OR($Q28<$H$5,$Q28<AY$6)),IFERROR(VLOOKUP($C28,LG_int!$C$12:$K$403,9,FALSE),""),"_"),""),"") ->  | AZ28: =IF(AND($Q28<>"",$Q28<>"non inscrit"),IF(IFERROR(VLOOKUP($C28,LSNO_int!$C$12:$K$400,5,FALSE),"")=$F28,IF(AND(OR($Q28>=$H$4,$O$1<$H$5),OR($Q28<$H$5,$Q28<AZ$6)),IFERROR(VLOOKUP($C28,LSNO_int!$C$12:$K$400,9,FALSE),""),"_"),""),"") ->  | BA28: =IF(AND($Q28<>"",$Q28<>"non inscrit"),IF(IFERROR(VLOOKUP($C28,Ach_int!$C$12:$K$400,5,FALSE),"")=$F28,IF(AND(OR($Q28>=$H$4,$O$1<$H$5),OR($Q28<$H$5,$Q28<BA$6)),IFERROR(VLOOKUP($C28,Ach_int!$C$12:$K$400,9,FALSE),""),"_"),""),"") ->  | BB28: =IF(AND($Q28<>"",$Q28<>"non inscrit"),IF(IFERROR(VLOOKUP($C28,Tremb_int!$C$12:$K$400,5,FALSE),"")=$F28,IF(AND(OR($Q28>=$H$4,$O$1<$H$5),OR($Q28<$H$5,$Q28<BB$6)),IFERROR(VLOOKUP($C28,Tremb_int!$C$12:$K$400,9,FALSE),""),"_"),""),"") ->  | BC28: =IF(AND($Q28<>"",$Q28<>"non inscrit"),IF(IFERROR(VLOOKUP($C28,Buck_int!$C$12:$K$400,5,FALSE),"")=$F28,IF(AND(OR($Q28>=$H$4,$O$1<$H$5),OR($Q28<$H$5,$Q28<BC$6)),IFERROR(VLOOKUP($C28,Buck_int!$C$12:$K$400,9,FALSE),""),"_"),""),"") ->  | BD28: =IF(AND($Q28<>"",$Q28<>"non inscrit"),IF(IFERROR(VLOOKUP($C28,Drum_int!$C$12:$K$400,5,FALSE),"")=$F28,IF(AND(OR($Q28>=$H$4,$O$1<$H$5),OR($Q28<$H$5,$Q28<BD$6)),IFERROR(VLOOKUP($C28,Drum_int!$C$12:$K$400,9,FALSE),""),"_"),""),"") ->  | BE28: =IF(AND($Q28<>"",$Q28<>"non inscrit"),IF(IFERROR(VLOOKUP($C28,Coat_int2!$C$12:$K$400,5,FALSE),"")=$F28,IF(AND(OR($Q28>=$H$4,$O$1<$H$5),OR($Q28<$H$5,$Q28<BE$6)),IFERROR(VLOOKUP($C28,Coat_int2!$C$12:$K$400,9,FALSE),""),"_"),""),"") ->  | BF28: =IF(AND($Q28<>"",$Q28<>"non inscrit"),IF(IFERROR(VLOOKUP($C28,Jean_int!$C$12:$K$401,5,FALSE),"")=$F28,IF(AND(OR($Q28>=$H$4,$O$1<$H$5),OR($Q28<$H$5,$Q28<BF$6)),IFERROR(VLOOKUP($C28,Jean_int!$C$12:$K$401,9,FALSE),""),"_"),""),"") ->  | BG28: =IF(AND($Q28<>"",$Q28<>"non inscrit"),IF(IFERROR(VLOOKUP($C28,Val_int!$C$12:$K$401,5,FALSE),"")=$F28,IF(AND(OR($Q28>=$H$4,$O$1<$H$5),OR($Q28<$H$5,$Q28<BG$6)),IFERROR(VLOOKUP($C28,Val_int!$C$12:$K$401,9,FALSE),""),"_"),""),"") ->  | BH28: =IF(AND($Q28<>"",$Q28<>"non inscrit"),IF(IFERROR(VLOOKUP($C28,Qc_int!$C$12:$K$401,5,FALSE),"")=$F28,IF(AND(OR($Q28>=$H$4,$O$1<$H$5),OR($Q28<$H$5,$Q28<BH$6)),IFERROR(VLOOKUP($C28,Qc_int!$C$12:$K$401,9,FALSE),""),"_"),""),"") ->  | BI28: =IF(AND($Q28<>"",$Q28<>"non inscrit"),IF(IFERROR(VLOOKUP($C28,Qc2_int!$C$12:$K$401,5,FALSE),"")=$F28,IF(AND(OR($Q28>=$H$4,$O$1<$H$5),OR($Q28<$H$5,$Q28<BI$6)),IFERROR(VLOOKUP($C28,Qc2_int!$C$12:$K$401,9,FALSE),""),"_"),""),"") ->  | BJ28: =IF(AND($Q28<>"",$Q28<>"non inscrit"),IF(IFERROR(VLOOKUP($C28,#REF!,5,FALSE),"")=$F28,IF(AND(OR($Q28>=$H$4,$O$1<$H$5),OR($Q28<$H$5,$Q28<$AY$6)),IFERROR(VLOOKUP($C28,#REF!,9,FALSE),""),"_"),""),"") ->  | BK28: =IF(AND($Q28<>"",$Q28<>"non inscrit"),IF(IFERROR(VLOOKUP($C28,#REF!,5,FALSE),"")=$F28,IF(AND(OR($Q28>=$H$4,$O$1<$H$5),OR($Q28<$H$5,$Q28<$AY$6)),IFERROR(VLOOKUP($C28,#REF!,9,FALSE),""),"_"),""),"") ->  | BU28: =IF(AND($Q28<>"",$Q28<>"non inscrit"),IF(IFERROR(VLOOKUP($C28,FIN_int!$C$12:$K$401,5,FALSE),"")=$F28,IF(AND(OR($Q28>=$H$4,$O$1<$H$5),OR($Q28<$H$5,$Q28<BU$6)),IFERROR(VLOOKUP($C28,FIN_int!$C$12:$K$401,9,FALSE),""),"_"),""),"") -> 
A29: 1 | B29: 18 | C29: 6536 | D29: =IF($C29="","",IF($O$1>$H$4,IFERROR(VLOOKUP($C29,'Membres-2023'!$A:$G,2,FALSE),""),IFERROR(VLOOKUP($C29,'Membres-2022'!$A:$G,2,FALSE),""))) -> Gervais | E29: =IF($C29="","",IF($O$1>$H$4,IFERROR(VLOOKUP($C29,'Membres-2023'!$A:$G,3,FALSE),""),IFERROR(VLOOKUP($C29,'Membres-2022'!$A:$G,3,FALSE),""))) -> Christophe | F29: =IF($C29="","",IF($O$1>$H$4,IFERROR(VLOOKUP($C29,'Membres-2023'!$A:$G,7,FALSE),""),IFERROR(VLOOKUP($C29,'Membres-2022'!$A:$G,7,FALSE),""))) -> 1 | G29: =IF($C29="","",IF($O$1>$H$4,IFERROR(VLOOKUP($C29,'Membres-2023'!$A:$G,5,FALSE),""),IFERROR(VLOOKUP($C29,'Membres-2022'!$A:$G,5,FALSE),""))) -> Val d'Or (Les archers de) | H29: 1 | I29: 19 | J29: 19 | K29: =IFERROR(IF(VLOOKUP(C29,'Membres-2022'!$A:$F,6,FALSE)>=$H$3,VLOOKUP(C29,'Membres-2022'!$A:$F,6,FALSE),"non inscrit"),IF($C29>0,"non inscrit","")) -> 2022-05-13 | L29: 19 | Q29: =IFERROR(IF(VLOOKUP($C29,'Membres-2023'!$A:$F,6,FALSE)>=$H$3,VLOOKUP($C29,'Membres-2023'!$A:$F,6,FALSE),"non inscrit"),"") -> 2023-02-23 | Z29: =IF(IF(AND($K29<>"non inscrit",Z$6<$H$4),OR($K29<$H$5,$K29<Z$6),OR($Q29<$H$5,$Q29<Z$6)),IFERROR(IF(VLOOKUP($C29,Stroch_ext!$C$12:$K$400,5,FALSE)=$F29,VLOOKUP($C29,Stroch_ext!$C$12:$K$400,9,FALSE),""),""),"") ->  | AA29: =IF(IF(AND($K29<>"non inscrit",AA$6<$H$4),OR($K29<$H$5,$K29<AA$6),OR($Q29<$H$5,$Q29<AA$6)),IFERROR(IF(VLOOKUP($C29,Vallée_ext!$C$12:$K$400,5,FALSE)=$F29,VLOOKUP($C29,Vallée_ext!$C$12:$K$400,9,FALSE),""),""),"") ->  | AB29: =IF(IF(AND($K29<>"non inscrit",AB$6<$H$4),OR($K29<$H$5,$K29<AB$6),OR($Q29<$H$5,$Q29<AB$6)),IFERROR(IF(VLOOKUP($C29,ASF_ext!$C$12:$K$400,5,FALSE)=$F29,VLOOKUP($C29,ASF_ext!$C$12:$K$400,9,FALSE),""),""),"") ->  | AC29: =IF(IF(AND($K29<>"non inscrit",AC$6<$H$4),OR($K29<$H$5,$K29<AC$6),OR($Q29<$H$5,$Q29<AC$6)),IFERROR(IF(VLOOKUP($C29,MtLaur_ext!$C$12:$K$407,5,FALSE)=$F29,VLOOKUP($C29,MtLaur_ext!$C$12:$K$407,9,FALSE),""),""),"") ->  | AD29: =IF(IF(AND($K29<>"non inscrit",AD$6<$H$4),OR($K29<$H$5,$K29<AD$6),OR($Q29<$H$5,$Q29<AD$6)),IFERROR(IF(VLOOKUP($C29,Nord_ext!$C$12:$K$400,5,FALSE)=$F29,VLOOKUP($C29,Nord_ext!$C$12:$K$400,9,FALSE),""),""),"") ->  | AE29: =IF(IF(AND($K29<>"non inscrit",AE$6<$H$4),OR($K29<$H$5,$K29<AE$6),OR($Q29<$H$5,$Q29<AE$6)),IFERROR(IF(VLOOKUP($C29,CentreQc_ext!$C$12:$K$400,5,FALSE)=$F29,VLOOKUP($C29,CentreQc_ext!$C$12:$K$400,9,FALSE),""),""),"") ->  | AF29: =IF(IF(AND($K29<>"non inscrit",AF$6<$H$4),OR($K29<$H$5,$K29<AF$6),OR($Q29<$H$5,$Q29<AF$6)),IFERROR(IF(VLOOKUP($C29,Ascot_ext!$C$12:$K$400,5,FALSE)=$F29,VLOOKUP($C29,Ascot_ext!$C$12:$K$400,9,FALSE),""),""),"") ->  | AG29: =IF(IF(AND($K29<>"non inscrit",AG$6<$H$4),OR($K29<$H$5,$K29<AG$6),OR($Q29<$H$5,$Q29<AG$6)),IFERROR(IF(VLOOKUP($C29,NDB_ext!$C$12:$K$399,5,FALSE)=$F29,VLOOKUP($C29,NDB_ext!$C$12:$K$399,9,FALSE),""),""),"") ->  | AH29: =IF(IF(AND($K29<>"non inscrit",AH$6<$H$4),OR($K29<$H$5,$K29<AH$6),OR($Q29<$H$5,$Q29<AH$6)),IFERROR(IF(VLOOKUP($C29,Victo_ext!$C$12:$K$400,5,FALSE)=$F29,VLOOKUP($C29,Victo_ext!$C$12:$K$400,9,FALSE),""),""),"") ->  | AI29: =IF(IF(AND($K29<>"non inscrit",AI$6<$H$4),OR($K29<$H$5,$K29<AI$6),OR($Q29<$H$5,$Q29<AI$6)),IFERROR(IF(VLOOKUP($C29,Brome_ext!$C$12:$K$400,5,FALSE)=$F29,VLOOKUP($C29,Brome_ext!$C$12:$K$400,9,FALSE),""),""),"") ->  | AJ29: =IF(IF(AND($K29<>"non inscrit",AJ$6<$H$4),OR($K29<$H$5,$K29<AJ$6),OR($Q29<$H$5,$Q29<AJ$6)),IFERROR(IF(VLOOKUP($C29,Tuque_ext!$C$12:$K$400,5,FALSE)=$F29,VLOOKUP($C29,Tuque_ext!$C$12:$K$400,9,FALSE),""),""),"") ->  | AK29: =IF(IF(AND($K29<>"non inscrit",AK$6<$H$4),OR($K29<$H$5,$K29<AK$6),OR($Q29<$H$5,$Q29<AK$6)),IFERROR(IF(VLOOKUP($C29,Cantley_ext!$C$12:$K$400,5,FALSE)=$F29,VLOOKUP($C29,Cantley_ext!$C$12:$K$400,9,FALSE),""),""),"") ->  | AL29: =IF(IF(AND($K29<>"non inscrit",AL$6<$H$4),OR($K29<$H$5,$K29<AL$6),OR($Q29<$H$5,$Q29<AL$6)),IFERROR(IF(VLOOKUP($C29,CQ2_ext!$C$12:$K$400,5,FALSE)=$F29,VLOOKUP($C29,CQ2_ext!$C$12:$K$400,9,FALSE),""),""),"") ->  | AM29: =IF(IF(AND($K29<>"non inscrit",AM$6<$H$4),OR($K29<$H$5,$K29<AM$6),OR($Q29<$H$5,$Q29<AM$6)),IFERROR(IF(VLOOKUP($C29,Amos_ext!$C$12:$K$400,5,FALSE)=$F29,VLOOKUP($C29,Amos_ext!$C$12:$K$400,9,FALSE)*3/4,""),""),"") ->  | AN29: =IF(IF(AND($K29<>"non inscrit",AN$6<$H$4),OR($K29<$H$5,$K29<AN$6),OR($Q29<$H$5,$Q29<AN$6)),IFERROR(IF(VLOOKUP($C29,LaSarre_ext!$C$12:$K$400,5,FALSE)=$F29,VLOOKUP($C29,LaSarre_ext!$C$12:$K$400,9,FALSE),""),""),"") ->  | AO29: =IF(IF(AND($K29<>"non inscrit",AO$6<$H$4),OR($K29<$H$5,$K29<AO$6),OR($Q29<$H$5,$Q29<AO$6)),IFERROR(IF(VLOOKUP($C29,Rouyn_ext!$C$12:$K$400,5,FALSE)=$F29,VLOOKUP($C29,Rouyn_ext!$C$12:$K$400,9,FALSE),""),""),"") ->  | AP29: =IF(IF(AND($K29<>"non inscrit",AP$6<$H$4),OR($K29<$H$5,$K29<AP$6),OR($Q29<$H$5,$Q29<AP$6)),IFERROR(IF(VLOOKUP($C29,Valdor_ext!$C$12:$K$400,5,FALSE)=$F29,VLOOKUP($C29,Valdor_ext!$C$12:$K$400,9,FALSE),""),""),"") -> 114 | AQ29: =IF(IF(AND($K29<>"non inscrit",AQ$6<$H$4),OR($K29<$H$5,$K29<AQ$6),OR($Q29<$H$5,$Q29<AQ$6)),IFERROR(IF(VLOOKUP($C29,Perrot_ext!$C$12:$K$400,5,FALSE)=$F29,VLOOKUP($C29,Perrot_ext!$C$12:$K$400,9,FALSE),""),""),"") ->  | AR29: =IF(IF(AND($K29<>"non inscrit",AR$6<$H$4),OR($K29<$H$5,$K29<AR$6),OR($Q29<$H$5,$Q29<AR$6)),IFERROR(IF(VLOOKUP($C29,Sorel_ext!$C$12:$K$400,5,FALSE)=$F29,VLOOKUP($C29,Sorel_ext!$C$12:$K$400,9,FALSE),""),""),"") ->  | AV29: =IF(IF(AND($K29<>"non inscrit",AV$6<$H$4),OR($K29<$H$5,$K29<AV$6),OR($Q29<$H$5,$Q29<AV$6)),IFERROR(IF(VLOOKUP($C29,Finale_ext!$C$12:$K$400,5,FALSE)=$F29,VLOOKUP($C29,Finale_ext!$C$12:$K$400,9,FALSE),""),""),"") ->  | AX29: =IF(AND($Q29<>"",$Q29<>"non inscrit"),IF(IFERROR(VLOOKUP($C29,Coat_int!$C$12:$K$400,5,FALSE),"")=$F29,IF(AND(OR($Q29>=$H$4,$O$1<$H$5),OR($Q29<$H$5,$Q29<AX$6)),IFERROR(VLOOKUP($C29,Coat_int!$C$12:$K$400,9,FALSE),""),"_"),""),"") ->  | AY29: =IF(AND($Q29<>"",$Q29<>"non inscrit"),IF(IFERROR(VLOOKUP($C29,LG_int!$C$12:$K$403,5,FALSE),"")=$F29,IF(AND(OR($Q29>=$H$4,$O$1<$H$5),OR($Q29<$H$5,$Q29<AY$6)),IFERROR(VLOOKUP($C29,LG_int!$C$12:$K$403,9,FALSE),""),"_"),""),"") ->  | AZ29: =IF(AND($Q29<>"",$Q29<>"non inscrit"),IF(IFERROR(VLOOKUP($C29,LSNO_int!$C$12:$K$400,5,FALSE),"")=$F29,IF(AND(OR($Q29>=$H$4,$O$1<$H$5),OR($Q29<$H$5,$Q29<AZ$6)),IFERROR(VLOOKUP($C29,LSNO_int!$C$12:$K$400,9,FALSE),""),"_"),""),"") ->  | BA29: =IF(AND($Q29<>"",$Q29<>"non inscrit"),IF(IFERROR(VLOOKUP($C29,Ach_int!$C$12:$K$400,5,FALSE),"")=$F29,IF(AND(OR($Q29>=$H$4,$O$1<$H$5),OR($Q29<$H$5,$Q29<BA$6)),IFERROR(VLOOKUP($C29,Ach_int!$C$12:$K$400,9,FALSE),""),"_"),""),"") ->  | BB29: =IF(AND($Q29<>"",$Q29<>"non inscrit"),IF(IFERROR(VLOOKUP($C29,Tremb_int!$C$12:$K$400,5,FALSE),"")=$F29,IF(AND(OR($Q29>=$H$4,$O$1<$H$5),OR($Q29<$H$5,$Q29<BB$6)),IFERROR(VLOOKUP($C29,Tremb_int!$C$12:$K$400,9,FALSE),""),"_"),""),"") ->  | BC29: =IF(AND($Q29<>"",$Q29<>"non inscrit"),IF(IFERROR(VLOOKUP($C29,Buck_int!$C$12:$K$400,5,FALSE),"")=$F29,IF(AND(OR($Q29>=$H$4,$O$1<$H$5),OR($Q29<$H$5,$Q29<BC$6)),IFERROR(VLOOKUP($C29,Buck_int!$C$12:$K$400,9,FALSE),""),"_"),""),"") ->  | BD29: =IF(AND($Q29<>"",$Q29<>"non inscrit"),IF(IFERROR(VLOOKUP($C29,Drum_int!$C$12:$K$400,5,FALSE),"")=$F29,IF(AND(OR($Q29>=$H$4,$O$1<$H$5),OR($Q29<$H$5,$Q29<BD$6)),IFERROR(VLOOKUP($C29,Drum_int!$C$12:$K$400,9,FALSE),""),"_"),""),"") ->  | BE29: =IF(AND($Q29<>"",$Q29<>"non inscrit"),IF(IFERROR(VLOOKUP($C29,Coat_int2!$C$12:$K$400,5,FALSE),"")=$F29,IF(AND(OR($Q29>=$H$4,$O$1<$H$5),OR($Q29<$H$5,$Q29<BE$6)),IFERROR(VLOOKUP($C29,Coat_int2!$C$12:$K$400,9,FALSE),""),"_"),""),"") ->  | BF29: =IF(AND($Q29<>"",$Q29<>"non inscrit"),IF(IFERROR(VLOOKUP($C29,Jean_int!$C$12:$K$401,5,FALSE),"")=$F29,IF(AND(OR($Q29>=$H$4,$O$1<$H$5),OR($Q29<$H$5,$Q29<BF$6)),IFERROR(VLOOKUP($C29,Jean_int!$C$12:$K$401,9,FALSE),""),"_"),""),"") ->  | BG29: =IF(AND($Q29<>"",$Q29<>"non inscrit"),IF(IFERROR(VLOOKUP($C29,Val_int!$C$12:$K$401,5,FALSE),"")=$F29,IF(AND(OR($Q29>=$H$4,$O$1<$H$5),OR($Q29<$H$5,$Q29<BG$6)),IFERROR(VLOOKUP($C29,Val_int!$C$12:$K$401,9,FALSE),""),"_"),""),"") ->  | BH29: =IF(AND($Q29<>"",$Q29<>"non inscrit"),IF(IFERROR(VLOOKUP($C29,Qc_int!$C$12:$K$401,5,FALSE),"")=$F29,IF(AND(OR($Q29>=$H$4,$O$1<$H$5),OR($Q29<$H$5,$Q29<BH$6)),IFERROR(VLOOKUP($C29,Qc_int!$C$12:$K$401,9,FALSE),""),"_"),""),"") ->  | BI29: =IF(AND($Q29<>"",$Q29<>"non inscrit"),IF(IFERROR(VLOOKUP($C29,Qc2_int!$C$12:$K$401,5,FALSE),"")=$F29,IF(AND(OR($Q29>=$H$4,$O$1<$H$5),OR($Q29<$H$5,$Q29<BI$6)),IFERROR(VLOOKUP($C29,Qc2_int!$C$12:$K$401,9,FALSE),""),"_"),""),"") ->  | BJ29: =IF(AND($Q29<>"",$Q29<>"non inscrit"),IF(IFERROR(VLOOKUP($C29,#REF!,5,FALSE),"")=$F29,IF(AND(OR($Q29>=$H$4,$O$1<$H$5),OR($Q29<$H$5,$Q29<$AY$6)),IFERROR(VLOOKUP($C29,#REF!,9,FALSE),""),"_"),""),"") ->  | BK29: =IF(AND($Q29<>"",$Q29<>"non inscrit"),IF(IFERROR(VLOOKUP($C29,#REF!,5,FALSE),"")=$F29,IF(AND(OR($Q29>=$H$4,$O$1<$H$5),OR($Q29<$H$5,$Q29<$AY$6)),IFERROR(VLOOKUP($C29,#REF!,9,FALSE),""),"_"),""),"") ->  | BU29: =IF(AND($Q29<>"",$Q29<>"non inscrit"),IF(IFERROR(VLOOKUP($C29,FIN_int!$C$12:$K$401,5,FALSE),"")=$F29,IF(AND(OR($Q29>=$H$4,$O$1<$H$5),OR($Q29<$H$5,$Q29<BU$6)),IFERROR(VLOOKUP($C29,FIN_int!$C$12:$K$401,9,FALSE),""),"_"),""),"") -> 
A30: 1 | B30: 19 | D30: =IF($C30="","",IF($O$1>$H$4,IFERROR(VLOOKUP($C30,'Membres-2023'!$A:$G,2,FALSE),""),IFERROR(VLOOKUP($C30,'Membres-2022'!$A:$G,2,FALSE),""))) ->  | E30: =IF($C30="","",IF($O$1>$H$4,IFERROR(VLOOKUP($C30,'Membres-2023'!$A:$G,3,FALSE),""),IFERROR(VLOOKUP($C30,'Membres-2022'!$A:$G,3,FALSE),""))) ->  | F30: =IF($C30="","",IF($O$1>$H$4,IFERROR(VLOOKUP($C30,'Membres-2023'!$A:$G,7,FALSE),""),IFERROR(VLOOKUP($C30,'Membres-2022'!$A:$G,7,FALSE),""))) ->  | G30: =IF($C30="","",IF($O$1>$H$4,IFERROR(VLOOKUP($C30,'Membres-2023'!$A:$G,5,FALSE),""),IFERROR(VLOOKUP($C30,'Membres-2022'!$A:$G,5,FALSE),""))) ->  | H30: 0 | I30: 0 | J30: 0 | K30: =IFERROR(IF(VLOOKUP(C30,'Membres-2022'!$A:$F,6,FALSE)>=$H$3,VLOOKUP(C30,'Membres-2022'!$A:$F,6,FALSE),"non inscrit"),IF($C30>0,"non inscrit","")) ->  | Q30: =IFERROR(IF(VLOOKUP($C30,'Membres-2023'!$A:$F,6,FALSE)>=$H$3,VLOOKUP($C30,'Membres-2023'!$A:$F,6,FALSE),"non inscrit"),"") ->  | Z30: =IF(IF(AND($K30<>"non inscrit",Z$6<$H$4),OR($K30<$H$5,$K30<Z$6),OR($Q30<$H$5,$Q30<Z$6)),IFERROR(IF(VLOOKUP($C30,Stroch_ext!$C$12:$K$400,5,FALSE)=$F30,VLOOKUP($C30,Stroch_ext!$C$12:$K$400,9,FALSE),""),""),"") ->  | AA30: =IF(IF(AND($K30<>"non inscrit",AA$6<$H$4),OR($K30<$H$5,$K30<AA$6),OR($Q30<$H$5,$Q30<AA$6)),IFERROR(IF(VLOOKUP($C30,Vallée_ext!$C$12:$K$400,5,FALSE)=$F30,VLOOKUP($C30,Vallée_ext!$C$12:$K$400,9,FALSE),""),""),"") ->  | AB30: =IF(IF(AND($K30<>"non inscrit",AB$6<$H$4),OR($K30<$H$5,$K30<AB$6),OR($Q30<$H$5,$Q30<AB$6)),IFERROR(IF(VLOOKUP($C30,ASF_ext!$C$12:$K$400,5,FALSE)=$F30,VLOOKUP($C30,ASF_ext!$C$12:$K$400,9,FALSE),""),""),"") ->  | AC30: =IF(IF(AND($K30<>"non inscrit",AC$6<$H$4),OR($K30<$H$5,$K30<AC$6),OR($Q30<$H$5,$Q30<AC$6)),IFERROR(IF(VLOOKUP($C30,MtLaur_ext!$C$12:$K$407,5,FALSE)=$F30,VLOOKUP($C30,MtLaur_ext!$C$12:$K$407,9,FALSE),""),""),"") ->  | AD30: =IF(IF(AND($K30<>"non inscrit",AD$6<$H$4),OR($K30<$H$5,$K30<AD$6),OR($Q30<$H$5,$Q30<AD$6)),IFERROR(IF(VLOOKUP($C30,Nord_ext!$C$12:$K$400,5,FALSE)=$F30,VLOOKUP($C30,Nord_ext!$C$12:$K$400,9,FALSE),""),""),"") ->  | AE30: =IF(IF(AND($K30<>"non inscrit",AE$6<$H$4),OR($K30<$H$5,$K30<AE$6),OR($Q30<$H$5,$Q30<AE$6)),IFERROR(IF(VLOOKUP($C30,CentreQc_ext!$C$12:$K$400,5,FALSE)=$F30,VLOOKUP($C30,CentreQc_ext!$C$12:$K$400,9,FALSE),""),""),"") ->  | AF30: =IF(IF(AND($K30<>"non inscrit",AF$6<$H$4),OR($K30<$H$5,$K30<AF$6),OR($Q30<$H$5,$Q30<AF$6)),IFERROR(IF(VLOOKUP($C30,Ascot_ext!$C$12:$K$400,5,FALSE)=$F30,VLOOKUP($C30,Ascot_ext!$C$12:$K$400,9,FALSE),""),""),"") ->  | AG30: =IF(IF(AND($K30<>"non inscrit",AG$6<$H$4),OR($K30<$H$5,$K30<AG$6),OR($Q30<$H$5,$Q30<AG$6)),IFERROR(IF(VLOOKUP($C30,NDB_ext!$C$12:$K$399,5,FALSE)=$F30,VLOOKUP($C30,NDB_ext!$C$12:$K$399,9,FALSE),""),""),"") ->  | AH30: =IF(IF(AND($K30<>"non inscrit",AH$6<$H$4),OR($K30<$H$5,$K30<AH$6),OR($Q30<$H$5,$Q30<AH$6)),IFERROR(IF(VLOOKUP($C30,Victo_ext!$C$12:$K$400,5,FALSE)=$F30,VLOOKUP($C30,Victo_ext!$C$12:$K$400,9,FALSE),""),""),"") ->  | AI30: =IF(IF(AND($K30<>"non inscrit",AI$6<$H$4),OR($K30<$H$5,$K30<AI$6),OR($Q30<$H$5,$Q30<AI$6)),IFERROR(IF(VLOOKUP($C30,Brome_ext!$C$12:$K$400,5,FALSE)=$F30,VLOOKUP($C30,Brome_ext!$C$12:$K$400,9,FALSE),""),""),"") ->  | AJ30: =IF(IF(AND($K30<>"non inscrit",AJ$6<$H$4),OR($K30<$H$5,$K30<AJ$6),OR($Q30<$H$5,$Q30<AJ$6)),IFERROR(IF(VLOOKUP($C30,Tuque_ext!$C$12:$K$400,5,FALSE)=$F30,VLOOKUP($C30,Tuque_ext!$C$12:$K$400,9,FALSE),""),""),"") ->  | AK30: =IF(IF(AND($K30<>"non inscrit",AK$6<$H$4),OR($K30<$H$5,$K30<AK$6),OR($Q30<$H$5,$Q30<AK$6)),IFERROR(IF(VLOOKUP($C30,Cantley_ext!$C$12:$K$400,5,FALSE)=$F30,VLOOKUP($C30,Cantley_ext!$C$12:$K$400,9,FALSE),""),""),"") ->  | AL30: =IF(IF(AND($K30<>"non inscrit",AL$6<$H$4),OR($K30<$H$5,$K30<AL$6),OR($Q30<$H$5,$Q30<AL$6)),IFERROR(IF(VLOOKUP($C30,CQ2_ext!$C$12:$K$400,5,FALSE)=$F30,VLOOKUP($C30,CQ2_ext!$C$12:$K$400,9,FALSE),""),""),"") ->  | AM30: =IF(IF(AND($K30<>"non inscrit",AM$6<$H$4),OR($K30<$H$5,$K30<AM$6),OR($Q30<$H$5,$Q30<AM$6)),IFERROR(IF(VLOOKUP($C30,Amos_ext!$C$12:$K$400,5,FALSE)=$F30,VLOOKUP($C30,Amos_ext!$C$12:$K$400,9,FALSE)*3/4,""),""),"") ->  | AN30: =IF(IF(AND($K30<>"non inscrit",AN$6<$H$4),OR($K30<$H$5,$K30<AN$6),OR($Q30<$H$5,$Q30<AN$6)),IFERROR(IF(VLOOKUP($C30,LaSarre_ext!$C$12:$K$400,5,FALSE)=$F30,VLOOKUP($C30,LaSarre_ext!$C$12:$K$400,9,FALSE),""),""),"") ->  | AO30: =IF(IF(AND($K30<>"non inscrit",AO$6<$H$4),OR($K30<$H$5,$K30<AO$6),OR($Q30<$H$5,$Q30<AO$6)),IFERROR(IF(VLOOKUP($C30,Rouyn_ext!$C$12:$K$400,5,FALSE)=$F30,VLOOKUP($C30,Rouyn_ext!$C$12:$K$400,9,FALSE),""),""),"") ->  | AP30: =IF(IF(AND($K30<>"non inscrit",AP$6<$H$4),OR($K30<$H$5,$K30<AP$6),OR($Q30<$H$5,$Q30<AP$6)),IFERROR(IF(VLOOKUP($C30,Valdor_ext!$C$12:$K$400,5,FALSE)=$F30,VLOOKUP($C30,Valdor_ext!$C$12:$K$400,9,FALSE),""),""),"") ->  | AQ30: =IF(IF(AND($K30<>"non inscrit",AQ$6<$H$4),OR($K30<$H$5,$K30<AQ$6),OR($Q30<$H$5,$Q30<AQ$6)),IFERROR(IF(VLOOKUP($C30,Perrot_ext!$C$12:$K$400,5,FALSE)=$F30,VLOOKUP($C30,Perrot_ext!$C$12:$K$400,9,FALSE),""),""),"") ->  | AR30: =IF(IF(AND($K30<>"non inscrit",AR$6<$H$4),OR($K30<$H$5,$K30<AR$6),OR($Q30<$H$5,$Q30<AR$6)),IFERROR(IF(VLOOKUP($C30,Sorel_ext!$C$12:$K$400,5,FALSE)=$F30,VLOOKUP($C30,Sorel_ext!$C$12:$K$400,9,FALSE),""),""),"") ->  | AV30: =IF(IF(AND($K30<>"non inscrit",AV$6<$H$4),OR($K30<$H$5,$K30<AV$6),OR($Q30<$H$5,$Q30<AV$6)),IFERROR(IF(VLOOKUP($C30,Finale_ext!$C$12:$K$400,5,FALSE)=$F30,VLOOKUP($C30,Finale_ext!$C$12:$K$400,9,FALSE),""),""),"") ->  | AX30: =IF(AND($Q30<>"",$Q30<>"non inscrit"),IF(IFERROR(VLOOKUP($C30,Coat_int!$C$12:$K$400,5,FALSE),"")=$F30,IF(AND(OR($Q30>=$H$4,$O$1<$H$5),OR($Q30<$H$5,$Q30<AX$6)),IFERROR(VLOOKUP($C30,Coat_int!$C$12:$K$400,9,FALSE),""),"_"),""),"") ->  | AY30: =IF(AND($Q30<>"",$Q30<>"non inscrit"),IF(IFERROR(VLOOKUP($C30,LG_int!$C$12:$K$403,5,FALSE),"")=$F30,IF(AND(OR($Q30>=$H$4,$O$1<$H$5),OR($Q30<$H$5,$Q30<AY$6)),IFERROR(VLOOKUP($C30,LG_int!$C$12:$K$403,9,FALSE),""),"_"),""),"") ->  | AZ30: =IF(AND($Q30<>"",$Q30<>"non inscrit"),IF(IFERROR(VLOOKUP($C30,LSNO_int!$C$12:$K$400,5,FALSE),"")=$F30,IF(AND(OR($Q30>=$H$4,$O$1<$H$5),OR($Q30<$H$5,$Q30<AZ$6)),IFERROR(VLOOKUP($C30,LSNO_int!$C$12:$K$400,9,FALSE),""),"_"),""),"") ->  | BA30: =IF(AND($Q30<>"",$Q30<>"non inscrit"),IF(IFERROR(VLOOKUP($C30,Ach_int!$C$12:$K$400,5,FALSE),"")=$F30,IF(AND(OR($Q30>=$H$4,$O$1<$H$5),OR($Q30<$H$5,$Q30<BA$6)),IFERROR(VLOOKUP($C30,Ach_int!$C$12:$K$400,9,FALSE),""),"_"),""),"") ->  | BB30: =IF(AND($Q30<>"",$Q30<>"non inscrit"),IF(IFERROR(VLOOKUP($C30,Tremb_int!$C$12:$K$400,5,FALSE),"")=$F30,IF(AND(OR($Q30>=$H$4,$O$1<$H$5),OR($Q30<$H$5,$Q30<BB$6)),IFERROR(VLOOKUP($C30,Tremb_int!$C$12:$K$400,9,FALSE),""),"_"),""),"") ->  | BC30: =IF(AND($Q30<>"",$Q30<>"non inscrit"),IF(IFERROR(VLOOKUP($C30,Buck_int!$C$12:$K$400,5,FALSE),"")=$F30,IF(AND(OR($Q30>=$H$4,$O$1<$H$5),OR($Q30<$H$5,$Q30<BC$6)),IFERROR(VLOOKUP($C30,Buck_int!$C$12:$K$400,9,FALSE),""),"_"),""),"") ->  | BD30: =IF(AND($Q30<>"",$Q30<>"non inscrit"),IF(IFERROR(VLOOKUP($C30,Drum_int!$C$12:$K$400,5,FALSE),"")=$F30,IF(AND(OR($Q30>=$H$4,$O$1<$H$5),OR($Q30<$H$5,$Q30<BD$6)),IFERROR(VLOOKUP($C30,Drum_int!$C$12:$K$400,9,FALSE),""),"_"),""),"") ->  | BE30: =IF(AND($Q30<>"",$Q30<>"non inscrit"),IF(IFERROR(VLOOKUP($C30,Coat_int2!$C$12:$K$400,5,FALSE),"")=$F30,IF(AND(OR($Q30>=$H$4,$O$1<$H$5),OR($Q30<$H$5,$Q30<BE$6)),IFERROR(VLOOKUP($C30,Coat_int2!$C$12:$K$400,9,FALSE),""),"_"),""),"") ->  | BF30: =IF(AND($Q30<>"",$Q30<>"non inscrit"),IF(IFERROR(VLOOKUP($C30,Jean_int!$C$12:$K$401,5,FALSE),"")=$F30,IF(AND(OR($Q30>=$H$4,$O$1<$H$5),OR($Q30<$H$5,$Q30<BF$6)),IFERROR(VLOOKUP($C30,Jean_int!$C$12:$K$401,9,FALSE),""),"_"),""),"") ->  | BG30: =IF(AND($Q30<>"",$Q30<>"non inscrit"),IF(IFERROR(VLOOKUP($C30,Val_int!$C$12:$K$401,5,FALSE),"")=$F30,IF(AND(OR($Q30>=$H$4,$O$1<$H$5),OR($Q30<$H$5,$Q30<BG$6)),IFERROR(VLOOKUP($C30,Val_int!$C$12:$K$401,9,FALSE),""),"_"),""),"") ->  | BH30: =IF(AND($Q30<>"",$Q30<>"non inscrit"),IF(IFERROR(VLOOKUP($C30,Qc_int!$C$12:$K$401,5,FALSE),"")=$F30,IF(AND(OR($Q30>=$H$4,$O$1<$H$5),OR($Q30<$H$5,$Q30<BH$6)),IFERROR(VLOOKUP($C30,Qc_int!$C$12:$K$401,9,FALSE),""),"_"),""),"") ->  | BI30: =IF(AND($Q30<>"",$Q30<>"non inscrit"),IF(IFERROR(VLOOKUP($C30,Qc2_int!$C$12:$K$401,5,FALSE),"")=$F30,IF(AND(OR($Q30>=$H$4,$O$1<$H$5),OR($Q30<$H$5,$Q30<BI$6)),IFERROR(VLOOKUP($C30,Qc2_int!$C$12:$K$401,9,FALSE),""),"_"),""),"") ->  | BJ30: =IF(AND($Q30<>"",$Q30<>"non inscrit"),IF(IFERROR(VLOOKUP($C30,#REF!,5,FALSE),"")=$F30,IF(AND(OR($Q30>=$H$4,$O$1<$H$5),OR($Q30<$H$5,$Q30<$AY$6)),IFERROR(VLOOKUP($C30,#REF!,9,FALSE),""),"_"),""),"") ->  | BK30: =IF(AND($Q30<>"",$Q30<>"non inscrit"),IF(IFERROR(VLOOKUP($C30,#REF!,5,FALSE),"")=$F30,IF(AND(OR($Q30>=$H$4,$O$1<$H$5),OR($Q30<$H$5,$Q30<$AY$6)),IFERROR(VLOOKUP($C30,#REF!,9,FALSE),""),"_"),""),"") ->  | BU30: =IF(AND($Q30<>"",$Q30<>"non inscrit"),IF(IFERROR(VLOOKUP($C30,FIN_int!$C$12:$K$401,5,FALSE),"")=$F30,IF(AND(OR($Q30>=$H$4,$O$1<$H$5),OR($Q30<$H$5,$Q30<BU$6)),IFERROR(VLOOKUP($C30,FIN_int!$C$12:$K$401,9,FALSE),""),"_"),""),"") -> 
A31: 1 | B31: 20 | D31: =IF($C31="","",IF($O$1>$H$4,IFERROR(VLOOKUP($C31,'Membres-2023'!$A:$G,2,FALSE),""),IFERROR(VLOOKUP($C31,'Membres-2022'!$A:$G,2,FALSE),""))) ->  | E31: =IF($C31="","",IF($O$1>$H$4,IFERROR(VLOOKUP($C31,'Membres-2023'!$A:$G,3,FALSE),""),IFERROR(VLOOKUP($C31,'Membres-2022'!$A:$G,3,FALSE),""))) ->  | F31: =IF($C31="","",IF($O$1>$H$4,IFERROR(VLOOKUP($C31,'Membres-2023'!$A:$G,7,FALSE),""),IFERROR(VLOOKUP($C31,'Membres-2022'!$A:$G,7,FALSE),""))) ->  | G31: =IF($C31="","",IF($O$1>$H$4,IFERROR(VLOOKUP($C31,'Membres-2023'!$A:$G,5,FALSE),""),IFERROR(VLOOKUP($C31,'Membres-2022'!$A:$G,5,FALSE),""))) ->  | H31: 0 | I31: 0 | J31: 0 | K31: =IFERROR(IF(VLOOKUP(C31,'Membres-2022'!$A:$F,6,FALSE)>=$H$3,VLOOKUP(C31,'Membres-2022'!$A:$F,6,FALSE),"non inscrit"),IF($C31>0,"non inscrit","")) ->  | Q31: =IFERROR(IF(VLOOKUP($C31,'Membres-2023'!$A:$F,6,FALSE)>=$H$3,VLOOKUP($C31,'Membres-2023'!$A:$F,6,FALSE),"non inscrit"),"") ->  | Z31: =IF(IF(AND($K31<>"non inscrit",Z$6<$H$4),OR($K31<$H$5,$K31<Z$6),OR($Q31<$H$5,$Q31<Z$6)),IFERROR(IF(VLOOKUP($C31,Stroch_ext!$C$12:$K$400,5,FALSE)=$F31,VLOOKUP($C31,Stroch_ext!$C$12:$K$400,9,FALSE),""),""),"") ->  | AA31: =IF(IF(AND($K31<>"non inscrit",AA$6<$H$4),OR($K31<$H$5,$K31<AA$6),OR($Q31<$H$5,$Q31<AA$6)),IFERROR(IF(VLOOKUP($C31,Vallée_ext!$C$12:$K$400,5,FALSE)=$F31,VLOOKUP($C31,Vallée_ext!$C$12:$K$400,9,FALSE),""),""),"") ->  | AB31: =IF(IF(AND($K31<>"non inscrit",AB$6<$H$4),OR($K31<$H$5,$K31<AB$6),OR($Q31<$H$5,$Q31<AB$6)),IFERROR(IF(VLOOKUP($C31,ASF_ext!$C$12:$K$400,5,FALSE)=$F31,VLOOKUP($C31,ASF_ext!$C$12:$K$400,9,FALSE),""),""),"") ->  | AC31: =IF(IF(AND($K31<>"non inscrit",AC$6<$H$4),OR($K31<$H$5,$K31<AC$6),OR($Q31<$H$5,$Q31<AC$6)),IFERROR(IF(VLOOKUP($C31,MtLaur_ext!$C$12:$K$407,5,FALSE)=$F31,VLOOKUP($C31,MtLaur_ext!$C$12:$K$407,9,FALSE),""),""),"") ->  | AD31: =IF(IF(AND($K31<>"non inscrit",AD$6<$H$4),OR($K31<$H$5,$K31<AD$6),OR($Q31<$H$5,$Q31<AD$6)),IFERROR(IF(VLOOKUP($C31,Nord_ext!$C$12:$K$400,5,FALSE)=$F31,VLOOKUP($C31,Nord_ext!$C$12:$K$400,9,FALSE),""),""),"") ->  | AE31: =IF(IF(AND($K31<>"non inscrit",AE$6<$H$4),OR($K31<$H$5,$K31<AE$6),OR($Q31<$H$5,$Q31<AE$6)),IFERROR(IF(VLOOKUP($C31,CentreQc_ext!$C$12:$K$400,5,FALSE)=$F31,VLOOKUP($C31,CentreQc_ext!$C$12:$K$400,9,FALSE),""),""),"") ->  | AF31: =IF(IF(AND($K31<>"non inscrit",AF$6<$H$4),OR($K31<$H$5,$K31<AF$6),OR($Q31<$H$5,$Q31<AF$6)),IFERROR(IF(VLOOKUP($C31,Ascot_ext!$C$12:$K$400,5,FALSE)=$F31,VLOOKUP($C31,Ascot_ext!$C$12:$K$400,9,FALSE),""),""),"") ->  | AG31: =IF(IF(AND($K31<>"non inscrit",AG$6<$H$4),OR($K31<$H$5,$K31<AG$6),OR($Q31<$H$5,$Q31<AG$6)),IFERROR(IF(VLOOKUP($C31,NDB_ext!$C$12:$K$399,5,FALSE)=$F31,VLOOKUP($C31,NDB_ext!$C$12:$K$399,9,FALSE),""),""),"") ->  | AH31: =IF(IF(AND($K31<>"non inscrit",AH$6<$H$4),OR($K31<$H$5,$K31<AH$6),OR($Q31<$H$5,$Q31<AH$6)),IFERROR(IF(VLOOKUP($C31,Victo_ext!$C$12:$K$400,5,FALSE)=$F31,VLOOKUP($C31,Victo_ext!$C$12:$K$400,9,FALSE),""),""),"") ->  | AI31: =IF(IF(AND($K31<>"non inscrit",AI$6<$H$4),OR($K31<$H$5,$K31<AI$6),OR($Q31<$H$5,$Q31<AI$6)),IFERROR(IF(VLOOKUP($C31,Brome_ext!$C$12:$K$400,5,FALSE)=$F31,VLOOKUP($C31,Brome_ext!$C$12:$K$400,9,FALSE),""),""),"") ->  | AJ31: =IF(IF(AND($K31<>"non inscrit",AJ$6<$H$4),OR($K31<$H$5,$K31<AJ$6),OR($Q31<$H$5,$Q31<AJ$6)),IFERROR(IF(VLOOKUP($C31,Tuque_ext!$C$12:$K$400,5,FALSE)=$F31,VLOOKUP($C31,Tuque_ext!$C$12:$K$400,9,FALSE),""),""),"") ->  | AK31: =IF(IF(AND($K31<>"non inscrit",AK$6<$H$4),OR($K31<$H$5,$K31<AK$6),OR($Q31<$H$5,$Q31<AK$6)),IFERROR(IF(VLOOKUP($C31,Cantley_ext!$C$12:$K$400,5,FALSE)=$F31,VLOOKUP($C31,Cantley_ext!$C$12:$K$400,9,FALSE),""),""),"") ->  | AL31: =IF(IF(AND($K31<>"non inscrit",AL$6<$H$4),OR($K31<$H$5,$K31<AL$6),OR($Q31<$H$5,$Q31<AL$6)),IFERROR(IF(VLOOKUP($C31,CQ2_ext!$C$12:$K$400,5,FALSE)=$F31,VLOOKUP($C31,CQ2_ext!$C$12:$K$400,9,FALSE),""),""),"") ->  | AM31: =IF(IF(AND($K31<>"non inscrit",AM$6<$H$4),OR($K31<$H$5,$K31<AM$6),OR($Q31<$H$5,$Q31<AM$6)),IFERROR(IF(VLOOKUP($C31,Amos_ext!$C$12:$K$400,5,FALSE)=$F31,VLOOKUP($C31,Amos_ext!$C$12:$K$400,9,FALSE)*3/4,""),""),"") ->  | AN31: =IF(IF(AND($K31<>"non inscrit",AN$6<$H$4),OR($K31<$H$5,$K31<AN$6),OR($Q31<$H$5,$Q31<AN$6)),IFERROR(IF(VLOOKUP($C31,LaSarre_ext!$C$12:$K$400,5,FALSE)=$F31,VLOOKUP($C31,LaSarre_ext!$C$12:$K$400,9,FALSE),""),""),"") ->  | AO31: =IF(IF(AND($K31<>"non inscrit",AO$6<$H$4),OR($K31<$H$5,$K31<AO$6),OR($Q31<$H$5,$Q31<AO$6)),IFERROR(IF(VLOOKUP($C31,Rouyn_ext!$C$12:$K$400,5,FALSE)=$F31,VLOOKUP($C31,Rouyn_ext!$C$12:$K$400,9,FALSE),""),""),"") ->  | AP31: =IF(IF(AND($K31<>"non inscrit",AP$6<$H$4),OR($K31<$H$5,$K31<AP$6),OR($Q31<$H$5,$Q31<AP$6)),IFERROR(IF(VLOOKUP($C31,Valdor_ext!$C$12:$K$400,5,FALSE)=$F31,VLOOKUP($C31,Valdor_ext!$C$12:$K$400,9,FALSE),""),""),"") ->  | AQ31: =IF(IF(AND($K31<>"non inscrit",AQ$6<$H$4),OR($K31<$H$5,$K31<AQ$6),OR($Q31<$H$5,$Q31<AQ$6)),IFERROR(IF(VLOOKUP($C31,Perrot_ext!$C$12:$K$400,5,FALSE)=$F31,VLOOKUP($C31,Perrot_ext!$C$12:$K$400,9,FALSE),""),""),"") ->  | AR31: =IF(IF(AND($K31<>"non inscrit",AR$6<$H$4),OR($K31<$H$5,$K31<AR$6),OR($Q31<$H$5,$Q31<AR$6)),IFERROR(IF(VLOOKUP($C31,Sorel_ext!$C$12:$K$400,5,FALSE)=$F31,VLOOKUP($C31,Sorel_ext!$C$12:$K$400,9,FALSE),""),""),"") ->  | AV31: =IF(IF(AND($K31<>"non inscrit",AV$6<$H$4),OR($K31<$H$5,$K31<AV$6),OR($Q31<$H$5,$Q31<AV$6)),IFERROR(IF(VLOOKUP($C31,Finale_ext!$C$12:$K$400,5,FALSE)=$F31,VLOOKUP($C31,Finale_ext!$C$12:$K$400,9,FALSE),""),""),"") ->  | AX31: =IF(AND($Q31<>"",$Q31<>"non inscrit"),IF(IFERROR(VLOOKUP($C31,Coat_int!$C$12:$K$400,5,FALSE),"")=$F31,IF(AND(OR($Q31>=$H$4,$O$1<$H$5),OR($Q31<$H$5,$Q31<AX$6)),IFERROR(VLOOKUP($C31,Coat_int!$C$12:$K$400,9,FALSE),""),"_"),""),"") ->  | AY31: =IF(AND($Q31<>"",$Q31<>"non inscrit"),IF(IFERROR(VLOOKUP($C31,LG_int!$C$12:$K$403,5,FALSE),"")=$F31,IF(AND(OR($Q31>=$H$4,$O$1<$H$5),OR($Q31<$H$5,$Q31<AY$6)),IFERROR(VLOOKUP($C31,LG_int!$C$12:$K$403,9,FALSE),""),"_"),""),"") ->  | AZ31: =IF(AND($Q31<>"",$Q31<>"non inscrit"),IF(IFERROR(VLOOKUP($C31,LSNO_int!$C$12:$K$400,5,FALSE),"")=$F31,IF(AND(OR($Q31>=$H$4,$O$1<$H$5),OR($Q31<$H$5,$Q31<AZ$6)),IFERROR(VLOOKUP($C31,LSNO_int!$C$12:$K$400,9,FALSE),""),"_"),""),"") ->  | BA31: =IF(AND($Q31<>"",$Q31<>"non inscrit"),IF(IFERROR(VLOOKUP($C31,Ach_int!$C$12:$K$400,5,FALSE),"")=$F31,IF(AND(OR($Q31>=$H$4,$O$1<$H$5),OR($Q31<$H$5,$Q31<BA$6)),IFERROR(VLOOKUP($C31,Ach_int!$C$12:$K$400,9,FALSE),""),"_"),""),"") ->  | BB31: =IF(AND($Q31<>"",$Q31<>"non inscrit"),IF(IFERROR(VLOOKUP($C31,Tremb_int!$C$12:$K$400,5,FALSE),"")=$F31,IF(AND(OR($Q31>=$H$4,$O$1<$H$5),OR($Q31<$H$5,$Q31<BB$6)),IFERROR(VLOOKUP($C31,Tremb_int!$C$12:$K$400,9,FALSE),""),"_"),""),"") ->  | BC31: =IF(AND($Q31<>"",$Q31<>"non inscrit"),IF(IFERROR(VLOOKUP($C31,Buck_int!$C$12:$K$400,5,FALSE),"")=$F31,IF(AND(OR($Q31>=$H$4,$O$1<$H$5),OR($Q31<$H$5,$Q31<BC$6)),IFERROR(VLOOKUP($C31,Buck_int!$C$12:$K$400,9,FALSE),""),"_"),""),"") ->  | BD31: =IF(AND($Q31<>"",$Q31<>"non inscrit"),IF(IFERROR(VLOOKUP($C31,Drum_int!$C$12:$K$400,5,FALSE),"")=$F31,IF(AND(OR($Q31>=$H$4,$O$1<$H$5),OR($Q31<$H$5,$Q31<BD$6)),IFERROR(VLOOKUP($C31,Drum_int!$C$12:$K$400,9,FALSE),""),"_"),""),"") ->  | BE31: =IF(AND($Q31<>"",$Q31<>"non inscrit"),IF(IFERROR(VLOOKUP($C31,Coat_int2!$C$12:$K$400,5,FALSE),"")=$F31,IF(AND(OR($Q31>=$H$4,$O$1<$H$5),OR($Q31<$H$5,$Q31<BE$6)),IFERROR(VLOOKUP($C31,Coat_int2!$C$12:$K$400,9,FALSE),""),"_"),""),"") ->  | BF31: =IF(AND($Q31<>"",$Q31<>"non inscrit"),IF(IFERROR(VLOOKUP($C31,Jean_int!$C$12:$K$401,5,FALSE),"")=$F31,IF(AND(OR($Q31>=$H$4,$O$1<$H$5),OR($Q31<$H$5,$Q31<BF$6)),IFERROR(VLOOKUP($C31,Jean_int!$C$12:$K$401,9,FALSE),""),"_"),""),"") ->  | BG31: =IF(AND($Q31<>"",$Q31<>"non inscrit"),IF(IFERROR(VLOOKUP($C31,Val_int!$C$12:$K$401,5,FALSE),"")=$F31,IF(AND(OR($Q31>=$H$4,$O$1<$H$5),OR($Q31<$H$5,$Q31<BG$6)),IFERROR(VLOOKUP($C31,Val_int!$C$12:$K$401,9,FALSE),""),"_"),""),"") ->  | BH31: =IF(AND($Q31<>"",$Q31<>"non inscrit"),IF(IFERROR(VLOOKUP($C31,Qc_int!$C$12:$K$401,5,FALSE),"")=$F31,IF(AND(OR($Q31>=$H$4,$O$1<$H$5),OR($Q31<$H$5,$Q31<BH$6)),IFERROR(VLOOKUP($C31,Qc_int!$C$12:$K$401,9,FALSE),""),"_"),""),"") ->  | BI31: =IF(AND($Q31<>"",$Q31<>"non inscrit"),IF(IFERROR(VLOOKUP($C31,Qc2_int!$C$12:$K$401,5,FALSE),"")=$F31,IF(AND(OR($Q31>=$H$4,$O$1<$H$5),OR($Q31<$H$5,$Q31<BI$6)),IFERROR(VLOOKUP($C31,Qc2_int!$C$12:$K$401,9,FALSE),""),"_"),""),"") ->  | BJ31: =IF(AND($Q31<>"",$Q31<>"non inscrit"),IF(IFERROR(VLOOKUP($C31,#REF!,5,FALSE),"")=$F31,IF(AND(OR($Q31>=$H$4,$O$1<$H$5),OR($Q31<$H$5,$Q31<$AY$6)),IFERROR(VLOOKUP($C31,#REF!,9,FALSE),""),"_"),""),"") ->  | BK31: =IF(AND($Q31<>"",$Q31<>"non inscrit"),IF(IFERROR(VLOOKUP($C31,#REF!,5,FALSE),"")=$F31,IF(AND(OR($Q31>=$H$4,$O$1<$H$5),OR($Q31<$H$5,$Q31<$AY$6)),IFERROR(VLOOKUP($C31,#REF!,9,FALSE),""),"_"),""),"") ->  | BU31: =IF(AND($Q31<>"",$Q31<>"non inscrit"),IF(IFERROR(VLOOKUP($C31,FIN_int!$C$12:$K$401,5,FALSE),"")=$F31,IF(AND(OR($Q31>=$H$4,$O$1<$H$5),OR($Q31<$H$5,$Q31<BU$6)),IFERROR(VLOOKUP($C31,FIN_int!$C$12:$K$401,9,FALSE),""),"_"),""),"") -> 
A32: 1 | B32: 21 | D32: =IF($C32="","",IF($O$1>$H$4,IFERROR(VLOOKUP($C32,'Membres-2023'!$A:$G,2,FALSE),""),IFERROR(VLOOKUP($C32,'Membres-2022'!$A:$G,2,FALSE),""))) ->  | E32: =IF($C32="","",IF($O$1>$H$4,IFERROR(VLOOKUP($C32,'Membres-2023'!$A:$G,3,FALSE),""),IFERROR(VLOOKUP($C32,'Membres-2022'!$A:$G,3,FALSE),""))) ->  | F32: =IF($C32="","",IF($O$1>$H$4,IFERROR(VLOOKUP($C32,'Membres-2023'!$A:$G,7,FALSE),""),IFERROR(VLOOKUP($C32,'Membres-2022'!$A:$G,7,FALSE),""))) ->  | G32: =IF($C32="","",IF($O$1>$H$4,IFERROR(VLOOKUP($C32,'Membres-2023'!$A:$G,5,FALSE),""),IFERROR(VLOOKUP($C32,'Membres-2022'!$A:$G,5,FALSE),""))) ->  | H32: 0 | I32: 0 | J32: 0 | K32: =IFERROR(IF(VLOOKUP(C32,'Membres-2022'!$A:$F,6,FALSE)>=$H$3,VLOOKUP(C32,'Membres-2022'!$A:$F,6,FALSE),"non inscrit"),IF($C32>0,"non inscrit","")) ->  | Q32: =IFERROR(IF(VLOOKUP($C32,'Membres-2023'!$A:$F,6,FALSE)>=$H$3,VLOOKUP($C32,'Membres-2023'!$A:$F,6,FALSE),"non inscrit"),"") ->  | Z32: =IF(IF(AND($K32<>"non inscrit",Z$6<$H$4),OR($K32<$H$5,$K32<Z$6),OR($Q32<$H$5,$Q32<Z$6)),IFERROR(IF(VLOOKUP($C32,Stroch_ext!$C$12:$K$400,5,FALSE)=$F32,VLOOKUP($C32,Stroch_ext!$C$12:$K$400,9,FALSE),""),""),"") ->  | AA32: =IF(IF(AND($K32<>"non inscrit",AA$6<$H$4),OR($K32<$H$5,$K32<AA$6),OR($Q32<$H$5,$Q32<AA$6)),IFERROR(IF(VLOOKUP($C32,Vallée_ext!$C$12:$K$400,5,FALSE)=$F32,VLOOKUP($C32,Vallée_ext!$C$12:$K$400,9,FALSE),""),""),"") ->  | AB32: =IF(IF(AND($K32<>"non inscrit",AB$6<$H$4),OR($K32<$H$5,$K32<AB$6),OR($Q32<$H$5,$Q32<AB$6)),IFERROR(IF(VLOOKUP($C32,ASF_ext!$C$12:$K$400,5,FALSE)=$F32,VLOOKUP($C32,ASF_ext!$C$12:$K$400,9,FALSE),""),""),"") ->  | AC32: =IF(IF(AND($K32<>"non inscrit",AC$6<$H$4),OR($K32<$H$5,$K32<AC$6),OR($Q32<$H$5,$Q32<AC$6)),IFERROR(IF(VLOOKUP($C32,MtLaur_ext!$C$12:$K$407,5,FALSE)=$F32,VLOOKUP($C32,MtLaur_ext!$C$12:$K$407,9,FALSE),""),""),"") ->  | AD32: =IF(IF(AND($K32<>"non inscrit",AD$6<$H$4),OR($K32<$H$5,$K32<AD$6),OR($Q32<$H$5,$Q32<AD$6)),IFERROR(IF(VLOOKUP($C32,Nord_ext!$C$12:$K$400,5,FALSE)=$F32,VLOOKUP($C32,Nord_ext!$C$12:$K$400,9,FALSE),""),""),"") ->  | AE32: =IF(IF(AND($K32<>"non inscrit",AE$6<$H$4),OR($K32<$H$5,$K32<AE$6),OR($Q32<$H$5,$Q32<AE$6)),IFERROR(IF(VLOOKUP($C32,CentreQc_ext!$C$12:$K$400,5,FALSE)=$F32,VLOOKUP($C32,CentreQc_ext!$C$12:$K$400,9,FALSE),""),""),"") ->  | AF32: =IF(IF(AND($K32<>"non inscrit",AF$6<$H$4),OR($K32<$H$5,$K32<AF$6),OR($Q32<$H$5,$Q32<AF$6)),IFERROR(IF(VLOOKUP($C32,Ascot_ext!$C$12:$K$400,5,FALSE)=$F32,VLOOKUP($C32,Ascot_ext!$C$12:$K$400,9,FALSE),""),""),"") ->  | AG32: =IF(IF(AND($K32<>"non inscrit",AG$6<$H$4),OR($K32<$H$5,$K32<AG$6),OR($Q32<$H$5,$Q32<AG$6)),IFERROR(IF(VLOOKUP($C32,NDB_ext!$C$12:$K$399,5,FALSE)=$F32,VLOOKUP($C32,NDB_ext!$C$12:$K$399,9,FALSE),""),""),"") ->  | AH32: =IF(IF(AND($K32<>"non inscrit",AH$6<$H$4),OR($K32<$H$5,$K32<AH$6),OR($Q32<$H$5,$Q32<AH$6)),IFERROR(IF(VLOOKUP($C32,Victo_ext!$C$12:$K$400,5,FALSE)=$F32,VLOOKUP($C32,Victo_ext!$C$12:$K$400,9,FALSE),""),""),"") ->  | AI32: =IF(IF(AND($K32<>"non inscrit",AI$6<$H$4),OR($K32<$H$5,$K32<AI$6),OR($Q32<$H$5,$Q32<AI$6)),IFERROR(IF(VLOOKUP($C32,Brome_ext!$C$12:$K$400,5,FALSE)=$F32,VLOOKUP($C32,Brome_ext!$C$12:$K$400,9,FALSE),""),""),"") ->  | AJ32: =IF(IF(AND($K32<>"non inscrit",AJ$6<$H$4),OR($K32<$H$5,$K32<AJ$6),OR($Q32<$H$5,$Q32<AJ$6)),IFERROR(IF(VLOOKUP($C32,Tuque_ext!$C$12:$K$400,5,FALSE)=$F32,VLOOKUP($C32,Tuque_ext!$C$12:$K$400,9,FALSE),""),""),"") ->  | AK32: =IF(IF(AND($K32<>"non inscrit",AK$6<$H$4),OR($K32<$H$5,$K32<AK$6),OR($Q32<$H$5,$Q32<AK$6)),IFERROR(IF(VLOOKUP($C32,Cantley_ext!$C$12:$K$400,5,FALSE)=$F32,VLOOKUP($C32,Cantley_ext!$C$12:$K$400,9,FALSE),""),""),"") ->  | AL32: =IF(IF(AND($K32<>"non inscrit",AL$6<$H$4),OR($K32<$H$5,$K32<AL$6),OR($Q32<$H$5,$Q32<AL$6)),IFERROR(IF(VLOOKUP($C32,CQ2_ext!$C$12:$K$400,5,FALSE)=$F32,VLOOKUP($C32,CQ2_ext!$C$12:$K$400,9,FALSE),""),""),"") ->  | AM32: =IF(IF(AND($K32<>"non inscrit",AM$6<$H$4),OR($K32<$H$5,$K32<AM$6),OR($Q32<$H$5,$Q32<AM$6)),IFERROR(IF(VLOOKUP($C32,Amos_ext!$C$12:$K$400,5,FALSE)=$F32,VLOOKUP($C32,Amos_ext!$C$12:$K$400,9,FALSE)*3/4,""),""),"") ->  | AN32: =IF(IF(AND($K32<>"non inscrit",AN$6<$H$4),OR($K32<$H$5,$K32<AN$6),OR($Q32<$H$5,$Q32<AN$6)),IFERROR(IF(VLOOKUP($C32,LaSarre_ext!$C$12:$K$400,5,FALSE)=$F32,VLOOKUP($C32,LaSarre_ext!$C$12:$K$400,9,FALSE),""),""),"") ->  | AO32: =IF(IF(AND($K32<>"non inscrit",AO$6<$H$4),OR($K32<$H$5,$K32<AO$6),OR($Q32<$H$5,$Q32<AO$6)),IFERROR(IF(VLOOKUP($C32,Rouyn_ext!$C$12:$K$400,5,FALSE)=$F32,VLOOKUP($C32,Rouyn_ext!$C$12:$K$400,9,FALSE),""),""),"") ->  | AP32: =IF(IF(AND($K32<>"non inscrit",AP$6<$H$4),OR($K32<$H$5,$K32<AP$6),OR($Q32<$H$5,$Q32<AP$6)),IFERROR(IF(VLOOKUP($C32,Valdor_ext!$C$12:$K$400,5,FALSE)=$F32,VLOOKUP($C32,Valdor_ext!$C$12:$K$400,9,FALSE),""),""),"") ->  | AQ32: =IF(IF(AND($K32<>"non inscrit",AQ$6<$H$4),OR($K32<$H$5,$K32<AQ$6),OR($Q32<$H$5,$Q32<AQ$6)),IFERROR(IF(VLOOKUP($C32,Perrot_ext!$C$12:$K$400,5,FALSE)=$F32,VLOOKUP($C32,Perrot_ext!$C$12:$K$400,9,FALSE),""),""),"") ->  | AR32: =IF(IF(AND($K32<>"non inscrit",AR$6<$H$4),OR($K32<$H$5,$K32<AR$6),OR($Q32<$H$5,$Q32<AR$6)),IFERROR(IF(VLOOKUP($C32,Sorel_ext!$C$12:$K$400,5,FALSE)=$F32,VLOOKUP($C32,Sorel_ext!$C$12:$K$400,9,FALSE),""),""),"") ->  | AV32: =IF(IF(AND($K32<>"non inscrit",AV$6<$H$4),OR($K32<$H$5,$K32<AV$6),OR($Q32<$H$5,$Q32<AV$6)),IFERROR(IF(VLOOKUP($C32,Finale_ext!$C$12:$K$400,5,FALSE)=$F32,VLOOKUP($C32,Finale_ext!$C$12:$K$400,9,FALSE),""),""),"") ->  | AX32: =IF(AND($Q32<>"",$Q32<>"non inscrit"),IF(IFERROR(VLOOKUP($C32,Coat_int!$C$12:$K$400,5,FALSE),"")=$F32,IF(AND(OR($Q32>=$H$4,$O$1<$H$5),OR($Q32<$H$5,$Q32<AX$6)),IFERROR(VLOOKUP($C32,Coat_int!$C$12:$K$400,9,FALSE),""),"_"),""),"") ->  | AY32: =IF(AND($Q32<>"",$Q32<>"non inscrit"),IF(IFERROR(VLOOKUP($C32,LG_int!$C$12:$K$403,5,FALSE),"")=$F32,IF(AND(OR($Q32>=$H$4,$O$1<$H$5),OR($Q32<$H$5,$Q32<AY$6)),IFERROR(VLOOKUP($C32,LG_int!$C$12:$K$403,9,FALSE),""),"_"),""),"") ->  | AZ32: =IF(AND($Q32<>"",$Q32<>"non inscrit"),IF(IFERROR(VLOOKUP($C32,LSNO_int!$C$12:$K$400,5,FALSE),"")=$F32,IF(AND(OR($Q32>=$H$4,$O$1<$H$5),OR($Q32<$H$5,$Q32<AZ$6)),IFERROR(VLOOKUP($C32,LSNO_int!$C$12:$K$400,9,FALSE),""),"_"),""),"") ->  | BA32: =IF(AND($Q32<>"",$Q32<>"non inscrit"),IF(IFERROR(VLOOKUP($C32,Ach_int!$C$12:$K$400,5,FALSE),"")=$F32,IF(AND(OR($Q32>=$H$4,$O$1<$H$5),OR($Q32<$H$5,$Q32<BA$6)),IFERROR(VLOOKUP($C32,Ach_int!$C$12:$K$400,9,FALSE),""),"_"),""),"") ->  | BB32: =IF(AND($Q32<>"",$Q32<>"non inscrit"),IF(IFERROR(VLOOKUP($C32,Tremb_int!$C$12:$K$400,5,FALSE),"")=$F32,IF(AND(OR($Q32>=$H$4,$O$1<$H$5),OR($Q32<$H$5,$Q32<BB$6)),IFERROR(VLOOKUP($C32,Tremb_int!$C$12:$K$400,9,FALSE),""),"_"),""),"") ->  | BC32: =IF(AND($Q32<>"",$Q32<>"non inscrit"),IF(IFERROR(VLOOKUP($C32,Buck_int!$C$12:$K$400,5,FALSE),"")=$F32,IF(AND(OR($Q32>=$H$4,$O$1<$H$5),OR($Q32<$H$5,$Q32<BC$6)),IFERROR(VLOOKUP($C32,Buck_int!$C$12:$K$400,9,FALSE),""),"_"),""),"") ->  | BD32: =IF(AND($Q32<>"",$Q32<>"non inscrit"),IF(IFERROR(VLOOKUP($C32,Drum_int!$C$12:$K$400,5,FALSE),"")=$F32,IF(AND(OR($Q32>=$H$4,$O$1<$H$5),OR($Q32<$H$5,$Q32<BD$6)),IFERROR(VLOOKUP($C32,Drum_int!$C$12:$K$400,9,FALSE),""),"_"),""),"") ->  | BE32: =IF(AND($Q32<>"",$Q32<>"non inscrit"),IF(IFERROR(VLOOKUP($C32,Coat_int2!$C$12:$K$400,5,FALSE),"")=$F32,IF(AND(OR($Q32>=$H$4,$O$1<$H$5),OR($Q32<$H$5,$Q32<BE$6)),IFERROR(VLOOKUP($C32,Coat_int2!$C$12:$K$400,9,FALSE),""),"_"),""),"") ->  | BF32: =IF(AND($Q32<>"",$Q32<>"non inscrit"),IF(IFERROR(VLOOKUP($C32,Jean_int!$C$12:$K$401,5,FALSE),"")=$F32,IF(AND(OR($Q32>=$H$4,$O$1<$H$5),OR($Q32<$H$5,$Q32<BF$6)),IFERROR(VLOOKUP($C32,Jean_int!$C$12:$K$401,9,FALSE),""),"_"),""),"") ->  | BG32: =IF(AND($Q32<>"",$Q32<>"non inscrit"),IF(IFERROR(VLOOKUP($C32,Val_int!$C$12:$K$401,5,FALSE),"")=$F32,IF(AND(OR($Q32>=$H$4,$O$1<$H$5),OR($Q32<$H$5,$Q32<BG$6)),IFERROR(VLOOKUP($C32,Val_int!$C$12:$K$401,9,FALSE),""),"_"),""),"") ->  | BH32: =IF(AND($Q32<>"",$Q32<>"non inscrit"),IF(IFERROR(VLOOKUP($C32,Qc_int!$C$12:$K$401,5,FALSE),"")=$F32,IF(AND(OR($Q32>=$H$4,$O$1<$H$5),OR($Q32<$H$5,$Q32<BH$6)),IFERROR(VLOOKUP($C32,Qc_int!$C$12:$K$401,9,FALSE),""),"_"),""),"") ->  | BI32: =IF(AND($Q32<>"",$Q32<>"non inscrit"),IF(IFERROR(VLOOKUP($C32,Qc2_int!$C$12:$K$401,5,FALSE),"")=$F32,IF(AND(OR($Q32>=$H$4,$O$1<$H$5),OR($Q32<$H$5,$Q32<BI$6)),IFERROR(VLOOKUP($C32,Qc2_int!$C$12:$K$401,9,FALSE),""),"_"),""),"") ->  | BJ32: =IF(AND($Q32<>"",$Q32<>"non inscrit"),IF(IFERROR(VLOOKUP($C32,#REF!,5,FALSE),"")=$F32,IF(AND(OR($Q32>=$H$4,$O$1<$H$5),OR($Q32<$H$5,$Q32<$AY$6)),IFERROR(VLOOKUP($C32,#REF!,9,FALSE),""),"_"),""),"") ->  | BK32: =IF(AND($Q32<>"",$Q32<>"non inscrit"),IF(IFERROR(VLOOKUP($C32,#REF!,5,FALSE),"")=$F32,IF(AND(OR($Q32>=$H$4,$O$1<$H$5),OR($Q32<$H$5,$Q32<$AY$6)),IFERROR(VLOOKUP($C32,#REF!,9,FALSE),""),"_"),""),"") ->  | BU32: =IF(AND($Q32<>"",$Q32<>"non inscrit"),IF(IFERROR(VLOOKUP($C32,FIN_int!$C$12:$K$401,5,FALSE),"")=$F32,IF(AND(OR($Q32>=$H$4,$O$1<$H$5),OR($Q32<$H$5,$Q32<BU$6)),IFERROR(VLOOKUP($C32,FIN_int!$C$12:$K$401,9,FALSE),""),"_"),""),"") -> 
A33: 1 | B33: 22 | C33: 4018 | D33: =IF($C33="","",IF($O$1>$H$4,IFERROR(VLOOKUP($C33,'Membres-2023'!$A:$G,2,FALSE),""),IFERROR(VLOOKUP($C33,'Membres-2022'!$A:$G,2,FALSE),""))) -> Boulanger | E33: =IF($C33="","",IF($O$1>$H$4,IFERROR(VLOOKUP($C33,'Membres-2023'!$A:$G,3,FALSE),""),IFERROR(VLOOKUP($C33,'Membres-2022'!$A:$G,3,FALSE),""))) -> Anthony | F33: =IF($C33="","",IF($O$1>$H$4,IFERROR(VLOOKUP($C33,'Membres-2023'!$A:$G,7,FALSE),""),IFERROR(VLOOKUP($C33,'Membres-2022'!$A:$G,7,FALSE),""))) -> 1 | G33: =IF($C33="","",IF($O$1>$H$4,IFERROR(VLOOKUP($C33,'Membres-2023'!$A:$G,5,FALSE),""),IFERROR(VLOOKUP($C33,'Membres-2022'!$A:$G,5,FALSE),""))) -> Acti-Sports de Coaticok | H33: 0 | I33: 0 | J33: 0 | K33: =IFERROR(IF(VLOOKUP(C33,'Membres-2022'!$A:$F,6,FALSE)>=$H$3,VLOOKUP(C33,'Membres-2022'!$A:$F,6,FALSE),"non inscrit"),IF($C33>0,"non inscrit","")) -> 2022-03-13 | Q33: =IFERROR(IF(VLOOKUP($C33,'Membres-2023'!$A:$F,6,FALSE)>=$H$3,VLOOKUP($C33,'Membres-2023'!$A:$F,6,FALSE),"non inscrit"),"") -> 2022-03-13 | Z33: =IF(IF(AND($K33<>"non inscrit",Z$6<$H$4),OR($K33<$H$5,$K33<Z$6),OR($Q33<$H$5,$Q33<Z$6)),IFERROR(IF(VLOOKUP($C33,Stroch_ext!$C$12:$K$400,5,FALSE)=$F33,VLOOKUP($C33,Stroch_ext!$C$12:$K$400,9,FALSE),""),""),"") ->  | AA33: =IF(IF(AND($K33<>"non inscrit",AA$6<$H$4),OR($K33<$H$5,$K33<AA$6),OR($Q33<$H$5,$Q33<AA$6)),IFERROR(IF(VLOOKUP($C33,Vallée_ext!$C$12:$K$400,5,FALSE)=$F33,VLOOKUP($C33,Vallée_ext!$C$12:$K$400,9,FALSE),""),""),"") ->  | AB33: =IF(IF(AND($K33<>"non inscrit",AB$6<$H$4),OR($K33<$H$5,$K33<AB$6),OR($Q33<$H$5,$Q33<AB$6)),IFERROR(IF(VLOOKUP($C33,ASF_ext!$C$12:$K$400,5,FALSE)=$F33,VLOOKUP($C33,ASF_ext!$C$12:$K$400,9,FALSE),""),""),"") ->  | AC33: =IF(IF(AND($K33<>"non inscrit",AC$6<$H$4),OR($K33<$H$5,$K33<AC$6),OR($Q33<$H$5,$Q33<AC$6)),IFERROR(IF(VLOOKUP($C33,MtLaur_ext!$C$12:$K$407,5,FALSE)=$F33,VLOOKUP($C33,MtLaur_ext!$C$12:$K$407,9,FALSE),""),""),"") ->  | AD33: =IF(IF(AND($K33<>"non inscrit",AD$6<$H$4),OR($K33<$H$5,$K33<AD$6),OR($Q33<$H$5,$Q33<AD$6)),IFERROR(IF(VLOOKUP($C33,Nord_ext!$C$12:$K$400,5,FALSE)=$F33,VLOOKUP($C33,Nord_ext!$C$12:$K$400,9,FALSE),""),""),"") ->  | AE33: =IF(IF(AND($K33<>"non inscrit",AE$6<$H$4),OR($K33<$H$5,$K33<AE$6),OR($Q33<$H$5,$Q33<AE$6)),IFERROR(IF(VLOOKUP($C33,CentreQc_ext!$C$12:$K$400,5,FALSE)=$F33,VLOOKUP($C33,CentreQc_ext!$C$12:$K$400,9,FALSE),""),""),"") ->  | AF33: =IF(IF(AND($K33<>"non inscrit",AF$6<$H$4),OR($K33<$H$5,$K33<AF$6),OR($Q33<$H$5,$Q33<AF$6)),IFERROR(IF(VLOOKUP($C33,Ascot_ext!$C$12:$K$400,5,FALSE)=$F33,VLOOKUP($C33,Ascot_ext!$C$12:$K$400,9,FALSE),""),""),"") ->  | AG33: =IF(IF(AND($K33<>"non inscrit",AG$6<$H$4),OR($K33<$H$5,$K33<AG$6),OR($Q33<$H$5,$Q33<AG$6)),IFERROR(IF(VLOOKUP($C33,NDB_ext!$C$12:$K$399,5,FALSE)=$F33,VLOOKUP($C33,NDB_ext!$C$12:$K$399,9,FALSE),""),""),"") ->  | AH33: =IF(IF(AND($K33<>"non inscrit",AH$6<$H$4),OR($K33<$H$5,$K33<AH$6),OR($Q33<$H$5,$Q33<AH$6)),IFERROR(IF(VLOOKUP($C33,Victo_ext!$C$12:$K$400,5,FALSE)=$F33,VLOOKUP($C33,Victo_ext!$C$12:$K$400,9,FALSE),""),""),"") ->  | AI33: =IF(IF(AND($K33<>"non inscrit",AI$6<$H$4),OR($K33<$H$5,$K33<AI$6),OR($Q33<$H$5,$Q33<AI$6)),IFERROR(IF(VLOOKUP($C33,Brome_ext!$C$12:$K$400,5,FALSE)=$F33,VLOOKUP($C33,Brome_ext!$C$12:$K$400,9,FALSE),""),""),"") ->  | AJ33: =IF(IF(AND($K33<>"non inscrit",AJ$6<$H$4),OR($K33<$H$5,$K33<AJ$6),OR($Q33<$H$5,$Q33<AJ$6)),IFERROR(IF(VLOOKUP($C33,Tuque_ext!$C$12:$K$400,5,FALSE)=$F33,VLOOKUP($C33,Tuque_ext!$C$12:$K$400,9,FALSE),""),""),"") ->  | AK33: =IF(IF(AND($K33<>"non inscrit",AK$6<$H$4),OR($K33<$H$5,$K33<AK$6),OR($Q33<$H$5,$Q33<AK$6)),IFERROR(IF(VLOOKUP($C33,Cantley_ext!$C$12:$K$400,5,FALSE)=$F33,VLOOKUP($C33,Cantley_ext!$C$12:$K$400,9,FALSE),""),""),"") ->  | AL33: =IF(IF(AND($K33<>"non inscrit",AL$6<$H$4),OR($K33<$H$5,$K33<AL$6),OR($Q33<$H$5,$Q33<AL$6)),IFERROR(IF(VLOOKUP($C33,CQ2_ext!$C$12:$K$400,5,FALSE)=$F33,VLOOKUP($C33,CQ2_ext!$C$12:$K$400,9,FALSE),""),""),"") ->  | AM33: =IF(IF(AND($K33<>"non inscrit",AM$6<$H$4),OR($K33<$H$5,$K33<AM$6),OR($Q33<$H$5,$Q33<AM$6)),IFERROR(IF(VLOOKUP($C33,Amos_ext!$C$12:$K$400,5,FALSE)=$F33,VLOOKUP($C33,Amos_ext!$C$12:$K$400,9,FALSE)*3/4,""),""),"") ->  | AN33: =IF(IF(AND($K33<>"non inscrit",AN$6<$H$4),OR($K33<$H$5,$K33<AN$6),OR($Q33<$H$5,$Q33<AN$6)),IFERROR(IF(VLOOKUP($C33,LaSarre_ext!$C$12:$K$400,5,FALSE)=$F33,VLOOKUP($C33,LaSarre_ext!$C$12:$K$400,9,FALSE),""),""),"") ->  | AO33: =IF(IF(AND($K33<>"non inscrit",AO$6<$H$4),OR($K33<$H$5,$K33<AO$6),OR($Q33<$H$5,$Q33<AO$6)),IFERROR(IF(VLOOKUP($C33,Rouyn_ext!$C$12:$K$400,5,FALSE)=$F33,VLOOKUP($C33,Rouyn_ext!$C$12:$K$400,9,FALSE),""),""),"") ->  | AP33: =IF(IF(AND($K33<>"non inscrit",AP$6<$H$4),OR($K33<$H$5,$K33<AP$6),OR($Q33<$H$5,$Q33<AP$6)),IFERROR(IF(VLOOKUP($C33,Valdor_ext!$C$12:$K$400,5,FALSE)=$F33,VLOOKUP($C33,Valdor_ext!$C$12:$K$400,9,FALSE),""),""),"") ->  | AQ33: =IF(IF(AND($K33<>"non inscrit",AQ$6<$H$4),OR($K33<$H$5,$K33<AQ$6),OR($Q33<$H$5,$Q33<AQ$6)),IFERROR(IF(VLOOKUP($C33,Perrot_ext!$C$12:$K$400,5,FALSE)=$F33,VLOOKUP($C33,Perrot_ext!$C$12:$K$400,9,FALSE),""),""),"") ->  | AR33: =IF(IF(AND($K33<>"non inscrit",AR$6<$H$4),OR($K33<$H$5,$K33<AR$6),OR($Q33<$H$5,$Q33<AR$6)),IFERROR(IF(VLOOKUP($C33,Sorel_ext!$C$12:$K$400,5,FALSE)=$F33,VLOOKUP($C33,Sorel_ext!$C$12:$K$400,9,FALSE),""),""),"") ->  | AV33: =IF(IF(AND($K33<>"non inscrit",AV$6<$H$4),OR($K33<$H$5,$K33<AV$6),OR($Q33<$H$5,$Q33<AV$6)),IFERROR(IF(VLOOKUP($C33,Finale_ext!$C$12:$K$400,5,FALSE)=$F33,VLOOKUP($C33,Finale_ext!$C$12:$K$400,9,FALSE),""),""),"") ->  | AX33: =IF(AND($Q33<>"",$Q33<>"non inscrit"),IF(IFERROR(VLOOKUP($C33,Coat_int!$C$12:$K$400,5,FALSE),"")=$F33,IF(AND(OR($Q33>=$H$4,$O$1<$H$5),OR($Q33<$H$5,$Q33<AX$6)),IFERROR(VLOOKUP($C33,Coat_int!$C$12:$K$400,9,FALSE),""),"_"),""),"") -> _ | AY33: =IF(AND($Q33<>"",$Q33<>"non inscrit"),IF(IFERROR(VLOOKUP($C33,LG_int!$C$12:$K$403,5,FALSE),"")=$F33,IF(AND(OR($Q33>=$H$4,$O$1<$H$5),OR($Q33<$H$5,$Q33<AY$6)),IFERROR(VLOOKUP($C33,LG_int!$C$12:$K$403,9,FALSE),""),"_"),""),"") ->  | AZ33: =IF(AND($Q33<>"",$Q33<>"non inscrit"),IF(IFERROR(VLOOKUP($C33,LSNO_int!$C$12:$K$400,5,FALSE),"")=$F33,IF(AND(OR($Q33>=$H$4,$O$1<$H$5),OR($Q33<$H$5,$Q33<AZ$6)),IFERROR(VLOOKUP($C33,LSNO_int!$C$12:$K$400,9,FALSE),""),"_"),""),"") ->  | BA33: =IF(AND($Q33<>"",$Q33<>"non inscrit"),IF(IFERROR(VLOOKUP($C33,Ach_int!$C$12:$K$400,5,FALSE),"")=$F33,IF(AND(OR($Q33>=$H$4,$O$1<$H$5),OR($Q33<$H$5,$Q33<BA$6)),IFERROR(VLOOKUP($C33,Ach_int!$C$12:$K$400,9,FALSE),""),"_"),""),"") ->  | BB33: =IF(AND($Q33<>"",$Q33<>"non inscrit"),IF(IFERROR(VLOOKUP($C33,Tremb_int!$C$12:$K$400,5,FALSE),"")=$F33,IF(AND(OR($Q33>=$H$4,$O$1<$H$5),OR($Q33<$H$5,$Q33<BB$6)),IFERROR(VLOOKUP($C33,Tremb_int!$C$12:$K$400,9,FALSE),""),"_"),""),"") ->  | BC33: =IF(AND($Q33<>"",$Q33<>"non inscrit"),IF(IFERROR(VLOOKUP($C33,Buck_int!$C$12:$K$400,5,FALSE),"")=$F33,IF(AND(OR($Q33>=$H$4,$O$1<$H$5),OR($Q33<$H$5,$Q33<BC$6)),IFERROR(VLOOKUP($C33,Buck_int!$C$12:$K$400,9,FALSE),""),"_"),""),"") ->  | BD33: =IF(AND($Q33<>"",$Q33<>"non inscrit"),IF(IFERROR(VLOOKUP($C33,Drum_int!$C$12:$K$400,5,FALSE),"")=$F33,IF(AND(OR($Q33>=$H$4,$O$1<$H$5),OR($Q33<$H$5,$Q33<BD$6)),IFERROR(VLOOKUP($C33,Drum_int!$C$12:$K$400,9,FALSE),""),"_"),""),"") ->  | BE33: =IF(AND($Q33<>"",$Q33<>"non inscrit"),IF(IFERROR(VLOOKUP($C33,Coat_int2!$C$12:$K$400,5,FALSE),"")=$F33,IF(AND(OR($Q33>=$H$4,$O$1<$H$5),OR($Q33<$H$5,$Q33<BE$6)),IFERROR(VLOOKUP($C33,Coat_int2!$C$12:$K$400,9,FALSE),""),"_"),""),"") ->  | BF33: =IF(AND($Q33<>"",$Q33<>"non inscrit"),IF(IFERROR(VLOOKUP($C33,Jean_int!$C$12:$K$401,5,FALSE),"")=$F33,IF(AND(OR($Q33>=$H$4,$O$1<$H$5),OR($Q33<$H$5,$Q33<BF$6)),IFERROR(VLOOKUP($C33,Jean_int!$C$12:$K$401,9,FALSE),""),"_"),""),"") ->  | BG33: =IF(AND($Q33<>"",$Q33<>"non inscrit"),IF(IFERROR(VLOOKUP($C33,Val_int!$C$12:$K$401,5,FALSE),"")=$F33,IF(AND(OR($Q33>=$H$4,$O$1<$H$5),OR($Q33<$H$5,$Q33<BG$6)),IFERROR(VLOOKUP($C33,Val_int!$C$12:$K$401,9,FALSE),""),"_"),""),"") ->  | BH33: =IF(AND($Q33<>"",$Q33<>"non inscrit"),IF(IFERROR(VLOOKUP($C33,Qc_int!$C$12:$K$401,5,FALSE),"")=$F33,IF(AND(OR($Q33>=$H$4,$O$1<$H$5),OR($Q33<$H$5,$Q33<BH$6)),IFERROR(VLOOKUP($C33,Qc_int!$C$12:$K$401,9,FALSE),""),"_"),""),"") ->  | BI33: =IF(AND($Q33<>"",$Q33<>"non inscrit"),IF(IFERROR(VLOOKUP($C33,Qc2_int!$C$12:$K$401,5,FALSE),"")=$F33,IF(AND(OR($Q33>=$H$4,$O$1<$H$5),OR($Q33<$H$5,$Q33<BI$6)),IFERROR(VLOOKUP($C33,Qc2_int!$C$12:$K$401,9,FALSE),""),"_"),""),"") ->  | BJ33: =IF(AND($Q33<>"",$Q33<>"non inscrit"),IF(IFERROR(VLOOKUP($C33,#REF!,5,FALSE),"")=$F33,IF(AND(OR($Q33>=$H$4,$O$1<$H$5),OR($Q33<$H$5,$Q33<$AY$6)),IFERROR(VLOOKUP($C33,#REF!,9,FALSE),""),"_"),""),"") ->  | BK33: =IF(AND($Q33<>"",$Q33<>"non inscrit"),IF(IFERROR(VLOOKUP($C33,#REF!,5,FALSE),"")=$F33,IF(AND(OR($Q33>=$H$4,$O$1<$H$5),OR($Q33<$H$5,$Q33<$AY$6)),IFERROR(VLOOKUP($C33,#REF!,9,FALSE),""),"_"),""),"") ->  | BU33: =IF(AND($Q33<>"",$Q33<>"non inscrit"),IF(IFERROR(VLOOKUP($C33,FIN_int!$C$12:$K$401,5,FALSE),"")=$F33,IF(AND(OR($Q33>=$H$4,$O$1<$H$5),OR($Q33<$H$5,$Q33<BU$6)),IFERROR(VLOOKUP($C33,FIN_int!$C$12:$K$401,9,FALSE),""),"_"),""),"") -> 
A34: 1 | B34: 23 | C34: 1107 | D34: =IF($C34="","",IF($O$1>$H$4,IFERROR(VLOOKUP($C34,'Membres-2023'!$A:$G,2,FALSE),""),IFERROR(VLOOKUP($C34,'Membres-2022'!$A:$G,2,FALSE),""))) -> Crête | E34: =IF($C34="","",IF($O$1>$H$4,IFERROR(VLOOKUP($C34,'Membres-2023'!$A:$G,3,FALSE),""),IFERROR(VLOOKUP($C34,'Membres-2022'!$A:$G,3,FALSE),""))) -> NOAH | F34: =IF($C34="","",IF($O$1>$H$4,IFERROR(VLOOKUP($C34,'Membres-2023'!$A:$G,7,FALSE),""),IFERROR(VLOOKUP($C34,'Membres-2022'!$A:$G,7,FALSE),""))) -> 3 | G34: =IF($C34="","",IF($O$1>$H$4,IFERROR(VLOOKUP($C34,'Membres-2023'!$A:$G,5,FALSE),""),IFERROR(VLOOKUP($C34,'Membres-2022'!$A:$G,5,FALSE),""))) -> Acti-Sports de Coaticok | H34: 0 | I34: 0 | J34: 0 | K34: =IFERROR(IF(VLOOKUP(C34,'Membres-2022'!$A:$F,6,FALSE)>=$H$3,VLOOKUP(C34,'Membres-2022'!$A:$F,6,FALSE),"non inscrit"),IF($C34>0,"non inscrit","")) -> 2022-03-13 | Q34: =IFERROR(IF(VLOOKUP($C34,'Membres-2023'!$A:$F,6,FALSE)>=$H$3,VLOOKUP($C34,'Membres-2023'!$A:$F,6,FALSE),"non inscrit"),"") -> 2022-03-13 | Z34: =IF(IF(AND($K34<>"non inscrit",Z$6<$H$4),OR($K34<$H$5,$K34<Z$6),OR($Q34<$H$5,$Q34<Z$6)),IFERROR(IF(VLOOKUP($C34,Stroch_ext!$C$12:$K$400,5,FALSE)=$F34,VLOOKUP($C34,Stroch_ext!$C$12:$K$400,9,FALSE),""),""),"") ->  | AA34: =IF(IF(AND($K34<>"non inscrit",AA$6<$H$4),OR($K34<$H$5,$K34<AA$6),OR($Q34<$H$5,$Q34<AA$6)),IFERROR(IF(VLOOKUP($C34,Vallée_ext!$C$12:$K$400,5,FALSE)=$F34,VLOOKUP($C34,Vallée_ext!$C$12:$K$400,9,FALSE),""),""),"") ->  | AB34: =IF(IF(AND($K34<>"non inscrit",AB$6<$H$4),OR($K34<$H$5,$K34<AB$6),OR($Q34<$H$5,$Q34<AB$6)),IFERROR(IF(VLOOKUP($C34,ASF_ext!$C$12:$K$400,5,FALSE)=$F34,VLOOKUP($C34,ASF_ext!$C$12:$K$400,9,FALSE),""),""),"") ->  | AC34: =IF(IF(AND($K34<>"non inscrit",AC$6<$H$4),OR($K34<$H$5,$K34<AC$6),OR($Q34<$H$5,$Q34<AC$6)),IFERROR(IF(VLOOKUP($C34,MtLaur_ext!$C$12:$K$407,5,FALSE)=$F34,VLOOKUP($C34,MtLaur_ext!$C$12:$K$407,9,FALSE),""),""),"") ->  | AD34: =IF(IF(AND($K34<>"non inscrit",AD$6<$H$4),OR($K34<$H$5,$K34<AD$6),OR($Q34<$H$5,$Q34<AD$6)),IFERROR(IF(VLOOKUP($C34,Nord_ext!$C$12:$K$400,5,FALSE)=$F34,VLOOKUP($C34,Nord_ext!$C$12:$K$400,9,FALSE),""),""),"") ->  | AE34: =IF(IF(AND($K34<>"non inscrit",AE$6<$H$4),OR($K34<$H$5,$K34<AE$6),OR($Q34<$H$5,$Q34<AE$6)),IFERROR(IF(VLOOKUP($C34,CentreQc_ext!$C$12:$K$400,5,FALSE)=$F34,VLOOKUP($C34,CentreQc_ext!$C$12:$K$400,9,FALSE),""),""),"") ->  | AF34: =IF(IF(AND($K34<>"non inscrit",AF$6<$H$4),OR($K34<$H$5,$K34<AF$6),OR($Q34<$H$5,$Q34<AF$6)),IFERROR(IF(VLOOKUP($C34,Ascot_ext!$C$12:$K$400,5,FALSE)=$F34,VLOOKUP($C34,Ascot_ext!$C$12:$K$400,9,FALSE),""),""),"") ->  | AG34: =IF(IF(AND($K34<>"non inscrit",AG$6<$H$4),OR($K34<$H$5,$K34<AG$6),OR($Q34<$H$5,$Q34<AG$6)),IFERROR(IF(VLOOKUP($C34,NDB_ext!$C$12:$K$399,5,FALSE)=$F34,VLOOKUP($C34,NDB_ext!$C$12:$K$399,9,FALSE),""),""),"") ->  | AH34: =IF(IF(AND($K34<>"non inscrit",AH$6<$H$4),OR($K34<$H$5,$K34<AH$6),OR($Q34<$H$5,$Q34<AH$6)),IFERROR(IF(VLOOKUP($C34,Victo_ext!$C$12:$K$400,5,FALSE)=$F34,VLOOKUP($C34,Victo_ext!$C$12:$K$400,9,FALSE),""),""),"") ->  | AI34: =IF(IF(AND($K34<>"non inscrit",AI$6<$H$4),OR($K34<$H$5,$K34<AI$6),OR($Q34<$H$5,$Q34<AI$6)),IFERROR(IF(VLOOKUP($C34,Brome_ext!$C$12:$K$400,5,FALSE)=$F34,VLOOKUP($C34,Brome_ext!$C$12:$K$400,9,FALSE),""),""),"") ->  | AJ34: =IF(IF(AND($K34<>"non inscrit",AJ$6<$H$4),OR($K34<$H$5,$K34<AJ$6),OR($Q34<$H$5,$Q34<AJ$6)),IFERROR(IF(VLOOKUP($C34,Tuque_ext!$C$12:$K$400,5,FALSE)=$F34,VLOOKUP($C34,Tuque_ext!$C$12:$K$400,9,FALSE),""),""),"") ->  | AK34: =IF(IF(AND($K34<>"non inscrit",AK$6<$H$4),OR($K34<$H$5,$K34<AK$6),OR($Q34<$H$5,$Q34<AK$6)),IFERROR(IF(VLOOKUP($C34,Cantley_ext!$C$12:$K$400,5,FALSE)=$F34,VLOOKUP($C34,Cantley_ext!$C$12:$K$400,9,FALSE),""),""),"") ->  | AL34: =IF(IF(AND($K34<>"non inscrit",AL$6<$H$4),OR($K34<$H$5,$K34<AL$6),OR($Q34<$H$5,$Q34<AL$6)),IFERROR(IF(VLOOKUP($C34,CQ2_ext!$C$12:$K$400,5,FALSE)=$F34,VLOOKUP($C34,CQ2_ext!$C$12:$K$400,9,FALSE),""),""),"") ->  | AM34: =IF(IF(AND($K34<>"non inscrit",AM$6<$H$4),OR($K34<$H$5,$K34<AM$6),OR($Q34<$H$5,$Q34<AM$6)),IFERROR(IF(VLOOKUP($C34,Amos_ext!$C$12:$K$400,5,FALSE)=$F34,VLOOKUP($C34,Amos_ext!$C$12:$K$400,9,FALSE)*3/4,""),""),"") ->  | AN34: =IF(IF(AND($K34<>"non inscrit",AN$6<$H$4),OR($K34<$H$5,$K34<AN$6),OR($Q34<$H$5,$Q34<AN$6)),IFERROR(IF(VLOOKUP($C34,LaSarre_ext!$C$12:$K$400,5,FALSE)=$F34,VLOOKUP($C34,LaSarre_ext!$C$12:$K$400,9,FALSE),""),""),"") ->  | AO34: =IF(IF(AND($K34<>"non inscrit",AO$6<$H$4),OR($K34<$H$5,$K34<AO$6),OR($Q34<$H$5,$Q34<AO$6)),IFERROR(IF(VLOOKUP($C34,Rouyn_ext!$C$12:$K$400,5,FALSE)=$F34,VLOOKUP($C34,Rouyn_ext!$C$12:$K$400,9,FALSE),""),""),"") ->  | AP34: =IF(IF(AND($K34<>"non inscrit",AP$6<$H$4),OR($K34<$H$5,$K34<AP$6),OR($Q34<$H$5,$Q34<AP$6)),IFERROR(IF(VLOOKUP($C34,Valdor_ext!$C$12:$K$400,5,FALSE)=$F34,VLOOKUP($C34,Valdor_ext!$C$12:$K$400,9,FALSE),""),""),"") ->  | AQ34: =IF(IF(AND($K34<>"non inscrit",AQ$6<$H$4),OR($K34<$H$5,$K34<AQ$6),OR($Q34<$H$5,$Q34<AQ$6)),IFERROR(IF(VLOOKUP($C34,Perrot_ext!$C$12:$K$400,5,FALSE)=$F34,VLOOKUP($C34,Perrot_ext!$C$12:$K$400,9,FALSE),""),""),"") ->  | AR34: =IF(IF(AND($K34<>"non inscrit",AR$6<$H$4),OR($K34<$H$5,$K34<AR$6),OR($Q34<$H$5,$Q34<AR$6)),IFERROR(IF(VLOOKUP($C34,Sorel_ext!$C$12:$K$400,5,FALSE)=$F34,VLOOKUP($C34,Sorel_ext!$C$12:$K$400,9,FALSE),""),""),"") ->  | AV34: =IF(IF(AND($K34<>"non inscrit",AV$6<$H$4),OR($K34<$H$5,$K34<AV$6),OR($Q34<$H$5,$Q34<AV$6)),IFERROR(IF(VLOOKUP($C34,Finale_ext!$C$12:$K$400,5,FALSE)=$F34,VLOOKUP($C34,Finale_ext!$C$12:$K$400,9,FALSE),""),""),"") ->  | AX34: =IF(AND($Q34<>"",$Q34<>"non inscrit"),IF(IFERROR(VLOOKUP($C34,Coat_int!$C$12:$K$400,5,FALSE),"")=$F34,IF(AND(OR($Q34>=$H$4,$O$1<$H$5),OR($Q34<$H$5,$Q34<AX$6)),IFERROR(VLOOKUP($C34,Coat_int!$C$12:$K$400,9,FALSE),""),"_"),""),"") ->  | AY34: =IF(AND($Q34<>"",$Q34<>"non inscrit"),IF(IFERROR(VLOOKUP($C34,LG_int!$C$12:$K$403,5,FALSE),"")=$F34,IF(AND(OR($Q34>=$H$4,$O$1<$H$5),OR($Q34<$H$5,$Q34<AY$6)),IFERROR(VLOOKUP($C34,LG_int!$C$12:$K$403,9,FALSE),""),"_"),""),"") -> _ | AZ34: =IF(AND($Q34<>"",$Q34<>"non inscrit"),IF(IFERROR(VLOOKUP($C34,LSNO_int!$C$12:$K$400,5,FALSE),"")=$F34,IF(AND(OR($Q34>=$H$4,$O$1<$H$5),OR($Q34<$H$5,$Q34<AZ$6)),IFERROR(VLOOKUP($C34,LSNO_int!$C$12:$K$400,9,FALSE),""),"_"),""),"") ->  | BA34: =IF(AND($Q34<>"",$Q34<>"non inscrit"),IF(IFERROR(VLOOKUP($C34,Ach_int!$C$12:$K$400,5,FALSE),"")=$F34,IF(AND(OR($Q34>=$H$4,$O$1<$H$5),OR($Q34<$H$5,$Q34<BA$6)),IFERROR(VLOOKUP($C34,Ach_int!$C$12:$K$400,9,FALSE),""),"_"),""),"") ->  | BB34: =IF(AND($Q34<>"",$Q34<>"non inscrit"),IF(IFERROR(VLOOKUP($C34,Tremb_int!$C$12:$K$400,5,FALSE),"")=$F34,IF(AND(OR($Q34>=$H$4,$O$1<$H$5),OR($Q34<$H$5,$Q34<BB$6)),IFERROR(VLOOKUP($C34,Tremb_int!$C$12:$K$400,9,FALSE),""),"_"),""),"") ->  | BC34: =IF(AND($Q34<>"",$Q34<>"non inscrit"),IF(IFERROR(VLOOKUP($C34,Buck_int!$C$12:$K$400,5,FALSE),"")=$F34,IF(AND(OR($Q34>=$H$4,$O$1<$H$5),OR($Q34<$H$5,$Q34<BC$6)),IFERROR(VLOOKUP($C34,Buck_int!$C$12:$K$400,9,FALSE),""),"_"),""),"") ->  | BD34: =IF(AND($Q34<>"",$Q34<>"non inscrit"),IF(IFERROR(VLOOKUP($C34,Drum_int!$C$12:$K$400,5,FALSE),"")=$F34,IF(AND(OR($Q34>=$H$4,$O$1<$H$5),OR($Q34<$H$5,$Q34<BD$6)),IFERROR(VLOOKUP($C34,Drum_int!$C$12:$K$400,9,FALSE),""),"_"),""),"") ->  | BE34: =IF(AND($Q34<>"",$Q34<>"non inscrit"),IF(IFERROR(VLOOKUP($C34,Coat_int2!$C$12:$K$400,5,FALSE),"")=$F34,IF(AND(OR($Q34>=$H$4,$O$1<$H$5),OR($Q34<$H$5,$Q34<BE$6)),IFERROR(VLOOKUP($C34,Coat_int2!$C$12:$K$400,9,FALSE),""),"_"),""),"") ->  | BF34: =IF(AND($Q34<>"",$Q34<>"non inscrit"),IF(IFERROR(VLOOKUP($C34,Jean_int!$C$12:$K$401,5,FALSE),"")=$F34,IF(AND(OR($Q34>=$H$4,$O$1<$H$5),OR($Q34<$H$5,$Q34<BF$6)),IFERROR(VLOOKUP($C34,Jean_int!$C$12:$K$401,9,FALSE),""),"_"),""),"") ->  | BG34: =IF(AND($Q34<>"",$Q34<>"non inscrit"),IF(IFERROR(VLOOKUP($C34,Val_int!$C$12:$K$401,5,FALSE),"")=$F34,IF(AND(OR($Q34>=$H$4,$O$1<$H$5),OR($Q34<$H$5,$Q34<BG$6)),IFERROR(VLOOKUP($C34,Val_int!$C$12:$K$401,9,FALSE),""),"_"),""),"") ->  | BH34: =IF(AND($Q34<>"",$Q34<>"non inscrit"),IF(IFERROR(VLOOKUP($C34,Qc_int!$C$12:$K$401,5,FALSE),"")=$F34,IF(AND(OR($Q34>=$H$4,$O$1<$H$5),OR($Q34<$H$5,$Q34<BH$6)),IFERROR(VLOOKUP($C34,Qc_int!$C$12:$K$401,9,FALSE),""),"_"),""),"") ->  | BI34: =IF(AND($Q34<>"",$Q34<>"non inscrit"),IF(IFERROR(VLOOKUP($C34,Qc2_int!$C$12:$K$401,5,FALSE),"")=$F34,IF(AND(OR($Q34>=$H$4,$O$1<$H$5),OR($Q34<$H$5,$Q34<BI$6)),IFERROR(VLOOKUP($C34,Qc2_int!$C$12:$K$401,9,FALSE),""),"_"),""),"") ->  | BJ34: =IF(AND($Q34<>"",$Q34<>"non inscrit"),IF(IFERROR(VLOOKUP($C34,#REF!,5,FALSE),"")=$F34,IF(AND(OR($Q34>=$H$4,$O$1<$H$5),OR($Q34<$H$5,$Q34<$AY$6)),IFERROR(VLOOKUP($C34,#REF!,9,FALSE),""),"_"),""),"") ->  | BK34: =IF(AND($Q34<>"",$Q34<>"non inscrit"),IF(IFERROR(VLOOKUP($C34,#REF!,5,FALSE),"")=$F34,IF(AND(OR($Q34>=$H$4,$O$1<$H$5),OR($Q34<$H$5,$Q34<$AY$6)),IFERROR(VLOOKUP($C34,#REF!,9,FALSE),""),"_"),""),"") ->  | BU34: =IF(AND($Q34<>"",$Q34<>"non inscrit"),IF(IFERROR(VLOOKUP($C34,FIN_int!$C$12:$K$401,5,FALSE),"")=$F34,IF(AND(OR($Q34>=$H$4,$O$1<$H$5),OR($Q34<$H$5,$Q34<BU$6)),IFERROR(VLOOKUP($C34,FIN_int!$C$12:$K$401,9,FALSE),""),"_"),""),"") -> 
A35: 1 | B35: 24 | C35: 7627 | D35: =IF($C35="","",IF($O$1>$H$4,IFERROR(VLOOKUP($C35,'Membres-2023'!$A:$G,2,FALSE),""),IFERROR(VLOOKUP($C35,'Membres-2022'!$A:$G,2,FALSE),""))) -> Lessard | E35: =IF($C35="","",IF($O$1>$H$4,IFERROR(VLOOKUP($C35,'Membres-2023'!$A:$G,3,FALSE),""),IFERROR(VLOOKUP($C35,'Membres-2022'!$A:$G,3,FALSE),""))) -> Abraham | F35: =IF($C35="","",IF($O$1>$H$4,IFERROR(VLOOKUP($C35,'Membres-2023'!$A:$G,7,FALSE),""),IFERROR(VLOOKUP($C35,'Membres-2022'!$A:$G,7,FALSE),""))) -> 1 | G35: =IF($C35="","",IF($O$1>$H$4,IFERROR(VLOOKUP($C35,'Membres-2023'!$A:$G,5,FALSE),""),IFERROR(VLOOKUP($C35,'Membres-2022'!$A:$G,5,FALSE),""))) -> Québec (Nord'arc) | H35: 0 | I35: 0 | J35: 0 | K35: =IFERROR(IF(VLOOKUP(C35,'Membres-2022'!$A:$F,6,FALSE)>=$H$3,VLOOKUP(C35,'Membres-2022'!$A:$F,6,FALSE),"non inscrit"),IF($C35>0,"non inscrit","")) -> 2022-08-05 | Q35: =IFERROR(IF(VLOOKUP($C35,'Membres-2023'!$A:$F,6,FALSE)>=$H$3,VLOOKUP($C35,'Membres-2023'!$A:$F,6,FALSE),"non inscrit"),"") -> 2023-04-19 | Z35: =IF(IF(AND($K35<>"non inscrit",Z$6<$H$4),OR($K35<$H$5,$K35<Z$6),OR($Q35<$H$5,$Q35<Z$6)),IFERROR(IF(VLOOKUP($C35,Stroch_ext!$C$12:$K$400,5,FALSE)=$F35,VLOOKUP($C35,Stroch_ext!$C$12:$K$400,9,FALSE),""),""),"") ->  | AA35: =IF(IF(AND($K35<>"non inscrit",AA$6<$H$4),OR($K35<$H$5,$K35<AA$6),OR($Q35<$H$5,$Q35<AA$6)),IFERROR(IF(VLOOKUP($C35,Vallée_ext!$C$12:$K$400,5,FALSE)=$F35,VLOOKUP($C35,Vallée_ext!$C$12:$K$400,9,FALSE),""),""),"") ->  | AB35: =IF(IF(AND($K35<>"non inscrit",AB$6<$H$4),OR($K35<$H$5,$K35<AB$6),OR($Q35<$H$5,$Q35<AB$6)),IFERROR(IF(VLOOKUP($C35,ASF_ext!$C$12:$K$400,5,FALSE)=$F35,VLOOKUP($C35,ASF_ext!$C$12:$K$400,9,FALSE),""),""),"") ->  | AC35: =IF(IF(AND($K35<>"non inscrit",AC$6<$H$4),OR($K35<$H$5,$K35<AC$6),OR($Q35<$H$5,$Q35<AC$6)),IFERROR(IF(VLOOKUP($C35,MtLaur_ext!$C$12:$K$407,5,FALSE)=$F35,VLOOKUP($C35,MtLaur_ext!$C$12:$K$407,9,FALSE),""),""),"") ->  | AD35: =IF(IF(AND($K35<>"non inscrit",AD$6<$H$4),OR($K35<$H$5,$K35<AD$6),OR($Q35<$H$5,$Q35<AD$6)),IFERROR(IF(VLOOKUP($C35,Nord_ext!$C$12:$K$400,5,FALSE)=$F35,VLOOKUP($C35,Nord_ext!$C$12:$K$400,9,FALSE),""),""),"") ->  | AE35: =IF(IF(AND($K35<>"non inscrit",AE$6<$H$4),OR($K35<$H$5,$K35<AE$6),OR($Q35<$H$5,$Q35<AE$6)),IFERROR(IF(VLOOKUP($C35,CentreQc_ext!$C$12:$K$400,5,FALSE)=$F35,VLOOKUP($C35,CentreQc_ext!$C$12:$K$400,9,FALSE),""),""),"") ->  | AF35: =IF(IF(AND($K35<>"non inscrit",AF$6<$H$4),OR($K35<$H$5,$K35<AF$6),OR($Q35<$H$5,$Q35<AF$6)),IFERROR(IF(VLOOKUP($C35,Ascot_ext!$C$12:$K$400,5,FALSE)=$F35,VLOOKUP($C35,Ascot_ext!$C$12:$K$400,9,FALSE),""),""),"") ->  | AG35: =IF(IF(AND($K35<>"non inscrit",AG$6<$H$4),OR($K35<$H$5,$K35<AG$6),OR($Q35<$H$5,$Q35<AG$6)),IFERROR(IF(VLOOKUP($C35,NDB_ext!$C$12:$K$399,5,FALSE)=$F35,VLOOKUP($C35,NDB_ext!$C$12:$K$399,9,FALSE),""),""),"") ->  | AH35: =IF(IF(AND($K35<>"non inscrit",AH$6<$H$4),OR($K35<$H$5,$K35<AH$6),OR($Q35<$H$5,$Q35<AH$6)),IFERROR(IF(VLOOKUP($C35,Victo_ext!$C$12:$K$400,5,FALSE)=$F35,VLOOKUP($C35,Victo_ext!$C$12:$K$400,9,FALSE),""),""),"") ->  | AI35: =IF(IF(AND($K35<>"non inscrit",AI$6<$H$4),OR($K35<$H$5,$K35<AI$6),OR($Q35<$H$5,$Q35<AI$6)),IFERROR(IF(VLOOKUP($C35,Brome_ext!$C$12:$K$400,5,FALSE)=$F35,VLOOKUP($C35,Brome_ext!$C$12:$K$400,9,FALSE),""),""),"") ->  | AJ35: =IF(IF(AND($K35<>"non inscrit",AJ$6<$H$4),OR($K35<$H$5,$K35<AJ$6),OR($Q35<$H$5,$Q35<AJ$6)),IFERROR(IF(VLOOKUP($C35,Tuque_ext!$C$12:$K$400,5,FALSE)=$F35,VLOOKUP($C35,Tuque_ext!$C$12:$K$400,9,FALSE),""),""),"") ->  | AK35: =IF(IF(AND($K35<>"non inscrit",AK$6<$H$4),OR($K35<$H$5,$K35<AK$6),OR($Q35<$H$5,$Q35<AK$6)),IFERROR(IF(VLOOKUP($C35,Cantley_ext!$C$12:$K$400,5,FALSE)=$F35,VLOOKUP($C35,Cantley_ext!$C$12:$K$400,9,FALSE),""),""),"") ->  | AL35: =IF(IF(AND($K35<>"non inscrit",AL$6<$H$4),OR($K35<$H$5,$K35<AL$6),OR($Q35<$H$5,$Q35<AL$6)),IFERROR(IF(VLOOKUP($C35,CQ2_ext!$C$12:$K$400,5,FALSE)=$F35,VLOOKUP($C35,CQ2_ext!$C$12:$K$400,9,FALSE),""),""),"") ->  | AM35: =IF(IF(AND($K35<>"non inscrit",AM$6<$H$4),OR($K35<$H$5,$K35<AM$6),OR($Q35<$H$5,$Q35<AM$6)),IFERROR(IF(VLOOKUP($C35,Amos_ext!$C$12:$K$400,5,FALSE)=$F35,VLOOKUP($C35,Amos_ext!$C$12:$K$400,9,FALSE)*3/4,""),""),"") ->  | AN35: =IF(IF(AND($K35<>"non inscrit",AN$6<$H$4),OR($K35<$H$5,$K35<AN$6),OR($Q35<$H$5,$Q35<AN$6)),IFERROR(IF(VLOOKUP($C35,LaSarre_ext!$C$12:$K$400,5,FALSE)=$F35,VLOOKUP($C35,LaSarre_ext!$C$12:$K$400,9,FALSE),""),""),"") ->  | AO35: =IF(IF(AND($K35<>"non inscrit",AO$6<$H$4),OR($K35<$H$5,$K35<AO$6),OR($Q35<$H$5,$Q35<AO$6)),IFERROR(IF(VLOOKUP($C35,Rouyn_ext!$C$12:$K$400,5,FALSE)=$F35,VLOOKUP($C35,Rouyn_ext!$C$12:$K$400,9,FALSE),""),""),"") ->  | AP35: =IF(IF(AND($K35<>"non inscrit",AP$6<$H$4),OR($K35<$H$5,$K35<AP$6),OR($Q35<$H$5,$Q35<AP$6)),IFERROR(IF(VLOOKUP($C35,Valdor_ext!$C$12:$K$400,5,FALSE)=$F35,VLOOKUP($C35,Valdor_ext!$C$12:$K$400,9,FALSE),""),""),"") ->  | AQ35: =IF(IF(AND($K35<>"non inscrit",AQ$6<$H$4),OR($K35<$H$5,$K35<AQ$6),OR($Q35<$H$5,$Q35<AQ$6)),IFERROR(IF(VLOOKUP($C35,Perrot_ext!$C$12:$K$400,5,FALSE)=$F35,VLOOKUP($C35,Perrot_ext!$C$12:$K$400,9,FALSE),""),""),"") ->  | AR35: =IF(IF(AND($K35<>"non inscrit",AR$6<$H$4),OR($K35<$H$5,$K35<AR$6),OR($Q35<$H$5,$Q35<AR$6)),IFERROR(IF(VLOOKUP($C35,Sorel_ext!$C$12:$K$400,5,FALSE)=$F35,VLOOKUP($C35,Sorel_ext!$C$12:$K$400,9,FALSE),""),""),"") ->  | AV35: =IF(IF(AND($K35<>"non inscrit",AV$6<$H$4),OR($K35<$H$5,$K35<AV$6),OR($Q35<$H$5,$Q35<AV$6)),IFERROR(IF(VLOOKUP($C35,Finale_ext!$C$12:$K$400,5,FALSE)=$F35,VLOOKUP($C35,Finale_ext!$C$12:$K$400,9,FALSE),""),""),"") ->  | AX35: =IF(AND($Q35<>"",$Q35<>"non inscrit"),IF(IFERROR(VLOOKUP($C35,Coat_int!$C$12:$K$400,5,FALSE),"")=$F35,IF(AND(OR($Q35>=$H$4,$O$1<$H$5),OR($Q35<$H$5,$Q35<AX$6)),IFERROR(VLOOKUP($C35,Coat_int!$C$12:$K$400,9,FALSE),""),"_"),""),"") ->  | AY35: =IF(AND($Q35<>"",$Q35<>"non inscrit"),IF(IFERROR(VLOOKUP($C35,LG_int!$C$12:$K$403,5,FALSE),"")=$F35,IF(AND(OR($Q35>=$H$4,$O$1<$H$5),OR($Q35<$H$5,$Q35<AY$6)),IFERROR(VLOOKUP($C35,LG_int!$C$12:$K$403,9,FALSE),""),"_"),""),"") ->  | AZ35: =IF(AND($Q35<>"",$Q35<>"non inscrit"),IF(IFERROR(VLOOKUP($C35,LSNO_int!$C$12:$K$400,5,FALSE),"")=$F35,IF(AND(OR($Q35>=$H$4,$O$1<$H$5),OR($Q35<$H$5,$Q35<AZ$6)),IFERROR(VLOOKUP($C35,LSNO_int!$C$12:$K$400,9,FALSE),""),"_"),""),"") ->  | BA35: =IF(AND($Q35<>"",$Q35<>"non inscrit"),IF(IFERROR(VLOOKUP($C35,Ach_int!$C$12:$K$400,5,FALSE),"")=$F35,IF(AND(OR($Q35>=$H$4,$O$1<$H$5),OR($Q35<$H$5,$Q35<BA$6)),IFERROR(VLOOKUP($C35,Ach_int!$C$12:$K$400,9,FALSE),""),"_"),""),"") ->  | BB35: =IF(AND($Q35<>"",$Q35<>"non inscrit"),IF(IFERROR(VLOOKUP($C35,Tremb_int!$C$12:$K$400,5,FALSE),"")=$F35,IF(AND(OR($Q35>=$H$4,$O$1<$H$5),OR($Q35<$H$5,$Q35<BB$6)),IFERROR(VLOOKUP($C35,Tremb_int!$C$12:$K$400,9,FALSE),""),"_"),""),"") ->  | BC35: =IF(AND($Q35<>"",$Q35<>"non inscrit"),IF(IFERROR(VLOOKUP($C35,Buck_int!$C$12:$K$400,5,FALSE),"")=$F35,IF(AND(OR($Q35>=$H$4,$O$1<$H$5),OR($Q35<$H$5,$Q35<BC$6)),IFERROR(VLOOKUP($C35,Buck_int!$C$12:$K$400,9,FALSE),""),"_"),""),"") ->  | BD35: =IF(AND($Q35<>"",$Q35<>"non inscrit"),IF(IFERROR(VLOOKUP($C35,Drum_int!$C$12:$K$400,5,FALSE),"")=$F35,IF(AND(OR($Q35>=$H$4,$O$1<$H$5),OR($Q35<$H$5,$Q35<BD$6)),IFERROR(VLOOKUP($C35,Drum_int!$C$12:$K$400,9,FALSE),""),"_"),""),"") ->  | BE35: =IF(AND($Q35<>"",$Q35<>"non inscrit"),IF(IFERROR(VLOOKUP($C35,Coat_int2!$C$12:$K$400,5,FALSE),"")=$F35,IF(AND(OR($Q35>=$H$4,$O$1<$H$5),OR($Q35<$H$5,$Q35<BE$6)),IFERROR(VLOOKUP($C35,Coat_int2!$C$12:$K$400,9,FALSE),""),"_"),""),"") ->  | BF35: =IF(AND($Q35<>"",$Q35<>"non inscrit"),IF(IFERROR(VLOOKUP($C35,Jean_int!$C$12:$K$401,5,FALSE),"")=$F35,IF(AND(OR($Q35>=$H$4,$O$1<$H$5),OR($Q35<$H$5,$Q35<BF$6)),IFERROR(VLOOKUP($C35,Jean_int!$C$12:$K$401,9,FALSE),""),"_"),""),"") ->  | BG35: =IF(AND($Q35<>"",$Q35<>"non inscrit"),IF(IFERROR(VLOOKUP($C35,Val_int!$C$12:$K$401,5,FALSE),"")=$F35,IF(AND(OR($Q35>=$H$4,$O$1<$H$5),OR($Q35<$H$5,$Q35<BG$6)),IFERROR(VLOOKUP($C35,Val_int!$C$12:$K$401,9,FALSE),""),"_"),""),"") ->  | BH35: =IF(AND($Q35<>"",$Q35<>"non inscrit"),IF(IFERROR(VLOOKUP($C35,Qc_int!$C$12:$K$401,5,FALSE),"")=$F35,IF(AND(OR($Q35>=$H$4,$O$1<$H$5),OR($Q35<$H$5,$Q35<BH$6)),IFERROR(VLOOKUP($C35,Qc_int!$C$12:$K$401,9,FALSE),""),"_"),""),"") -> _ | BI35: =IF(AND($Q35<>"",$Q35<>"non inscrit"),IF(IFERROR(VLOOKUP($C35,Qc2_int!$C$12:$K$401,5,FALSE),"")=$F35,IF(AND(OR($Q35>=$H$4,$O$1<$H$5),OR($Q35<$H$5,$Q35<BI$6)),IFERROR(VLOOKUP($C35,Qc2_int!$C$12:$K$401,9,FALSE),""),"_"),""),"") -> _ | BJ35: =IF(AND($Q35<>"",$Q35<>"non inscrit"),IF(IFERROR(VLOOKUP($C35,#REF!,5,FALSE),"")=$F35,IF(AND(OR($Q35>=$H$4,$O$1<$H$5),OR($Q35<$H$5,$Q35<$AY$6)),IFERROR(VLOOKUP($C35,#REF!,9,FALSE),""),"_"),""),"") ->  | BK35: =IF(AND($Q35<>"",$Q35<>"non inscrit"),IF(IFERROR(VLOOKUP($C35,#REF!,5,FALSE),"")=$F35,IF(AND(OR($Q35>=$H$4,$O$1<$H$5),OR($Q35<$H$5,$Q35<$AY$6)),IFERROR(VLOOKUP($C35,#REF!,9,FALSE),""),"_"),""),"") ->  | BU35: =IF(AND($Q35<>"",$Q35<>"non inscrit"),IF(IFERROR(VLOOKUP($C35,FIN_int!$C$12:$K$401,5,FALSE),"")=$F35,IF(AND(OR($Q35>=$H$4,$O$1<$H$5),OR($Q35<$H$5,$Q35<BU$6)),IFERROR(VLOOKUP($C35,FIN_int!$C$12:$K$401,9,FALSE),""),"_"),""),"") -> 
A36: 1 | B36: 25 | C36: 6158 | D36: =IF($C36="","",IF($O$1>$H$4,IFERROR(VLOOKUP($C36,'Membres-2023'!$A:$G,2,FALSE),""),IFERROR(VLOOKUP($C36,'Membres-2022'!$A:$G,2,FALSE),""))) -> Nadeau | E36: =IF($C36="","",IF($O$1>$H$4,IFERROR(VLOOKUP($C36,'Membres-2023'!$A:$G,3,FALSE),""),IFERROR(VLOOKUP($C36,'Membres-2022'!$A:$G,3,FALSE),""))) -> Victor | F36: =IF($C36="","",IF($O$1>$H$4,IFERROR(VLOOKUP($C36,'Membres-2023'!$A:$G,7,FALSE),""),IFERROR(VLOOKUP($C36,'Membres-2022'!$A:$G,7,FALSE),""))) -> 1 | G36: =IF($C36="","",IF($O$1>$H$4,IFERROR(VLOOKUP($C36,'Membres-2023'!$A:$G,5,FALSE),""),IFERROR(VLOOKUP($C36,'Membres-2022'!$A:$G,5,FALSE),""))) -> Victoriaville (Robin des Bois-Francs) | H36: 0 | I36: 0 | J36: 0 | K36: =IFERROR(IF(VLOOKUP(C36,'Membres-2022'!$A:$F,6,FALSE)>=$H$3,VLOOKUP(C36,'Membres-2022'!$A:$F,6,FALSE),"non inscrit"),IF($C36>0,"non inscrit","")) -> 2022-06-30 | Q36: =IFERROR(IF(VLOOKUP($C36,'Membres-2023'!$A:$F,6,FALSE)>=$H$3,VLOOKUP($C36,'Membres-2023'!$A:$F,6,FALSE),"non inscrit"),"") -> 2022-06-30 | Z36: =IF(IF(AND($K36<>"non inscrit",Z$6<$H$4),OR($K36<$H$5,$K36<Z$6),OR($Q36<$H$5,$Q36<Z$6)),IFERROR(IF(VLOOKUP($C36,Stroch_ext!$C$12:$K$400,5,FALSE)=$F36,VLOOKUP($C36,Stroch_ext!$C$12:$K$400,9,FALSE),""),""),"") ->  | AA36: =IF(IF(AND($K36<>"non inscrit",AA$6<$H$4),OR($K36<$H$5,$K36<AA$6),OR($Q36<$H$5,$Q36<AA$6)),IFERROR(IF(VLOOKUP($C36,Vallée_ext!$C$12:$K$400,5,FALSE)=$F36,VLOOKUP($C36,Vallée_ext!$C$12:$K$400,9,FALSE),""),""),"") ->  | AB36: =IF(IF(AND($K36<>"non inscrit",AB$6<$H$4),OR($K36<$H$5,$K36<AB$6),OR($Q36<$H$5,$Q36<AB$6)),IFERROR(IF(VLOOKUP($C36,ASF_ext!$C$12:$K$400,5,FALSE)=$F36,VLOOKUP($C36,ASF_ext!$C$12:$K$400,9,FALSE),""),""),"") ->  | AC36: =IF(IF(AND($K36<>"non inscrit",AC$6<$H$4),OR($K36<$H$5,$K36<AC$6),OR($Q36<$H$5,$Q36<AC$6)),IFERROR(IF(VLOOKUP($C36,MtLaur_ext!$C$12:$K$407,5,FALSE)=$F36,VLOOKUP($C36,MtLaur_ext!$C$12:$K$407,9,FALSE),""),""),"") ->  | AD36: =IF(IF(AND($K36<>"non inscrit",AD$6<$H$4),OR($K36<$H$5,$K36<AD$6),OR($Q36<$H$5,$Q36<AD$6)),IFERROR(IF(VLOOKUP($C36,Nord_ext!$C$12:$K$400,5,FALSE)=$F36,VLOOKUP($C36,Nord_ext!$C$12:$K$400,9,FALSE),""),""),"") ->  | AE36: =IF(IF(AND($K36<>"non inscrit",AE$6<$H$4),OR($K36<$H$5,$K36<AE$6),OR($Q36<$H$5,$Q36<AE$6)),IFERROR(IF(VLOOKUP($C36,CentreQc_ext!$C$12:$K$400,5,FALSE)=$F36,VLOOKUP($C36,CentreQc_ext!$C$12:$K$400,9,FALSE),""),""),"") ->  | AF36: =IF(IF(AND($K36<>"non inscrit",AF$6<$H$4),OR($K36<$H$5,$K36<AF$6),OR($Q36<$H$5,$Q36<AF$6)),IFERROR(IF(VLOOKUP($C36,Ascot_ext!$C$12:$K$400,5,FALSE)=$F36,VLOOKUP($C36,Ascot_ext!$C$12:$K$400,9,FALSE),""),""),"") ->  | AG36: =IF(IF(AND($K36<>"non inscrit",AG$6<$H$4),OR($K36<$H$5,$K36<AG$6),OR($Q36<$H$5,$Q36<AG$6)),IFERROR(IF(VLOOKUP($C36,NDB_ext!$C$12:$K$399,5,FALSE)=$F36,VLOOKUP($C36,NDB_ext!$C$12:$K$399,9,FALSE),""),""),"") ->  | AH36: =IF(IF(AND($K36<>"non inscrit",AH$6<$H$4),OR($K36<$H$5,$K36<AH$6),OR($Q36<$H$5,$Q36<AH$6)),IFERROR(IF(VLOOKUP($C36,Victo_ext!$C$12:$K$400,5,FALSE)=$F36,VLOOKUP($C36,Victo_ext!$C$12:$K$400,9,FALSE),""),""),"") ->  | AI36: =IF(IF(AND($K36<>"non inscrit",AI$6<$H$4),OR($K36<$H$5,$K36<AI$6),OR($Q36<$H$5,$Q36<AI$6)),IFERROR(IF(VLOOKUP($C36,Brome_ext!$C$12:$K$400,5,FALSE)=$F36,VLOOKUP($C36,Brome_ext!$C$12:$K$400,9,FALSE),""),""),"") ->  | AJ36: =IF(IF(AND($K36<>"non inscrit",AJ$6<$H$4),OR($K36<$H$5,$K36<AJ$6),OR($Q36<$H$5,$Q36<AJ$6)),IFERROR(IF(VLOOKUP($C36,Tuque_ext!$C$12:$K$400,5,FALSE)=$F36,VLOOKUP($C36,Tuque_ext!$C$12:$K$400,9,FALSE),""),""),"") ->  | AK36: =IF(IF(AND($K36<>"non inscrit",AK$6<$H$4),OR($K36<$H$5,$K36<AK$6),OR($Q36<$H$5,$Q36<AK$6)),IFERROR(IF(VLOOKUP($C36,Cantley_ext!$C$12:$K$400,5,FALSE)=$F36,VLOOKUP($C36,Cantley_ext!$C$12:$K$400,9,FALSE),""),""),"") ->  | AL36: =IF(IF(AND($K36<>"non inscrit",AL$6<$H$4),OR($K36<$H$5,$K36<AL$6),OR($Q36<$H$5,$Q36<AL$6)),IFERROR(IF(VLOOKUP($C36,CQ2_ext!$C$12:$K$400,5,FALSE)=$F36,VLOOKUP($C36,CQ2_ext!$C$12:$K$400,9,FALSE),""),""),"") ->  | AM36: =IF(IF(AND($K36<>"non inscrit",AM$6<$H$4),OR($K36<$H$5,$K36<AM$6),OR($Q36<$H$5,$Q36<AM$6)),IFERROR(IF(VLOOKUP($C36,Amos_ext!$C$12:$K$400,5,FALSE)=$F36,VLOOKUP($C36,Amos_ext!$C$12:$K$400,9,FALSE)*3/4,""),""),"") ->  | AN36: =IF(IF(AND($K36<>"non inscrit",AN$6<$H$4),OR($K36<$H$5,$K36<AN$6),OR($Q36<$H$5,$Q36<AN$6)),IFERROR(IF(VLOOKUP($C36,LaSarre_ext!$C$12:$K$400,5,FALSE)=$F36,VLOOKUP($C36,LaSarre_ext!$C$12:$K$400,9,FALSE),""),""),"") ->  | AO36: =IF(IF(AND($K36<>"non inscrit",AO$6<$H$4),OR($K36<$H$5,$K36<AO$6),OR($Q36<$H$5,$Q36<AO$6)),IFERROR(IF(VLOOKUP($C36,Rouyn_ext!$C$12:$K$400,5,FALSE)=$F36,VLOOKUP($C36,Rouyn_ext!$C$12:$K$400,9,FALSE),""),""),"") ->  | AP36: =IF(IF(AND($K36<>"non inscrit",AP$6<$H$4),OR($K36<$H$5,$K36<AP$6),OR($Q36<$H$5,$Q36<AP$6)),IFERROR(IF(VLOOKUP($C36,Valdor_ext!$C$12:$K$400,5,FALSE)=$F36,VLOOKUP($C36,Valdor_ext!$C$12:$K$400,9,FALSE),""),""),"") ->  | AQ36: =IF(IF(AND($K36<>"non inscrit",AQ$6<$H$4),OR($K36<$H$5,$K36<AQ$6),OR($Q36<$H$5,$Q36<AQ$6)),IFERROR(IF(VLOOKUP($C36,Perrot_ext!$C$12:$K$400,5,FALSE)=$F36,VLOOKUP($C36,Perrot_ext!$C$12:$K$400,9,FALSE),""),""),"") ->  | AR36: =IF(IF(AND($K36<>"non inscrit",AR$6<$H$4),OR($K36<$H$5,$K36<AR$6),OR($Q36<$H$5,$Q36<AR$6)),IFERROR(IF(VLOOKUP($C36,Sorel_ext!$C$12:$K$400,5,FALSE)=$F36,VLOOKUP($C36,Sorel_ext!$C$12:$K$400,9,FALSE),""),""),"") ->  | AV36: =IF(IF(AND($K36<>"non inscrit",AV$6<$H$4),OR($K36<$H$5,$K36<AV$6),OR($Q36<$H$5,$Q36<AV$6)),IFERROR(IF(VLOOKUP($C36,Finale_ext!$C$12:$K$400,5,FALSE)=$F36,VLOOKUP($C36,Finale_ext!$C$12:$K$400,9,FALSE),""),""),"") ->  | AX36: =IF(AND($Q36<>"",$Q36<>"non inscrit"),IF(IFERROR(VLOOKUP($C36,Coat_int!$C$12:$K$400,5,FALSE),"")=$F36,IF(AND(OR($Q36>=$H$4,$O$1<$H$5),OR($Q36<$H$5,$Q36<AX$6)),IFERROR(VLOOKUP($C36,Coat_int!$C$12:$K$400,9,FALSE),""),"_"),""),"") ->  | AY36: =IF(AND($Q36<>"",$Q36<>"non inscrit"),IF(IFERROR(VLOOKUP($C36,LG_int!$C$12:$K$403,5,FALSE),"")=$F36,IF(AND(OR($Q36>=$H$4,$O$1<$H$5),OR($Q36<$H$5,$Q36<AY$6)),IFERROR(VLOOKUP($C36,LG_int!$C$12:$K$403,9,FALSE),""),"_"),""),"") ->  | AZ36: =IF(AND($Q36<>"",$Q36<>"non inscrit"),IF(IFERROR(VLOOKUP($C36,LSNO_int!$C$12:$K$400,5,FALSE),"")=$F36,IF(AND(OR($Q36>=$H$4,$O$1<$H$5),OR($Q36<$H$5,$Q36<AZ$6)),IFERROR(VLOOKUP($C36,LSNO_int!$C$12:$K$400,9,FALSE),""),"_"),""),"") ->  | BA36: =IF(AND($Q36<>"",$Q36<>"non inscrit"),IF(IFERROR(VLOOKUP($C36,Ach_int!$C$12:$K$400,5,FALSE),"")=$F36,IF(AND(OR($Q36>=$H$4,$O$1<$H$5),OR($Q36<$H$5,$Q36<BA$6)),IFERROR(VLOOKUP($C36,Ach_int!$C$12:$K$400,9,FALSE),""),"_"),""),"") ->  | BB36: =IF(AND($Q36<>"",$Q36<>"non inscrit"),IF(IFERROR(VLOOKUP($C36,Tremb_int!$C$12:$K$400,5,FALSE),"")=$F36,IF(AND(OR($Q36>=$H$4,$O$1<$H$5),OR($Q36<$H$5,$Q36<BB$6)),IFERROR(VLOOKUP($C36,Tremb_int!$C$12:$K$400,9,FALSE),""),"_"),""),"") ->  | BC36: =IF(AND($Q36<>"",$Q36<>"non inscrit"),IF(IFERROR(VLOOKUP($C36,Buck_int!$C$12:$K$400,5,FALSE),"")=$F36,IF(AND(OR($Q36>=$H$4,$O$1<$H$5),OR($Q36<$H$5,$Q36<BC$6)),IFERROR(VLOOKUP($C36,Buck_int!$C$12:$K$400,9,FALSE),""),"_"),""),"") ->  | BD36: =IF(AND($Q36<>"",$Q36<>"non inscrit"),IF(IFERROR(VLOOKUP($C36,Drum_int!$C$12:$K$400,5,FALSE),"")=$F36,IF(AND(OR($Q36>=$H$4,$O$1<$H$5),OR($Q36<$H$5,$Q36<BD$6)),IFERROR(VLOOKUP($C36,Drum_int!$C$12:$K$400,9,FALSE),""),"_"),""),"") ->  | BE36: =IF(AND($Q36<>"",$Q36<>"non inscrit"),IF(IFERROR(VLOOKUP($C36,Coat_int2!$C$12:$K$400,5,FALSE),"")=$F36,IF(AND(OR($Q36>=$H$4,$O$1<$H$5),OR($Q36<$H$5,$Q36<BE$6)),IFERROR(VLOOKUP($C36,Coat_int2!$C$12:$K$400,9,FALSE),""),"_"),""),"") ->  | BF36: =IF(AND($Q36<>"",$Q36<>"non inscrit"),IF(IFERROR(VLOOKUP($C36,Jean_int!$C$12:$K$401,5,FALSE),"")=$F36,IF(AND(OR($Q36>=$H$4,$O$1<$H$5),OR($Q36<$H$5,$Q36<BF$6)),IFERROR(VLOOKUP($C36,Jean_int!$C$12:$K$401,9,FALSE),""),"_"),""),"") ->  | BG36: =IF(AND($Q36<>"",$Q36<>"non inscrit"),IF(IFERROR(VLOOKUP($C36,Val_int!$C$12:$K$401,5,FALSE),"")=$F36,IF(AND(OR($Q36>=$H$4,$O$1<$H$5),OR($Q36<$H$5,$Q36<BG$6)),IFERROR(VLOOKUP($C36,Val_int!$C$12:$K$401,9,FALSE),""),"_"),""),"") ->  | BH36: =IF(AND($Q36<>"",$Q36<>"non inscrit"),IF(IFERROR(VLOOKUP($C36,Qc_int!$C$12:$K$401,5,FALSE),"")=$F36,IF(AND(OR($Q36>=$H$4,$O$1<$H$5),OR($Q36<$H$5,$Q36<BH$6)),IFERROR(VLOOKUP($C36,Qc_int!$C$12:$K$401,9,FALSE),""),"_"),""),"") ->  | BI36: =IF(AND($Q36<>"",$Q36<>"non inscrit"),IF(IFERROR(VLOOKUP($C36,Qc2_int!$C$12:$K$401,5,FALSE),"")=$F36,IF(AND(OR($Q36>=$H$4,$O$1<$H$5),OR($Q36<$H$5,$Q36<BI$6)),IFERROR(VLOOKUP($C36,Qc2_int!$C$12:$K$401,9,FALSE),""),"_"),""),"") ->  | BJ36: =IF(AND($Q36<>"",$Q36<>"non inscrit"),IF(IFERROR(VLOOKUP($C36,#REF!,5,FALSE),"")=$F36,IF(AND(OR($Q36>=$H$4,$O$1<$H$5),OR($Q36<$H$5,$Q36<$AY$6)),IFERROR(VLOOKUP($C36,#REF!,9,FALSE),""),"_"),""),"") ->  | BK36: =IF(AND($Q36<>"",$Q36<>"non inscrit"),IF(IFERROR(VLOOKUP($C36,#REF!,5,FALSE),"")=$F36,IF(AND(OR($Q36>=$H$4,$O$1<$H$5),OR($Q36<$H$5,$Q36<$AY$6)),IFERROR(VLOOKUP($C36,#REF!,9,FALSE),""),"_"),""),"") ->  | BU36: =IF(AND($Q36<>"",$Q36<>"non inscrit"),IF(IFERROR(VLOOKUP($C36,FIN_int!$C$12:$K$401,5,FALSE),"")=$F36,IF(AND(OR($Q36>=$H$4,$O$1<$H$5),OR($Q36<$H$5,$Q36<BU$6)),IFERROR(VLOOKUP($C36,FIN_int!$C$12:$K$401,9,FALSE),""),"_"),""),"") -> 
A37: =A38 -> 2 | I37: 1324 | J37: 1324 | K37: 1 | Q37: 1
A38: 2 | B38: Classe 2 et | E38: FEMME FUTUR ARCHER - POULIES ( - 12 ans ) | I38: 1323 | J38: 1323 | K38: 1 | L38: 15 mètres | N38: BLANC | Q38: 1
A39: =A38 -> 2 | B39: Classe 4 | E39: FEMME FUTUR ARCHER - TRADITIONNEL ( - 12 ans ) | I39: 1322 | J39: 1322 | K39: 1 | L39: 15 mètres | N39: BLANC | Q39: 1
A40: 2 | I40: 1321 | J40: 1321 | K40: 1 | Q40: 1
A41: 2 | B41: =B40+1 -> 1 | C41: 4775 | D41: =IF($C41="","",IF($O$1>$H$4,IFERROR(VLOOKUP($C41,'Membres-2023'!$A:$G,2,FALSE),""),IFERROR(VLOOKUP($C41,'Membres-2022'!$A:$G,2,FALSE),""))) -> Bernier | E41: =IF($C41="","",IF($O$1>$H$4,IFERROR(VLOOKUP($C41,'Membres-2023'!$A:$G,3,FALSE),""),IFERROR(VLOOKUP($C41,'Membres-2022'!$A:$G,3,FALSE),""))) -> Kim | F41: =IF($C41="","",IF($O$1>$H$4,IFERROR(VLOOKUP($C41,'Membres-2023'!$A:$G,7,FALSE),""),IFERROR(VLOOKUP($C41,'Membres-2022'!$A:$G,7,FALSE),""))) -> 2 | G41: =IF($C41="","",IF($O$1>$H$4,IFERROR(VLOOKUP($C41,'Membres-2023'!$A:$G,5,FALSE),""),IFERROR(VLOOKUP($C41,'Membres-2022'!$A:$G,5,FALSE),""))) -> Ascot Corner (Archers d') | H41: =COUNTIF($Z41:$BU41,">=0") -> 8 | I41: =SUM(L41:P41,R41:V41) -> 664 | J41: =SUM(L41:P41) -> 254 | K41: =IFERROR(IF(VLOOKUP(C41,'Membres-2022'!$A:$F,6,FALSE)>=$H$3,VLOOKUP(C41,'Membres-2022'!$A:$F,6,FALSE),"non inscrit"),IF($C41>0,"non inscrit","")) -> 2022-07-13 | L41: =IFERROR(IF(COUNTA(Z41:AU41)>0,LARGE(Z41:AU41,1)/6,""),"") -> 41 | M41: =IFERROR(IF(COUNTA(Z41:AU41)>1,LARGE(Z41:AU41,2)/6,""),"") ->  | N41: =IFERROR(IF(COUNTA(Z41:AU41)>2,LARGE(Z41:AU41,3)/6,""),"") ->  | O41: =IFERROR(IF(COUNTA(Z41:AU41)>3,LARGE(Z41:AU41,4)/6,""),"") ->  | P41: =IF(AV41<>"",AV41,"") -> 213 | Q41: =IFERROR(IF(VLOOKUP($C41,'Membres-2023'!$A:$F,6,FALSE)>=$H$3,VLOOKUP($C41,'Membres-2023'!$A:$F,6,FALSE),"non inscrit"),"") -> 2023-01-23 | R41: =IFERROR(IF(COUNTA(AX41:BT41)>0,LARGE(AX41:BT41,1)/6,""),"") -> 45.16666667 | S41: =IFERROR(IF(COUNTA(AX41:BT41)>1,LARGE(AX41:BT41,2)/6,""),"") -> 43.33333333 | T41: =IFERROR(IF(COUNTA(AX41:BT41)>2,LARGE(AX41:BT41,3)/6,""),"") -> 42.5 | U41: =IFERROR(IF(COUNTA(AX41:BT41)>3,LARGE(AX41:BT41,4)/6,""),"") -> 41 | V41: =IF(BU41<>"",BU41,"") -> 238 | Z41: =IF(IF(AND($K41<>"non inscrit",Z$6<$H$4),OR($K41<$H$5,$K41<Z$6),OR($Q41<$H$5,$Q41<Z$6)),IFERROR(IF(VLOOKUP($C41,Stroch_ext!$C$12:$K$400,5,FALSE)=$F41,VLOOKUP($C41,Stroch_ext!$C$12:$K$400,9,FALSE),""),""),"") ->  | AA41: =IF(IF(AND($K41<>"non inscrit",AA$6<$H$4),OR($K41<$H$5,$K41<AA$6),OR($Q41<$H$5,$Q41<AA$6)),IFERROR(IF(VLOOKUP($C41,Vallée_ext!$C$12:$K$400,5,FALSE)=$F41,VLOOKUP($C41,Vallée_ext!$C$12:$K$400,9,FALSE),""),""),"") ->  | AB41: =IF(IF(AND($K41<>"non inscrit",AB$6<$H$4),OR($K41<$H$5,$K41<AB$6),OR($Q41<$H$5,$Q41<AB$6)),IFERROR(IF(VLOOKUP($C41,ASF_ext!$C$12:$K$400,5,FALSE)=$F41,VLOOKUP($C41,ASF_ext!$C$12:$K$400,9,FALSE),""),""),"") ->  | AC41: =IF(IF(AND($K41<>"non inscrit",AC$6<$H$4),OR($K41<$H$5,$K41<AC$6),OR($Q41<$H$5,$Q41<AC$6)),IFERROR(IF(VLOOKUP($C41,MtLaur_ext!$C$12:$K$407,5,FALSE)=$F41,VLOOKUP($C41,MtLaur_ext!$C$12:$K$407,9,FALSE),""),""),"") ->  | AD41: =IF(IF(AND($K41<>"non inscrit",AD$6<$H$4),OR($K41<$H$5,$K41<AD$6),OR($Q41<$H$5,$Q41<AD$6)),IFERROR(IF(VLOOKUP($C41,Nord_ext!$C$12:$K$400,5,FALSE)=$F41,VLOOKUP($C41,Nord_ext!$C$12:$K$400,9,FALSE),""),""),"") ->  | AE41: =IF(IF(AND($K41<>"non inscrit",AE$6<$H$4),OR($K41<$H$5,$K41<AE$6),OR($Q41<$H$5,$Q41<AE$6)),IFERROR(IF(VLOOKUP($C41,CentreQc_ext!$C$12:$K$400,5,FALSE)=$F41,VLOOKUP($C41,CentreQc_ext!$C$12:$K$400,9,FALSE),""),""),"") ->  | AF41: =IF(IF(AND($K41<>"non inscrit",AF$6<$H$4),OR($K41<$H$5,$K41<AF$6),OR($Q41<$H$5,$Q41<AF$6)),IFERROR(IF(VLOOKUP($C41,Ascot_ext!$C$12:$K$400,5,FALSE)=$F41,VLOOKUP($C41,Ascot_ext!$C$12:$K$400,9,FALSE),""),""),"") ->  | AG41: =IF(IF(AND($K41<>"non inscrit",AG$6<$H$4),OR($K41<$H$5,$K41<AG$6),OR($Q41<$H$5,$Q41<AG$6)),IFERROR(IF(VLOOKUP($C41,NDB_ext!$C$12:$K$399,5,FALSE)=$F41,VLOOKUP($C41,NDB_ext!$C$12:$K$399,9,FALSE),""),""),"") ->  | AH41: =IF(IF(AND($K41<>"non inscrit",AH$6<$H$4),OR($K41<$H$5,$K41<AH$6),OR($Q41<$H$5,$Q41<AH$6)),IFERROR(IF(VLOOKUP($C41,Victo_ext!$C$12:$K$400,5,FALSE)=$F41,VLOOKUP($C41,Victo_ext!$C$12:$K$400,9,FALSE),""),""),"") ->  | AI41: =IF(IF(AND($K41<>"non inscrit",AI$6<$H$4),OR($K41<$H$5,$K41<AI$6),OR($Q41<$H$5,$Q41<AI$6)),IFERROR(IF(VLOOKUP($C41,Brome_ext!$C$12:$K$400,5,FALSE)=$F41,VLOOKUP($C41,Brome_ext!$C$12:$K$400,9,FALSE),""),""),"") ->  | AJ41: =IF(IF(AND($K41<>"non inscrit",AJ$6<$H$4),OR($K41<$H$5,$K41<AJ$6),OR($Q41<$H$5,$Q41<AJ$6)),IFERROR(IF(VLOOKUP($C41,Tuque_ext!$C$12:$K$400,5,FALSE)=$F41,VLOOKUP($C41,Tuque_ext!$C$12:$K$400,9,FALSE),""),""),"") ->  | AK41: =IF(IF(AND($K41<>"non inscrit",AK$6<$H$4),OR($K41<$H$5,$K41<AK$6),OR($Q41<$H$5,$Q41<AK$6)),IFERROR(IF(VLOOKUP($C41,Cantley_ext!$C$12:$K$400,5,FALSE)=$F41,VLOOKUP($C41,Cantley_ext!$C$12:$K$400,9,FALSE),""),""),"") ->  | AL41: =IF(IF(AND($K41<>"non inscrit",AL$6<$H$4),OR($K41<$H$5,$K41<AL$6),OR($Q41<$H$5,$Q41<AL$6)),IFERROR(IF(VLOOKUP($C41,CQ2_ext!$C$12:$K$400,5,FALSE)=$F41,VLOOKUP($C41,CQ2_ext!$C$12:$K$400,9,FALSE),""),""),"") -> 246 | AM41: =IF(IF(AND($K41<>"non inscrit",AM$6<$H$4),OR($K41<$H$5,$K41<AM$6),OR($Q41<$H$5,$Q41<AM$6)),IFERROR(IF(VLOOKUP($C41,Amos_ext!$C$12:$K$400,5,FALSE)=$F41,VLOOKUP($C41,Amos_ext!$C$12:$K$400,9,FALSE)*3/4,""),""),"") ->  | AN41: =IF(IF(AND($K41<>"non inscrit",AN$6<$H$4),OR($K41<$H$5,$K41<AN$6),OR($Q41<$H$5,$Q41<AN$6)),IFERROR(IF(VLOOKUP($C41,LaSarre_ext!$C$12:$K$400,5,FALSE)=$F41,VLOOKUP($C41,LaSarre_ext!$C$12:$K$400,9,FALSE),""),""),"") ->  | AO41: =IF(IF(AND($K41<>"non inscrit",AO$6<$H$4),OR($K41<$H$5,$K41<AO$6),OR($Q41<$H$5,$Q41<AO$6)),IFERROR(IF(VLOOKUP($C41,Rouyn_ext!$C$12:$K$400,5,FALSE)=$F41,VLOOKUP($C41,Rouyn_ext!$C$12:$K$400,9,FALSE),""),""),"") ->  | AP41: =IF(IF(AND($K41<>"non inscrit",AP$6<$H$4),OR($K41<$H$5,$K41<AP$6),OR($Q41<$H$5,$Q41<AP$6)),IFERROR(IF(VLOOKUP($C41,Valdor_ext!$C$12:$K$400,5,FALSE)=$F41,VLOOKUP($C41,Valdor_ext!$C$12:$K$400,9,FALSE),""),""),"") ->  | AQ41: =IF(IF(AND($K41<>"non inscrit",AQ$6<$H$4),OR($K41<$H$5,$K41<AQ$6),OR($Q41<$H$5,$Q41<AQ$6)),IFERROR(IF(VLOOKUP($C41,Perrot_ext!$C$12:$K$400,5,FALSE)=$F41,VLOOKUP($C41,Perrot_ext!$C$12:$K$400,9,FALSE),""),""),"") ->  | AR41: =IF(IF(AND($K41<>"non inscrit",AR$6<$H$4),OR($K41<$H$5,$K41<AR$6),OR($Q41<$H$5,$Q41<AR$6)),IFERROR(IF(VLOOKUP($C41,Sorel_ext!$C$12:$K$400,5,FALSE)=$F41,VLOOKUP($C41,Sorel_ext!$C$12:$K$400,9,FALSE),""),""),"") ->  | AV41: =IF(IF(AND($K41<>"non inscrit",AV$6<$H$4),OR($K41<$H$5,$K41<AV$6),OR($Q41<$H$5,$Q41<AV$6)),IFERROR(IF(VLOOKUP($C41,Finale_ext!$C$12:$K$400,5,FALSE)=$F41,VLOOKUP($C41,Finale_ext!$C$12:$K$400,9,FALSE),""),""),"") -> 213 | AX41: =IF(AND($Q41<>"",$Q41<>"non inscrit"),IF(IFERROR(VLOOKUP($C41,Coat_int!$C$12:$K$400,5,FALSE),"")=$F41,IF(AND(OR($Q41>=$H$4,$O$1<$H$5),OR($Q41<$H$5,$Q41<AX$6)),IFERROR(VLOOKUP($C41,Coat_int!$C$12:$K$400,9,FALSE),""),"_"),""),"") -> 245 | AY41: =IF(AND($Q41<>"",$Q41<>"non inscrit"),IF(IFERROR(VLOOKUP($C41,LG_int!$C$12:$K$403,5,FALSE),"")=$F41,IF(AND(OR($Q41>=$H$4,$O$1<$H$5),OR($Q41<$H$5,$Q41<AY$6)),IFERROR(VLOOKUP($C41,LG_int!$C$12:$K$403,9,FALSE),""),"_"),""),"") -> 271 | AZ41: =IF(AND($Q41<>"",$Q41<>"non inscrit"),IF(IFERROR(VLOOKUP($C41,LSNO_int!$C$12:$K$400,5,FALSE),"")=$F41,IF(AND(OR($Q41>=$H$4,$O$1<$H$5),OR($Q41<$H$5,$Q41<AZ$6)),IFERROR(VLOOKUP($C41,LSNO_int!$C$12:$K$400,9,FALSE),""),"_"),""),"") ->  | BA41: =IF(AND($Q41<>"",$Q41<>"non inscrit"),IF(IFERROR(VLOOKUP($C41,Ach_int!$C$12:$K$400,5,FALSE),"")=$F41,IF(AND(OR($Q41>=$H$4,$O$1<$H$5),OR($Q41<$H$5,$Q41<BA$6)),IFERROR(VLOOKUP($C41,Ach_int!$C$12:$K$400,9,FALSE),""),"_"),""),"") ->  | BB41: =IF(AND($Q41<>"",$Q41<>"non inscrit"),IF(IFERROR(VLOOKUP($C41,Tremb_int!$C$12:$K$400,5,FALSE),"")=$F41,IF(AND(OR($Q41>=$H$4,$O$1<$H$5),OR($Q41<$H$5,$Q41<BB$6)),IFERROR(VLOOKUP($C41,Tremb_int!$C$12:$K$400,9,FALSE),""),"_"),""),"") ->  | BC41: =IF(AND($Q41<>"",$Q41<>"non inscrit"),IF(IFERROR(VLOOKUP($C41,Buck_int!$C$12:$K$400,5,FALSE),"")=$F41,IF(AND(OR($Q41>=$H$4,$O$1<$H$5),OR($Q41<$H$5,$Q41<BC$6)),IFERROR(VLOOKUP($C41,Buck_int!$C$12:$K$400,9,FALSE),""),"_"),""),"") ->  | BD41: =IF(AND($Q41<>"",$Q41<>"non inscrit"),IF(IFERROR(VLOOKUP($C41,Drum_int!$C$12:$K$400,5,FALSE),"")=$F41,IF(AND(OR($Q41>=$H$4,$O$1<$H$5),OR($Q41<$H$5,$Q41<BD$6)),IFERROR(VLOOKUP($C41,Drum_int!$C$12:$K$400,9,FALSE),""),"_"),""),"") -> 246 | BE41: =IF(AND($Q41<>"",$Q41<>"non inscrit"),IF(IFERROR(VLOOKUP($C41,Coat_int2!$C$12:$K$400,5,FALSE),"")=$F41,IF(AND(OR($Q41>=$H$4,$O$1<$H$5),OR($Q41<$H$5,$Q41<BE$6)),IFERROR(VLOOKUP($C41,Coat_int2!$C$12:$K$400,9,FALSE),""),"_"),""),"") -> 260 | BF41: =IF(AND($Q41<>"",$Q41<>"non inscrit"),IF(IFERROR(VLOOKUP($C41,Jean_int!$C$12:$K$401,5,FALSE),"")=$F41,IF(AND(OR($Q41>=$H$4,$O$1<$H$5),OR($Q41<$H$5,$Q41<BF$6)),IFERROR(VLOOKUP($C41,Jean_int!$C$12:$K$401,9,FALSE),""),"_"),""),"") -> 255 | BG41: =IF(AND($Q41<>"",$Q41<>"non inscrit"),IF(IFERROR(VLOOKUP($C41,Val_int!$C$12:$K$401,5,FALSE),"")=$F41,IF(AND(OR($Q41>=$H$4,$O$1<$H$5),OR($Q41<$H$5,$Q41<BG$6)),IFERROR(VLOOKUP($C41,Val_int!$C$12:$K$401,9,FALSE),""),"_"),""),"") ->  | BH41: =IF(AND($Q41<>"",$Q41<>"non inscrit"),IF(IFERROR(VLOOKUP($C41,Qc_int!$C$12:$K$401,5,FALSE),"")=$F41,IF(AND(OR($Q41>=$H$4,$O$1<$H$5),OR($Q41<$H$5,$Q41<BH$6)),IFERROR(VLOOKUP($C41,Qc_int!$C$12:$K$401,9,FALSE),""),"_"),""),"") ->  | BI41: =IF(AND($Q41<>"",$Q41<>"non inscrit"),IF(IFERROR(VLOOKUP($C41,Qc2_int!$C$12:$K$401,5,FALSE),"")=$F41,IF(AND(OR($Q41>=$H$4,$O$1<$H$5),OR($Q41<$H$5,$Q41<BI$6)),IFERROR(VLOOKUP($C41,Qc2_int!$C$12:$K$401,9,FALSE),""),"_"),""),"") ->  | BJ41: =IF(AND($Q41<>"",$Q41<>"non inscrit"),IF(IFERROR(VLOOKUP($C41,#REF!,5,FALSE),"")=$F41,IF(AND(OR($Q41>=$H$4,$O$1<$H$5),OR($Q41<$H$5,$Q41<$AY$6)),IFERROR(VLOOKUP($C41,#REF!,9,FALSE),""),"_"),""),"") ->  | BK41: =IF(AND($Q41<>"",$Q41<>"non inscrit"),IF(IFERROR(VLOOKUP($C41,#REF!,5,FALSE),"")=$F41,IF(AND(OR($Q41>=$H$4,$O$1<$H$5),OR($Q41<$H$5,$Q41<$AY$6)),IFERROR(VLOOKUP($C41,#REF!,9,FALSE),""),"_"),""),"") ->  | BU41: =IF(AND($Q41<>"",$Q41<>"non inscrit"),IF(IFERROR(VLOOKUP($C41,FIN_int!$C$12:$K$401,5,FALSE),"")=$F41,IF(AND(OR($Q41>=$H$4,$O$1<$H$5),OR($Q41<$H$5,$Q41<BU$6)),IFERROR(VLOOKUP($C41,FIN_int!$C$12:$K$401,9,FALSE),""),"_"),""),"") -> 238
A42: 2 | B42: 2 | C42: 4502 | D42: =IF($C42="","",IF($O$1>$H$4,IFERROR(VLOOKUP($C42,'Membres-2023'!$A:$G,2,FALSE),""),IFERROR(VLOOKUP($C42,'Membres-2022'!$A:$G,2,FALSE),""))) -> Morin | E42: =IF($C42="","",IF($O$1>$H$4,IFERROR(VLOOKUP($C42,'Membres-2023'!$A:$G,3,FALSE),""),IFERROR(VLOOKUP($C42,'Membres-2022'!$A:$G,3,FALSE),""))) -> Lili-Rose | F42: =IF($C42="","",IF($O$1>$H$4,IFERROR(VLOOKUP($C42,'Membres-2023'!$A:$G,7,FALSE),""),IFERROR(VLOOKUP($C42,'Membres-2022'!$A:$G,7,FALSE),""))) -> 2 | G42: =IF($C42="","",IF($O$1>$H$4,IFERROR(VLOOKUP($C42,'Membres-2023'!$A:$G,5,FALSE),""),IFERROR(VLOOKUP($C42,'Membres-2022'!$A:$G,5,FALSE),""))) -> La Tuque (Archers de) | H42: 2 | I42: 85 | J42: 85 | K42: =IFERROR(IF(VLOOKUP(C42,'Membres-2022'!$A:$F,6,FALSE)>=$H$3,VLOOKUP(C42,'Membres-2022'!$A:$F,6,FALSE),"non inscrit"),IF($C42>0,"non inscrit","")) -> 2022-04-23 | L42: 43.5 | M42: 41.5 | Q42: =IFERROR(IF(VLOOKUP($C42,'Membres-2023'!$A:$F,6,FALSE)>=$H$3,VLOOKUP($C42,'Membres-2023'!$A:$F,6,FALSE),"non inscrit"),"") -> 2023-01-30 | Z42: =IF(IF(AND($K42<>"non inscrit",Z$6<$H$4),OR($K42<$H$5,$K42<Z$6),OR($Q42<$H$5,$Q42<Z$6)),IFERROR(IF(VLOOKUP($C42,Stroch_ext!$C$12:$K$400,5,FALSE)=$F42,VLOOKUP($C42,Stroch_ext!$C$12:$K$400,9,FALSE),""),""),"") ->  | AA42: =IF(IF(AND($K42<>"non inscrit",AA$6<$H$4),OR($K42<$H$5,$K42<AA$6),OR($Q42<$H$5,$Q42<AA$6)),IFERROR(IF(VLOOKUP($C42,Vallée_ext!$C$12:$K$400,5,FALSE)=$F42,VLOOKUP($C42,Vallée_ext!$C$12:$K$400,9,FALSE),""),""),"") ->  | AB42: =IF(IF(AND($K42<>"non inscrit",AB$6<$H$4),OR($K42<$H$5,$K42<AB$6),OR($Q42<$H$5,$Q42<AB$6)),IFERROR(IF(VLOOKUP($C42,ASF_ext!$C$12:$K$400,5,FALSE)=$F42,VLOOKUP($C42,ASF_ext!$C$12:$K$400,9,FALSE),""),""),"") ->  | AC42: =IF(IF(AND($K42<>"non inscrit",AC$6<$H$4),OR($K42<$H$5,$K42<AC$6),OR($Q42<$H$5,$Q42<AC$6)),IFERROR(IF(VLOOKUP($C42,MtLaur_ext!$C$12:$K$407,5,FALSE)=$F42,VLOOKUP($C42,MtLaur_ext!$C$12:$K$407,9,FALSE),""),""),"") ->  | AD42: =IF(IF(AND($K42<>"non inscrit",AD$6<$H$4),OR($K42<$H$5,$K42<AD$6),OR($Q42<$H$5,$Q42<AD$6)),IFERROR(IF(VLOOKUP($C42,Nord_ext!$C$12:$K$400,5,FALSE)=$F42,VLOOKUP($C42,Nord_ext!$C$12:$K$400,9,FALSE),""),""),"") -> 261 | AE42: =IF(IF(AND($K42<>"non inscrit",AE$6<$H$4),OR($K42<$H$5,$K42<AE$6),OR($Q42<$H$5,$Q42<AE$6)),IFERROR(IF(VLOOKUP($C42,CentreQc_ext!$C$12:$K$400,5,FALSE)=$F42,VLOOKUP($C42,CentreQc_ext!$C$12:$K$400,9,FALSE),""),""),"") ->  | AF42: =IF(IF(AND($K42<>"non inscrit",AF$6<$H$4),OR($K42<$H$5,$K42<AF$6),OR($Q42<$H$5,$Q42<AF$6)),IFERROR(IF(VLOOKUP($C42,Ascot_ext!$C$12:$K$400,5,FALSE)=$F42,VLOOKUP($C42,Ascot_ext!$C$12:$K$400,9,FALSE),""),""),"") ->  | AG42: =IF(IF(AND($K42<>"non inscrit",AG$6<$H$4),OR($K42<$H$5,$K42<AG$6),OR($Q42<$H$5,$Q42<AG$6)),IFERROR(IF(VLOOKUP($C42,NDB_ext!$C$12:$K$399,5,FALSE)=$F42,VLOOKUP($C42,NDB_ext!$C$12:$K$399,9,FALSE),""),""),"") ->  | AH42: =IF(IF(AND($K42<>"non inscrit",AH$6<$H$4),OR($K42<$H$5,$K42<AH$6),OR($Q42<$H$5,$Q42<AH$6)),IFERROR(IF(VLOOKUP($C42,Victo_ext!$C$12:$K$400,5,FALSE)=$F42,VLOOKUP($C42,Victo_ext!$C$12:$K$400,9,FALSE),""),""),"") ->  | AI42: =IF(IF(AND($K42<>"non inscrit",AI$6<$H$4),OR($K42<$H$5,$K42<AI$6),OR($Q42<$H$5,$Q42<AI$6)),IFERROR(IF(VLOOKUP($C42,Brome_ext!$C$12:$K$400,5,FALSE)=$F42,VLOOKUP($C42,Brome_ext!$C$12:$K$400,9,FALSE),""),""),"") ->  | AJ42: =IF(IF(AND($K42<>"non inscrit",AJ$6<$H$4),OR($K42<$H$5,$K42<AJ$6),OR($Q42<$H$5,$Q42<AJ$6)),IFERROR(IF(VLOOKUP($C42,Tuque_ext!$C$12:$K$400,5,FALSE)=$F42,VLOOKUP($C42,Tuque_ext!$C$12:$K$400,9,FALSE),""),""),"") -> 249 | AK42: =IF(IF(AND($K42<>"non inscrit",AK$6<$H$4),OR($K42<$H$5,$K42<AK$6),OR($Q42<$H$5,$Q42<AK$6)),IFERROR(IF(VLOOKUP($C42,Cantley_ext!$C$12:$K$400,5,FALSE)=$F42,VLOOKUP($C42,Cantley_ext!$C$12:$K$400,9,FALSE),""),""),"") ->  | AL42: =IF(IF(AND($K42<>"non inscrit",AL$6<$H$4),OR($K42<$H$5,$K42<AL$6),OR($Q42<$H$5,$Q42<AL$6)),IFERROR(IF(VLOOKUP($C42,CQ2_ext!$C$12:$K$400,5,FALSE)=$F42,VLOOKUP($C42,CQ2_ext!$C$12:$K$400,9,FALSE),""),""),"") ->  | AM42: =IF(IF(AND($K42<>"non inscrit",AM$6<$H$4),OR($K42<$H$5,$K42<AM$6),OR($Q42<$H$5,$Q42<AM$6)),IFERROR(IF(VLOOKUP($C42,Amos_ext!$C$12:$K$400,5,FALSE)=$F42,VLOOKUP($C42,Amos_ext!$C$12:$K$400,9,FALSE)*3/4,""),""),"") ->  | AN42: =IF(IF(AND($K42<>"non inscrit",AN$6<$H$4),OR($K42<$H$5,$K42<AN$6),OR($Q42<$H$5,$Q42<AN$6)),IFERROR(IF(VLOOKUP($C42,LaSarre_ext!$C$12:$K$400,5,FALSE)=$F42,VLOOKUP($C42,LaSarre_ext!$C$12:$K$400,9,FALSE),""),""),"") ->  | AO42: =IF(IF(AND($K42<>"non inscrit",AO$6<$H$4),OR($K42<$H$5,$K42<AO$6),OR($Q42<$H$5,$Q42<AO$6)),IFERROR(IF(VLOOKUP($C42,Rouyn_ext!$C$12:$K$400,5,FALSE)=$F42,VLOOKUP($C42,Rouyn_ext!$C$12:$K$400,9,FALSE),""),""),"") ->  | AP42: =IF(IF(AND($K42<>"non inscrit",AP$6<$H$4),OR($K42<$H$5,$K42<AP$6),OR($Q42<$H$5,$Q42<AP$6)),IFERROR(IF(VLOOKUP($C42,Valdor_ext!$C$12:$K$400,5,FALSE)=$F42,VLOOKUP($C42,Valdor_ext!$C$12:$K$400,9,FALSE),""),""),"") ->  | AQ42: =IF(IF(AND($K42<>"non inscrit",AQ$6<$H$4),OR($K42<$H$5,$K42<AQ$6),OR($Q42<$H$5,$Q42<AQ$6)),IFERROR(IF(VLOOKUP($C42,Perrot_ext!$C$12:$K$400,5,FALSE)=$F42,VLOOKUP($C42,Perrot_ext!$C$12:$K$400,9,FALSE),""),""),"") ->  | AR42: =IF(IF(AND($K42<>"non inscrit",AR$6<$H$4),OR($K42<$H$5,$K42<AR$6),OR($Q42<$H$5,$Q42<AR$6)),IFERROR(IF(VLOOKUP($C42,Sorel_ext!$C$12:$K$400,5,FALSE)=$F42,VLOOKUP($C42,Sorel_ext!$C$12:$K$400,9,FALSE),""),""),"") ->  | AV42: =IF(IF(AND($K42<>"non inscrit",AV$6<$H$4),OR($K42<$H$5,$K42<AV$6),OR($Q42<$H$5,$Q42<AV$6)),IFERROR(IF(VLOOKUP($C42,Finale_ext!$C$12:$K$400,5,FALSE)=$F42,VLOOKUP($C42,Finale_ext!$C$12:$K$400,9,FALSE),""),""),"") ->  | AX42: =IF(AND($Q42<>"",$Q42<>"non inscrit"),IF(IFERROR(VLOOKUP($C42,Coat_int!$C$12:$K$400,5,FALSE),"")=$F42,IF(AND(OR($Q42>=$H$4,$O$1<$H$5),OR($Q42<$H$5,$Q42<AX$6)),IFERROR(VLOOKUP($C42,Coat_int!$C$12:$K$400,9,FALSE),""),"_"),""),"") ->  | AY42: =IF(AND($Q42<>"",$Q42<>"non inscrit"),IF(IFERROR(VLOOKUP($C42,LG_int!$C$12:$K$403,5,FALSE),"")=$F42,IF(AND(OR($Q42>=$H$4,$O$1<$H$5),OR($Q42<$H$5,$Q42<AY$6)),IFERROR(VLOOKUP($C42,LG_int!$C$12:$K$403,9,FALSE),""),"_"),""),"") ->  | AZ42: =IF(AND($Q42<>"",$Q42<>"non inscrit"),IF(IFERROR(VLOOKUP($C42,LSNO_int!$C$12:$K$400,5,FALSE),"")=$F42,IF(AND(OR($Q42>=$H$4,$O$1<$H$5),OR($Q42<$H$5,$Q42<AZ$6)),IFERROR(VLOOKUP($C42,LSNO_int!$C$12:$K$400,9,FALSE),""),"_"),""),"") ->  | BA42: =IF(AND($Q42<>"",$Q42<>"non inscrit"),IF(IFERROR(VLOOKUP($C42,Ach_int!$C$12:$K$400,5,FALSE),"")=$F42,IF(AND(OR($Q42>=$H$4,$O$1<$H$5),OR($Q42<$H$5,$Q42<BA$6)),IFERROR(VLOOKUP($C42,Ach_int!$C$12:$K$400,9,FALSE),""),"_"),""),"") ->  | BB42: =IF(AND($Q42<>"",$Q42<>"non inscrit"),IF(IFERROR(VLOOKUP($C42,Tremb_int!$C$12:$K$400,5,FALSE),"")=$F42,IF(AND(OR($Q42>=$H$4,$O$1<$H$5),OR($Q42<$H$5,$Q42<BB$6)),IFERROR(VLOOKUP($C42,Tremb_int!$C$12:$K$400,9,FALSE),""),"_"),""),"") ->  | BC42: =IF(AND($Q42<>"",$Q42<>"non inscrit"),IF(IFERROR(VLOOKUP($C42,Buck_int!$C$12:$K$400,5,FALSE),"")=$F42,IF(AND(OR($Q42>=$H$4,$O$1<$H$5),OR($Q42<$H$5,$Q42<BC$6)),IFERROR(VLOOKUP($C42,Buck_int!$C$12:$K$400,9,FALSE),""),"_"),""),"") ->  | BD42: =IF(AND($Q42<>"",$Q42<>"non inscrit"),IF(IFERROR(VLOOKUP($C42,Drum_int!$C$12:$K$400,5,FALSE),"")=$F42,IF(AND(OR($Q42>=$H$4,$O$1<$H$5),OR($Q42<$H$5,$Q42<BD$6)),IFERROR(VLOOKUP($C42,Drum_int!$C$12:$K$400,9,FALSE),""),"_"),""),"") ->  | BE42: =IF(AND($Q42<>"",$Q42<>"non inscrit"),IF(IFERROR(VLOOKUP($C42,Coat_int2!$C$12:$K$400,5,FALSE),"")=$F42,IF(AND(OR($Q42>=$H$4,$O$1<$H$5),OR($Q42<$H$5,$Q42<BE$6)),IFERROR(VLOOKUP($C42,Coat_int2!$C$12:$K$400,9,FALSE),""),"_"),""),"") ->  | BF42: =IF(AND($Q42<>"",$Q42<>"non inscrit"),IF(IFERROR(VLOOKUP($C42,Jean_int!$C$12:$K$401,5,FALSE),"")=$F42,IF(AND(OR($Q42>=$H$4,$O$1<$H$5),OR($Q42<$H$5,$Q42<BF$6)),IFERROR(VLOOKUP($C42,Jean_int!$C$12:$K$401,9,FALSE),""),"_"),""),"") ->  | BG42: =IF(AND($Q42<>"",$Q42<>"non inscrit"),IF(IFERROR(VLOOKUP($C42,Val_int!$C$12:$K$401,5,FALSE),"")=$F42,IF(AND(OR($Q42>=$H$4,$O$1<$H$5),OR($Q42<$H$5,$Q42<BG$6)),IFERROR(VLOOKUP($C42,Val_int!$C$12:$K$401,9,FALSE),""),"_"),""),"") ->  | BH42: =IF(AND($Q42<>"",$Q42<>"non inscrit"),IF(IFERROR(VLOOKUP($C42,Qc_int!$C$12:$K$401,5,FALSE),"")=$F42,IF(AND(OR($Q42>=$H$4,$O$1<$H$5),OR($Q42<$H$5,$Q42<BH$6)),IFERROR(VLOOKUP($C42,Qc_int!$C$12:$K$401,9,FALSE),""),"_"),""),"") ->  | BI42: =IF(AND($Q42<>"",$Q42<>"non inscrit"),IF(IFERROR(VLOOKUP($C42,Qc2_int!$C$12:$K$401,5,FALSE),"")=$F42,IF(AND(OR($Q42>=$H$4,$O$1<$H$5),OR($Q42<$H$5,$Q42<BI$6)),IFERROR(VLOOKUP($C42,Qc2_int!$C$12:$K$401,9,FALSE),""),"_"),""),"") ->  | BJ42: =IF(AND($Q42<>"",$Q42<>"non inscrit"),IF(IFERROR(VLOOKUP($C42,#REF!,5,FALSE),"")=$F42,IF(AND(OR($Q42>=$H$4,$O$1<$H$5),OR($Q42<$H$5,$Q42<$AY$6)),IFERROR(VLOOKUP($C42,#REF!,9,FALSE),""),"_"),""),"") ->  | BK42: =IF(AND($Q42<>"",$Q42<>"non inscrit"),IF(IFERROR(VLOOKUP($C42,#REF!,5,FALSE),"")=$F42,IF(AND(OR($Q42>=$H$4,$O$1<$H$5),OR($Q42<$H$5,$Q42<$AY$6)),IFERROR(VLOOKUP($C42,#REF!,9,FALSE),""),"_"),""),"") ->  | BU42: =IF(AND($Q42<>"",$Q42<>"non inscrit"),IF(IFERROR(VLOOKUP($C42,FIN_int!$C$12:$K$401,5,FALSE),"")=$F42,IF(AND(OR($Q42>=$H$4,$O$1<$H$5),OR($Q42<$H$5,$Q42<BU$6)),IFERROR(VLOOKUP($C42,FIN_int!$C$12:$K$401,9,FALSE),""),"_"),""),"") -> 
A43: 2 | B43: 3 | C43: 3854 | D43: =IF($C43="","",IF($O$1>$H$4,IFERROR(VLOOKUP($C43,'Membres-2023'!$A:$G,2,FALSE),""),IFERROR(VLOOKUP($C43,'Membres-2022'!$A:$G,2,FALSE),""))) -> Berthiaume | E43: =IF($C43="","",IF($O$1>$H$4,IFERROR(VLOOKUP($C43,'Membres-2023'!$A:$G,3,FALSE),""),IFERROR(VLOOKUP($C43,'Membres-2022'!$A:$G,3,FALSE),""))) -> Océan | F43: =IF($C43="","",IF($O$1>$H$4,IFERROR(VLOOKUP($C43,'Membres-2023'!$A:$G,7,FALSE),""),IFERROR(VLOOKUP($C43,'Membres-2022'!$A:$G,7,FALSE),""))) -> 2 | G43: =IF($C43="","",IF($O$1>$H$4,IFERROR(VLOOKUP($C43,'Membres-2023'!$A:$G,5,FALSE),""),IFERROR(VLOOKUP($C43,'Membres-2022'!$A:$G,5,FALSE),""))) -> Mont-Laurier (Lynx) | H43: 2 | I43: 55.83333333 | J43: 31 | K43: =IFERROR(IF(VLOOKUP(C43,'Membres-2022'!$A:$F,6,FALSE)>=$H$3,VLOOKUP(C43,'Membres-2022'!$A:$F,6,FALSE),"non inscrit"),IF($C43>0,"non inscrit","")) -> 2022-06-07 | L43: 31 | Q43: =IFERROR(IF(VLOOKUP($C43,'Membres-2023'!$A:$F,6,FALSE)>=$H$3,VLOOKUP($C43,'Membres-2023'!$A:$F,6,FALSE),"non inscrit"),"") -> 2023-01-23 | R43: 24.83333333 | Z43: =IF(IF(AND($K43<>"non inscrit",Z$6<$H$4),OR($K43<$H$5,$K43<Z$6),OR($Q43<$H$5,$Q43<Z$6)),IFERROR(IF(VLOOKUP($C43,Stroch_ext!$C$12:$K$400,5,FALSE)=$F43,VLOOKUP($C43,Stroch_ext!$C$12:$K$400,9,FALSE),""),""),"") ->  | AA43: =IF(IF(AND($K43<>"non inscrit",AA$6<$H$4),OR($K43<$H$5,$K43<AA$6),OR($Q43<$H$5,$Q43<AA$6)),IFERROR(IF(VLOOKUP($C43,Vallée_ext!$C$12:$K$400,5,FALSE)=$F43,VLOOKUP($C43,Vallée_ext!$C$12:$K$400,9,FALSE),""),""),"") ->  | AB43: =IF(IF(AND($K43<>"non inscrit",AB$6<$H$4),OR($K43<$H$5,$K43<AB$6),OR($Q43<$H$5,$Q43<AB$6)),IFERROR(IF(VLOOKUP($C43,ASF_ext!$C$12:$K$400,5,FALSE)=$F43,VLOOKUP($C43,ASF_ext!$C$12:$K$400,9,FALSE),""),""),"") ->  | AC43: =IF(IF(AND($K43<>"non inscrit",AC$6<$H$4),OR($K43<$H$5,$K43<AC$6),OR($Q43<$H$5,$Q43<AC$6)),IFERROR(IF(VLOOKUP($C43,MtLaur_ext!$C$12:$K$407,5,FALSE)=$F43,VLOOKUP($C43,MtLaur_ext!$C$12:$K$407,9,FALSE),""),""),"") -> 186 | AD43: =IF(IF(AND($K43<>"non inscrit",AD$6<$H$4),OR($K43<$H$5,$K43<AD$6),OR($Q43<$H$5,$Q43<AD$6)),IFERROR(IF(VLOOKUP($C43,Nord_ext!$C$12:$K$400,5,FALSE)=$F43,VLOOKUP($C43,Nord_ext!$C$12:$K$400,9,FALSE),""),""),"") ->  | AE43: =IF(IF(AND($K43<>"non inscrit",AE$6<$H$4),OR($K43<$H$5,$K43<AE$6),OR($Q43<$H$5,$Q43<AE$6)),IFERROR(IF(VLOOKUP($C43,CentreQc_ext!$C$12:$K$400,5,FALSE)=$F43,VLOOKUP($C43,CentreQc_ext!$C$12:$K$400,9,FALSE),""),""),"") ->  | AF43: =IF(IF(AND($K43<>"non inscrit",AF$6<$H$4),OR($K43<$H$5,$K43<AF$6),OR($Q43<$H$5,$Q43<AF$6)),IFERROR(IF(VLOOKUP($C43,Ascot_ext!$C$12:$K$400,5,FALSE)=$F43,VLOOKUP($C43,Ascot_ext!$C$12:$K$400,9,FALSE),""),""),"") ->  | AG43: =IF(IF(AND($K43<>"non inscrit",AG$6<$H$4),OR($K43<$H$5,$K43<AG$6),OR($Q43<$H$5,$Q43<AG$6)),IFERROR(IF(VLOOKUP($C43,NDB_ext!$C$12:$K$399,5,FALSE)=$F43,VLOOKUP($C43,NDB_ext!$C$12:$K$399,9,FALSE),""),""),"") ->  | AH43: =IF(IF(AND($K43<>"non inscrit",AH$6<$H$4),OR($K43<$H$5,$K43<AH$6),OR($Q43<$H$5,$Q43<AH$6)),IFERROR(IF(VLOOKUP($C43,Victo_ext!$C$12:$K$400,5,FALSE)=$F43,VLOOKUP($C43,Victo_ext!$C$12:$K$400,9,FALSE),""),""),"") ->  | AI43: =IF(IF(AND($K43<>"non inscrit",AI$6<$H$4),OR($K43<$H$5,$K43<AI$6),OR($Q43<$H$5,$Q43<AI$6)),IFERROR(IF(VLOOKUP($C43,Brome_ext!$C$12:$K$400,5,FALSE)=$F43,VLOOKUP($C43,Brome_ext!$C$12:$K$400,9,FALSE),""),""),"") ->  | AJ43: =IF(IF(AND($K43<>"non inscrit",AJ$6<$H$4),OR($K43<$H$5,$K43<AJ$6),OR($Q43<$H$5,$Q43<AJ$6)),IFERROR(IF(VLOOKUP($C43,Tuque_ext!$C$12:$K$400,5,FALSE)=$F43,VLOOKUP($C43,Tuque_ext!$C$12:$K$400,9,FALSE),""),""),"") ->  | AK43: =IF(IF(AND($K43<>"non inscrit",AK$6<$H$4),OR($K43<$H$5,$K43<AK$6),OR($Q43<$H$5,$Q43<AK$6)),IFERROR(IF(VLOOKUP($C43,Cantley_ext!$C$12:$K$400,5,FALSE)=$F43,VLOOKUP($C43,Cantley_ext!$C$12:$K$400,9,FALSE),""),""),"") ->  | AL43: =IF(IF(AND($K43<>"non inscrit",AL$6<$H$4),OR($K43<$H$5,$K43<AL$6),OR($Q43<$H$5,$Q43<AL$6)),IFERROR(IF(VLOOKUP($C43,CQ2_ext!$C$12:$K$400,5,FALSE)=$F43,VLOOKUP($C43,CQ2_ext!$C$12:$K$400,9,FALSE),""),""),"") ->  | AM43: =IF(IF(AND($K43<>"non inscrit",AM$6<$H$4),OR($K43<$H$5,$K43<AM$6),OR($Q43<$H$5,$Q43<AM$6)),IFERROR(IF(VLOOKUP($C43,Amos_ext!$C$12:$K$400,5,FALSE)=$F43,VLOOKUP($C43,Amos_ext!$C$12:$K$400,9,FALSE)*3/4,""),""),"") ->  | AN43: =IF(IF(AND($K43<>"non inscrit",AN$6<$H$4),OR($K43<$H$5,$K43<AN$6),OR($Q43<$H$5,$Q43<AN$6)),IFERROR(IF(VLOOKUP($C43,LaSarre_ext!$C$12:$K$400,5,FALSE)=$F43,VLOOKUP($C43,LaSarre_ext!$C$12:$K$400,9,FALSE),""),""),"") ->  | AO43: =IF(IF(AND($K43<>"non inscrit",AO$6<$H$4),OR($K43<$H$5,$K43<AO$6),OR($Q43<$H$5,$Q43<AO$6)),IFERROR(IF(VLOOKUP($C43,Rouyn_ext!$C$12:$K$400,5,FALSE)=$F43,VLOOKUP($C43,Rouyn_ext!$C$12:$K$400,9,FALSE),""),""),"") ->  | AP43: =IF(IF(AND($K43<>"non inscrit",AP$6<$H$4),OR($K43<$H$5,$K43<AP$6),OR($Q43<$H$5,$Q43<AP$6)),IFERROR(IF(VLOOKUP($C43,Valdor_ext!$C$12:$K$400,5,FALSE)=$F43,VLOOKUP($C43,Valdor_ext!$C$12:$K$400,9,FALSE),""),""),"") ->  | AQ43: =IF(IF(AND($K43<>"non inscrit",AQ$6<$H$4),OR($K43<$H$5,$K43<AQ$6),OR($Q43<$H$5,$Q43<AQ$6)),IFERROR(IF(VLOOKUP($C43,Perrot_ext!$C$12:$K$400,5,FALSE)=$F43,VLOOKUP($C43,Perrot_ext!$C$12:$K$400,9,FALSE),""),""),"") ->  | AR43: =IF(IF(AND($K43<>"non inscrit",AR$6<$H$4),OR($K43<$H$5,$K43<AR$6),OR($Q43<$H$5,$Q43<AR$6)),IFERROR(IF(VLOOKUP($C43,Sorel_ext!$C$12:$K$400,5,FALSE)=$F43,VLOOKUP($C43,Sorel_ext!$C$12:$K$400,9,FALSE),""),""),"") ->  | AV43: =IF(IF(AND($K43<>"non inscrit",AV$6<$H$4),OR($K43<$H$5,$K43<AV$6),OR($Q43<$H$5,$Q43<AV$6)),IFERROR(IF(VLOOKUP($C43,Finale_ext!$C$12:$K$400,5,FALSE)=$F43,VLOOKUP($C43,Finale_ext!$C$12:$K$400,9,FALSE),""),""),"") ->  | AX43: =IF(AND($Q43<>"",$Q43<>"non inscrit"),IF(IFERROR(VLOOKUP($C43,Coat_int!$C$12:$K$400,5,FALSE),"")=$F43,IF(AND(OR($Q43>=$H$4,$O$1<$H$5),OR($Q43<$H$5,$Q43<AX$6)),IFERROR(VLOOKUP($C43,Coat_int!$C$12:$K$400,9,FALSE),""),"_"),""),"") ->  | AY43: =IF(AND($Q43<>"",$Q43<>"non inscrit"),IF(IFERROR(VLOOKUP($C43,LG_int!$C$12:$K$403,5,FALSE),"")=$F43,IF(AND(OR($Q43>=$H$4,$O$1<$H$5),OR($Q43<$H$5,$Q43<AY$6)),IFERROR(VLOOKUP($C43,LG_int!$C$12:$K$403,9,FALSE),""),"_"),""),"") ->  | AZ43: =IF(AND($Q43<>"",$Q43<>"non inscrit"),IF(IFERROR(VLOOKUP($C43,LSNO_int!$C$12:$K$400,5,FALSE),"")=$F43,IF(AND(OR($Q43>=$H$4,$O$1<$H$5),OR($Q43<$H$5,$Q43<AZ$6)),IFERROR(VLOOKUP($C43,LSNO_int!$C$12:$K$400,9,FALSE),""),"_"),""),"") ->  | BA43: =IF(AND($Q43<>"",$Q43<>"non inscrit"),IF(IFERROR(VLOOKUP($C43,Ach_int!$C$12:$K$400,5,FALSE),"")=$F43,IF(AND(OR($Q43>=$H$4,$O$1<$H$5),OR($Q43<$H$5,$Q43<BA$6)),IFERROR(VLOOKUP($C43,Ach_int!$C$12:$K$400,9,FALSE),""),"_"),""),"") ->  | BB43: =IF(AND($Q43<>"",$Q43<>"non inscrit"),IF(IFERROR(VLOOKUP($C43,Tremb_int!$C$12:$K$400,5,FALSE),"")=$F43,IF(AND(OR($Q43>=$H$4,$O$1<$H$5),OR($Q43<$H$5,$Q43<BB$6)),IFERROR(VLOOKUP($C43,Tremb_int!$C$12:$K$400,9,FALSE),""),"_"),""),"") ->  | BC43: =IF(AND($Q43<>"",$Q43<>"non inscrit"),IF(IFERROR(VLOOKUP($C43,Buck_int!$C$12:$K$400,5,FALSE),"")=$F43,IF(AND(OR($Q43>=$H$4,$O$1<$H$5),OR($Q43<$H$5,$Q43<BC$6)),IFERROR(VLOOKUP($C43,Buck_int!$C$12:$K$400,9,FALSE),""),"_"),""),"") -> 149 | BD43: =IF(AND($Q43<>"",$Q43<>"non inscrit"),IF(IFERROR(VLOOKUP($C43,Drum_int!$C$12:$K$400,5,FALSE),"")=$F43,IF(AND(OR($Q43>=$H$4,$O$1<$H$5),OR($Q43<$H$5,$Q43<BD$6)),IFERROR(VLOOKUP($C43,Drum_int!$C$12:$K$400,9,FALSE),""),"_"),""),"") ->  | BE43: =IF(AND($Q43<>"",$Q43<>"non inscrit"),IF(IFERROR(VLOOKUP($C43,Coat_int2!$C$12:$K$400,5,FALSE),"")=$F43,IF(AND(OR($Q43>=$H$4,$O$1<$H$5),OR($Q43<$H$5,$Q43<BE$6)),IFERROR(VLOOKUP($C43,Coat_int2!$C$12:$K$400,9,FALSE),""),"_"),""),"") ->  | BF43: =IF(AND($Q43<>"",$Q43<>"non inscrit"),IF(IFERROR(VLOOKUP($C43,Jean_int!$C$12:$K$401,5,FALSE),"")=$F43,IF(AND(OR($Q43>=$H$4,$O$1<$H$5),OR($Q43<$H$5,$Q43<BF$6)),IFERROR(VLOOKUP($C43,Jean_int!$C$12:$K$401,9,FALSE),""),"_"),""),"") ->  | BG43: =IF(AND($Q43<>"",$Q43<>"non inscrit"),IF(IFERROR(VLOOKUP($C43,Val_int!$C$12:$K$401,5,FALSE),"")=$F43,IF(AND(OR($Q43>=$H$4,$O$1<$H$5),OR($Q43<$H$5,$Q43<BG$6)),IFERROR(VLOOKUP($C43,Val_int!$C$12:$K$401,9,FALSE),""),"_"),""),"") ->  | BH43: =IF(AND($Q43<>"",$Q43<>"non inscrit"),IF(IFERROR(VLOOKUP($C43,Qc_int!$C$12:$K$401,5,FALSE),"")=$F43,IF(AND(OR($Q43>=$H$4,$O$1<$H$5),OR($Q43<$H$5,$Q43<BH$6)),IFERROR(VLOOKUP($C43,Qc_int!$C$12:$K$401,9,FALSE),""),"_"),""),"") ->  | BI43: =IF(AND($Q43<>"",$Q43<>"non inscrit"),IF(IFERROR(VLOOKUP($C43,Qc2_int!$C$12:$K$401,5,FALSE),"")=$F43,IF(AND(OR($Q43>=$H$4,$O$1<$H$5),OR($Q43<$H$5,$Q43<BI$6)),IFERROR(VLOOKUP($C43,Qc2_int!$C$12:$K$401,9,FALSE),""),"_"),""),"") ->  | BJ43: =IF(AND($Q43<>"",$Q43<>"non inscrit"),IF(IFERROR(VLOOKUP($C43,#REF!,5,FALSE),"")=$F43,IF(AND(OR($Q43>=$H$4,$O$1<$H$5),OR($Q43<$H$5,$Q43<$AY$6)),IFERROR(VLOOKUP($C43,#REF!,9,FALSE),""),"_"),""),"") ->  | BK43: =IF(AND($Q43<>"",$Q43<>"non inscrit"),IF(IFERROR(VLOOKUP($C43,#REF!,5,FALSE),"")=$F43,IF(AND(OR($Q43>=$H$4,$O$1<$H$5),OR($Q43<$H$5,$Q43<$AY$6)),IFERROR(VLOOKUP($C43,#REF!,9,FALSE),""),"_"),""),"") ->  | BU43: =IF(AND($Q43<>"",$Q43<>"non inscrit"),IF(IFERROR(VLOOKUP($C43,FIN_int!$C$12:$K$401,5,FALSE),"")=$F43,IF(AND(OR($Q43>=$H$4,$O$1<$H$5),OR($Q43<$H$5,$Q43<BU$6)),IFERROR(VLOOKUP($C43,FIN_int!$C$12:$K$401,9,FALSE),""),"_"),""),"") -> 
A44: 2 | B44: 4 | C44: 6472 | D44: =IF($C44="","",IF($O$1>$H$4,IFERROR(VLOOKUP($C44,'Membres-2023'!$A:$G,2,FALSE),""),IFERROR(VLOOKUP($C44,'Membres-2022'!$A:$G,2,FALSE),""))) -> GAUTHIER | E44: =IF($C44="","",IF($O$1>$H$4,IFERROR(VLOOKUP($C44,'Membres-2023'!$A:$G,3,FALSE),""),IFERROR(VLOOKUP($C44,'Membres-2022'!$A:$G,3,FALSE),""))) -> ÉLIKA | F44: =IF($C44="","",IF($O$1>$H$4,IFERROR(VLOOKUP($C44,'Membres-2023'!$A:$G,7,FALSE),""),IFERROR(VLOOKUP($C44,'Membres-2022'!$A:$G,7,FALSE),""))) -> 2 | G44: =IF($C44="","",IF($O$1>$H$4,IFERROR(VLOOKUP($C44,'Membres-2023'!$A:$G,5,FALSE),""),IFERROR(VLOOKUP($C44,'Membres-2022'!$A:$G,5,FALSE),""))) -> Québec (Nord'arc) | H44: 1 | I44: 37.33333333 | J44: 37.33333333 | K44: =IFERROR(IF(VLOOKUP(C44,'Membres-2022'!$A:$F,6,FALSE)>=$H$3,VLOOKUP(C44,'Membres-2022'!$A:$F,6,FALSE),"non inscrit"),IF($C44>0,"non inscrit","")) -> 2022-03-08 | L44: 37.33333333 | Q44: =IFERROR(IF(VLOOKUP($C44,'Membres-2023'!$A:$F,6,FALSE)>=$H$3,VLOOKUP($C44,'Membres-2023'!$A:$F,6,FALSE),"non inscrit"),"") -> 2023-03-15 | Z44: =IF(IF(AND($K44<>"non inscrit",Z$6<$H$4),OR($K44<$H$5,$K44<Z$6),OR($Q44<$H$5,$Q44<Z$6)),IFERROR(IF(VLOOKUP($C44,Stroch_ext!$C$12:$K$400,5,FALSE)=$F44,VLOOKUP($C44,Stroch_ext!$C$12:$K$400,9,FALSE),""),""),"") ->  | AA44: =IF(IF(AND($K44<>"non inscrit",AA$6<$H$4),OR($K44<$H$5,$K44<AA$6),OR($Q44<$H$5,$Q44<AA$6)),IFERROR(IF(VLOOKUP($C44,Vallée_ext!$C$12:$K$400,5,FALSE)=$F44,VLOOKUP($C44,Vallée_ext!$C$12:$K$400,9,FALSE),""),""),"") ->  | AB44: =IF(IF(AND($K44<>"non inscrit",AB$6<$H$4),OR($K44<$H$5,$K44<AB$6),OR($Q44<$H$5,$Q44<AB$6)),IFERROR(IF(VLOOKUP($C44,ASF_ext!$C$12:$K$400,5,FALSE)=$F44,VLOOKUP($C44,ASF_ext!$C$12:$K$400,9,FALSE),""),""),"") ->  | AC44: =IF(IF(AND($K44<>"non inscrit",AC$6<$H$4),OR($K44<$H$5,$K44<AC$6),OR($Q44<$H$5,$Q44<AC$6)),IFERROR(IF(VLOOKUP($C44,MtLaur_ext!$C$12:$K$407,5,FALSE)=$F44,VLOOKUP($C44,MtLaur_ext!$C$12:$K$407,9,FALSE),""),""),"") ->  | AD44: =IF(IF(AND($K44<>"non inscrit",AD$6<$H$4),OR($K44<$H$5,$K44<AD$6),OR($Q44<$H$5,$Q44<AD$6)),IFERROR(IF(VLOOKUP($C44,Nord_ext!$C$12:$K$400,5,FALSE)=$F44,VLOOKUP($C44,Nord_ext!$C$12:$K$400,9,FALSE),""),""),"") -> 224 | AE44: =IF(IF(AND($K44<>"non inscrit",AE$6<$H$4),OR($K44<$H$5,$K44<AE$6),OR($Q44<$H$5,$Q44<AE$6)),IFERROR(IF(VLOOKUP($C44,CentreQc_ext!$C$12:$K$400,5,FALSE)=$F44,VLOOKUP($C44,CentreQc_ext!$C$12:$K$400,9,FALSE),""),""),"") ->  | AF44: =IF(IF(AND($K44<>"non inscrit",AF$6<$H$4),OR($K44<$H$5,$K44<AF$6),OR($Q44<$H$5,$Q44<AF$6)),IFERROR(IF(VLOOKUP($C44,Ascot_ext!$C$12:$K$400,5,FALSE)=$F44,VLOOKUP($C44,Ascot_ext!$C$12:$K$400,9,FALSE),""),""),"") ->  | AG44: =IF(IF(AND($K44<>"non inscrit",AG$6<$H$4),OR($K44<$H$5,$K44<AG$6),OR($Q44<$H$5,$Q44<AG$6)),IFERROR(IF(VLOOKUP($C44,NDB_ext!$C$12:$K$399,5,FALSE)=$F44,VLOOKUP($C44,NDB_ext!$C$12:$K$399,9,FALSE),""),""),"") ->  | AH44: =IF(IF(AND($K44<>"non inscrit",AH$6<$H$4),OR($K44<$H$5,$K44<AH$6),OR($Q44<$H$5,$Q44<AH$6)),IFERROR(IF(VLOOKUP($C44,Victo_ext!$C$12:$K$400,5,FALSE)=$F44,VLOOKUP($C44,Victo_ext!$C$12:$K$400,9,FALSE),""),""),"") ->  | AI44: =IF(IF(AND($K44<>"non inscrit",AI$6<$H$4),OR($K44<$H$5,$K44<AI$6),OR($Q44<$H$5,$Q44<AI$6)),IFERROR(IF(VLOOKUP($C44,Brome_ext!$C$12:$K$400,5,FALSE)=$F44,VLOOKUP($C44,Brome_ext!$C$12:$K$400,9,FALSE),""),""),"") ->  | AJ44: =IF(IF(AND($K44<>"non inscrit",AJ$6<$H$4),OR($K44<$H$5,$K44<AJ$6),OR($Q44<$H$5,$Q44<AJ$6)),IFERROR(IF(VLOOKUP($C44,Tuque_ext!$C$12:$K$400,5,FALSE)=$F44,VLOOKUP($C44,Tuque_ext!$C$12:$K$400,9,FALSE),""),""),"") ->  | AK44: =IF(IF(AND($K44<>"non inscrit",AK$6<$H$4),OR($K44<$H$5,$K44<AK$6),OR($Q44<$H$5,$Q44<AK$6)),IFERROR(IF(VLOOKUP($C44,Cantley_ext!$C$12:$K$400,5,FALSE)=$F44,VLOOKUP($C44,Cantley_ext!$C$12:$K$400,9,FALSE),""),""),"") ->  | AL44: =IF(IF(AND($K44<>"non inscrit",AL$6<$H$4),OR($K44<$H$5,$K44<AL$6),OR($Q44<$H$5,$Q44<AL$6)),IFERROR(IF(VLOOKUP($C44,CQ2_ext!$C$12:$K$400,5,FALSE)=$F44,VLOOKUP($C44,CQ2_ext!$C$12:$K$400,9,FALSE),""),""),"") ->  | AM44: =IF(IF(AND($K44<>"non inscrit",AM$6<$H$4),OR($K44<$H$5,$K44<AM$6),OR($Q44<$H$5,$Q44<AM$6)),IFERROR(IF(VLOOKUP($C44,Amos_ext!$C$12:$K$400,5,FALSE)=$F44,VLOOKUP($C44,Amos_ext!$C$12:$K$400,9,FALSE)*3/4,""),""),"") ->  | AN44: =IF(IF(AND($K44<>"non inscrit",AN$6<$H$4),OR($K44<$H$5,$K44<AN$6),OR($Q44<$H$5,$Q44<AN$6)),IFERROR(IF(VLOOKUP($C44,LaSarre_ext!$C$12:$K$400,5,FALSE)=$F44,VLOOKUP($C44,LaSarre_ext!$C$12:$K$400,9,FALSE),""),""),"") ->  | AO44: =IF(IF(AND($K44<>"non inscrit",AO$6<$H$4),OR($K44<$H$5,$K44<AO$6),OR($Q44<$H$5,$Q44<AO$6)),IFERROR(IF(VLOOKUP($C44,Rouyn_ext!$C$12:$K$400,5,FALSE)=$F44,VLOOKUP($C44,Rouyn_ext!$C$12:$K$400,9,FALSE),""),""),"") ->  | AP44: =IF(IF(AND($K44<>"non inscrit",AP$6<$H$4),OR($K44<$H$5,$K44<AP$6),OR($Q44<$H$5,$Q44<AP$6)),IFERROR(IF(VLOOKUP($C44,Valdor_ext!$C$12:$K$400,5,FALSE)=$F44,VLOOKUP($C44,Valdor_ext!$C$12:$K$400,9,FALSE),""),""),"") ->  | AQ44: =IF(IF(AND($K44<>"non inscrit",AQ$6<$H$4),OR($K44<$H$5,$K44<AQ$6),OR($Q44<$H$5,$Q44<AQ$6)),IFERROR(IF(VLOOKUP($C44,Perrot_ext!$C$12:$K$400,5,FALSE)=$F44,VLOOKUP($C44,Perrot_ext!$C$12:$K$400,9,FALSE),""),""),"") ->  | AR44: =IF(IF(AND($K44<>"non inscrit",AR$6<$H$4),OR($K44<$H$5,$K44<AR$6),OR($Q44<$H$5,$Q44<AR$6)),IFERROR(IF(VLOOKUP($C44,Sorel_ext!$C$12:$K$400,5,FALSE)=$F44,VLOOKUP($C44,Sorel_ext!$C$12:$K$400,9,FALSE),""),""),"") ->  | AV44: =IF(IF(AND($K44<>"non inscrit",AV$6<$H$4),OR($K44<$H$5,$K44<AV$6),OR($Q44<$H$5,$Q44<AV$6)),IFERROR(IF(VLOOKUP($C44,Finale_ext!$C$12:$K$400,5,FALSE)=$F44,VLOOKUP($C44,Finale_ext!$C$12:$K$400,9,FALSE),""),""),"") ->  | AX44: =IF(AND($Q44<>"",$Q44<>"non inscrit"),IF(IFERROR(VLOOKUP($C44,Coat_int!$C$12:$K$400,5,FALSE),"")=$F44,IF(AND(OR($Q44>=$H$4,$O$1<$H$5),OR($Q44<$H$5,$Q44<AX$6)),IFERROR(VLOOKUP($C44,Coat_int!$C$12:$K$400,9,FALSE),""),"_"),""),"") ->  | AY44: =IF(AND($Q44<>"",$Q44<>"non inscrit"),IF(IFERROR(VLOOKUP($C44,LG_int!$C$12:$K$403,5,FALSE),"")=$F44,IF(AND(OR($Q44>=$H$4,$O$1<$H$5),OR($Q44<$H$5,$Q44<AY$6)),IFERROR(VLOOKUP($C44,LG_int!$C$12:$K$403,9,FALSE),""),"_"),""),"") ->  | AZ44: =IF(AND($Q44<>"",$Q44<>"non inscrit"),IF(IFERROR(VLOOKUP($C44,LSNO_int!$C$12:$K$400,5,FALSE),"")=$F44,IF(AND(OR($Q44>=$H$4,$O$1<$H$5),OR($Q44<$H$5,$Q44<AZ$6)),IFERROR(VLOOKUP($C44,LSNO_int!$C$12:$K$400,9,FALSE),""),"_"),""),"") ->  | BA44: =IF(AND($Q44<>"",$Q44<>"non inscrit"),IF(IFERROR(VLOOKUP($C44,Ach_int!$C$12:$K$400,5,FALSE),"")=$F44,IF(AND(OR($Q44>=$H$4,$O$1<$H$5),OR($Q44<$H$5,$Q44<BA$6)),IFERROR(VLOOKUP($C44,Ach_int!$C$12:$K$400,9,FALSE),""),"_"),""),"") ->  | BB44: =IF(AND($Q44<>"",$Q44<>"non inscrit"),IF(IFERROR(VLOOKUP($C44,Tremb_int!$C$12:$K$400,5,FALSE),"")=$F44,IF(AND(OR($Q44>=$H$4,$O$1<$H$5),OR($Q44<$H$5,$Q44<BB$6)),IFERROR(VLOOKUP($C44,Tremb_int!$C$12:$K$400,9,FALSE),""),"_"),""),"") ->  | BC44: =IF(AND($Q44<>"",$Q44<>"non inscrit"),IF(IFERROR(VLOOKUP($C44,Buck_int!$C$12:$K$400,5,FALSE),"")=$F44,IF(AND(OR($Q44>=$H$4,$O$1<$H$5),OR($Q44<$H$5,$Q44<BC$6)),IFERROR(VLOOKUP($C44,Buck_int!$C$12:$K$400,9,FALSE),""),"_"),""),"") ->  | BD44: =IF(AND($Q44<>"",$Q44<>"non inscrit"),IF(IFERROR(VLOOKUP($C44,Drum_int!$C$12:$K$400,5,FALSE),"")=$F44,IF(AND(OR($Q44>=$H$4,$O$1<$H$5),OR($Q44<$H$5,$Q44<BD$6)),IFERROR(VLOOKUP($C44,Drum_int!$C$12:$K$400,9,FALSE),""),"_"),""),"") ->  | BE44: =IF(AND($Q44<>"",$Q44<>"non inscrit"),IF(IFERROR(VLOOKUP($C44,Coat_int2!$C$12:$K$400,5,FALSE),"")=$F44,IF(AND(OR($Q44>=$H$4,$O$1<$H$5),OR($Q44<$H$5,$Q44<BE$6)),IFERROR(VLOOKUP($C44,Coat_int2!$C$12:$K$400,9,FALSE),""),"_"),""),"") ->  | BF44: =IF(AND($Q44<>"",$Q44<>"non inscrit"),IF(IFERROR(VLOOKUP($C44,Jean_int!$C$12:$K$401,5,FALSE),"")=$F44,IF(AND(OR($Q44>=$H$4,$O$1<$H$5),OR($Q44<$H$5,$Q44<BF$6)),IFERROR(VLOOKUP($C44,Jean_int!$C$12:$K$401,9,FALSE),""),"_"),""),"") ->  | BG44: =IF(AND($Q44<>"",$Q44<>"non inscrit"),IF(IFERROR(VLOOKUP($C44,Val_int!$C$12:$K$401,5,FALSE),"")=$F44,IF(AND(OR($Q44>=$H$4,$O$1<$H$5),OR($Q44<$H$5,$Q44<BG$6)),IFERROR(VLOOKUP($C44,Val_int!$C$12:$K$401,9,FALSE),""),"_"),""),"") ->  | BH44: =IF(AND($Q44<>"",$Q44<>"non inscrit"),IF(IFERROR(VLOOKUP($C44,Qc_int!$C$12:$K$401,5,FALSE),"")=$F44,IF(AND(OR($Q44>=$H$4,$O$1<$H$5),OR($Q44<$H$5,$Q44<BH$6)),IFERROR(VLOOKUP($C44,Qc_int!$C$12:$K$401,9,FALSE),""),"_"),""),"") ->  | BI44: =IF(AND($Q44<>"",$Q44<>"non inscrit"),IF(IFERROR(VLOOKUP($C44,Qc2_int!$C$12:$K$401,5,FALSE),"")=$F44,IF(AND(OR($Q44>=$H$4,$O$1<$H$5),OR($Q44<$H$5,$Q44<BI$6)),IFERROR(VLOOKUP($C44,Qc2_int!$C$12:$K$401,9,FALSE),""),"_"),""),"") ->  | BJ44: =IF(AND($Q44<>"",$Q44<>"non inscrit"),IF(IFERROR(VLOOKUP($C44,#REF!,5,FALSE),"")=$F44,IF(AND(OR($Q44>=$H$4,$O$1<$H$5),OR($Q44<$H$5,$Q44<$AY$6)),IFERROR(VLOOKUP($C44,#REF!,9,FALSE),""),"_"),""),"") ->  | BK44: =IF(AND($Q44<>"",$Q44<>"non inscrit"),IF(IFERROR(VLOOKUP($C44,#REF!,5,FALSE),"")=$F44,IF(AND(OR($Q44>=$H$4,$O$1<$H$5),OR($Q44<$H$5,$Q44<$AY$6)),IFERROR(VLOOKUP($C44,#REF!,9,FALSE),""),"_"),""),"") ->  | BU44: =IF(AND($Q44<>"",$Q44<>"non inscrit"),IF(IFERROR(VLOOKUP($C44,FIN_int!$C$12:$K$401,5,FALSE),"")=$F44,IF(AND(OR($Q44>=$H$4,$O$1<$H$5),OR($Q44<$H$5,$Q44<BU$6)),IFERROR(VLOOKUP($C44,FIN_int!$C$12:$K$401,9,FALSE),""),"_"),""),"") -> 
A45: 2 | B45: 5 | C45: 4011 | D45: =IF($C45="","",IF($O$1>$H$4,IFERROR(VLOOKUP($C45,'Membres-2023'!$A:$G,2,FALSE),""),IFERROR(VLOOKUP($C45,'Membres-2022'!$A:$G,2,FALSE),""))) -> Crête | E45: =IF($C45="","",IF($O$1>$H$4,IFERROR(VLOOKUP($C45,'Membres-2023'!$A:$G,3,FALSE),""),IFERROR(VLOOKUP($C45,'Membres-2022'!$A:$G,3,FALSE),""))) -> Lea | F45: =IF($C45="","",IF($O$1>$H$4,IFERROR(VLOOKUP($C45,'Membres-2023'!$A:$G,7,FALSE),""),IFERROR(VLOOKUP($C45,'Membres-2022'!$A:$G,7,FALSE),""))) -> 4 | G45: =IF($C45="","",IF($O$1>$H$4,IFERROR(VLOOKUP($C45,'Membres-2023'!$A:$G,5,FALSE),""),IFERROR(VLOOKUP($C45,'Membres-2022'!$A:$G,5,FALSE),""))) -> Ascot Corner (Archers d') | H45: 1 | I45: 34.16666667 | J45: 0 | K45: =IFERROR(IF(VLOOKUP(C45,'Membres-2022'!$A:$F,6,FALSE)>=$H$3,VLOOKUP(C45,'Membres-2022'!$A:$F,6,FALSE),"non inscrit"),IF($C45>0,"non inscrit","")) -> non inscrit | Q45: =IFERROR(IF(VLOOKUP($C45,'Membres-2023'!$A:$F,6,FALSE)>=$H$3,VLOOKUP($C45,'Membres-2023'!$A:$F,6,FALSE),"non inscrit"),"") -> 2023-01-23 | R45: 34.16666667 | Z45: =IF(IF(AND($K45<>"non inscrit",Z$6<$H$4),OR($K45<$H$5,$K45<Z$6),OR($Q45<$H$5,$Q45<Z$6)),IFERROR(IF(VLOOKUP($C45,Stroch_ext!$C$12:$K$400,5,FALSE)=$F45,VLOOKUP($C45,Stroch_ext!$C$12:$K$400,9,FALSE),""),""),"") ->  | AA45: =IF(IF(AND($K45<>"non inscrit",AA$6<$H$4),OR($K45<$H$5,$K45<AA$6),OR($Q45<$H$5,$Q45<AA$6)),IFERROR(IF(VLOOKUP($C45,Vallée_ext!$C$12:$K$400,5,FALSE)=$F45,VLOOKUP($C45,Vallée_ext!$C$12:$K$400,9,FALSE),""),""),"") ->  | AB45: =IF(IF(AND($K45<>"non inscrit",AB$6<$H$4),OR($K45<$H$5,$K45<AB$6),OR($Q45<$H$5,$Q45<AB$6)),IFERROR(IF(VLOOKUP($C45,ASF_ext!$C$12:$K$400,5,FALSE)=$F45,VLOOKUP($C45,ASF_ext!$C$12:$K$400,9,FALSE),""),""),"") ->  | AC45: =IF(IF(AND($K45<>"non inscrit",AC$6<$H$4),OR($K45<$H$5,$K45<AC$6),OR($Q45<$H$5,$Q45<AC$6)),IFERROR(IF(VLOOKUP($C45,MtLaur_ext!$C$12:$K$407,5,FALSE)=$F45,VLOOKUP($C45,MtLaur_ext!$C$12:$K$407,9,FALSE),""),""),"") ->  | AD45: =IF(IF(AND($K45<>"non inscrit",AD$6<$H$4),OR($K45<$H$5,$K45<AD$6),OR($Q45<$H$5,$Q45<AD$6)),IFERROR(IF(VLOOKUP($C45,Nord_ext!$C$12:$K$400,5,FALSE)=$F45,VLOOKUP($C45,Nord_ext!$C$12:$K$400,9,FALSE),""),""),"") ->  | AE45: =IF(IF(AND($K45<>"non inscrit",AE$6<$H$4),OR($K45<$H$5,$K45<AE$6),OR($Q45<$H$5,$Q45<AE$6)),IFERROR(IF(VLOOKUP($C45,CentreQc_ext!$C$12:$K$400,5,FALSE)=$F45,VLOOKUP($C45,CentreQc_ext!$C$12:$K$400,9,FALSE),""),""),"") ->  | AF45: =IF(IF(AND($K45<>"non inscrit",AF$6<$H$4),OR($K45<$H$5,$K45<AF$6),OR($Q45<$H$5,$Q45<AF$6)),IFERROR(IF(VLOOKUP($C45,Ascot_ext!$C$12:$K$400,5,FALSE)=$F45,VLOOKUP($C45,Ascot_ext!$C$12:$K$400,9,FALSE),""),""),"") ->  | AG45: =IF(IF(AND($K45<>"non inscrit",AG$6<$H$4),OR($K45<$H$5,$K45<AG$6),OR($Q45<$H$5,$Q45<AG$6)),IFERROR(IF(VLOOKUP($C45,NDB_ext!$C$12:$K$399,5,FALSE)=$F45,VLOOKUP($C45,NDB_ext!$C$12:$K$399,9,FALSE),""),""),"") ->  | AH45: =IF(IF(AND($K45<>"non inscrit",AH$6<$H$4),OR($K45<$H$5,$K45<AH$6),OR($Q45<$H$5,$Q45<AH$6)),IFERROR(IF(VLOOKUP($C45,Victo_ext!$C$12:$K$400,5,FALSE)=$F45,VLOOKUP($C45,Victo_ext!$C$12:$K$400,9,FALSE),""),""),"") ->  | AI45: =IF(IF(AND($K45<>"non inscrit",AI$6<$H$4),OR($K45<$H$5,$K45<AI$6),OR($Q45<$H$5,$Q45<AI$6)),IFERROR(IF(VLOOKUP($C45,Brome_ext!$C$12:$K$400,5,FALSE)=$F45,VLOOKUP($C45,Brome_ext!$C$12:$K$400,9,FALSE),""),""),"") ->  | AJ45: =IF(IF(AND($K45<>"non inscrit",AJ$6<$H$4),OR($K45<$H$5,$K45<AJ$6),OR($Q45<$H$5,$Q45<AJ$6)),IFERROR(IF(VLOOKUP($C45,Tuque_ext!$C$12:$K$400,5,FALSE)=$F45,VLOOKUP($C45,Tuque_ext!$C$12:$K$400,9,FALSE),""),""),"") ->  | AK45: =IF(IF(AND($K45<>"non inscrit",AK$6<$H$4),OR($K45<$H$5,$K45<AK$6),OR($Q45<$H$5,$Q45<AK$6)),IFERROR(IF(VLOOKUP($C45,Cantley_ext!$C$12:$K$400,5,FALSE)=$F45,VLOOKUP($C45,Cantley_ext!$C$12:$K$400,9,FALSE),""),""),"") ->  | AL45: =IF(IF(AND($K45<>"non inscrit",AL$6<$H$4),OR($K45<$H$5,$K45<AL$6),OR($Q45<$H$5,$Q45<AL$6)),IFERROR(IF(VLOOKUP($C45,CQ2_ext!$C$12:$K$400,5,FALSE)=$F45,VLOOKUP($C45,CQ2_ext!$C$12:$K$400,9,FALSE),""),""),"") ->  | AM45: =IF(IF(AND($K45<>"non inscrit",AM$6<$H$4),OR($K45<$H$5,$K45<AM$6),OR($Q45<$H$5,$Q45<AM$6)),IFERROR(IF(VLOOKUP($C45,Amos_ext!$C$12:$K$400,5,FALSE)=$F45,VLOOKUP($C45,Amos_ext!$C$12:$K$400,9,FALSE)*3/4,""),""),"") ->  | AN45: =IF(IF(AND($K45<>"non inscrit",AN$6<$H$4),OR($K45<$H$5,$K45<AN$6),OR($Q45<$H$5,$Q45<AN$6)),IFERROR(IF(VLOOKUP($C45,LaSarre_ext!$C$12:$K$400,5,FALSE)=$F45,VLOOKUP($C45,LaSarre_ext!$C$12:$K$400,9,FALSE),""),""),"") ->  | AO45: =IF(IF(AND($K45<>"non inscrit",AO$6<$H$4),OR($K45<$H$5,$K45<AO$6),OR($Q45<$H$5,$Q45<AO$6)),IFERROR(IF(VLOOKUP($C45,Rouyn_ext!$C$12:$K$400,5,FALSE)=$F45,VLOOKUP($C45,Rouyn_ext!$C$12:$K$400,9,FALSE),""),""),"") ->  | AP45: =IF(IF(AND($K45<>"non inscrit",AP$6<$H$4),OR($K45<$H$5,$K45<AP$6),OR($Q45<$H$5,$Q45<AP$6)),IFERROR(IF(VLOOKUP($C45,Valdor_ext!$C$12:$K$400,5,FALSE)=$F45,VLOOKUP($C45,Valdor_ext!$C$12:$K$400,9,FALSE),""),""),"") ->  | AQ45: =IF(IF(AND($K45<>"non inscrit",AQ$6<$H$4),OR($K45<$H$5,$K45<AQ$6),OR($Q45<$H$5,$Q45<AQ$6)),IFERROR(IF(VLOOKUP($C45,Perrot_ext!$C$12:$K$400,5,FALSE)=$F45,VLOOKUP($C45,Perrot_ext!$C$12:$K$400,9,FALSE),""),""),"") ->  | AR45: =IF(IF(AND($K45<>"non inscrit",AR$6<$H$4),OR($K45<$H$5,$K45<AR$6),OR($Q45<$H$5,$Q45<AR$6)),IFERROR(IF(VLOOKUP($C45,Sorel_ext!$C$12:$K$400,5,FALSE)=$F45,VLOOKUP($C45,Sorel_ext!$C$12:$K$400,9,FALSE),""),""),"") ->  | AV45: =IF(IF(AND($K45<>"non inscrit",AV$6<$H$4),OR($K45<$H$5,$K45<AV$6),OR($Q45<$H$5,$Q45<AV$6)),IFERROR(IF(VLOOKUP($C45,Finale_ext!$C$12:$K$400,5,FALSE)=$F45,VLOOKUP($C45,Finale_ext!$C$12:$K$400,9,FALSE),""),""),"") ->  | AX45: =IF(AND($Q45<>"",$Q45<>"non inscrit"),IF(IFERROR(VLOOKUP($C45,Coat_int!$C$12:$K$400,5,FALSE),"")=$F45,IF(AND(OR($Q45>=$H$4,$O$1<$H$5),OR($Q45<$H$5,$Q45<AX$6)),IFERROR(VLOOKUP($C45,Coat_int!$C$12:$K$400,9,FALSE),""),"_"),""),"") ->  | AY45: =IF(AND($Q45<>"",$Q45<>"non inscrit"),IF(IFERROR(VLOOKUP($C45,LG_int!$C$12:$K$403,5,FALSE),"")=$F45,IF(AND(OR($Q45>=$H$4,$O$1<$H$5),OR($Q45<$H$5,$Q45<AY$6)),IFERROR(VLOOKUP($C45,LG_int!$C$12:$K$403,9,FALSE),""),"_"),""),"") ->  | AZ45: =IF(AND($Q45<>"",$Q45<>"non inscrit"),IF(IFERROR(VLOOKUP($C45,LSNO_int!$C$12:$K$400,5,FALSE),"")=$F45,IF(AND(OR($Q45>=$H$4,$O$1<$H$5),OR($Q45<$H$5,$Q45<AZ$6)),IFERROR(VLOOKUP($C45,LSNO_int!$C$12:$K$400,9,FALSE),""),"_"),""),"") ->  | BA45: =IF(AND($Q45<>"",$Q45<>"non inscrit"),IF(IFERROR(VLOOKUP($C45,Ach_int!$C$12:$K$400,5,FALSE),"")=$F45,IF(AND(OR($Q45>=$H$4,$O$1<$H$5),OR($Q45<$H$5,$Q45<BA$6)),IFERROR(VLOOKUP($C45,Ach_int!$C$12:$K$400,9,FALSE),""),"_"),""),"") ->  | BB45: =IF(AND($Q45<>"",$Q45<>"non inscrit"),IF(IFERROR(VLOOKUP($C45,Tremb_int!$C$12:$K$400,5,FALSE),"")=$F45,IF(AND(OR($Q45>=$H$4,$O$1<$H$5),OR($Q45<$H$5,$Q45<BB$6)),IFERROR(VLOOKUP($C45,Tremb_int!$C$12:$K$400,9,FALSE),""),"_"),""),"") ->  | BC45: =IF(AND($Q45<>"",$Q45<>"non inscrit"),IF(IFERROR(VLOOKUP($C45,Buck_int!$C$12:$K$400,5,FALSE),"")=$F45,IF(AND(OR($Q45>=$H$4,$O$1<$H$5),OR($Q45<$H$5,$Q45<BC$6)),IFERROR(VLOOKUP($C45,Buck_int!$C$12:$K$400,9,FALSE),""),"_"),""),"") ->  | BD45: =IF(AND($Q45<>"",$Q45<>"non inscrit"),IF(IFERROR(VLOOKUP($C45,Drum_int!$C$12:$K$400,5,FALSE),"")=$F45,IF(AND(OR($Q45>=$H$4,$O$1<$H$5),OR($Q45<$H$5,$Q45<BD$6)),IFERROR(VLOOKUP($C45,Drum_int!$C$12:$K$400,9,FALSE),""),"_"),""),"") ->  | BE45: =IF(AND($Q45<>"",$Q45<>"non inscrit"),IF(IFERROR(VLOOKUP($C45,Coat_int2!$C$12:$K$400,5,FALSE),"")=$F45,IF(AND(OR($Q45>=$H$4,$O$1<$H$5),OR($Q45<$H$5,$Q45<BE$6)),IFERROR(VLOOKUP($C45,Coat_int2!$C$12:$K$400,9,FALSE),""),"_"),""),"") -> 205 | BF45: =IF(AND($Q45<>"",$Q45<>"non inscrit"),IF(IFERROR(VLOOKUP($C45,Jean_int!$C$12:$K$401,5,FALSE),"")=$F45,IF(AND(OR($Q45>=$H$4,$O$1<$H$5),OR($Q45<$H$5,$Q45<BF$6)),IFERROR(VLOOKUP($C45,Jean_int!$C$12:$K$401,9,FALSE),""),"_"),""),"") ->  | BG45: =IF(AND($Q45<>"",$Q45<>"non inscrit"),IF(IFERROR(VLOOKUP($C45,Val_int!$C$12:$K$401,5,FALSE),"")=$F45,IF(AND(OR($Q45>=$H$4,$O$1<$H$5),OR($Q45<$H$5,$Q45<BG$6)),IFERROR(VLOOKUP($C45,Val_int!$C$12:$K$401,9,FALSE),""),"_"),""),"") ->  | BH45: =IF(AND($Q45<>"",$Q45<>"non inscrit"),IF(IFERROR(VLOOKUP($C45,Qc_int!$C$12:$K$401,5,FALSE),"")=$F45,IF(AND(OR($Q45>=$H$4,$O$1<$H$5),OR($Q45<$H$5,$Q45<BH$6)),IFERROR(VLOOKUP($C45,Qc_int!$C$12:$K$401,9,FALSE),""),"_"),""),"") ->  | BI45: =IF(AND($Q45<>"",$Q45<>"non inscrit"),IF(IFERROR(VLOOKUP($C45,Qc2_int!$C$12:$K$401,5,FALSE),"")=$F45,IF(AND(OR($Q45>=$H$4,$O$1<$H$5),OR($Q45<$H$5,$Q45<BI$6)),IFERROR(VLOOKUP($C45,Qc2_int!$C$12:$K$401,9,FALSE),""),"_"),""),"") ->  | BJ45: =IF(AND($Q45<>"",$Q45<>"non inscrit"),IF(IFERROR(VLOOKUP($C45,#REF!,5,FALSE),"")=$F45,IF(AND(OR($Q45>=$H$4,$O$1<$H$5),OR($Q45<$H$5,$Q45<$AY$6)),IFERROR(VLOOKUP($C45,#REF!,9,FALSE),""),"_"),""),"") ->  | BK45: =IF(AND($Q45<>"",$Q45<>"non inscrit"),IF(IFERROR(VLOOKUP($C45,#REF!,5,FALSE),"")=$F45,IF(AND(OR($Q45>=$H$4,$O$1<$H$5),OR($Q45<$H$5,$Q45<$AY$6)),IFERROR(VLOOKUP($C45,#REF!,9,FALSE),""),"_"),""),"") ->  | BU45: =IF(AND($Q45<>"",$Q45<>"non inscrit"),IF(IFERROR(VLOOKUP($C45,FIN_int!$C$12:$K$401,5,FALSE),"")=$F45,IF(AND(OR($Q45>=$H$4,$O$1<$H$5),OR($Q45<$H$5,$Q45<BU$6)),IFERROR(VLOOKUP($C45,FIN_int!$C$12:$K$401,9,FALSE),""),"_"),""),"") -> 
A46: 2 | B46: 6 | D46: =IF($C46="","",IF($O$1>$H$4,IFERROR(VLOOKUP($C46,'Membres-2023'!$A:$G,2,FALSE),""),IFERROR(VLOOKUP($C46,'Membres-2022'!$A:$G,2,FALSE),""))) ->  | E46: =IF($C46="","",IF($O$1>$H$4,IFERROR(VLOOKUP($C46,'Membres-2023'!$A:$G,3,FALSE),""),IFERROR(VLOOKUP($C46,'Membres-2022'!$A:$G,3,FALSE),""))) ->  | F46: =IF($C46="","",IF($O$1>$H$4,IFERROR(VLOOKUP($C46,'Membres-2023'!$A:$G,7,FALSE),""),IFERROR(VLOOKUP($C46,'Membres-2022'!$A:$G,7,FALSE),""))) ->  | G46: =IF($C46="","",IF($O$1>$H$4,IFERROR(VLOOKUP($C46,'Membres-2023'!$A:$G,5,FALSE),""),IFERROR(VLOOKUP($C46,'Membres-2022'!$A:$G,5,FALSE),""))) ->  | H46: 0 | I46: 0 | J46: 0 | K46: =IFERROR(IF(VLOOKUP(C46,'Membres-2022'!$A:$F,6,FALSE)>=$H$3,VLOOKUP(C46,'Membres-2022'!$A:$F,6,FALSE),"non inscrit"),IF($C46>0,"non inscrit","")) ->  | Q46: =IFERROR(IF(VLOOKUP($C46,'Membres-2023'!$A:$F,6,FALSE)>=$H$3,VLOOKUP($C46,'Membres-2023'!$A:$F,6,FALSE),"non inscrit"),"") ->  | Z46: =IF(IF(AND($K46<>"non inscrit",Z$6<$H$4),OR($K46<$H$5,$K46<Z$6),OR($Q46<$H$5,$Q46<Z$6)),IFERROR(IF(VLOOKUP($C46,Stroch_ext!$C$12:$K$400,5,FALSE)=$F46,VLOOKUP($C46,Stroch_ext!$C$12:$K$400,9,FALSE),""),""),"") ->  | AA46: =IF(IF(AND($K46<>"non inscrit",AA$6<$H$4),OR($K46<$H$5,$K46<AA$6),OR($Q46<$H$5,$Q46<AA$6)),IFERROR(IF(VLOOKUP($C46,Vallée_ext!$C$12:$K$400,5,FALSE)=$F46,VLOOKUP($C46,Vallée_ext!$C$12:$K$400,9,FALSE),""),""),"") ->  | AB46: =IF(IF(AND($K46<>"non inscrit",AB$6<$H$4),OR($K46<$H$5,$K46<AB$6),OR($Q46<$H$5,$Q46<AB$6)),IFERROR(IF(VLOOKUP($C46,ASF_ext!$C$12:$K$400,5,FALSE)=$F46,VLOOKUP($C46,ASF_ext!$C$12:$K$400,9,FALSE),""),""),"") ->  | AC46: =IF(IF(AND($K46<>"non inscrit",AC$6<$H$4),OR($K46<$H$5,$K46<AC$6),OR($Q46<$H$5,$Q46<AC$6)),IFERROR(IF(VLOOKUP($C46,MtLaur_ext!$C$12:$K$407,5,FALSE)=$F46,VLOOKUP($C46,MtLaur_ext!$C$12:$K$407,9,FALSE),""),""),"") ->  | AD46: =IF(IF(AND($K46<>"non inscrit",AD$6<$H$4),OR($K46<$H$5,$K46<AD$6),OR($Q46<$H$5,$Q46<AD$6)),IFERROR(IF(VLOOKUP($C46,Nord_ext!$C$12:$K$400,5,FALSE)=$F46,VLOOKUP($C46,Nord_ext!$C$12:$K$400,9,FALSE),""),""),"") ->  | AE46: =IF(IF(AND($K46<>"non inscrit",AE$6<$H$4),OR($K46<$H$5,$K46<AE$6),OR($Q46<$H$5,$Q46<AE$6)),IFERROR(IF(VLOOKUP($C46,CentreQc_ext!$C$12:$K$400,5,FALSE)=$F46,VLOOKUP($C46,CentreQc_ext!$C$12:$K$400,9,FALSE),""),""),"") ->  | AF46: =IF(IF(AND($K46<>"non inscrit",AF$6<$H$4),OR($K46<$H$5,$K46<AF$6),OR($Q46<$H$5,$Q46<AF$6)),IFERROR(IF(VLOOKUP($C46,Ascot_ext!$C$12:$K$400,5,FALSE)=$F46,VLOOKUP($C46,Ascot_ext!$C$12:$K$400,9,FALSE),""),""),"") ->  | AG46: =IF(IF(AND($K46<>"non inscrit",AG$6<$H$4),OR($K46<$H$5,$K46<AG$6),OR($Q46<$H$5,$Q46<AG$6)),IFERROR(IF(VLOOKUP($C46,NDB_ext!$C$12:$K$399,5,FALSE)=$F46,VLOOKUP($C46,NDB_ext!$C$12:$K$399,9,FALSE),""),""),"") ->  | AH46: =IF(IF(AND($K46<>"non inscrit",AH$6<$H$4),OR($K46<$H$5,$K46<AH$6),OR($Q46<$H$5,$Q46<AH$6)),IFERROR(IF(VLOOKUP($C46,Victo_ext!$C$12:$K$400,5,FALSE)=$F46,VLOOKUP($C46,Victo_ext!$C$12:$K$400,9,FALSE),""),""),"") ->  | AI46: =IF(IF(AND($K46<>"non inscrit",AI$6<$H$4),OR($K46<$H$5,$K46<AI$6),OR($Q46<$H$5,$Q46<AI$6)),IFERROR(IF(VLOOKUP($C46,Brome_ext!$C$12:$K$400,5,FALSE)=$F46,VLOOKUP($C46,Brome_ext!$C$12:$K$400,9,FALSE),""),""),"") ->  | AJ46: =IF(IF(AND($K46<>"non inscrit",AJ$6<$H$4),OR($K46<$H$5,$K46<AJ$6),OR($Q46<$H$5,$Q46<AJ$6)),IFERROR(IF(VLOOKUP($C46,Tuque_ext!$C$12:$K$400,5,FALSE)=$F46,VLOOKUP($C46,Tuque_ext!$C$12:$K$400,9,FALSE),""),""),"") ->  | AK46: =IF(IF(AND($K46<>"non inscrit",AK$6<$H$4),OR($K46<$H$5,$K46<AK$6),OR($Q46<$H$5,$Q46<AK$6)),IFERROR(IF(VLOOKUP($C46,Cantley_ext!$C$12:$K$400,5,FALSE)=$F46,VLOOKUP($C46,Cantley_ext!$C$12:$K$400,9,FALSE),""),""),"") ->  | AL46: =IF(IF(AND($K46<>"non inscrit",AL$6<$H$4),OR($K46<$H$5,$K46<AL$6),OR($Q46<$H$5,$Q46<AL$6)),IFERROR(IF(VLOOKUP($C46,CQ2_ext!$C$12:$K$400,5,FALSE)=$F46,VLOOKUP($C46,CQ2_ext!$C$12:$K$400,9,FALSE),""),""),"") ->  | AM46: =IF(IF(AND($K46<>"non inscrit",AM$6<$H$4),OR($K46<$H$5,$K46<AM$6),OR($Q46<$H$5,$Q46<AM$6)),IFERROR(IF(VLOOKUP($C46,Amos_ext!$C$12:$K$400,5,FALSE)=$F46,VLOOKUP($C46,Amos_ext!$C$12:$K$400,9,FALSE)*3/4,""),""),"") ->  | AN46: =IF(IF(AND($K46<>"non inscrit",AN$6<$H$4),OR($K46<$H$5,$K46<AN$6),OR($Q46<$H$5,$Q46<AN$6)),IFERROR(IF(VLOOKUP($C46,LaSarre_ext!$C$12:$K$400,5,FALSE)=$F46,VLOOKUP($C46,LaSarre_ext!$C$12:$K$400,9,FALSE),""),""),"") ->  | AO46: =IF(IF(AND($K46<>"non inscrit",AO$6<$H$4),OR($K46<$H$5,$K46<AO$6),OR($Q46<$H$5,$Q46<AO$6)),IFERROR(IF(VLOOKUP($C46,Rouyn_ext!$C$12:$K$400,5,FALSE)=$F46,VLOOKUP($C46,Rouyn_ext!$C$12:$K$400,9,FALSE),""),""),"") ->  | AP46: =IF(IF(AND($K46<>"non inscrit",AP$6<$H$4),OR($K46<$H$5,$K46<AP$6),OR($Q46<$H$5,$Q46<AP$6)),IFERROR(IF(VLOOKUP($C46,Valdor_ext!$C$12:$K$400,5,FALSE)=$F46,VLOOKUP($C46,Valdor_ext!$C$12:$K$400,9,FALSE),""),""),"") ->  | AQ46: =IF(IF(AND($K46<>"non inscrit",AQ$6<$H$4),OR($K46<$H$5,$K46<AQ$6),OR($Q46<$H$5,$Q46<AQ$6)),IFERROR(IF(VLOOKUP($C46,Perrot_ext!$C$12:$K$400,5,FALSE)=$F46,VLOOKUP($C46,Perrot_ext!$C$12:$K$400,9,FALSE),""),""),"") ->  | AR46: =IF(IF(AND($K46<>"non inscrit",AR$6<$H$4),OR($K46<$H$5,$K46<AR$6),OR($Q46<$H$5,$Q46<AR$6)),IFERROR(IF(VLOOKUP($C46,Sorel_ext!$C$12:$K$400,5,FALSE)=$F46,VLOOKUP($C46,Sorel_ext!$C$12:$K$400,9,FALSE),""),""),"") ->  | AV46: =IF(IF(AND($K46<>"non inscrit",AV$6<$H$4),OR($K46<$H$5,$K46<AV$6),OR($Q46<$H$5,$Q46<AV$6)),IFERROR(IF(VLOOKUP($C46,Finale_ext!$C$12:$K$400,5,FALSE)=$F46,VLOOKUP($C46,Finale_ext!$C$12:$K$400,9,FALSE),""),""),"") ->  | AX46: =IF(AND($Q46<>"",$Q46<>"non inscrit"),IF(IFERROR(VLOOKUP($C46,Coat_int!$C$12:$K$400,5,FALSE),"")=$F46,IF(AND(OR($Q46>=$H$4,$O$1<$H$5),OR($Q46<$H$5,$Q46<AX$6)),IFERROR(VLOOKUP($C46,Coat_int!$C$12:$K$400,9,FALSE),""),"_"),""),"") ->  | AY46: =IF(AND($Q46<>"",$Q46<>"non inscrit"),IF(IFERROR(VLOOKUP($C46,LG_int!$C$12:$K$403,5,FALSE),"")=$F46,IF(AND(OR($Q46>=$H$4,$O$1<$H$5),OR($Q46<$H$5,$Q46<AY$6)),IFERROR(VLOOKUP($C46,LG_int!$C$12:$K$403,9,FALSE),""),"_"),""),"") ->  | AZ46: =IF(AND($Q46<>"",$Q46<>"non inscrit"),IF(IFERROR(VLOOKUP($C46,LSNO_int!$C$12:$K$400,5,FALSE),"")=$F46,IF(AND(OR($Q46>=$H$4,$O$1<$H$5),OR($Q46<$H$5,$Q46<AZ$6)),IFERROR(VLOOKUP($C46,LSNO_int!$C$12:$K$400,9,FALSE),""),"_"),""),"") ->  | BA46: =IF(AND($Q46<>"",$Q46<>"non inscrit"),IF(IFERROR(VLOOKUP($C46,Ach_int!$C$12:$K$400,5,FALSE),"")=$F46,IF(AND(OR($Q46>=$H$4,$O$1<$H$5),OR($Q46<$H$5,$Q46<BA$6)),IFERROR(VLOOKUP($C46,Ach_int!$C$12:$K$400,9,FALSE),""),"_"),""),"") ->  | BB46: =IF(AND($Q46<>"",$Q46<>"non inscrit"),IF(IFERROR(VLOOKUP($C46,Tremb_int!$C$12:$K$400,5,FALSE),"")=$F46,IF(AND(OR($Q46>=$H$4,$O$1<$H$5),OR($Q46<$H$5,$Q46<BB$6)),IFERROR(VLOOKUP($C46,Tremb_int!$C$12:$K$400,9,FALSE),""),"_"),""),"") ->  | BC46: =IF(AND($Q46<>"",$Q46<>"non inscrit"),IF(IFERROR(VLOOKUP($C46,Buck_int!$C$12:$K$400,5,FALSE),"")=$F46,IF(AND(OR($Q46>=$H$4,$O$1<$H$5),OR($Q46<$H$5,$Q46<BC$6)),IFERROR(VLOOKUP($C46,Buck_int!$C$12:$K$400,9,FALSE),""),"_"),""),"") ->  | BD46: =IF(AND($Q46<>"",$Q46<>"non inscrit"),IF(IFERROR(VLOOKUP($C46,Drum_int!$C$12:$K$400,5,FALSE),"")=$F46,IF(AND(OR($Q46>=$H$4,$O$1<$H$5),OR($Q46<$H$5,$Q46<BD$6)),IFERROR(VLOOKUP($C46,Drum_int!$C$12:$K$400,9,FALSE),""),"_"),""),"") ->  | BE46: =IF(AND($Q46<>"",$Q46<>"non inscrit"),IF(IFERROR(VLOOKUP($C46,Coat_int2!$C$12:$K$400,5,FALSE),"")=$F46,IF(AND(OR($Q46>=$H$4,$O$1<$H$5),OR($Q46<$H$5,$Q46<BE$6)),IFERROR(VLOOKUP($C46,Coat_int2!$C$12:$K$400,9,FALSE),""),"_"),""),"") ->  | BF46: =IF(AND($Q46<>"",$Q46<>"non inscrit"),IF(IFERROR(VLOOKUP($C46,Jean_int!$C$12:$K$401,5,FALSE),"")=$F46,IF(AND(OR($Q46>=$H$4,$O$1<$H$5),OR($Q46<$H$5,$Q46<BF$6)),IFERROR(VLOOKUP($C46,Jean_int!$C$12:$K$401,9,FALSE),""),"_"),""),"") ->  | BG46: =IF(AND($Q46<>"",$Q46<>"non inscrit"),IF(IFERROR(VLOOKUP($C46,Val_int!$C$12:$K$401,5,FALSE),"")=$F46,IF(AND(OR($Q46>=$H$4,$O$1<$H$5),OR($Q46<$H$5,$Q46<BG$6)),IFERROR(VLOOKUP($C46,Val_int!$C$12:$K$401,9,FALSE),""),"_"),""),"") ->  | BH46: =IF(AND($Q46<>"",$Q46<>"non inscrit"),IF(IFERROR(VLOOKUP($C46,Qc_int!$C$12:$K$401,5,FALSE),"")=$F46,IF(AND(OR($Q46>=$H$4,$O$1<$H$5),OR($Q46<$H$5,$Q46<BH$6)),IFERROR(VLOOKUP($C46,Qc_int!$C$12:$K$401,9,FALSE),""),"_"),""),"") ->  | BI46: =IF(AND($Q46<>"",$Q46<>"non inscrit"),IF(IFERROR(VLOOKUP($C46,Qc2_int!$C$12:$K$401,5,FALSE),"")=$F46,IF(AND(OR($Q46>=$H$4,$O$1<$H$5),OR($Q46<$H$5,$Q46<BI$6)),IFERROR(VLOOKUP($C46,Qc2_int!$C$12:$K$401,9,FALSE),""),"_"),""),"") ->  | BJ46: =IF(AND($Q46<>"",$Q46<>"non inscrit"),IF(IFERROR(VLOOKUP($C46,#REF!,5,FALSE),"")=$F46,IF(AND(OR($Q46>=$H$4,$O$1<$H$5),OR($Q46<$H$5,$Q46<$AY$6)),IFERROR(VLOOKUP($C46,#REF!,9,FALSE),""),"_"),""),"") ->  | BK46: =IF(AND($Q46<>"",$Q46<>"non inscrit"),IF(IFERROR(VLOOKUP($C46,#REF!,5,FALSE),"")=$F46,IF(AND(OR($Q46>=$H$4,$O$1<$H$5),OR($Q46<$H$5,$Q46<$AY$6)),IFERROR(VLOOKUP($C46,#REF!,9,FALSE),""),"_"),""),"") ->  | BU46: =IF(AND($Q46<>"",$Q46<>"non inscrit"),IF(IFERROR(VLOOKUP($C46,FIN_int!$C$12:$K$401,5,FALSE),"")=$F46,IF(AND(OR($Q46>=$H$4,$O$1<$H$5),OR($Q46<$H$5,$Q46<BU$6)),IFERROR(VLOOKUP($C46,FIN_int!$C$12:$K$401,9,FALSE),""),"_"),""),"") -> 
A47: 2 | B47: 7 | D47: =IF($C47="","",IF($O$1>$H$4,IFERROR(VLOOKUP($C47,'Membres-2023'!$A:$G,2,FALSE),""),IFERROR(VLOOKUP($C47,'Membres-2022'!$A:$G,2,FALSE),""))) ->  | E47: =IF($C47="","",IF($O$1>$H$4,IFERROR(VLOOKUP($C47,'Membres-2023'!$A:$G,3,FALSE),""),IFERROR(VLOOKUP($C47,'Membres-2022'!$A:$G,3,FALSE),""))) ->  | F47: =IF($C47="","",IF($O$1>$H$4,IFERROR(VLOOKUP($C47,'Membres-2023'!$A:$G,7,FALSE),""),IFERROR(VLOOKUP($C47,'Membres-2022'!$A:$G,7,FALSE),""))) ->  | G47: =IF($C47="","",IF($O$1>$H$4,IFERROR(VLOOKUP($C47,'Membres-2023'!$A:$G,5,FALSE),""),IFERROR(VLOOKUP($C47,'Membres-2022'!$A:$G,5,FALSE),""))) ->  | H47: 0 | I47: 0 | J47: 0 | K47: =IFERROR(IF(VLOOKUP(C47,'Membres-2022'!$A:$F,6,FALSE)>=$H$3,VLOOKUP(C47,'Membres-2022'!$A:$F,6,FALSE),"non inscrit"),IF($C47>0,"non inscrit","")) ->  | Q47: =IFERROR(IF(VLOOKUP($C47,'Membres-2023'!$A:$F,6,FALSE)>=$H$3,VLOOKUP($C47,'Membres-2023'!$A:$F,6,FALSE),"non inscrit"),"") ->  | Z47: =IF(IF(AND($K47<>"non inscrit",Z$6<$H$4),OR($K47<$H$5,$K47<Z$6),OR($Q47<$H$5,$Q47<Z$6)),IFERROR(IF(VLOOKUP($C47,Stroch_ext!$C$12:$K$400,5,FALSE)=$F47,VLOOKUP($C47,Stroch_ext!$C$12:$K$400,9,FALSE),""),""),"") ->  | AA47: =IF(IF(AND($K47<>"non inscrit",AA$6<$H$4),OR($K47<$H$5,$K47<AA$6),OR($Q47<$H$5,$Q47<AA$6)),IFERROR(IF(VLOOKUP($C47,Vallée_ext!$C$12:$K$400,5,FALSE)=$F47,VLOOKUP($C47,Vallée_ext!$C$12:$K$400,9,FALSE),""),""),"") ->  | AB47: =IF(IF(AND($K47<>"non inscrit",AB$6<$H$4),OR($K47<$H$5,$K47<AB$6),OR($Q47<$H$5,$Q47<AB$6)),IFERROR(IF(VLOOKUP($C47,ASF_ext!$C$12:$K$400,5,FALSE)=$F47,VLOOKUP($C47,ASF_ext!$C$12:$K$400,9,FALSE),""),""),"") ->  | AC47: =IF(IF(AND($K47<>"non inscrit",AC$6<$H$4),OR($K47<$H$5,$K47<AC$6),OR($Q47<$H$5,$Q47<AC$6)),IFERROR(IF(VLOOKUP($C47,MtLaur_ext!$C$12:$K$407,5,FALSE)=$F47,VLOOKUP($C47,MtLaur_ext!$C$12:$K$407,9,FALSE),""),""),"") ->  | AD47: =IF(IF(AND($K47<>"non inscrit",AD$6<$H$4),OR($K47<$H$5,$K47<AD$6),OR($Q47<$H$5,$Q47<AD$6)),IFERROR(IF(VLOOKUP($C47,Nord_ext!$C$12:$K$400,5,FALSE)=$F47,VLOOKUP($C47,Nord_ext!$C$12:$K$400,9,FALSE),""),""),"") ->  | AE47: =IF(IF(AND($K47<>"non inscrit",AE$6<$H$4),OR($K47<$H$5,$K47<AE$6),OR($Q47<$H$5,$Q47<AE$6)),IFERROR(IF(VLOOKUP($C47,CentreQc_ext!$C$12:$K$400,5,FALSE)=$F47,VLOOKUP($C47,CentreQc_ext!$C$12:$K$400,9,FALSE),""),""),"") ->  | AF47: =IF(IF(AND($K47<>"non inscrit",AF$6<$H$4),OR($K47<$H$5,$K47<AF$6),OR($Q47<$H$5,$Q47<AF$6)),IFERROR(IF(VLOOKUP($C47,Ascot_ext!$C$12:$K$400,5,FALSE)=$F47,VLOOKUP($C47,Ascot_ext!$C$12:$K$400,9,FALSE),""),""),"") ->  | AG47: =IF(IF(AND($K47<>"non inscrit",AG$6<$H$4),OR($K47<$H$5,$K47<AG$6),OR($Q47<$H$5,$Q47<AG$6)),IFERROR(IF(VLOOKUP($C47,NDB_ext!$C$12:$K$399,5,FALSE)=$F47,VLOOKUP($C47,NDB_ext!$C$12:$K$399,9,FALSE),""),""),"") ->  | AH47: =IF(IF(AND($K47<>"non inscrit",AH$6<$H$4),OR($K47<$H$5,$K47<AH$6),OR($Q47<$H$5,$Q47<AH$6)),IFERROR(IF(VLOOKUP($C47,Victo_ext!$C$12:$K$400,5,FALSE)=$F47,VLOOKUP($C47,Victo_ext!$C$12:$K$400,9,FALSE),""),""),"") ->  | AI47: =IF(IF(AND($K47<>"non inscrit",AI$6<$H$4),OR($K47<$H$5,$K47<AI$6),OR($Q47<$H$5,$Q47<AI$6)),IFERROR(IF(VLOOKUP($C47,Brome_ext!$C$12:$K$400,5,FALSE)=$F47,VLOOKUP($C47,Brome_ext!$C$12:$K$400,9,FALSE),""),""),"") ->  | AJ47: =IF(IF(AND($K47<>"non inscrit",AJ$6<$H$4),OR($K47<$H$5,$K47<AJ$6),OR($Q47<$H$5,$Q47<AJ$6)),IFERROR(IF(VLOOKUP($C47,Tuque_ext!$C$12:$K$400,5,FALSE)=$F47,VLOOKUP($C47,Tuque_ext!$C$12:$K$400,9,FALSE),""),""),"") ->  | AK47: =IF(IF(AND($K47<>"non inscrit",AK$6<$H$4),OR($K47<$H$5,$K47<AK$6),OR($Q47<$H$5,$Q47<AK$6)),IFERROR(IF(VLOOKUP($C47,Cantley_ext!$C$12:$K$400,5,FALSE)=$F47,VLOOKUP($C47,Cantley_ext!$C$12:$K$400,9,FALSE),""),""),"") ->  | AL47: =IF(IF(AND($K47<>"non inscrit",AL$6<$H$4),OR($K47<$H$5,$K47<AL$6),OR($Q47<$H$5,$Q47<AL$6)),IFERROR(IF(VLOOKUP($C47,CQ2_ext!$C$12:$K$400,5,FALSE)=$F47,VLOOKUP($C47,CQ2_ext!$C$12:$K$400,9,FALSE),""),""),"") ->  | AM47: =IF(IF(AND($K47<>"non inscrit",AM$6<$H$4),OR($K47<$H$5,$K47<AM$6),OR($Q47<$H$5,$Q47<AM$6)),IFERROR(IF(VLOOKUP($C47,Amos_ext!$C$12:$K$400,5,FALSE)=$F47,VLOOKUP($C47,Amos_ext!$C$12:$K$400,9,FALSE)*3/4,""),""),"") ->  | AN47: =IF(IF(AND($K47<>"non inscrit",AN$6<$H$4),OR($K47<$H$5,$K47<AN$6),OR($Q47<$H$5,$Q47<AN$6)),IFERROR(IF(VLOOKUP($C47,LaSarre_ext!$C$12:$K$400,5,FALSE)=$F47,VLOOKUP($C47,LaSarre_ext!$C$12:$K$400,9,FALSE),""),""),"") ->  | AO47: =IF(IF(AND($K47<>"non inscrit",AO$6<$H$4),OR($K47<$H$5,$K47<AO$6),OR($Q47<$H$5,$Q47<AO$6)),IFERROR(IF(VLOOKUP($C47,Rouyn_ext!$C$12:$K$400,5,FALSE)=$F47,VLOOKUP($C47,Rouyn_ext!$C$12:$K$400,9,FALSE),""),""),"") ->  | AP47: =IF(IF(AND($K47<>"non inscrit",AP$6<$H$4),OR($K47<$H$5,$K47<AP$6),OR($Q47<$H$5,$Q47<AP$6)),IFERROR(IF(VLOOKUP($C47,Valdor_ext!$C$12:$K$400,5,FALSE)=$F47,VLOOKUP($C47,Valdor_ext!$C$12:$K$400,9,FALSE),""),""),"") ->  | AQ47: =IF(IF(AND($K47<>"non inscrit",AQ$6<$H$4),OR($K47<$H$5,$K47<AQ$6),OR($Q47<$H$5,$Q47<AQ$6)),IFERROR(IF(VLOOKUP($C47,Perrot_ext!$C$12:$K$400,5,FALSE)=$F47,VLOOKUP($C47,Perrot_ext!$C$12:$K$400,9,FALSE),""),""),"") ->  | AR47: =IF(IF(AND($K47<>"non inscrit",AR$6<$H$4),OR($K47<$H$5,$K47<AR$6),OR($Q47<$H$5,$Q47<AR$6)),IFERROR(IF(VLOOKUP($C47,Sorel_ext!$C$12:$K$400,5,FALSE)=$F47,VLOOKUP($C47,Sorel_ext!$C$12:$K$400,9,FALSE),""),""),"") ->  | AV47: =IF(IF(AND($K47<>"non inscrit",AV$6<$H$4),OR($K47<$H$5,$K47<AV$6),OR($Q47<$H$5,$Q47<AV$6)),IFERROR(IF(VLOOKUP($C47,Finale_ext!$C$12:$K$400,5,FALSE)=$F47,VLOOKUP($C47,Finale_ext!$C$12:$K$400,9,FALSE),""),""),"") ->  | AX47: =IF(AND($Q47<>"",$Q47<>"non inscrit"),IF(IFERROR(VLOOKUP($C47,Coat_int!$C$12:$K$400,5,FALSE),"")=$F47,IF(AND(OR($Q47>=$H$4,$O$1<$H$5),OR($Q47<$H$5,$Q47<AX$6)),IFERROR(VLOOKUP($C47,Coat_int!$C$12:$K$400,9,FALSE),""),"_"),""),"") ->  | AY47: =IF(AND($Q47<>"",$Q47<>"non inscrit"),IF(IFERROR(VLOOKUP($C47,LG_int!$C$12:$K$403,5,FALSE),"")=$F47,IF(AND(OR($Q47>=$H$4,$O$1<$H$5),OR($Q47<$H$5,$Q47<AY$6)),IFERROR(VLOOKUP($C47,LG_int!$C$12:$K$403,9,FALSE),""),"_"),""),"") ->  | AZ47: =IF(AND($Q47<>"",$Q47<>"non inscrit"),IF(IFERROR(VLOOKUP($C47,LSNO_int!$C$12:$K$400,5,FALSE),"")=$F47,IF(AND(OR($Q47>=$H$4,$O$1<$H$5),OR($Q47<$H$5,$Q47<AZ$6)),IFERROR(VLOOKUP($C47,LSNO_int!$C$12:$K$400,9,FALSE),""),"_"),""),"") ->  | BA47: =IF(AND($Q47<>"",$Q47<>"non inscrit"),IF(IFERROR(VLOOKUP($C47,Ach_int!$C$12:$K$400,5,FALSE),"")=$F47,IF(AND(OR($Q47>=$H$4,$O$1<$H$5),OR($Q47<$H$5,$Q47<BA$6)),IFERROR(VLOOKUP($C47,Ach_int!$C$12:$K$400,9,FALSE),""),"_"),""),"") ->  | BB47: =IF(AND($Q47<>"",$Q47<>"non inscrit"),IF(IFERROR(VLOOKUP($C47,Tremb_int!$C$12:$K$400,5,FALSE),"")=$F47,IF(AND(OR($Q47>=$H$4,$O$1<$H$5),OR($Q47<$H$5,$Q47<BB$6)),IFERROR(VLOOKUP($C47,Tremb_int!$C$12:$K$400,9,FALSE),""),"_"),""),"") ->  | BC47: =IF(AND($Q47<>"",$Q47<>"non inscrit"),IF(IFERROR(VLOOKUP($C47,Buck_int!$C$12:$K$400,5,FALSE),"")=$F47,IF(AND(OR($Q47>=$H$4,$O$1<$H$5),OR($Q47<$H$5,$Q47<BC$6)),IFERROR(VLOOKUP($C47,Buck_int!$C$12:$K$400,9,FALSE),""),"_"),""),"") ->  | BD47: =IF(AND($Q47<>"",$Q47<>"non inscrit"),IF(IFERROR(VLOOKUP($C47,Drum_int!$C$12:$K$400,5,FALSE),"")=$F47,IF(AND(OR($Q47>=$H$4,$O$1<$H$5),OR($Q47<$H$5,$Q47<BD$6)),IFERROR(VLOOKUP($C47,Drum_int!$C$12:$K$400,9,FALSE),""),"_"),""),"") ->  | BE47: =IF(AND($Q47<>"",$Q47<>"non inscrit"),IF(IFERROR(VLOOKUP($C47,Coat_int2!$C$12:$K$400,5,FALSE),"")=$F47,IF(AND(OR($Q47>=$H$4,$O$1<$H$5),OR($Q47<$H$5,$Q47<BE$6)),IFERROR(VLOOKUP($C47,Coat_int2!$C$12:$K$400,9,FALSE),""),"_"),""),"") ->  | BF47: =IF(AND($Q47<>"",$Q47<>"non inscrit"),IF(IFERROR(VLOOKUP($C47,Jean_int!$C$12:$K$401,5,FALSE),"")=$F47,IF(AND(OR($Q47>=$H$4,$O$1<$H$5),OR($Q47<$H$5,$Q47<BF$6)),IFERROR(VLOOKUP($C47,Jean_int!$C$12:$K$401,9,FALSE),""),"_"),""),"") ->  | BG47: =IF(AND($Q47<>"",$Q47<>"non inscrit"),IF(IFERROR(VLOOKUP($C47,Val_int!$C$12:$K$401,5,FALSE),"")=$F47,IF(AND(OR($Q47>=$H$4,$O$1<$H$5),OR($Q47<$H$5,$Q47<BG$6)),IFERROR(VLOOKUP($C47,Val_int!$C$12:$K$401,9,FALSE),""),"_"),""),"") ->  | BH47: =IF(AND($Q47<>"",$Q47<>"non inscrit"),IF(IFERROR(VLOOKUP($C47,Qc_int!$C$12:$K$401,5,FALSE),"")=$F47,IF(AND(OR($Q47>=$H$4,$O$1<$H$5),OR($Q47<$H$5,$Q47<BH$6)),IFERROR(VLOOKUP($C47,Qc_int!$C$12:$K$401,9,FALSE),""),"_"),""),"") ->  | BI47: =IF(AND($Q47<>"",$Q47<>"non inscrit"),IF(IFERROR(VLOOKUP($C47,Qc2_int!$C$12:$K$401,5,FALSE),"")=$F47,IF(AND(OR($Q47>=$H$4,$O$1<$H$5),OR($Q47<$H$5,$Q47<BI$6)),IFERROR(VLOOKUP($C47,Qc2_int!$C$12:$K$401,9,FALSE),""),"_"),""),"") ->  | BJ47: =IF(AND($Q47<>"",$Q47<>"non inscrit"),IF(IFERROR(VLOOKUP($C47,#REF!,5,FALSE),"")=$F47,IF(AND(OR($Q47>=$H$4,$O$1<$H$5),OR($Q47<$H$5,$Q47<$AY$6)),IFERROR(VLOOKUP($C47,#REF!,9,FALSE),""),"_"),""),"") ->  | BK47: =IF(AND($Q47<>"",$Q47<>"non inscrit"),IF(IFERROR(VLOOKUP($C47,#REF!,5,FALSE),"")=$F47,IF(AND(OR($Q47>=$H$4,$O$1<$H$5),OR($Q47<$H$5,$Q47<$AY$6)),IFERROR(VLOOKUP($C47,#REF!,9,FALSE),""),"_"),""),"") ->  | BU47: =IF(AND($Q47<>"",$Q47<>"non inscrit"),IF(IFERROR(VLOOKUP($C47,FIN_int!$C$12:$K$401,5,FALSE),"")=$F47,IF(AND(OR($Q47>=$H$4,$O$1<$H$5),OR($Q47<$H$5,$Q47<BU$6)),IFERROR(VLOOKUP($C47,FIN_int!$C$12:$K$401,9,FALSE),""),"_"),""),"") -> 
